Workbook

Sheet Introduction
A3: Introduction to SIMPATHY
A5: Inappropriate polypharmacy is a major public health issue that needs to be addressed with increasing prevalence of multiple morbidity, particularly in the elderly. The overarching aim of SIMPATHY (Stimulating Innovation Management of Polypharmacy and Adherence in The Elderly) is to stimulate and support innovation across the EU in the management of polypharmacy and adherence in the elderly, with a specific focus on addressing inappropriate polypharmacy by delivering the necessary change management approaches and tools to help manage multi-medication and adherence to prescribed drugs.
A7: Introducing such a change is not easy and will require new ways of working together with public and political acceptance that such a change is important (Moore, 1997). Delivery of such a change will need political and clinical leadership. Kotter’s steps can be used to set out the need for change, a vision of what the change will look like and why delivering the change will be important, particularly setting out the sense of urgency for the change (Kotter International, 2017). Setting out the scale of the problem in terms of the economic costs of polypharmacy is an important factor that can help create the sense of urgency in a financially constrained climate. As work is undertaken to address polypharmacy, it is also important to be able to quantify the economic benefits of the work and report these as quick wins and benefits of the change.
A9: The Economic Analysis Tool introduced by SIMPATHY is intended to add to the package of change management tools provided by the SIMPATHY project. Other tools in the package include templates for PESTEL (Political, Economic, Social, Technological, Environmental and Legal) and SWOT (Strengths, Weaknesses, Opportunities and Threats) analysis and a guidance on how to conduct these. As part of PESTEL and SWOT analyses, the economic factors that will influence the ability to implement a polypharmacy review policy are considered. However, these centre around the overall macro-economic conditions of a region (country) which might impact on policy; the Economic Analysis Tool adds to the package by offering a bespoke analysis of the micro-economic impacts, the costs and benefits of introducing and carrying out reviews. It is thought that this will give a broad overview around resource needs and potential benefits to interested users.
A11: Introduction to the Economic Analysis Tool
A13: The economic analysis tool (the tool) provides a simple analysis of the economic costs and benefits associated with carrying out polypharmacy reviews (reviews). The analysis follows the logic outlined in Diagram 1: Activity is driven by the selected population for whom reviews are intended to be carried out; the population can be selected from country geographic area, by age group and sex. The selected group can be further stratified according to their risk of admission or re-admission to hospital. The selected activity therefore represents the maximum number of reviews that would need to be carried out to cover the entire group, and the model estimates maximum costs and benefits based on this.
A14: The costs of carrying out the reviews are based on the required time needed by different types of clinicians to carry out individual components of a review, and associated staff cost. This gives a unit cost per review which is then applied to the selected population group for a maximum total cost, and which can be netted of any review charge that is going to be taken per review.
A15: The direct potential financial benefit of reviews will consist of the net reduction in drugs prescribed (measured in Daily Defined Dose, DDD), and associated expenditure. This is estimated as the net of DDDs started and DDDs stopped per review, and the associated prevented number of repeat prescriptions.
A16: Potential indirect benefits are estimated based on assumptions from Pirmohamed et al (2004), and centre around potentially avoided Adverse Drug Reactions (ADRs), preventable hospital admissions associated with these ADRs, and the associated number of hospital bed days avoided.
A18: Diagram 1: Model logic
A21: The tool also provides a trend analysis to 2030 in accordance with the SIMPATHY vision, with a simple exponential autoregressive projection of the selected population by age band into the future. The estimated change (increase or decrease) in the selected population group to 2030 is applied to the estimated costs and benefits to give a crude overview of how costs and benefits would change to 2030. Note that this is necessarily driven by the change in population, i.e. a 10% increase in the selected population would imply a 10% increase in associated costs and benefits.
A22: Data Capture: This feature gives the user the option to capture the results for the combination of parameters set, before changing the parameters. By clicking the button ‘record data’ on the ‘Summary’ tab, this will automatically record all choice parameters, input parameters and outputs onto the tab ‘Data collection’. Each time the button ‘record data’ is clicked, another column of data will be added to data collection. This will build a table of cross-sectional data to enable further analysis of various combinations of inputs, if required.
A23: go to Data collection
A25: Data used in the tool and gaps in data completeness
A27: It was originally intended to offer a full set of choice parameters with underlying data for all of the EU28 countries. However, this proved not to be possible given lack of data and lack of data homogeneity across parameters. The tool therefore offers a choice between applying Scottish parameters and data to the population data for EU28 countries, or to input own, local data where this is available and appropriate.
A28: please see tab 'data sources' for detail on data sources used
A29: Data sources
A32: Assumptions and caveats
A34: The model is built on an earlier model which informed the original and revised Scottish Polypharmacy Guidances in (2012) and (2015). Since it is built on the Scottish model of review set-up, there will be some limitations as to the flexibility around review set-up and target population. E.g., the model allows for time allocation of four broad types of clinical staff: Primary Care Doctors, Other Doctors, Pharmacists, and Nurses. If there are other staff types involved in local review set-ups, then concessions would need to be made and their allocated time and cost would need to be merged with an existing category.
A35: Likewise, not every region or country will have a risk stratification mechanism such as the Scottish SPARRA (Scottish Patients at Risk of Readmission or Admission) database, and broad assumptions will need to be made around the risk profile of the selected population group. Within the SPARRA algorithm the risk of admission or readmission increases with the number of (high risk) drugs that patients are prescribed, hence the choice of this mechanism as a selection tool.
A36: The model also works with the highest level aggregates of cost, such as an average cost per prescription, an average cost per staff type, and an average cost per inpatient bed day. There will of course be variation in these costs, depending on the distribution of drug costs associated with reviews, profile of staff carrying out reviews, etc.
A37: In calculating the net reduction in drugs prescribed for the Scottish basis, it is currently assumed that a straight translation can be made from individual item prescribed to Daily Defined Dose (DDD). I.e. a net reduction in 1 item prescribed with all its repeats would be equivalent to a reduction of 1 DDD for one year. This is assuming that repeats and doses are following prescription and DDD guidance.
A38: The model focuses only on direct savings from a net reduction in drugs prescribed, and potential indirect benefits of avoided hospital admissions. There will be numerous other clinical benefits to reviews, such as improved overall health and wellbeing of the patient, drugs optimisation, potential Quality Adjusted Life Years (QALYs) gained, and even prevented deaths from prevented ADRs. These are discussed in broader terms in the SIMPATHY project, but do not feature in this economic analysis.
A39: In calculating the net reduction in drugs prescribed for the Scottish basis, it is currently assumed that a straight translation can be made from individual item prescribed to Daily Defined Dose (DDD). I.e., a net reduction in 1 item prescribed with all its repeats would be equivalent to a reduction of 1 DDD for one year. This is assuming that repeats and doses are following prescription and DDD guidance.
A40: The model also provides a snapshot view of costs and benefits (plus a population trend analysis), i.e. the maximum costs and benefits are set out against each other at one point in time. In reality, the set of reviews will be carried out over a period of time and some of benefits, such as avoided repeat prescriptions and avoided future hospital admissions will occur over the medium to long term.
A41: Also, most of the estimated indirect benefits are based on assumptions from one key paper in the literature (Pirmohamed (2004), see above). There is arguably uncertainty around the applicability of the results from one study onto the entire population of EU28, which is the main reason that a simulation analysis around these parameters is offered. An assumption is made around the ADRs that are avoidable based on the parameters by (Pirmohamed, et al., 2004) and what proportion of these are avoided by polypharmacy reviews. This proportion can be adjusted in the model to give more or less conservative estimates.
A42: Importantly, and as discussed above, the estimated costs and benefits are not necessarily cash releasing and are estimating the potential productive opportunity instead. Where polypharmacy reviews are intended to be implemented as part of clinicians’ core activity, the time cost associated with that activity would already be covered by the allocated staff cost. However, there might be a case of one clinician type (e.g. a pharmacist) freeing up the capacity of another clinician (General Practitioner). Similarly, benefits are measured in terms of cost avoidance and preventative potential: A net reduction in drug cost can be cash releasing if future designated payments are reduced or avoided, as well as having the potential for avoided additional costs; a potential future reduction in hospital admission represents the potential future cost that could be avoided (and capacity that could be released).
A45: How to use the tool
A47: The main tab for the tool is the 'Summary' tab. When clicking on the button 'Set parameters', the user will be presented with a set of choices for the parameters outlined in the background note above.
A48: The key element to setting the parameters is choosing the population, by choosing the country region, and selecting the minimum and maximum age bands and sex of the population group that is to be considered for polypharmacy reviews.
A50: The subsequent set of choices follows the same pattern for each parameter:
A51: - choose the profile pertaining to the selected country region
A52: - choose the Scottish model profile
A53: - choose and enter own data
A55: The model has been set up in this way as data for certain variables are not available for each of the EU28 countries. In that case, the user has the option to apply Scottish parameters to his selected population, as an approximation of what the costs and benefits in his/her area might look like; or locally available data can be entered via the data entry forms that can be opened on the main user form.
A56: The subsequent sets of parameters to be determined are:
A57: First, an option to choose whether a risk stratification should be applied to the selected population group, i.e. narrowing down the selection to those identified as at risk of admission to hospital.
A58: If risk stratification is applied, choose which risk profile should be used
A59: Choose review setup options, including the minutes spent per review by different staff types, staff cost, the anticipated average number of drugs stopped and started per review and subsequent avoided repeats, and an option to impose a charge per review in order to recoup some or all of the cost
A60: Next, the set of 'health system variables' offers choices on average drug cost, admission rates, average cost per inpatient bed day (and which type of inpatient admission is used)
A62: Upon clicking 'OK' the tool will automatically estimate the costs and benefits for the selected group, and results are displayed on the 'Summary' tab, along with overall figures of what the chosen parameters would imply across all EU28 countries.
A63: Some of the key results are displayed in diagrams on the tab 'charts'
A64: go to charts
A65: The tab 'trend analysis' offers the population based trend to 2030 for the overall costs and benefits estimated.
A66: go to Trend Analysis
A69: Literature
A70: Moore, M. H., 1997. Creating Public Value - Strategic Management in Government. Cambridge, MA: Harvard University Press.
A71: Kotter International, 2017. Kotter’s 8-step process for leading change. [Online] Available at: https://www.kotterinternational.com/ [Accessed 01 April 2017].
A72: Pirmohamed M., Sally James, Shaun Meakin, Chris Green, Andrew K Scott, Thomas J Walley, Keith Farrar, B Kevin Park and Alasdair M Breckenridge (2004) Adverse drug reactions as cause of admission to hospital: prospective analysis of 18 820 patients, BMJ 2004;329;15-19 doi:10.1136/bmj.329.7456.15
A73: http://www.anticoagulation.org.uk/pdfs/resources/BMJ%202004;%20329%2015-19.pdf
A74: Scottish Government, 2012. Polypharmacy Guidance, s.l.: Scottish Government.
A75: Scottish Government, 2015. Polypharmacy Guidance, s.l.: Scottish Government.

Sheet Summary
A2: Country | B2: =VLOOKUP('input selections'!F3,lookups!$B$5:$D$34,2,FALSE) -> France
A4: Population sex (M/F/Total) | B4: =VLOOKUP('input selections'!F6,sex,3,FALSE) -> Total
A6: Population age group | B6: Minimum | C6: Maximum
B7: ='input selections'!G10 -> 65 | C7: ='input selections'!H10 -> 80
A9: Risk stratification? | B9: ='input selections'!G13 -> No
A11: go to Introduction
A12: go to charts
A13: go to Trend Analysis
A14: go to Data collection
A16: ='input selections'!H3 -> France | Q16: EU28
B17: Population / Activity | I17: Cost | Q17: Population / Activity | X17: Cost
A19: Population Summary
C21: No risk stratification | D21: Risk stratification | R21: No risk stratification | S21: Risk stratification
D22: BNF10+ | E22: BNF10+ & High Risk Med | F22: BNF 5-9 | G22: BNF 5-9 & High Risk Med | S22: BNF10+ | T22: BNF10+ & High Risk Med | U22: BNF 5-9 | V22: BNF 5-9 & High Risk Med
C23: ='risk stratification'!B10 -> 7968556 | D23: ='risk stratification'!C10 -> 374874.5803 | E23: ='risk stratification'!D10 -> 366100.6519 | F23: ='risk stratification'!E10 -> 425385.1843 | G23: ='risk stratification'!F10 -> 410237.0391 | R23: ='risk stratification'!B11 -> 66458505 | S23: ='risk stratification'!C11 -> 3186074.325 | T23: ='risk stratification'!D11 -> 3111764.129 | U23: ='risk stratification'!E11 -> 3613499.881 | V23: ='risk stratification'!F11 -> 3485371.175
A26: Review costs
A28: Minutes & Cost per review under current model setup, for individual staff types | B28: Minutes per review | C28: Minutes | I28: Cost per review | J28: € | Q28: Minutes per review | R28: Minutes | X28: Cost per review | Y28: €
B29: GPs (Primary Care Doctors) | C29: ='Review costs and WTE'!F23 -> 30 | I29: GPs (Primary Care Doctors) | J29: ='Review costs and WTE'!F27 -> 30.76173674 | Q29: GPs (Primary Care Doctors) | R29: =C29 -> 30 | X29: GPs (Primary Care Doctors) | Y29: =J29 -> 30.76173674
B30: Other doctors | C30: ='Review costs and WTE'!G23 -> 0 | I30: Other doctors | J30: ='Review costs and WTE'!G27 -> 0 | Q30: Other doctors | R30: =C30 -> 0 | X30: Other doctors | Y30: =J30 -> 0
B31: Pharmacists | C31: ='Review costs and WTE'!H23 -> 75 | I31: Pharmacists | J31: ='Review costs and WTE'!H27 -> 47.30606061 | Q31: Pharmacists | R31: =C31 -> 75 | X31: Pharmacists | Y31: =J31 -> 47.30606061
B32: Nurses | C32: ='Review costs and WTE'!I23 -> 0 | I32: Nurses | J32: ='Review costs and WTE'!I27 -> 0 | Q32: Nurses | R32: =C32 -> 0 | X32: Nurses | Y32: =J32 -> 0
I33: Total | J33: ='Review costs and WTE'!J27 -> 78.06779735 | X33: Total | Y33: =J33 -> 78.06779735
A36: Total WTE and cost of reviews, if carried out for entire selected population | B36: WTE required | C36: No risk stratification | D36: Risk stratification | I36: Total cost of reviews | J36: No risk stratification | K36: Risk stratification | Q36: WTE required | R36: No risk stratification | S36: Risk stratification | X36: Total cost of reviews | Y36: No risk stratification | Z36: Risk stratification
D37: BNF10+ | E37: BNF10+ & High Risk Med | F37: BNF 5-9 | G37: BNF 5-9 & High Risk Med | K37: BNF10+ | L37: BNF10+ & High Risk Med | M37: BNF 5-9 | N37: BNF 5-9 & High Risk Med | S37: BNF10+ | T37: BNF10+ & High Risk Med | U37: BNF 5-9 | V37: BNF 5-9 & High Risk Med | Z37: BNF10+ | AA37: BNF10+ & High Risk Med | AB37: BNF 5-9 | AC37: BNF 5-9 & High Risk Med
B38: GPs (Primary Care Doctors) | C38: ='Review costs and WTE'!F80 -> 2414.713939 | D38: ='Review costs and WTE'!G80 -> 113.5983577 | E38: ='Review costs and WTE'!H80 -> 110.9395915 | F38: ='Review costs and WTE'!I80 -> 128.9046013 | G38: ='Review costs and WTE'!J80 -> 124.3142543 | J38: €m | K38: €m | L38: €m | M38: €m | N38: €m | Q38: GPs (Primary Care Doctors) | R38: ='Review costs and WTE'!F81 -> 20138.94091 | S38: ='Review costs and WTE'!G81 -> 965.4770682 | T38: ='Review costs and WTE'!H81 -> 942.9588271 | U38: ='Review costs and WTE'!I81 -> 1094.999964 | V38: ='Review costs and WTE'!J81 -> 1056.173083 | Y38: €m | Z38: €m | AA38: €m | AB38: €m | AC38: €m
B39: Other doctors | C39: ='Review costs and WTE'!F82 -> 0 | D39: ='Review costs and WTE'!G82 -> 0 | E39: ='Review costs and WTE'!H82 -> 0 | F39: ='Review costs and WTE'!I82 -> 0 | G39: ='Review costs and WTE'!J82 -> 0 | I39: Total cost of reviews | J39: ='Review costs and WTE'!M42 -> 622.087615 | K39: ='Review costs and WTE'!N42 -> 29.26563277 | L39: ='Review costs and WTE'!O42 -> 28.5806715 | M39: ='Review costs and WTE'!P42 -> 33.20888437 | N39: ='Review costs and WTE'!Q42 -> 32.02630203 | Q39: Other doctors | R39: ='Review costs and WTE'!F83 -> 0 | S39: ='Review costs and WTE'!G83 -> 0 | T39: ='Review costs and WTE'!H83 -> 0 | U39: ='Review costs and WTE'!I83 -> 0 | V39: ='Review costs and WTE'!J83 -> 0 | X39: Total cost of reviews | Y39: ='Review costs and WTE'!M43 -> 5188.2691 | Z39: ='Review costs and WTE'!N43 -> 248.7298047 | AA39: ='Review costs and WTE'!O43 -> 242.9285715 | AB39: ='Review costs and WTE'!P43 -> 282.0979765 | AC39: ='Review costs and WTE'!Q43 -> 272.0952506
B40: Pharmacists | C40: ='Review costs and WTE'!F84 -> 6036.784848 | D40: ='Review costs and WTE'!G84 -> 283.9958942 | E40: ='Review costs and WTE'!H84 -> 277.3489787 | F40: ='Review costs and WTE'!I84 -> 322.2615033 | G40: ='Review costs and WTE'!J84 -> 310.7856357 | Q40: Pharmacists | R40: ='Review costs and WTE'!F85 -> 50347.35227 | S40: ='Review costs and WTE'!G85 -> 2413.69267 | T40: ='Review costs and WTE'!H85 -> 2357.397068 | U40: ='Review costs and WTE'!I85 -> 2737.49991 | V40: ='Review costs and WTE'!J85 -> 2640.432709
B41: Nurses | C41: ='Review costs and WTE'!F86 -> 0 | D41: ='Review costs and WTE'!G86 -> 0 | E41: ='Review costs and WTE'!H86 -> 0 | F41: ='Review costs and WTE'!I86 -> 0 | G41: ='Review costs and WTE'!J86 -> 0 | I41: Review charge reclaimed | J41: ='Review costs and WTE'!M51 -> 0 | K41: ='Review costs and WTE'!N51 -> 0 | L41: ='Review costs and WTE'!O51 -> 0 | M41: ='Review costs and WTE'!P51 -> 0 | N41: ='Review costs and WTE'!Q51 -> 0 | Q41: Nurses | R41: ='Review costs and WTE'!F87 -> 0 | S41: ='Review costs and WTE'!G87 -> 0 | T41: ='Review costs and WTE'!H87 -> 0 | U41: ='Review costs and WTE'!I87 -> 0 | V41: ='Review costs and WTE'!J87 -> 0 | X41: Review charge reclaimed | Y41: ='Review costs and WTE'!M52 -> 0 | Z41: ='Review costs and WTE'!N52 -> 0 | AA41: ='Review costs and WTE'!O52 -> 0 | AB41: ='Review costs and WTE'!P52 -> 0 | AC41: ='Review costs and WTE'!Q52 -> 0
I43: Net total cost of reviews | J43: ='Review costs and WTE'!M57 -> 622.087615 | K43: ='Review costs and WTE'!N57 -> 29.26563277 | L43: ='Review costs and WTE'!O57 -> 28.5806715 | M43: ='Review costs and WTE'!P57 -> 33.20888437 | N43: ='Review costs and WTE'!Q57 -> 32.02630203 | X43: Net total cost of reviews | Y43: ='Review costs and WTE'!M58 -> 5188.2691 | Z43: ='Review costs and WTE'!N58 -> 248.7298047 | AA43: ='Review costs and WTE'!O58 -> 242.9285715 | AB43: ='Review costs and WTE'!P58 -> 282.0979765 | AC43: ='Review costs and WTE'!Q58 -> 272.0952506
A47: Direct impacts
A49: Drugs cost avoided | J49: No risk stratification | K49: Risk stratification | Y49: No risk stratification | Z49: Risk stratification
K50: BNF10+ | L50: BNF10+ & High Risk Med | M50: BNF 5-9 | N50: BNF 5-9 & High Risk Med | Z50: BNF10+ | AA50: BNF10+ & High Risk Med | AB50: BNF 5-9 | AC50: BNF 5-9 & High Risk Med
J51: €m | K51: €m | L51: €m | M51: €m | N51: €m | Y51: €m | Z51: €m | AA51: €m | AB51: €m | AC51: €m
I52: Drugs cost avoided (DDDs) | J52: ='drugs saved'!L39 -> 1711.197041 | K52: ='drugs saved'!M39 -> 80.50194699 | L52: ='drugs saved'!N39 -> 78.61780131 | M52: ='drugs saved'!O39 -> 91.34877998 | N52: ='drugs saved'!P39 -> 88.09581153 | X52: Drugs cost avoided (DDDs) | Y52: ='drugs saved'!L40 -> 14271.54394 | Z52: ='drugs saved'!M40 -> 684.1893259 | AA52: ='drugs saved'!N40 -> 668.231681 | AB52: ='drugs saved'!O40 -> 775.9762629 | AC52: ='drugs saved'!P40 -> 748.461433
A56: Indirect Impacts
A58: Hospital admissions | C58: No risk stratification | D58: Risk stratification | R58: No risk stratification | S58: Risk stratification
D59: BNF10+ | E59: BNF10+ & High Risk Med | F59: BNF 5-9 | G59: BNF 5-9 & High Risk Med | S59: BNF10+ | T59: BNF10+ & High Risk Med | U59: BNF 5-9 | V59: BNF 5-9 & High Risk Med
B60: Hospital admissions associated with ADRs | C60: ='Indirect Impacts'!F44 -> 151520.9613 | D60: ='Indirect Impacts'!G44 -> 24743.50765 | E60: ='Indirect Impacts'!H44 -> 21448.02463 | F60: ='Indirect Impacts'!I44 -> 25887.43968 | G60: ='Indirect Impacts'!J44 -> 22061.49978 | Q60: Hospital admissions associated with ADRs | R60: ='Indirect Impacts'!F50 -> 1263699.04 | S60: ='Indirect Impacts'!G50 -> 210359.3641 | T60: ='Indirect Impacts'!H50 -> 182434.3757 | U60: ='Indirect Impacts'!I50 -> 220012.4801 | V60: ='Indirect Impacts'!J50 -> 187626.0041
B61: 95% confidence interval | C61: ='Indirect Impacts'!F46 -> (144528, 160845) | D61: ='Indirect Impacts'!G46 -> (23601, 26266) | E61: ='Indirect Impacts'!H46 -> (20458, 22768) | F61: ='Indirect Impacts'!I46 -> (24693, 27481) | G61: ='Indirect Impacts'!J46 -> (21043, 23419) | Q61: 95% confidence interval | R61: ='Indirect Impacts'!F52 -> (1205374, 1341465) | S61: ='Indirect Impacts'!G52 -> (200650, 223305) | T61: ='Indirect Impacts'!H52 -> (174014, 193661) | U61: ='Indirect Impacts'!I52 -> (209858, 233552) | V61: ='Indirect Impacts'!J52 -> (178966, 199172)
B63: Proportion of ADRs definitely avoidable through PPH, based on central admission estimate | C63: ='Indirect Impacts'!F59 -> 8182.131912 | D63: ='Indirect Impacts'!G59 -> 1336.149413 | E63: ='Indirect Impacts'!H59 -> 1158.19333 | F63: ='Indirect Impacts'!I59 -> 1397.921743 | G63: ='Indirect Impacts'!J59 -> 1191.320988 | Q63: Proportion of ADRs definitely avoidable through PPH, based on central admission estimate | R63: ='Indirect Impacts'!F65 -> 68239.74816 | S63: ='Indirect Impacts'!G65 -> 11359.40566 | T63: ='Indirect Impacts'!H65 -> 9851.456285 | U63: ='Indirect Impacts'!I65 -> 11880.67393 | V63: ='Indirect Impacts'!J65 -> 10131.80422
B64: 95% confidence interval (based on central admission estimate) | C64: ='Indirect Impacts'!F61 -> (6364, 9091) | D64: ='Indirect Impacts'!G61 -> (1039, 1485) | E64: ='Indirect Impacts'!H61 -> (901, 1287) | F64: ='Indirect Impacts'!I61 -> (1087, 1553) | G64: ='Indirect Impacts'!J61 -> (927, 1324) | Q64: 95% confidence interval (based on central admission estimate) | R64: ='Indirect Impacts'!F67 -> (53075, 75822) | S64: ='Indirect Impacts'!G67 -> (8835, 12622) | T64: ='Indirect Impacts'!H67 -> (7662, 10946) | U64: ='Indirect Impacts'!I67 -> (9241, 13201) | V64: ='Indirect Impacts'!J67 -> (7880, 11258)
B66: Proportion of ADRs possibly avoidable through PPH, based on central admission estimate | C66: ='Indirect Impacts'!F74 -> 57274.92339 | D66: ='Indirect Impacts'!G74 -> 9353.04589 | E66: ='Indirect Impacts'!H74 -> 8107.353312 | F66: ='Indirect Impacts'!I74 -> 9785.452198 | G66: ='Indirect Impacts'!J74 -> 8339.246915 | Q66: Proportion of ADRs possibly avoidable through PPH, based on central admission estimate | R66: ='Indirect Impacts'!F80 -> 477678.2371 | S66: ='Indirect Impacts'!G80 -> 79515.83962 | T66: ='Indirect Impacts'!H80 -> 68960.194 | U66: ='Indirect Impacts'!I80 -> 83164.71749 | V66: ='Indirect Impacts'!J80 -> 70922.62953
B67: 95% confidence interval (based on central admission estimate) | C67: ='Indirect Impacts'!F76 -> (54548, 60002) | D67: ='Indirect Impacts'!G76 -> (8908, 9798) | E67: ='Indirect Impacts'!H76 -> (7721, 8493) | F67: ='Indirect Impacts'!I76 -> (9319, 10251) | G67: ='Indirect Impacts'!J76 -> (7942, 8736) | Q67: 95% confidence interval (based on central admission estimate) | R67: ='Indirect Impacts'!F82 -> (454932, 500425) | S67: ='Indirect Impacts'!G82 -> (75729, 83302) | T67: ='Indirect Impacts'!H82 -> (65676, 72244) | U67: ='Indirect Impacts'!I82 -> (79204, 87125) | V67: ='Indirect Impacts'!J82 -> (67545, 74300)
A72: Bed days | C72: No risk stratification | D72: Risk stratification | J72: No risk stratification | K72: Risk stratification | R72: No risk stratification | S72: Risk stratification | Y72: No risk stratification | Z72: Risk stratification
D73: BNF10+ | E73: BNF10+ & High Risk Med | F73: BNF 5-9 | G73: BNF 5-9 & High Risk Med | K73: BNF10+ | L73: BNF10+ & High Risk Med | M73: BNF 5-9 | N73: BNF 5-9 & High Risk Med | S73: BNF10+ | T73: BNF10+ & High Risk Med | U73: BNF 5-9 | V73: BNF 5-9 & High Risk Med | Z73: BNF10+ | AA73: BNF10+ & High Risk Med | AB73: BNF 5-9 | AC73: BNF 5-9 & High Risk Med
J74: €m | K74: €m | L74: €m | M74: €m | N74: €m | Y74: €m | Z74: €m | AA74: €m | AB74: €m | AC74: €m
B75: Bed days associated with ADR related hospital admissions, based on central admission estimate | C75: ='Indirect Impacts'!F93 -> 469714.9802 | D75: ='Indirect Impacts'!G93 -> 76704.8737 | E75: ='Indirect Impacts'!H93 -> 66488.87637 | F75: ='Indirect Impacts'!I93 -> 80251.063 | G75: ='Indirect Impacts'!J93 -> 68390.6493 | I75: Cost of Bed days associated with ADR related hospital admissions, based on central admission estimate | J75: ='Indirect Impacts'!AA93 -> 175.6781927 | K75: ='Indirect Impacts'!AB93 -> 28.68840499 | L75: ='Indirect Impacts'!AC93 -> 24.86751781 | M75: ='Indirect Impacts'!AD93 -> 30.01471595 | N75: ='Indirect Impacts'!AE93 -> 25.57880028 | Q75: Bed days associated with ADR related hospital admissions, based on central admission estimate | R75: ='Indirect Impacts'!F99 -> 3917467.024 | S75: ='Indirect Impacts'!G99 -> 652114.0286 | T75: ='Indirect Impacts'!H99 -> 565546.5645 | U75: ='Indirect Impacts'!I99 -> 682038.6884 | V75: ='Indirect Impacts'!J99 -> 581640.6126 | X75: Cost of Bed days associated with ADR related hospital admissions, based on central admission estimate | Y75: ='Indirect Impacts'!AA99 -> 1465.172617 | Z75: ='Indirect Impacts'!AB99 -> 243.8972969 | AA75: ='Indirect Impacts'!AC99 -> 211.5201825 | AB75: ='Indirect Impacts'!AD99 -> 255.0894248 | AC75: ='Indirect Impacts'!AE99 -> 217.5395206
B77: Bed days associated with definitely avoidable ADR related hospital admissions through PPH, based on central admission estimate | C77: ='Indirect Impacts'!F108 -> 25364.60893 | D77: ='Indirect Impacts'!G108 -> 4142.06318 | E77: ='Indirect Impacts'!H108 -> 3590.399324 | F77: ='Indirect Impacts'!I108 -> 4333.557402 | G77: ='Indirect Impacts'!J108 -> 3693.095062 | I77: Cost of Bed days associated with definitely avoidable ADR related hospital admissions through PPH, based on central admission estimate | J77: ='Indirect Impacts'!AA108 -> 9.486622404 | K77: ='Indirect Impacts'!AB108 -> 1.54917387 | L77: ='Indirect Impacts'!AC108 -> 1.342845962 | M77: ='Indirect Impacts'!AD108 -> 1.620794661 | N77: ='Indirect Impacts'!AE108 -> 1.381255215 | Q77: Bed days associated with definitely avoidable ADR related hospital admissions through PPH, based on central admission estimate | R77: ='Indirect Impacts'!F114 -> 211543.2193 | S77: ='Indirect Impacts'!G114 -> 35214.15754 | T77: ='Indirect Impacts'!H114 -> 30539.51448 | U77: ='Indirect Impacts'!I114 -> 36830.08917 | V77: ='Indirect Impacts'!J114 -> 31408.59308 | X77: Cost of Bed days associated with definitely avoidable ADR related hospital admissions through PPH, based on central admission estimate | Y77: ='Indirect Impacts'!AA114 -> 79.1193213 | Z77: ='Indirect Impacts'!AB114 -> 13.17045403 | AA77: ='Indirect Impacts'!AC114 -> 11.42208986 | AB77: ='Indirect Impacts'!AD114 -> 13.77482894 | AC77: ='Indirect Impacts'!AE114 -> 11.74713411
B79: Bed days associated with central estimate of potentially avoidable ADR related hospital admissions through PPH | C79: ='Indirect Impacts'!F123 -> 177552.2625 | D79: ='Indirect Impacts'!G123 -> 28994.44226 | E79: ='Indirect Impacts'!H123 -> 25132.79527 | F79: ='Indirect Impacts'!I123 -> 30334.90181 | G79: ='Indirect Impacts'!J123 -> 25851.66544 | I79: Cost of Bed days associated with central estimate of potentially avoidable ADR related hospital admissions through PPH | J79: ='Indirect Impacts'!AA123 -> 66.40635683 | K79: ='Indirect Impacts'!AB123 -> 10.84421709 | L79: ='Indirect Impacts'!AC123 -> 9.399921731 | M79: ='Indirect Impacts'!AD123 -> 11.34556263 | N79: ='Indirect Impacts'!AE123 -> 9.668786506 | Q79: Bed days associated with central estimate of potentially avoidable ADR related hospital admissions through PPH | R79: ='Indirect Impacts'!F129 -> 1480802.535 | S79: ='Indirect Impacts'!G129 -> 246499.1028 | T79: ='Indirect Impacts'!H129 -> 213776.6014 | U79: ='Indirect Impacts'!I129 -> 257810.6242 | V79: ='Indirect Impacts'!J129 -> 219860.1516 | X79: Cost of Bed days associated with central estimate of potentially avoidable ADR related hospital admissions through PPH | Y79: ='Indirect Impacts'!AA129 -> 553.8352491 | Z79: ='Indirect Impacts'!AB129 -> 92.19317822 | AA79: ='Indirect Impacts'!AC129 -> 79.95462899 | AB79: ='Indirect Impacts'!AD129 -> 96.42380258 | AC79: ='Indirect Impacts'!AE129 -> 82.22993879

Sheet Charts
B1: Population | F1: Risk profiles
D2: - | S2: go to Introduction
D3: to | G3: BNF10+ | H3: BNF10+ & High Risk Med | I3: BNF 5-9 | J3: BNF 5-9 & High Risk Med | K3: 10+ BNF items dispensed | L3: 10+ items and high risk meds | S3: Go to Summary
B4: age | C4: ='input selections'!A3 -> France | D4: =CONCATENATE(C4,D2,'input selections'!A6,Charts!D2,'population lookup'!A14,Charts!D3,'population lookup'!B14) -> France - Total - 65 to 80 | F4: age | G4: ='risk stratification'!AR5 -> SCOT | H4: ='risk stratification'!AS5 -> SCOT | I4: ='risk stratification'!AT5 -> SCOT | J4: ='risk stratification'!AU5 -> SCOT | K4: ='risk stratification'!AV5 -> SCOT | L4: ='risk stratification'!AW5 -> SCOT | S4: go to Trend Analysis
B5: 0 | C5: ='population lookup'!F4 -> 786136 | D5: ='population lookup'!I4 -> 0 | F5: 0 | G5: ='risk stratification'!AR6 -> 0 | H5: ='risk stratification'!AS6 -> 0 | I5: ='risk stratification'!AT6 -> 0 | J5: ='risk stratification'!AU6 -> 0 | K5: ='risk stratification'!AV6 -> 0 | L5: ='risk stratification'!AW6 -> 0 | N5: Costs and benefits - no risk stratification | O5: Costs | P5: Benefits | S5: go to Data collection
B6: 1 | C6: ='population lookup'!F5 -> 788866 | D6: ='population lookup'!I5 -> 0 | F6: 1 | G6: ='risk stratification'!AR7 -> 0 | H6: ='risk stratification'!AS7 -> 0 | I6: ='risk stratification'!AT7 -> 0 | J6: ='risk stratification'!AU7 -> 0 | K6: ='risk stratification'!AV7 -> 0 | L6: ='risk stratification'!AW7 -> 0 | N6: Net total cost of reviews | O6: =Summary!J43 -> 622.087615 | P6: 0
B7: 2 | C7: ='population lookup'!F6 -> 798550 | D7: ='population lookup'!I6 -> 0 | F7: 2 | G7: ='risk stratification'!AR8 -> 0 | H7: ='risk stratification'!AS8 -> 0 | I7: ='risk stratification'!AT8 -> 0 | J7: ='risk stratification'!AU8 -> 0 | K7: ='risk stratification'!AV8 -> 0 | L7: ='risk stratification'!AW8 -> 0 | N7: Drugs cost avoided | O7: 0 | P7: =Summary!J52 -> 1711.197041
B8: 3 | C8: ='population lookup'!F7 -> 809128 | D8: ='population lookup'!I7 -> 0 | F8: 3 | G8: ='risk stratification'!AR9 -> 0 | H8: ='risk stratification'!AS9 -> 0 | I8: ='risk stratification'!AT9 -> 0 | J8: ='risk stratification'!AU9 -> 0 | K8: ='risk stratification'!AV9 -> 0 | L8: ='risk stratification'!AW9 -> 0 | N8: Definitely avoidable cost of ADR related bed days | O8: 0 | P8: =Summary!J77 -> 9.486622404
B9: 4 | C9: ='population lookup'!F8 -> 831956 | D9: ='population lookup'!I8 -> 0 | F9: 4 | G9: ='risk stratification'!AR10 -> 0 | H9: ='risk stratification'!AS10 -> 0 | I9: ='risk stratification'!AT10 -> 0 | J9: ='risk stratification'!AU10 -> 0 | K9: ='risk stratification'!AV10 -> 0 | L9: ='risk stratification'!AW10 -> 0 | N9: Additional potentially avoidable cost of ADR related bed days | O9: 0 | P9: =P12-P8 -> 56.91973443
B10: 5 | C10: ='population lookup'!F9 -> 829704 | D10: ='population lookup'!I9 -> 0 | F10: 5 | G10: ='risk stratification'!AR11 -> 0 | H10: ='risk stratification'!AS11 -> 0 | I10: ='risk stratification'!AT11 -> 0 | J10: ='risk stratification'!AU11 -> 0 | K10: ='risk stratification'!AV11 -> 0 | L10: ='risk stratification'!AW11 -> 0
B11: 6 | C11: ='population lookup'!F10 -> 835497 | D11: ='population lookup'!I10 -> 0 | F11: 6 | G11: ='risk stratification'!AR12 -> 0 | H11: ='risk stratification'!AS12 -> 0 | I11: ='risk stratification'!AT12 -> 0 | J11: ='risk stratification'!AU12 -> 0 | K11: ='risk stratification'!AV12 -> 0 | L11: ='risk stratification'!AW12 -> 0
B12: 7 | C12: ='population lookup'!F11 -> 832147 | D12: ='population lookup'!I11 -> 0 | F12: 7 | G12: ='risk stratification'!AR13 -> 0 | H12: ='risk stratification'!AS13 -> 0 | I12: ='risk stratification'!AT13 -> 0 | J12: ='risk stratification'!AU13 -> 0 | K12: ='risk stratification'!AV13 -> 0 | L12: ='risk stratification'!AW13 -> 0 | N12: Potentially avoidable cost of ADR related bed days | P12: =Summary!J79 -> 66.40635683
B13: 8 | C13: ='population lookup'!F12 -> 846392 | D13: ='population lookup'!I12 -> 0 | F13: 8 | G13: ='risk stratification'!AR14 -> 0 | H13: ='risk stratification'!AS14 -> 0 | I13: ='risk stratification'!AT14 -> 0 | J13: ='risk stratification'!AU14 -> 0 | K13: ='risk stratification'!AV14 -> 0 | L13: ='risk stratification'!AW14 -> 0
B14: 9 | C14: ='population lookup'!F13 -> 829605 | D14: ='population lookup'!I13 -> 0 | F14: 9 | G14: ='risk stratification'!AR15 -> 0 | H14: ='risk stratification'!AS15 -> 0 | I14: ='risk stratification'!AT15 -> 0 | J14: ='risk stratification'!AU15 -> 0 | K14: ='risk stratification'!AV15 -> 0 | L14: ='risk stratification'!AW15 -> 0
B15: 10 | C15: ='population lookup'!F14 -> 825391 | D15: ='population lookup'!I14 -> 0 | F15: 10 | G15: ='risk stratification'!AR16 -> 0 | H15: ='risk stratification'!AS16 -> 0 | I15: ='risk stratification'!AT16 -> 0 | J15: ='risk stratification'!AU16 -> 0 | K15: ='risk stratification'!AV16 -> 0 | L15: ='risk stratification'!AW16 -> 0
B16: 11 | C16: ='population lookup'!F15 -> 821249 | D16: ='population lookup'!I15 -> 0 | F16: 11 | G16: ='risk stratification'!AR17 -> 0 | H16: ='risk stratification'!AS17 -> 0 | I16: ='risk stratification'!AT17 -> 0 | J16: ='risk stratification'!AU17 -> 0 | K16: ='risk stratification'!AV17 -> 0 | L16: ='risk stratification'!AW17 -> 0
B17: 12 | C17: ='population lookup'!F16 -> 826583 | D17: ='population lookup'!I16 -> 0 | F17: 12 | G17: ='risk stratification'!AR18 -> 0 | H17: ='risk stratification'!AS18 -> 0 | I17: ='risk stratification'!AT18 -> 0 | J17: ='risk stratification'!AU18 -> 0 | K17: ='risk stratification'!AV18 -> 0 | L17: ='risk stratification'!AW18 -> 0 | N17: Costs and benefits - BNF 10+ items | O17: Costs | P17: Benefits
B18: 13 | C18: ='population lookup'!F17 -> 838757 | D18: ='population lookup'!I17 -> 0 | F18: 13 | G18: ='risk stratification'!AR19 -> 0.0008168822328 | H18: ='risk stratification'!AS19 -> 0.0005786249149 | I18: ='risk stratification'!AT19 -> 0.001633764466 | J18: ='risk stratification'!AU19 -> 0.0009870660313 | K18: ='risk stratification'!AV19 -> 0.0008168822328 | L18: ='risk stratification'!AW19 -> 0.0005786249149 | N18: Net total cost of reviews | O18: =Summary!K43 -> 29.26563277 | P18: 0
B19: 14 | C19: ='population lookup'!F18 -> 856210 | D19: ='population lookup'!I18 -> 0 | F19: 14 | G19: ='risk stratification'!AR20 -> 0.0006658454573 | H19: ='risk stratification'!AS20 -> 0.0004827379565 | I19: ='risk stratification'!AT20 -> 0.001464860006 | J19: ='risk stratification'!AU20 -> 0.001048706595 | K19: ='risk stratification'!AV20 -> 0.0006658454573 | L19: ='risk stratification'!AW20 -> 0.0004827379565 | N19: Drugs cost avoided | O19: 0 | P19: =Summary!K52 -> 80.50194699
B20: 15 | C20: ='population lookup'!F19 -> 818533 | D20: ='population lookup'!I19 -> 0 | F20: 15 | G20: ='risk stratification'!AR21 -> 0.001022756328 | H20: ='risk stratification'!AS21 -> 0.0006711838405 | I20: ='risk stratification'!AT21 -> 0.001949629251 | J20: ='risk stratification'!AU21 -> 0.00127844541 | K20: ='risk stratification'!AV21 -> 0.001022756328 | L20: ='risk stratification'!AW21 -> 0.0006711838405 | N20: Definitely avoidable cost of ADR related bed days | O20: 0 | P20: =Summary!K77 -> 1.54917387
B21: 16 | C21: ='population lookup'!F20 -> 816024 | D21: ='population lookup'!I20 -> 0 | F21: 16 | G21: ='risk stratification'!AR22 -> 0.001045723899 | H21: ='risk stratification'!AS22 -> 0.0008941697104 | I21: ='risk stratification'!AT22 -> 0.002318779079 | J21: ='risk stratification'!AU22 -> 0.001909582771 | K21: ='risk stratification'!AV22 -> 0.001045723899 | L21: ='risk stratification'!AW22 -> 0.0008941697104 | N21: Additional potentially avoidable cost of ADR related bed days | O21: 0 | P21: =P24-P20 -> 9.295043217
B22: 17 | C22: ='population lookup'!F21 -> 799000 | D22: ='population lookup'!I21 -> 0 | F22: 17 | G22: ='risk stratification'!AR23 -> 0.001154447546 | H22: ='risk stratification'!AS23 -> 0.001022928205 | I22: ='risk stratification'!AT23 -> 0.002338121612 | J22: ='risk stratification'!AU23 -> 0.001899723809 | K22: ='risk stratification'!AV23 -> 0.001154447546 | L22: ='risk stratification'!AW23 -> 0.001022928205
B23: 18 | C23: ='population lookup'!F22 -> 797344 | D23: ='population lookup'!I22 -> 0 | F23: 18 | G23: ='risk stratification'!AR24 -> 0.001120966273 | H23: ='risk stratification'!AS24 -> 0.0009808454888 | I23: ='risk stratification'!AT24 -> 0.002227920467 | J23: ='risk stratification'!AU24 -> 0.001793546037 | K23: ='risk stratification'!AV24 -> 0.001120966273 | L23: ='risk stratification'!AW24 -> 0.0009808454888
B24: 19 | C24: ='population lookup'!F23 -> 780628 | D24: ='population lookup'!I23 -> 0 | F24: 19 | G24: ='risk stratification'!AR25 -> 0.001599649991 | H24: ='risk stratification'!AS25 -> 0.001312533326 | I24: ='risk stratification'!AT25 -> 0.002843822206 | J24: ='risk stratification'!AU25 -> 0.002283261098 | K24: ='risk stratification'!AV25 -> 0.001599649991 | L24: ='risk stratification'!AW25 -> 0.001312533326 | N24: Potentially avoidable cost of ADR related bed days | P24: =Summary!K79 -> 10.84421709
B25: 20 | C25: ='population lookup'!F24 -> 750544 | D25: ='population lookup'!I24 -> 0 | F25: 20 | G25: ='risk stratification'!AR26 -> 0.001355100987 | H25: ='risk stratification'!AS26 -> 0.001148609408 | I25: ='risk stratification'!AT26 -> 0.002594050461 | J25: ='risk stratification'!AU26 -> 0.002129444409 | K25: ='risk stratification'!AV26 -> 0.001355100987 | L25: ='risk stratification'!AW26 -> 0.001148609408
B26: 21 | C26: ='population lookup'!F25 -> 738055 | D26: ='population lookup'!I25 -> 0 | F26: 21 | G26: ='risk stratification'!AR27 -> 0.001294565414 | H26: ='risk stratification'!AS27 -> 0.001229837144 | I26: ='risk stratification'!AT27 -> 0.002511456904 | J26: ='risk stratification'!AU27 -> 0.002161924242 | K26: ='risk stratification'!AV27 -> 0.001294565414 | L26: ='risk stratification'!AW27 -> 0.001229837144
B27: 22 | C27: ='population lookup'!F26 -> 770540 | D27: ='population lookup'!I26 -> 0 | F27: 22 | G27: ='risk stratification'!AR28 -> 0.001591433234 | H27: ='risk stratification'!AS28 -> 0.001429592566 | I27: ='risk stratification'!AT28 -> 0.002872671855 | J27: ='risk stratification'!AU28 -> 0.002508530352 | K27: ='risk stratification'!AV28 -> 0.001591433234 | L27: ='risk stratification'!AW28 -> 0.001429592566
B28: 23 | C28: ='population lookup'!F27 -> 775707 | D28: ='population lookup'!I27 -> 0 | F28: 23 | G28: ='risk stratification'!AR29 -> 0.001808859331 | H28: ='risk stratification'!AS29 -> 0.001659254424 | I28: ='risk stratification'!AT29 -> 0.003032899479 | J28: ='risk stratification'!AU29 -> 0.002679287881 | K28: ='risk stratification'!AV29 -> 0.001808859331 | L28: ='risk stratification'!AW29 -> 0.001659254424
B29: 24 | C29: ='population lookup'!F28 -> 786821 | D29: ='population lookup'!I28 -> 0 | F29: 24 | G29: ='risk stratification'!AR30 -> 0.001787673181 | H29: ='risk stratification'!AS30 -> 0.00159807148 | I29: ='risk stratification'!AT30 -> 0.003087799131 | J29: ='risk stratification'!AU30 -> 0.002654423814 | K29: ='risk stratification'!AV30 -> 0.001787673181 | L29: ='risk stratification'!AW30 -> 0.00159807148 | N29: Costs and benefits - BNF 10+ items and high risk meds | O29: Costs | P29: Benefits
B30: 25 | C30: ='population lookup'!F29 -> 783798 | D30: ='population lookup'!I29 -> 0 | F30: 25 | G30: ='risk stratification'!AR31 -> 0.001974568676 | H30: ='risk stratification'!AS31 -> 0.001834528344 | I30: ='risk stratification'!AT31 -> 0.003487004257 | J30: ='risk stratification'!AU31 -> 0.00301086713 | K30: ='risk stratification'!AV31 -> 0.001974568676 | L30: ='risk stratification'!AW31 -> 0.001834528344 | N30: Net total cost of reviews | O30: =Summary!L43 -> 28.5806715 | P30: 0
B31: 26 | C31: ='population lookup'!F30 -> 791253 | D31: ='population lookup'!I30 -> 0 | F31: 26 | G31: ='risk stratification'!AR32 -> 0.00211371803 | H31: ='risk stratification'!AS32 -> 0.001930529134 | I31: ='risk stratification'!AT32 -> 0.003635595012 | J31: ='risk stratification'!AU32 -> 0.003297400127 | K31: ='risk stratification'!AV32 -> 0.00211371803 | L31: ='risk stratification'!AW32 -> 0.001930529134 | N31: Drugs cost avoided | O31: 0 | P31: =Summary!L52 -> 78.61780131
B32: 27 | C32: ='population lookup'!F31 -> 789709 | D32: ='population lookup'!I31 -> 0 | F32: 27 | G32: ='risk stratification'!AR33 -> 0.002183375158 | H32: ='risk stratification'!AS33 -> 0.002055775311 | I32: ='risk stratification'!AT33 -> 0.003870528689 | J32: ='risk stratification'!AU33 -> 0.003473551387 | K32: ='risk stratification'!AV33 -> 0.002183375158 | L32: ='risk stratification'!AW33 -> 0.002055775311 | N32: Definitely avoidable cost of ADR related bed days | O32: 0 | P32: =Summary!L77 -> 1.342845962
B33: 28 | C33: ='population lookup'!F32 -> 802251 | D33: ='population lookup'!I32 -> 0 | F33: 28 | G33: ='risk stratification'!AR34 -> 0.002299490304 | H33: ='risk stratification'!AS34 -> 0.002196965259 | I33: ='risk stratification'!AT34 -> 0.003866658855 | J33: ='risk stratification'!AU34 -> 0.003471205109 | K33: ='risk stratification'!AV34 -> 0.002299490304 | L33: ='risk stratification'!AW34 -> 0.002196965259 | N33: Additional potentially avoidable cost of ADR related bed days | O33: 0 | P33: =P36-P32 -> 8.05707577
B34: 29 | C34: ='population lookup'!F33 -> 801418 | D34: ='population lookup'!I33 -> 0 | F34: 29 | G34: ='risk stratification'!AR35 -> 0.002367957492 | H34: ='risk stratification'!AS35 -> 0.00219469231 | I34: ='risk stratification'!AT35 -> 0.003956221664 | J34: ='risk stratification'!AU35 -> 0.003551936238 | K34: ='risk stratification'!AV35 -> 0.002367957492 | L34: ='risk stratification'!AW35 -> 0.00219469231
B35: 30 | C35: ='population lookup'!F34 -> 799333 | D35: ='population lookup'!I34 -> 0 | F35: 30 | G35: ='risk stratification'!AR36 -> 0.002167341584 | H35: ='risk stratification'!AS36 -> 0.002024753322 | I35: ='risk stratification'!AT36 -> 0.003807106599 | J35: ='risk stratification'!AU36 -> 0.003365082986 | K35: ='risk stratification'!AV36 -> 0.002167341584 | L35: ='risk stratification'!AW36 -> 0.002024753322
B36: 31 | C36: ='population lookup'!F35 -> 790122 | D36: ='population lookup'!I35 -> 0 | F36: 31 | G36: ='risk stratification'!AR37 -> 0.002539418373 | H36: ='risk stratification'!AS37 -> 0.002438989398 | I36: ='risk stratification'!AT37 -> 0.004189322965 | J36: ='risk stratification'!AU37 -> 0.003873689043 | K36: ='risk stratification'!AV37 -> 0.002539418373 | L36: ='risk stratification'!AW37 -> 0.002438989398 | N36: Potentially avoidable cost of ADR related bed days | P36: =Summary!L79 -> 9.399921731
B37: 32 | C37: ='population lookup'!F36 -> 842411 | D37: ='population lookup'!I36 -> 0 | F37: 32 | G37: ='risk stratification'!AR38 -> 0.003161870188 | H37: ='risk stratification'!AS38 -> 0.002883742717 | I37: ='risk stratification'!AT38 -> 0.004757443569 | J37: ='risk stratification'!AU38 -> 0.004318294932 | K37: ='risk stratification'!AV38 -> 0.003161870188 | L37: ='risk stratification'!AW38 -> 0.002883742717
B38: 33 | C38: ='population lookup'!F37 -> 851735 | D38: ='population lookup'!I37 -> 0 | F38: 33 | G38: ='risk stratification'!AR39 -> 0.002981279983 | H38: ='risk stratification'!AS39 -> 0.002860212776 | I38: ='risk stratification'!AT39 -> 0.004706487689 | J38: ='risk stratification'!AU39 -> 0.004328152666 | K38: ='risk stratification'!AV39 -> 0.002981279983 | L38: ='risk stratification'!AW39 -> 0.002860212776
B39: 34 | C39: ='population lookup'!F38 -> 864814 | D39: ='population lookup'!I38 -> 0 | F39: 34 | G39: ='risk stratification'!AR40 -> 0.003373368316 | H39: ='risk stratification'!AS40 -> 0.003194107198 | I39: ='risk stratification'!AT40 -> 0.005214868895 | J39: ='risk stratification'!AU40 -> 0.004807457263 | K39: ='risk stratification'!AV40 -> 0.003373368316 | L39: ='risk stratification'!AW40 -> 0.003194107198 | N39: Costs and benefits - BNF 5-9 items | O39: Costs | P39: Benefits
B40: 35 | C40: ='population lookup'!F39 -> 818854 | D40: ='population lookup'!I39 -> 0 | F40: 35 | G40: ='risk stratification'!AR41 -> 0.003276626729 | H40: ='risk stratification'!AS41 -> 0.003127689151 | I40: ='risk stratification'!AT41 -> 0.005146620772 | J40: ='risk stratification'!AU41 -> 0.004716356656 | K40: ='risk stratification'!AV41 -> 0.003276626729 | L40: ='risk stratification'!AW41 -> 0.003127689151 | N40: Net total cost of reviews | O40: =Summary!M43 -> 33.20888437 | P40: 0
B41: 36 | C41: ='population lookup'!F40 -> 803844 | D41: ='population lookup'!I40 -> 0 | F41: 36 | G41: ='risk stratification'!AR42 -> 0.002736384532 | H41: ='risk stratification'!AS42 -> 0.002548746736 | I41: ='risk stratification'!AT42 -> 0.004300032837 | J41: ='risk stratification'!AU42 -> 0.003940393727 | K41: ='risk stratification'!AV42 -> 0.002736384532 | L41: ='risk stratification'!AW42 -> 0.002548746736 | N41: Drugs cost avoided | O41: 0 | P41: =Summary!M52 -> 91.34877998
B42: 37 | C42: ='population lookup'!F41 -> 814070 | D42: ='population lookup'!I41 -> 0 | F42: 37 | G42: ='risk stratification'!AR43 -> 0.003444049706 | H42: ='risk stratification'!AS43 -> 0.003366481019 | I42: ='risk stratification'!AT43 -> 0.005414294358 | J42: ='risk stratification'!AU43 -> 0.005166074559 | K42: ='risk stratification'!AV43 -> 0.003444049706 | L42: ='risk stratification'!AW43 -> 0.003366481019 | N42: Definitely avoidable cost of ADR related bed days | O42: 0 | P42: =Summary!M77 -> 1.620794661
B43: 38 | C43: ='population lookup'!F42 -> 796371 | D43: ='population lookup'!I42 -> 0 | F43: 38 | G43: ='risk stratification'!AR44 -> 0.004101182916 | H43: ='risk stratification'!AS44 -> 0.00391754786 | I43: ='risk stratification'!AT44 -> 0.005891624711 | J43: ='risk stratification'!AU44 -> 0.005432537071 | K43: ='risk stratification'!AV44 -> 0.004101182916 | L43: ='risk stratification'!AW44 -> 0.00391754786 | N43: Additional potentially avoidable cost of ADR related bed days | O43: 0 | P43: =P46-P42 -> 9.724767968
B44: 39 | C44: ='population lookup'!F43 -> 819701 | D44: ='population lookup'!I43 -> 0 | F44: 39 | G44: ='risk stratification'!AR45 -> 0.004148600568 | H44: ='risk stratification'!AS45 -> 0.0040189568 | I44: ='risk stratification'!AT45 -> 0.006294925167 | J44: ='risk stratification'!AU45 -> 0.005978018179 | K44: ='risk stratification'!AV45 -> 0.004148600568 | L44: ='risk stratification'!AW45 -> 0.0040189568
B45: 40 | C45: ='population lookup'!F44 -> 865794 | D45: ='population lookup'!I44 -> 0 | F45: 40 | G45: ='risk stratification'!AR46 -> 0.003899110515 | H45: ='risk stratification'!AS46 -> 0.003777263312 | I45: ='risk stratification'!AT46 -> 0.005889281508 | J45: ='risk stratification'!AU46 -> 0.00549666274 | K45: ='risk stratification'!AV46 -> 0.003899110515 | L45: ='risk stratification'!AW46 -> 0.003777263312
B46: 41 | C46: ='population lookup'!F45 -> 915434 | D46: ='population lookup'!I45 -> 0 | F46: 41 | G46: ='risk stratification'!AR47 -> 0.004639343194 | H46: ='risk stratification'!AS47 -> 0.004469928976 | I46: ='risk stratification'!AT47 -> 0.006450772138 | J46: ='risk stratification'!AU47 -> 0.006098911839 | K46: ='risk stratification'!AV47 -> 0.004639343194 | L46: ='risk stratification'!AW47 -> 0.004469928976 | N46: Potentially avoidable cost of ADR related bed days | P46: =Summary!M79 -> 11.34556263
B47: 42 | C47: ='population lookup'!F46 -> 938013 | D47: ='population lookup'!I46 -> 0 | F47: 42 | G47: ='risk stratification'!AR48 -> 0.004687582528 | H47: ='risk stratification'!AS48 -> 0.00455553795 | I47: ='risk stratification'!AT48 -> 0.006404162045 | J47: ='risk stratification'!AU48 -> 0.006100459515 | K47: ='risk stratification'!AV48 -> 0.004687582528 | L47: ='risk stratification'!AW48 -> 0.00455553795
B48: 43 | C48: ='population lookup'!F47 -> 930974 | D48: ='population lookup'!I47 -> 0 | F48: 43 | G48: ='risk stratification'!AR49 -> 0.005068597561 | H48: ='risk stratification'!AS49 -> 0.004979674797 | I48: ='risk stratification'!AT49 -> 0.007113821138 | J48: ='risk stratification'!AU49 -> 0.006796239837 | K48: ='risk stratification'!AV49 -> 0.005068597561 | L48: ='risk stratification'!AW49 -> 0.004979674797
B49: 44 | C49: ='population lookup'!F48 -> 914030 | D49: ='population lookup'!I48 -> 0 | F49: 44 | G49: ='risk stratification'!AR50 -> 0.005309866879 | H49: ='risk stratification'!AS50 -> 0.005135364212 | I49: ='risk stratification'!AT50 -> 0.007478685746 | J49: ='risk stratification'!AU50 -> 0.007079822506 | K49: ='risk stratification'!AV50 -> 0.005309866879 | L49: ='risk stratification'!AW50 -> 0.005135364212
B50: 45 | C50: ='population lookup'!F49 -> 899787 | D50: ='population lookup'!I49 -> 0 | F50: 45 | G50: ='risk stratification'!AR51 -> 0.005333102356 | H50: ='risk stratification'!AS51 -> 0.005184616908 | I50: ='risk stratification'!AT51 -> 0.007411898634 | J50: ='risk stratification'!AU51 -> 0.006954068501 | K50: ='risk stratification'!AV51 -> 0.005333102356 | L50: ='risk stratification'!AW51 -> 0.005184616908
B51: 46 | C51: ='population lookup'!F50 -> 893947 | D51: ='population lookup'!I50 -> 0 | F51: 46 | G51: ='risk stratification'!AR52 -> 0.006013296482 | H51: ='risk stratification'!AS52 -> 0.005776748587 | I51: ='risk stratification'!AT52 -> 0.008428574986 | J51: ='risk stratification'!AU52 -> 0.007943029307 | K51: ='risk stratification'!AV52 -> 0.006013296482 | L51: ='risk stratification'!AW52 -> 0.005776748587 | N51: Costs and benefits - BNF 5-9 items and high risk meds | O51: Costs | P51: Benefits
B52: 47 | C52: ='population lookup'!F51 -> 886454 | D52: ='population lookup'!I51 -> 0 | F52: 47 | G52: ='risk stratification'!AR53 -> 0.006141826923 | H52: ='risk stratification'!AS53 -> 0.005925480769 | I52: ='risk stratification'!AT53 -> 0.008161057692 | J52: ='risk stratification'!AU53 -> 0.007572115385 | K52: ='risk stratification'!AV53 -> 0.006141826923 | L52: ='risk stratification'!AW53 -> 0.005925480769 | N52: Net total cost of reviews | O52: =Summary!N43 -> 32.02630203 | P52: 0
B53: 48 | C53: ='population lookup'!F52 -> 909122 | D53: ='population lookup'!I52 -> 0 | F53: 48 | G53: ='risk stratification'!AR54 -> 0.00629397872 | H53: ='risk stratification'!AS54 -> 0.006111368119 | I53: ='risk stratification'!AT54 -> 0.008509654014 | J53: ='risk stratification'!AU54 -> 0.008107910691 | K53: ='risk stratification'!AV54 -> 0.00629397872 | L53: ='risk stratification'!AW54 -> 0.006111368119 | N53: Drugs cost avoided | O53: 0 | P53: =Summary!N52 -> 88.09581153
B54: 49 | C54: ='population lookup'!F53 -> 911768 | D54: ='population lookup'!I53 -> 0 | F54: 49 | G54: ='risk stratification'!AR55 -> 0.007163201193 | H54: ='risk stratification'!AS55 -> 0.006992066694 | I54: ='risk stratification'!AT55 -> 0.009216815187 | J54: ='risk stratification'!AU55 -> 0.008703411688 | K54: ='risk stratification'!AV55 -> 0.007163201193 | L54: ='risk stratification'!AW55 -> 0.006992066694 | N54: Definitely avoidable cost of ADR related bed days | O54: 0 | P54: =Summary!N77 -> 1.381255215
B55: 50 | C55: ='population lookup'!F54 -> 922337 | D55: ='population lookup'!I54 -> 0 | F55: 50 | G55: ='risk stratification'!AR56 -> 0.007391472917 | H55: ='risk stratification'!AS56 -> 0.007141338469 | I55: ='risk stratification'!AT56 -> 0.009692709832 | J55: ='risk stratification'!AU56 -> 0.009142414048 | K55: ='risk stratification'!AV56 -> 0.007391472917 | L55: ='risk stratification'!AW56 -> 0.007141338469 | N55: Additional potentially avoidable cost of ADR related bed days | O55: 0 | P55: =P58-P54 -> 8.287531291
B56: 51 | C56: ='population lookup'!F55 -> 912891 | D56: ='population lookup'!I55 -> 0 | F56: 51 | G56: ='risk stratification'!AR57 -> 0.007661120135 | H56: ='risk stratification'!AS57 -> 0.007482062235 | I56: ='risk stratification'!AT57 -> 0.01029582923 | J56: ='risk stratification'!AU57 -> 0.009758655531 | K56: ='risk stratification'!AV57 -> 0.007661120135 | L56: ='risk stratification'!AW57 -> 0.007482062235
B57: 52 | C57: ='population lookup'!F56 -> 880988 | D57: ='population lookup'!I56 -> 0 | F57: 52 | G57: ='risk stratification'!AR58 -> 0.009072126718 | H57: ='risk stratification'!AS58 -> 0.008833735067 | I57: ='risk stratification'!AT58 -> 0.01135009138 | J57: ='risk stratification'!AU58 -> 0.01070113633 | K57: ='risk stratification'!AV58 -> 0.009072126718 | L57: ='risk stratification'!AW58 -> 0.008833735067
B58: 53 | C58: ='population lookup'!F57 -> 879290 | D58: ='population lookup'!I57 -> 0 | F58: 53 | G58: ='risk stratification'!AR59 -> 0.008554422677 | H58: ='risk stratification'!AS59 -> 0.008260823146 | I58: ='risk stratification'!AT59 -> 0.01080980089 | J58: ='risk stratification'!AU59 -> 0.01028932899 | K58: ='risk stratification'!AV59 -> 0.008554422677 | L58: ='risk stratification'!AW59 -> 0.008260823146 | N58: Potentially avoidable cost of ADR related bed days | P58: =Summary!N79 -> 9.668786506
B59: 54 | C59: ='population lookup'!F58 -> 875387 | D59: ='population lookup'!I58 -> 0 | F59: 54 | G59: ='risk stratification'!AR60 -> 0.009910911612 | H59: ='risk stratification'!AS60 -> 0.009608917075 | I59: ='risk stratification'!AT60 -> 0.01212096254 | J59: ='risk stratification'!AU60 -> 0.01151697347 | K59: ='risk stratification'!AV60 -> 0.009910911612 | L59: ='risk stratification'!AW60 -> 0.009608917075
B60: 55 | C60: ='population lookup'!F59 -> 869145 | D60: ='population lookup'!I59 -> 0 | F60: 55 | G60: ='risk stratification'!AR61 -> 0.009396427664 | H60: ='risk stratification'!AS61 -> 0.009213013911 | I60: ='risk stratification'!AT61 -> 0.0115973927 | J60: ='risk stratification'!AU61 -> 0.01106126019 | K60: ='risk stratification'!AV61 -> 0.009396427664 | L60: ='risk stratification'!AW61 -> 0.009213013911
B61: 56 | C61: ='population lookup'!F60 -> 849484 | D61: ='population lookup'!I60 -> 0 | F61: 56 | G61: ='risk stratification'!AR62 -> 0.01111353871 | H61: ='risk stratification'!AS62 -> 0.01072026801 | I61: ='risk stratification'!AT62 -> 0.01325467919 | J61: ='risk stratification'!AU62 -> 0.0125409657 | K61: ='risk stratification'!AV62 -> 0.01111353871 | L61: ='risk stratification'!AW62 -> 0.01072026801
B62: 57 | C62: ='population lookup'!F61 -> 846275 | D62: ='population lookup'!I61 -> 0 | F62: 57 | G62: ='risk stratification'!AR63 -> 0.01125989044 | H62: ='risk stratification'!AS63 -> 0.0108490566 | I62: ='risk stratification'!AT63 -> 0.01369446135 | J62: ='risk stratification'!AU63 -> 0.01294887401 | K62: ='risk stratification'!AV63 -> 0.01125989044 | L62: ='risk stratification'!AW63 -> 0.0108490566
B63: 58 | C63: ='population lookup'!F62 -> 838343 | D63: ='population lookup'!I62 -> 0 | F63: 58 | G63: ='risk stratification'!AR64 -> 0.01191689049 | H63: ='risk stratification'!AS64 -> 0.01165447192 | I63: ='risk stratification'!AT64 -> 0.01407798463 | J63: ='risk stratification'!AU64 -> 0.01347596555 | K63: ='risk stratification'!AV64 -> 0.01191689049 | L63: ='risk stratification'!AW64 -> 0.01165447192
B64: 59 | C64: ='population lookup'!F63 -> 827914 | D64: ='population lookup'!I63 -> 0 | F64: 59 | G64: ='risk stratification'!AR65 -> 0.01198546644 | H64: ='risk stratification'!AS65 -> 0.0117338031 | I64: ='risk stratification'!AT65 -> 0.01423470752 | J64: ='risk stratification'!AU65 -> 0.01362127814 | K64: ='risk stratification'!AV65 -> 0.01198546644 | L64: ='risk stratification'!AW65 -> 0.0117338031
B65: 60 | C65: ='population lookup'!F64 -> 827225 | D65: ='population lookup'!I64 -> 0 | F65: 60 | G65: ='risk stratification'!AR66 -> 0.01394178121 | H65: ='risk stratification'!AS66 -> 0.01338607129 | I65: ='risk stratification'!AT66 -> 0.01606655444 | J65: ='risk stratification'!AU66 -> 0.01526567837 | K65: ='risk stratification'!AV66 -> 0.01394178121 | L65: ='risk stratification'!AW66 -> 0.01338607129
B66: 61 | C66: ='population lookup'!F65 -> 807389 | D66: ='population lookup'!I65 -> 0 | F66: 61 | G66: ='risk stratification'!AR67 -> 0.01371970973 | H66: ='risk stratification'!AS67 -> 0.01336335363 | I66: ='risk stratification'!AT67 -> 0.01600362835 | J66: ='risk stratification'!AU67 -> 0.01530711416 | K66: ='risk stratification'!AV67 -> 0.01371970973 | L66: ='risk stratification'!AW67 -> 0.01336335363
B67: 62 | C67: ='population lookup'!F66 -> 819043 | D67: ='population lookup'!I66 -> 0 | F67: 62 | G67: ='risk stratification'!AR68 -> 0.01452208263 | H67: ='risk stratification'!AS68 -> 0.01405258386 | I67: ='risk stratification'!AT68 -> 0.01674005958 | J67: ='risk stratification'!AU68 -> 0.0158820101 | K67: ='risk stratification'!AV68 -> 0.01452208263 | L67: ='risk stratification'!AW68 -> 0.01405258386
B68: 63 | C68: ='population lookup'!F67 -> 796074 | D68: ='population lookup'!I67 -> 0 | F68: 63 | G68: ='risk stratification'!AR69 -> 0.01455926571 | H68: ='risk stratification'!AS69 -> 0.01416363349 | I68: ='risk stratification'!AT69 -> 0.01675898085 | J68: ='risk stratification'!AU69 -> 0.01607849343 | K68: ='risk stratification'!AV69 -> 0.01455926571 | L68: ='risk stratification'!AW69 -> 0.01416363349
B69: 64 | C69: ='population lookup'!F68 -> 826457 | D69: ='population lookup'!I68 -> 0 | F69: 64 | G69: ='risk stratification'!AR70 -> 0.01559880009 | H69: ='risk stratification'!AS70 -> 0.0150757634 | I69: ='risk stratification'!AT70 -> 0.01816783324 | J69: ='risk stratification'!AU70 -> 0.01722944389 | K69: ='risk stratification'!AV70 -> 0.01559880009 | L69: ='risk stratification'!AW70 -> 0.0150757634
B70: 65 | C70: ='population lookup'!F69 -> 809173 | D70: ='population lookup'!I69 -> 0 | F70: 65 | G70: ='risk stratification'!AR71 -> 0.01533178496 | H70: ='risk stratification'!AS71 -> 0.01471908351 | I70: ='risk stratification'!AT71 -> 0.0175546088 | J70: ='risk stratification'!AU71 -> 0.01648594349 | K70: ='risk stratification'!AV71 -> 0.01533178496 | L70: ='risk stratification'!AW71 -> 0.01471908351
B71: 66 | C71: ='population lookup'!F70 -> 804448 | D71: ='population lookup'!I70 -> 804448 | F71: 66 | G71: ='risk stratification'!AR72 -> 0.02389653671 | H71: ='risk stratification'!AS72 -> 0.02325273144 | I71: ='risk stratification'!AT72 -> 0.02770256197 | J71: ='risk stratification'!AU72 -> 0.02649069323 | K71: ='risk stratification'!AV72 -> 0.02389653671 | L71: ='risk stratification'!AW72 -> 0.02325273144
B72: 67 | C72: ='population lookup'!F71 -> 785348 | D72: ='population lookup'!I71 -> 785348 | F72: 67 | G72: ='risk stratification'!AR73 -> 0.02308747026 | H72: ='risk stratification'!AS73 -> 0.02244223092 | I72: ='risk stratification'!AT73 -> 0.02623301206 | J72: ='risk stratification'!AU73 -> 0.02502318829 | K72: ='risk stratification'!AV73 -> 0.02308747026 | L72: ='risk stratification'!AW73 -> 0.02244223092
B73: 68 | C73: ='population lookup'!F72 -> 744071 | D73: ='population lookup'!I72 -> 744071 | F73: 68 | G73: ='risk stratification'!AR74 -> 0.02194357367 | H73: ='risk stratification'!AS74 -> 0.0214475616 | I73: ='risk stratification'!AT74 -> 0.0247410817 | J73: ='risk stratification'!AU74 -> 0.02378873854 | K73: ='risk stratification'!AV74 -> 0.02194357367 | L73: ='risk stratification'!AW74 -> 0.0214475616
B74: 69 | C74: ='population lookup'!F73 -> 560439 | D74: ='population lookup'!I73 -> 560439 | F74: 69 | G74: ='risk stratification'!AR75 -> 0.02490273993 | H74: ='risk stratification'!AS75 -> 0.02427861111 | I74: ='risk stratification'!AT75 -> 0.02814820979 | J74: ='risk stratification'!AU75 -> 0.02719121227 | K74: ='risk stratification'!AV75 -> 0.02490273993 | L74: ='risk stratification'!AW75 -> 0.02427861111
B75: 70 | C75: ='population lookup'!F74 -> 545566 | D75: ='population lookup'!I74 -> 545566 | F75: 70 | G75: ='risk stratification'!AR76 -> 0.02954519549 | H75: ='risk stratification'!AS76 -> 0.02865610396 | I75: ='risk stratification'!AT76 -> 0.03371708652 | J75: ='risk stratification'!AU76 -> 0.03232645617 | K75: ='risk stratification'!AV76 -> 0.02954519549 | L75: ='risk stratification'!AW76 -> 0.02865610396
B76: 71 | C76: ='population lookup'!F75 -> 527839 | D76: ='population lookup'!I75 -> 527839 | F76: 71 | G76: ='risk stratification'!AR77 -> 0.03114015545 | H76: ='risk stratification'!AS77 -> 0.03042229813 | I76: ='risk stratification'!AT77 -> 0.03524926977 | J76: ='risk stratification'!AU77 -> 0.03393732363 | K76: ='risk stratification'!AV77 -> 0.03114015545 | L76: ='risk stratification'!AW77 -> 0.03042229813
B77: 72 | C77: ='population lookup'!F76 -> 487458 | D77: ='population lookup'!I76 -> 487458 | F77: 72 | G77: ='risk stratification'!AR78 -> 0.04362745098 | H77: ='risk stratification'!AS78 -> 0.04262254902 | I77: ='risk stratification'!AT78 -> 0.04933823529 | J77: ='risk stratification'!AU78 -> 0.0475245098 | K77: ='risk stratification'!AV78 -> 0.04362745098 | L77: ='risk stratification'!AW78 -> 0.04262254902
B78: 73 | C78: ='population lookup'!F77 -> 432692 | D78: ='population lookup'!I77 -> 432692 | F78: 73 | G78: ='risk stratification'!AR79 -> 0.04662110858 | H78: ='risk stratification'!AS79 -> 0.04555808656 | I78: ='risk stratification'!AT79 -> 0.05198683877 | J78: ='risk stratification'!AU79 -> 0.05016451531 | K78: ='risk stratification'!AV79 -> 0.04662110858 | L78: ='risk stratification'!AW79 -> 0.04555808656
B79: 74 | C79: ='population lookup'!F78 -> 449333 | D79: ='population lookup'!I78 -> 449333 | F79: 74 | G79: ='risk stratification'!AR80 -> 0.05329227854 | H79: ='risk stratification'!AS80 -> 0.05223959156 | I79: ='risk stratification'!AT80 -> 0.05971366914 | J79: ='risk stratification'!AU80 -> 0.05773988105 | K79: ='risk stratification'!AV80 -> 0.05329227854 | L79: ='risk stratification'!AW80 -> 0.05223959156
B80: 75 | C80: ='population lookup'!F79 -> 465297 | D80: ='population lookup'!I79 -> 465297 | F80: 75 | G80: ='risk stratification'!AR81 -> 0.05595469529 | H80: ='risk stratification'!AS81 -> 0.0547431888 | I80: ='risk stratification'!AT81 -> 0.06344913081 | J80: ='risk stratification'!AU81 -> 0.06130786352 | K80: ='risk stratification'!AV81 -> 0.05595469529 | L80: ='risk stratification'!AW81 -> 0.0547431888
B81: 76 | C81: ='population lookup'!F80 -> 454650 | D81: ='population lookup'!I80 -> 454650 | F81: 76 | G81: ='risk stratification'!AR82 -> 0.05984956172 | H81: ='risk stratification'!AS82 -> 0.05854655295 | I81: ='risk stratification'!AT82 -> 0.06701610993 | J81: ='risk stratification'!AU82 -> 0.06500236911 | K81: ='risk stratification'!AV82 -> 0.05984956172 | L81: ='risk stratification'!AW82 -> 0.05854655295
B82: 77 | C82: ='population lookup'!F81 -> 440531 | D82: ='population lookup'!I81 -> 440531 | F82: 77 | G82: ='risk stratification'!AR83 -> 0.08161514757 | H82: ='risk stratification'!AS83 -> 0.07958191696 | I82: ='risk stratification'!AT83 -> 0.09336976205 | J82: ='risk stratification'!AU83 -> 0.09009753153 | K82: ='risk stratification'!AV83 -> 0.08161514757 | L82: ='risk stratification'!AW83 -> 0.07958191696
B83: 78 | C83: ='population lookup'!F82 -> 435025 | D83: ='population lookup'!I82 -> 435025 | F83: 78 | G83: ='risk stratification'!AR84 -> 0.09051529958 | H83: ='risk stratification'!AS84 -> 0.08860934955 | I83: ='risk stratification'!AT84 -> 0.103163877 | J83: ='risk stratification'!AU84 -> 0.0994559379 | K83: ='risk stratification'!AV84 -> 0.09051529958 | L83: ='risk stratification'!AW84 -> 0.08860934955
B84: 79 | C84: ='population lookup'!F83 -> 419873 | D84: ='population lookup'!I83 -> 419873 | F84: 79 | G84: ='risk stratification'!AR85 -> 0.09413948555 | H84: ='risk stratification'!AS85 -> 0.09171496761 | I84: ='risk stratification'!AT85 -> 0.1063757245 | J84: ='risk stratification'!AU85 -> 0.1027389476 | K84: ='risk stratification'!AV85 -> 0.09413948555 | L84: ='risk stratification'!AW85 -> 0.09171496761
B85: 80 | C85: ='population lookup'!F84 -> 415986 | D85: ='population lookup'!I84 -> 415986 | F85: 80 | G85: ='risk stratification'!AR86 -> 0.09902054467 | H85: ='risk stratification'!AS86 -> 0.09698996656 | I85: ='risk stratification'!AT86 -> 0.1136327441 | J85: ='risk stratification'!AU86 -> 0.1100891862 | K85: ='risk stratification'!AV86 -> 0.09902054467 | L85: ='risk stratification'!AW86 -> 0.09698996656
B86: 81 | C86: ='population lookup'!F85 -> 387904 | D86: ='population lookup'!I85 -> 0 | F86: 81 | G86: ='risk stratification'!AR87 -> 0.1016271006 | H86: ='risk stratification'!AS87 -> 0.09935982929 | I86: ='risk stratification'!AT87 -> 0.1184760381 | J86: ='risk stratification'!AU87 -> 0.1145194274 | K86: ='risk stratification'!AV87 -> 0.1016271006 | L86: ='risk stratification'!AW87 -> 0.09935982929
B87: 82 | C87: ='population lookup'!F86 -> 386407 | D87: ='population lookup'!I86 -> 0 | F87: 82 | G87: ='risk stratification'!AR88 -> 0.1567024873 | H87: ='risk stratification'!AS88 -> 0.1531708794 | I87: ='risk stratification'!AT88 -> 0.1847535442 | J87: ='risk stratification'!AU88 -> 0.1777912315 | K87: ='risk stratification'!AV88 -> 0.1567024873 | L87: ='risk stratification'!AW88 -> 0.1531708794
B88: 83 | C88: ='population lookup'!F87 -> 360203 | D88: ='population lookup'!I87 -> 0 | F88: 83 | G88: ='risk stratification'!AR89 -> 0.1645337159 | H88: ='risk stratification'!AS89 -> 0.1598278336 | I88: ='risk stratification'!AT89 -> 0.1946628407 | J88: ='risk stratification'!AU89 -> 0.1866857963 | K88: ='risk stratification'!AV89 -> 0.1645337159 | L88: ='risk stratification'!AW89 -> 0.1598278336
B89: 84 | C89: ='population lookup'!F88 -> 341938 | D89: ='population lookup'!I88 -> 0 | F89: 84 | G89: ='risk stratification'!AR90 -> 0.1735959651 | H89: ='risk stratification'!AS90 -> 0.1679389313 | I89: ='risk stratification'!AT90 -> 0.2062431843 | J89: ='risk stratification'!AU90 -> 0.1958833152 | K89: ='risk stratification'!AV90 -> 0.1735959651 | L89: ='risk stratification'!AW90 -> 0.1679389313
B90: 85 | C90: ='population lookup'!F89 -> 301625 | D90: ='population lookup'!I89 -> 0 | F90: 85 | G90: ='risk stratification'!AR91 -> 0.1720731233 | H90: ='risk stratification'!AS91 -> 0.167327888 | I90: ='risk stratification'!AT91 -> 0.2106573318 | J90: ='risk stratification'!AU91 -> 0.2 | K90: ='risk stratification'!AV91 -> 0.1720731233 | L90: ='risk stratification'!AW91 -> 0.167327888
B91: 86 | C91: ='population lookup'!F90 -> 275504 | D91: ='population lookup'!I90 -> 0 | F91: 86 | G91: ='risk stratification'!AR92 -> 0.1775958715 | H91: ='risk stratification'!AS92 -> 0.1719903906 | I91: ='risk stratification'!AT92 -> 0.2133641783 | J91: ='risk stratification'!AU92 -> 0.2030429754 | K91: ='risk stratification'!AV92 -> 0.1775958715 | L91: ='risk stratification'!AW92 -> 0.1719903906
B92: 87 | C92: ='population lookup'!F91 -> 246361 | D92: ='population lookup'!I91 -> 0 | F92: 87 | G92: ='risk stratification'!AR93 -> 0 | H92: ='risk stratification'!AS93 -> 0 | I92: ='risk stratification'!AT93 -> 0 | J92: ='risk stratification'!AU93 -> 0 | K92: ='risk stratification'!AV93 -> 0 | L92: ='risk stratification'!AW93 -> 0
B93: 88 | C93: ='population lookup'!F92 -> 220724 | D93: ='population lookup'!I92 -> 0 | F93: 88 | G93: ='risk stratification'!AR94 -> 0 | H93: ='risk stratification'!AS94 -> 0 | I93: ='risk stratification'!AT94 -> 0 | J93: ='risk stratification'!AU94 -> 0 | K93: ='risk stratification'!AV94 -> 0 | L93: ='risk stratification'!AW94 -> 0
B94: 89 | C94: ='population lookup'!F93 -> 195185 | D94: ='population lookup'!I93 -> 0 | F94: 89 | G94: ='risk stratification'!AR95 -> 0 | H94: ='risk stratification'!AS95 -> 0 | I94: ='risk stratification'!AT95 -> 0 | J94: ='risk stratification'!AU95 -> 0 | K94: ='risk stratification'!AV95 -> 0 | L94: ='risk stratification'!AW95 -> 0
B95: 90 | C95: ='population lookup'!F94 -> 165349 | D95: ='population lookup'!I94 -> 0 | F95: 90 | G95: ='risk stratification'!AR96 -> 0 | H95: ='risk stratification'!AS96 -> 0 | I95: ='risk stratification'!AT96 -> 0 | J95: ='risk stratification'!AU96 -> 0 | K95: ='risk stratification'!AV96 -> 0 | L95: ='risk stratification'!AW96 -> 0
B96: 91 | C96: ='population lookup'!F95 -> 140554 | D96: ='population lookup'!I95 -> 0 | F96: 91 | G96: ='risk stratification'!AR97 -> 0 | H96: ='risk stratification'!AS97 -> 0 | I96: ='risk stratification'!AT97 -> 0 | J96: ='risk stratification'!AU97 -> 0 | K96: ='risk stratification'!AV97 -> 0 | L96: ='risk stratification'!AW97 -> 0
B97: 92 | C97: ='population lookup'!F96 -> 118233 | D97: ='population lookup'!I96 -> 0 | F97: 92 | G97: ='risk stratification'!AR98 -> 0 | H97: ='risk stratification'!AS98 -> 0 | I97: ='risk stratification'!AT98 -> 0 | J97: ='risk stratification'!AU98 -> 0 | K97: ='risk stratification'!AV98 -> 0 | L97: ='risk stratification'!AW98 -> 0
B98: 93 | C98: ='population lookup'!F97 -> 97309 | D98: ='population lookup'!I97 -> 0 | F98: 93 | G98: ='risk stratification'!AR99 -> 0 | H98: ='risk stratification'!AS99 -> 0 | I98: ='risk stratification'!AT99 -> 0 | J98: ='risk stratification'!AU99 -> 0 | K98: ='risk stratification'!AV99 -> 0 | L98: ='risk stratification'!AW99 -> 0
B99: 94 | C99: ='population lookup'!F98 -> 77661 | D99: ='population lookup'!I98 -> 0 | F99: 94 | G99: ='risk stratification'!AR100 -> 0 | H99: ='risk stratification'!AS100 -> 0 | I99: ='risk stratification'!AT100 -> 0 | J99: ='risk stratification'!AU100 -> 0 | K99: ='risk stratification'!AV100 -> 0 | L99: ='risk stratification'!AW100 -> 0
B100: 95 | C100: ='population lookup'!F99 -> 36078 | D100: ='population lookup'!I99 -> 0 | F100: 95 | G100: ='risk stratification'!AR101 -> 0 | H100: ='risk stratification'!AS101 -> 0 | I100: ='risk stratification'!AT101 -> 0 | J100: ='risk stratification'!AU101 -> 0 | K100: ='risk stratification'!AV101 -> 0 | L100: ='risk stratification'!AW101 -> 0
B101: 96 | C101: ='population lookup'!F100 -> 23567 | D101: ='population lookup'!I100 -> 0 | F101: 96 | G101: ='risk stratification'!AR102 -> 0 | H101: ='risk stratification'!AS102 -> 0 | I101: ='risk stratification'!AT102 -> 0 | J101: ='risk stratification'!AU102 -> 0 | K101: ='risk stratification'!AV102 -> 0 | L101: ='risk stratification'!AW102 -> 0
B102: 97 | C102: ='population lookup'!F101 -> 16062 | D102: ='population lookup'!I101 -> 0 | F102: 97 | G102: ='risk stratification'!AR103 -> 0 | H102: ='risk stratification'!AS103 -> 0 | I102: ='risk stratification'!AT103 -> 0 | J102: ='risk stratification'!AU103 -> 0 | K102: ='risk stratification'!AV103 -> 0 | L102: ='risk stratification'!AW103 -> 0
B103: 98 | C103: ='population lookup'!F102 -> 10697 | D103: ='population lookup'!I102 -> 0 | F103: 98 | G103: ='risk stratification'!AR104 -> 0 | H103: ='risk stratification'!AS104 -> 0 | I103: ='risk stratification'!AT104 -> 0 | J103: ='risk stratification'!AU104 -> 0 | K103: ='risk stratification'!AV104 -> 0 | L103: ='risk stratification'!AW104 -> 0
B104: 99 | C104: ='population lookup'!F103 -> 8997 | D104: ='population lookup'!I103 -> 0 | F104: 99 | G104: ='risk stratification'!AR105 -> 0 | H104: ='risk stratification'!AS105 -> 0 | I104: ='risk stratification'!AT105 -> 0 | J104: ='risk stratification'!AU105 -> 0 | K104: ='risk stratification'!AV105 -> 0 | L104: ='risk stratification'!AW105 -> 0
B105: 100 | C105: ='population lookup'!F104 -> 24458 | D105: ='population lookup'!I104 -> 0 | F105: 100 | G105: ='risk stratification'!AR106 -> 0.2211333082 | H105: ='risk stratification'!AS106 -> 0.2118607865 | I105: ='risk stratification'!AT106 -> 0.2749591657 | J105: ='risk stratification'!AU106 -> 0.2579218495 | K105: ='risk stratification'!AV106 -> 0.2211333082 | L105: ='risk stratification'!AW106 -> 0.2118607865

Sheet Trend analysis
F1: 36 | G1: =F1-1 -> 35 | H1: =G1-1 -> 34 | I1: 33 | J1: 32 | K1: 31 | L1: 30 | M1: 29 | N1: 28 | O1: 27 | P1: 26 | Q1: 25 | R1: 24 | S1: 23 | T1: 22 | U1: 21 | V1: 20 | W1: 19 | X1: 18 | Y1: 17 | Z1: 16 | AA1: 15 | AB1: 14 | AC1: 13 | AD1: 12 | AE1: 11 | AF1: 10 | AG1: 9 | AH1: 8 | AI1: 7 | AJ1: 6 | AK1: 5 | AL1: 4 | AM1: 3 | AN1: =AM1-1 -> 2
F4: 1981 | G4: 1982 | H4: 1983 | I4: 1984 | J4: 1985 | K4: 1986 | L4: 1987 | M4: 1988 | N4: 1989 | O4: 1990 | P4: 1991 | Q4: 1992 | R4: 1993 | S4: 1994 | T4: 1995 | U4: 1996 | V4: 1997 | W4: 1998 | X4: 1999 | Y4: 2000 | Z4: 2001 | AA4: 2002 | AB4: 2003 | AC4: 2004 | AD4: 2005 | AE4: 2006 | AF4: 2007 | AG4: 2008 | AH4: 2009 | AI4: 2010 | AJ4: 2011 | AK4: 2012 | AL4: 2013 | AM4: 2014 | AN4: 2015 | AQ4: 1981 | AR4: 1982 | AS4: 1983 | AT4: 1984 | AU4: 1985 | AV4: 1986 | AW4: 1987 | AX4: 1988 | AY4: 1989 | AZ4: 1990 | BA4: 1991 | BB4: 1992 | BC4: 1993 | BD4: 1994 | BE4: 1995 | BF4: 1996 | BG4: 1997 | BH4: 1998 | BI4: 1999 | BJ4: 2000 | BK4: 2001 | BL4: 2002 | BM4: 2003 | BN4: 2004 | BO4: 2005 | BP4: 2006 | BQ4: 2007 | BR4: 2008 | BS4: 2009 | BT4: 2010 | BU4: 2011 | BV4: 2012 | BW4: 2013 | BX4: 2014 | BY4: 2015
C5: Age
C6: 0 | D6: Y_LT1 | E6: =CONCATENATE($D6,$A$7,$B$9,$A$7,$B$8) -> Y_LT1,T,FR | F6: =IF(ISERROR(VLOOKUP($E6,popEU,F$1,FALSE)),"",(VLOOKUP($E6,popEU,F$1,FALSE))) -> : | G6: : | H6: : | I6: : | J6: : | K6: : | L6: : | M6: : | N6: : | O6: : | P6: =IF(ISERROR(VLOOKUP($E6,popEU,P$1,FALSE)),"",(VLOOKUP($E6,popEU,P$1,FALSE))) -> 779556 | Q6: 776497 | R6: 761003 | S6: 727635 | T6: 727948 | U6: 745777 | V6: 750302 | W6: 743493 | X6: 751260 | Y6: 759252 | Z6: =IF(ISERROR(VLOOKUP($E6,popEU,Z$1,FALSE)),"",(VLOOKUP($E6,popEU,Z$1,FALSE))) -> 789393 | AA6: 784500 | AB6: 773672 | AC6: 772587 | AD6: 777461 | AE6: 782037 | AF6: 800522 | AG6: 789775 | AH6: 798254 | AI6: 798008 | AJ6: 805466 | AK6: 789537 | AL6: 785203 | AM6: 779110 | AN6: 786136 | AQ6: =IF(OR($C6<=$A$14,$C6>$B$14),0,F6) -> 0 | AR6: =IF(OR($C6<=$A$14,$C6>$B$14),0,G6) -> 0 | AS6: 0 | AT6: 0 | AU6: 0 | AV6: 0 | AW6: 0 | AX6: 0 | AY6: 0 | AZ6: 0 | BA6: 0 | BB6: 0 | BC6: 0 | BD6: 0 | BE6: 0 | BF6: 0 | BG6: 0 | BH6: 0 | BI6: 0 | BJ6: 0 | BK6: 0 | BL6: 0 | BM6: 0 | BN6: 0 | BO6: 0 | BP6: 0 | BQ6: 0 | BR6: 0 | BS6: 0 | BT6: 0 | BU6: 0 | BV6: 0 | BW6: 0 | BX6: 0 | BY6: 0
A7: , | C7: 1 | D7: Y1 | E7: Y1,T,FR | F7: : | G7: : | H7: : | I7: : | J7: : | K7: : | L7: : | M7: : | N7: : | O7: : | P7: 775307 | Q7: 773293 | R7: 769460 | S7: 754010 | T7: 720980 | U7: 722448 | V7: 739212 | W7: 744561 | X7: 737296 | Y7: 753487 | Z7: 760861 | AA7: 791899 | AB7: 785927 | AC7: 774643 | AD7: 771654 | AE7: 776948 | AF7: 784451 | AG7: 804342 | AH7: 793214 | AI7: 800823 | AJ7: 799672 | AK7: 808857 | AL7: 792716 | AM7: 788006 | AN7: 788866 | AQ7: =IF(OR($C7<=$A$14,$C7>$B$14),0,F7) -> 0 | AR7: 0 | AS7: 0 | AT7: 0 | AU7: 0 | AV7: 0 | AW7: 0 | AX7: 0 | AY7: 0 | AZ7: 0 | BA7: 0 | BB7: 0 | BC7: 0 | BD7: 0 | BE7: 0 | BF7: 0 | BG7: 0 | BH7: 0 | BI7: 0 | BJ7: 0 | BK7: 0 | BL7: 0 | BM7: 0 | BN7: 0 | BO7: 0 | BP7: 0 | BQ7: 0 | BR7: 0 | BS7: 0 | BT7: 0 | BU7: 0 | BV7: 0 | BW7: 0 | BX7: 0 | BY7: 0
A8: ='input selections'!F3 -> 11 | B8: ='input selections'!G3 -> FR | C8: 2 | D8: Y2 | E8: Y2,T,FR | F8: : | G8: : | H8: : | I8: : | J8: : | K8: : | L8: : | M8: : | N8: : | O8: : | P8: 784888 | Q8: 779585 | R8: 776661 | S8: 772407 | T8: 757025 | U8: 723924 | V8: 726015 | W8: 741960 | X8: 747558 | Y8: 741209 | Z8: 757673 | AA8: 764660 | AB8: 796466 | AC8: 789433 | AD8: 777830 | AE8: 772882 | AF8: 780597 | AG8: 788026 | AH8: 807529 | AI8: 795717 | AJ8: 803614 | AK8: 803643 | AL8: 811397 | AM8: 795871 | AN8: 798550 | AQ8: 0 | AR8: 0 | AS8: 0 | AT8: 0 | AU8: 0 | AV8: 0 | AW8: 0 | AX8: 0 | AY8: 0 | AZ8: 0 | BA8: 0 | BB8: 0 | BC8: 0 | BD8: 0 | BE8: 0 | BF8: 0 | BG8: 0 | BH8: 0 | BI8: 0 | BJ8: 0 | BK8: 0 | BL8: 0 | BM8: 0 | BN8: 0 | BO8: 0 | BP8: 0 | BQ8: 0 | BR8: 0 | BS8: 0 | BT8: 0 | BU8: 0 | BV8: 0 | BW8: 0 | BX8: 0 | BY8: 0
A9: ='input selections'!F6 -> 0 | B9: ='input selections'!G6 -> T | C9: 3 | D9: Y3 | E9: Y3,T,FR | F9: : | G9: : | H9: : | I9: : | J9: : | K9: : | L9: : | M9: : | N9: : | O9: : | P9: 783499 | Q9: 785016 | R9: 779694 | S9: 776610 | T9: 772130 | U9: 756624 | V9: 723251 | W9: 726237 | X9: 741164 | Y9: 752432 | Z9: 746144 | AA9: 762691 | AB9: 769642 | AC9: 802208 | AD9: 794309 | AE9: 782242 | AF9: 779620 | AG9: 785840 | AH9: 794072 | AI9: 812194 | AJ9: 800971 | AK9: 809817 | AL9: 810141 | AM9: 817420 | AN9: 809128 | AQ9: 0 | AR9: 0 | AS9: 0 | AT9: 0 | AU9: 0 | AV9: 0 | AW9: 0 | AX9: 0 | AY9: 0 | AZ9: 0 | BA9: 0 | BB9: 0 | BC9: 0 | BD9: 0 | BE9: 0 | BF9: 0 | BG9: 0 | BH9: 0 | BI9: 0 | BJ9: 0 | BK9: 0 | BL9: 0 | BM9: 0 | BN9: 0 | BO9: 0 | BP9: 0 | BQ9: 0 | BR9: 0 | BS9: 0 | BT9: 0 | BU9: 0 | BV9: 0 | BW9: 0 | BX9: 0 | BY9: 0
C10: 4 | D10: Y4 | E10: Y4,T,FR | F10: : | G10: : | H10: : | I10: : | J10: : | K10: : | L10: : | M10: : | N10: : | O10: : | P10: 796776 | Q10: 786579 | R10: 787530 | S10: 782491 | T10: 779151 | U10: 774254 | V10: 758547 | W10: 724991 | X10: 728852 | Y10: 745997 | Z10: 757559 | AA10: 751194 | AB10: 767914 | AC10: 775042 | AD10: 808510 | AE10: 799550 | AF10: 789746 | AG10: 786315 | AH10: 791221 | AI10: 800164 | AJ10: 818228 | AK10: 808910 | AL10: 817806 | AM10: 817479 | AN10: 831956 | AQ10: 0 | AR10: 0 | AS10: 0 | AT10: 0 | AU10: 0 | AV10: 0 | AW10: 0 | AX10: 0 | AY10: 0 | AZ10: 0 | BA10: 0 | BB10: 0 | BC10: 0 | BD10: 0 | BE10: 0 | BF10: 0 | BG10: 0 | BH10: 0 | BI10: 0 | BJ10: 0 | BK10: 0 | BL10: 0 | BM10: 0 | BN10: 0 | BO10: 0 | BP10: 0 | BQ10: 0 | BR10: 0 | BS10: 0 | BT10: 0 | BU10: 0 | BV10: 0 | BW10: 0 | BX10: 0 | BY10: 0
C11: 5 | D11: Y5 | E11: Y5,T,FR | F11: : | G11: : | H11: : | I11: : | J11: : | K11: : | L11: : | M11: : | N11: : | O11: : | P11: 788779 | Q11: 798912 | R11: 788507 | S11: 789285 | T11: 784548 | U11: 780975 | V11: 775613 | W11: 759964 | X11: 726262 | Y11: 732527 | Z11: 750345 | AA11: 761966 | AB11: 755533 | AC11: 772360 | AD11: 780133 | AE11: 814270 | AF11: 804905 | AG11: 794725 | AH11: 791484 | AI11: 796377 | AJ11: 803230 | AK11: 824503 | AL11: 815226 | AM11: 823047 | AN11: 829704 | AQ11: 0 | AR11: 0 | AS11: 0 | AT11: 0 | AU11: 0 | AV11: 0 | AW11: 0 | AX11: 0 | AY11: 0 | AZ11: 0 | BA11: 0 | BB11: 0 | BC11: 0 | BD11: 0 | BE11: 0 | BF11: 0 | BG11: 0 | BH11: 0 | BI11: 0 | BJ11: 0 | BK11: 0 | BL11: 0 | BM11: 0 | BN11: 0 | BO11: 0 | BP11: 0 | BQ11: 0 | BR11: 0 | BS11: 0 | BT11: 0 | BU11: 0 | BV11: 0 | BW11: 0 | BX11: 0 | BY11: 0
C12: 6 | D12: Y6 | E12: Y6,T,FR | F12: : | G12: : | H12: : | I12: : | J12: : | K12: : | L12: : | M12: : | N12: : | O12: : | P12: 779439 | Q12: 790074 | R12: 800290 | S12: 790152 | T12: 790765 | U12: 786390 | V12: 782669 | W12: 777093 | X12: 761600 | Y12: 730490 | Z12: 736287 | AA12: 754703 | AB12: 766396 | AC12: 759938 | AD12: 777029 | AE12: 785261 | AF12: 820565 | AG12: 809440 | AH12: 799925 | AI12: 795086 | AJ12: 800757 | AK12: 809663 | AL12: 830504 | AM12: 820857 | AN12: 835497 | AQ12: 0 | AR12: 0 | AS12: 0 | AT12: 0 | AU12: 0 | AV12: 0 | AW12: 0 | AX12: 0 | AY12: 0 | AZ12: 0 | BA12: 0 | BB12: 0 | BC12: 0 | BD12: 0 | BE12: 0 | BF12: 0 | BG12: 0 | BH12: 0 | BI12: 0 | BJ12: 0 | BK12: 0 | BL12: 0 | BM12: 0 | BN12: 0 | BO12: 0 | BP12: 0 | BQ12: 0 | BR12: 0 | BS12: 0 | BT12: 0 | BU12: 0 | BV12: 0 | BW12: 0 | BX12: 0 | BY12: 0
A13: min | B13: max | C13: 7 | D13: Y7 | E13: Y7,T,FR | F13: : | G13: : | H13: : | I13: : | J13: : | K13: : | L13: : | M13: : | N13: : | O13: : | P13: 767411 | Q13: 780912 | R13: 790477 | S13: 801069 | T13: 790900 | U13: 791327 | V13: 787258 | W13: 783478 | X13: 777678 | Y13: 765938 | Z13: 734762 | AA13: 740143 | AB13: 759057 | AC13: 770794 | AD13: 764476 | AE13: 780981 | AF13: 790459 | AG13: 824623 | AH13: 812629 | AI13: 803482 | AJ13: 798363 | AK13: 805752 | AL13: 814249 | AM13: 834823 | AN13: 832147 | AQ13: 0 | AR13: 0 | AS13: 0 | AT13: 0 | AU13: 0 | AV13: 0 | AW13: 0 | AX13: 0 | AY13: 0 | AZ13: 0 | BA13: 0 | BB13: 0 | BC13: 0 | BD13: 0 | BE13: 0 | BF13: 0 | BG13: 0 | BH13: 0 | BI13: =IF(OR($C13<=$A$14,$C13>$B$14),0,X13) -> 0 | BJ13: =IF(OR($C13<=$A$14,$C13>$B$14),0,Y13) -> 0 | BK13: =IF(OR($C13<=$A$14,$C13>$B$14),0,Z13) -> 0 | BL13: =IF(OR($C13<=$A$14,$C13>$B$14),0,AA13) -> 0 | BM13: =IF(OR($C13<=$A$14,$C13>$B$14),0,AB13) -> 0 | BN13: =IF(OR($C13<=$A$14,$C13>$B$14),0,AC13) -> 0 | BO13: =IF(OR($C13<=$A$14,$C13>$B$14),0,AD13) -> 0 | BP13: =IF(OR($C13<=$A$14,$C13>$B$14),0,AE13) -> 0 | BQ13: =IF(OR($C13<=$A$14,$C13>$B$14),0,AF13) -> 0 | BR13: =IF(OR($C13<=$A$14,$C13>$B$14),0,AG13) -> 0 | BS13: =IF(OR($C13<=$A$14,$C13>$B$14),0,AH13) -> 0 | BT13: =IF(OR($C13<=$A$14,$C13>$B$14),0,AI13) -> 0 | BU13: =IF(OR($C13<=$A$14,$C13>$B$14),0,AJ13) -> 0 | BV13: =IF(OR($C13<=$A$14,$C13>$B$14),0,AK13) -> 0 | BW13: =IF(OR($C13<=$A$14,$C13>$B$14),0,AL13) -> 0 | BX13: =IF(OR($C13<=$A$14,$C13>$B$14),0,AM13) -> 0 | BY13: =IF(OR($C13<=$A$14,$C13>$B$14),0,AN13) -> 0
A14: ='input selections'!G10 -> 65 | B14: ='input selections'!H10 -> 80 | C14: 8 | D14: Y8 | E14: Y8,T,FR | F14: : | G14: : | H14: : | I14: : | J14: : | K14: : | L14: : | M14: : | N14: : | O14: : | P14: 819355 | Q14: 769424 | R14: 782905 | S14: 791830 | T14: 802597 | U14: 792527 | V14: 792835 | W14: 789607 | X14: 785883 | Y14: 781610 | Z14: 770408 | AA14: 739118 | AB14: 744181 | AC14: 763461 | AD14: 775370 | AE14: 768519 | AF14: 785584 | AG14: 794751 | AH14: 828917 | AI14: 816251 | AJ14: 806501 | AK14: 803913 | AL14: 811139 | AM14: 818935 | AN14: 846392 | AQ14: 0 | AR14: =IF(OR($C14<=$A$14,$C14>$B$14),0,G14) -> 0 | AS14: =IF(OR($C14<=$A$14,$C14>$B$14),0,H14) -> 0 | AT14: =IF(OR($C14<=$A$14,$C14>$B$14),0,I14) -> 0 | AU14: =IF(OR($C14<=$A$14,$C14>$B$14),0,J14) -> 0 | AV14: =IF(OR($C14<=$A$14,$C14>$B$14),0,K14) -> 0 | AW14: =IF(OR($C14<=$A$14,$C14>$B$14),0,L14) -> 0 | AX14: =IF(OR($C14<=$A$14,$C14>$B$14),0,M14) -> 0 | AY14: =IF(OR($C14<=$A$14,$C14>$B$14),0,N14) -> 0 | AZ14: =IF(OR($C14<=$A$14,$C14>$B$14),0,O14) -> 0 | BA14: =IF(OR($C14<=$A$14,$C14>$B$14),0,P14) -> 0 | BB14: =IF(OR($C14<=$A$14,$C14>$B$14),0,Q14) -> 0 | BC14: =IF(OR($C14<=$A$14,$C14>$B$14),0,R14) -> 0 | BD14: =IF(OR($C14<=$A$14,$C14>$B$14),0,S14) -> 0 | BE14: =IF(OR($C14<=$A$14,$C14>$B$14),0,T14) -> 0 | BF14: =IF(OR($C14<=$A$14,$C14>$B$14),0,U14) -> 0 | BG14: =IF(OR($C14<=$A$14,$C14>$B$14),0,V14) -> 0 | BH14: =IF(OR($C14<=$A$14,$C14>$B$14),0,W14) -> 0 | BI14: 0 | BJ14: 0 | BK14: 0 | BL14: 0 | BM14: 0 | BN14: 0 | BO14: 0 | BP14: 0 | BQ14: 0 | BR14: 0 | BS14: 0 | BT14: 0 | BU14: 0 | BV14: 0 | BW14: 0 | BX14: 0 | BY14: 0
A15: ='input selections'!G11 -> Y65 | B15: ='input selections'!H11 -> Y80 | C15: 9 | D15: Y9 | E15: Y9,T,FR | F15: : | G15: : | H15: : | I15: : | J15: : | K15: : | L15: : | M15: : | N15: : | O15: : | P15: 827906 | Q15: 820939 | R15: 771457 | S15: 785231 | T15: 793436 | U15: 804339 | V15: 794381 | W15: 794841 | X15: 792549 | Y15: 791075 | Z15: 785413 | AA15: 774790 | AB15: 743431 | AC15: 748191 | AD15: 768089 | AE15: 779057 | AF15: 773055 | AG15: 788547 | AH15: 797347 | AI15: 832662 | AJ15: 819816 | AK15: 810890 | AL15: 808033 | AM15: 815198 | AN15: 829605 | AQ15: 0 | AR15: 0 | AS15: 0 | AT15: 0 | AU15: 0 | AV15: 0 | AW15: 0 | AX15: 0 | AY15: 0 | AZ15: 0 | BA15: 0 | BB15: 0 | BC15: 0 | BD15: 0 | BE15: 0 | BF15: 0 | BG15: 0 | BH15: 0 | BI15: 0 | BJ15: 0 | BK15: 0 | BL15: 0 | BM15: 0 | BN15: 0 | BO15: 0 | BP15: 0 | BQ15: 0 | BR15: 0 | BS15: 0 | BT15: 0 | BU15: 0 | BV15: 0 | BW15: 0 | BX15: 0 | BY15: 0
C16: 10 | D16: Y10 | E16: Y10,T,FR | F16: =IF(ISERROR(VLOOKUP($E16,popEU,F$1,FALSE)),"",(VLOOKUP($E16,popEU,F$1,FALSE))) -> : | G16: : | H16: : | I16: : | J16: : | K16: : | L16: : | M16: : | N16: : | O16: : | P16: =IF(ISERROR(VLOOKUP($E16,popEU,P$1,FALSE)),"",(VLOOKUP($E16,popEU,P$1,FALSE))) -> 829926 | Q16: 827943 | R16: 820014 | S16: 771293 | T16: 785202 | U16: 792689 | V16: 803943 | W16: 793846 | X16: 794854 | Y16: 798882 | Z16: =IF(ISERROR(VLOOKUP($E16,popEU,Z$1,FALSE)),"",(VLOOKUP($E16,popEU,Z$1,FALSE))) -> 796419 | AA16: 789516 | AB16: 779421 | AC16: 747970 | AD16: 752598 | AE16: 771784 | AF16: 783386 | AG16: 777233 | AH16: 791244 | AI16: 799838 | AJ16: 837063 | AK16: 823106 | AL16: 814241 | AM16: 811759 | AN16: 825391 | AQ16: 0 | AR16: 0 | AS16: 0 | AT16: 0 | AU16: 0 | AV16: 0 | AW16: 0 | AX16: 0 | AY16: 0 | AZ16: 0 | BA16: 0 | BB16: 0 | BC16: 0 | BD16: 0 | BE16: 0 | BF16: 0 | BG16: 0 | BH16: 0 | BI16: 0 | BJ16: 0 | BK16: 0 | BL16: 0 | BM16: 0 | BN16: 0 | BO16: 0 | BP16: 0 | BQ16: 0 | BR16: 0 | BS16: 0 | BT16: 0 | BU16: 0 | BV16: 0 | BW16: 0 | BX16: 0 | BY16: 0
C17: 11 | D17: Y11 | E17: Y11,T,FR | F17: : | G17: : | H17: : | I17: : | J17: : | K17: : | L17: : | M17: : | N17: : | O17: : | P17: 785272 | Q17: 830473 | R17: 828483 | S17: 819974 | T17: 771771 | U17: 785808 | V17: 792658 | W17: 804468 | X17: 795355 | Y17: 802269 | Z17: 804828 | AA17: 801515 | AB17: 793611 | AC17: 783989 | AD17: 752680 | AE17: 755979 | AF17: 777275 | AG17: 786374 | AH17: 780320 | AI17: 794372 | AJ17: 800791 | AK17: 841826 | AL17: 827658 | AM17: 817693 | AN17: 821249 | AQ17: 0 | AR17: 0 | AS17: 0 | AT17: 0 | AU17: 0 | AV17: 0 | AW17: 0 | AX17: 0 | AY17: 0 | AZ17: 0 | BA17: 0 | BB17: 0 | BC17: 0 | BD17: 0 | BE17: 0 | BF17: 0 | BG17: 0 | BH17: 0 | BI17: 0 | BJ17: 0 | BK17: 0 | BL17: 0 | BM17: 0 | BN17: 0 | BO17: 0 | BP17: 0 | BQ17: 0 | BR17: 0 | BS17: 0 | BT17: 0 | BU17: 0 | BV17: 0 | BW17: 0 | BX17: 0 | BY17: 0
C18: 12 | D18: Y12 | E18: Y12,T,FR | F18: : | G18: : | H18: : | I18: : | J18: : | K18: : | L18: : | M18: : | N18: : | O18: : | P18: 768249 | Q18: 788163 | R18: 832599 | S18: 830664 | T18: 821225 | U18: 773295 | V18: 787334 | W18: 793559 | X18: 805849 | Y18: 801671 | Z18: 809256 | AA18: 810612 | AB18: 806555 | AC18: 797772 | AD18: 788782 | AE18: 756428 | AF18: 760258 | AG18: 781172 | AH18: 789267 | AI18: 782585 | AJ18: 795666 | AK18: 803452 | AL18: 844728 | AM18: 829988 | AN18: 826583 | AQ18: 0 | AR18: 0 | AS18: 0 | AT18: 0 | AU18: 0 | AV18: 0 | AW18: 0 | AX18: 0 | AY18: 0 | AZ18: 0 | BA18: 0 | BB18: 0 | BC18: 0 | BD18: 0 | BE18: 0 | BF18: 0 | BG18: 0 | BH18: 0 | BI18: 0 | BJ18: 0 | BK18: 0 | BL18: 0 | BM18: 0 | BN18: 0 | BO18: 0 | BP18: 0 | BQ18: 0 | BR18: 0 | BS18: 0 | BT18: 0 | BU18: 0 | BV18: 0 | BW18: 0 | BX18: 0 | BY18: 0
C19: 13 | D19: Y13 | E19: Y13,T,FR | F19: : | G19: : | H19: : | I19: : | J19: : | K19: : | L19: : | M19: : | N19: : | O19: : | P19: 775573 | Q19: 769964 | R19: 790042 | S19: 834136 | T19: 832104 | U19: 821884 | V19: 774485 | W19: 788716 | X19: 795057 | Y19: 811416 | Z19: 807339 | AA19: 815768 | AB19: 816060 | AC19: 811328 | AD19: 802030 | AE19: 792441 | AF19: 759563 | AG19: 763242 | AH19: 785005 | AI19: 792194 | AJ19: 784780 | AK19: 798942 | AL19: 806845 | AM19: 847730 | AN19: 838757 | AQ19: 0 | AR19: 0 | AS19: 0 | AT19: 0 | AU19: 0 | AV19: 0 | AW19: 0 | AX19: 0 | AY19: 0 | AZ19: 0 | BA19: 0 | BB19: 0 | BC19: 0 | BD19: 0 | BE19: 0 | BF19: 0 | BG19: 0 | BH19: 0 | BI19: 0 | BJ19: 0 | BK19: 0 | BL19: 0 | BM19: 0 | BN19: 0 | BO19: 0 | BP19: 0 | BQ19: 0 | BR19: 0 | BS19: 0 | BT19: 0 | BU19: 0 | BV19: 0 | BW19: 0 | BX19: 0 | BY19: 0
C20: 14 | D20: Y14 | E20: Y14,T,FR | F20: : | G20: : | H20: : | I20: : | J20: : | K20: : | L20: : | M20: : | N20: : | O20: : | P20: 756467 | Q20: 778064 | R20: 772101 | S20: 792461 | T20: 835893 | U20: 833751 | V20: 822736 | W20: 775851 | X20: 790615 | Y20: 800126 | Z20: 817157 | AA20: 813117 | AB20: 822325 | AC20: 821734 | AD20: 816949 | AE20: 805639 | AF20: 796433 | AG20: 761188 | AH20: 765996 | AI20: 787723 | AJ20: 794443 | AK20: 787543 | AL20: 803419 | AM20: 810029 | AN20: 856210 | AQ20: 0 | AR20: 0 | AS20: 0 | AT20: 0 | AU20: 0 | AV20: 0 | AW20: 0 | AX20: 0 | AY20: 0 | AZ20: 0 | BA20: 0 | BB20: 0 | BC20: 0 | BD20: 0 | BE20: 0 | BF20: 0 | BG20: 0 | BH20: 0 | BI20: 0 | BJ20: 0 | BK20: 0 | BL20: 0 | BM20: 0 | BN20: 0 | BO20: 0 | BP20: 0 | BQ20: 0 | BR20: 0 | BS20: 0 | BT20: 0 | BU20: 0 | BV20: 0 | BW20: 0 | BX20: 0 | BY20: 0
C21: 15 | D21: Y15 | E21: Y15,T,FR | F21: : | G21: : | H21: : | I21: : | J21: : | K21: : | L21: : | M21: : | N21: : | O21: : | P21: 783964 | Q21: 758669 | R21: 780255 | S21: 774256 | T21: 794708 | U21: 837547 | V21: 835346 | W21: 823993 | X21: 777966 | Y21: 792714 | Z21: 804814 | AA21: 822599 | AB21: 818798 | AC21: 828318 | AD21: 827407 | AE21: 821353 | AF21: 810015 | AG21: 798840 | AH21: 765196 | AI21: 769587 | AJ21: 790523 | AK21: 798157 | AL21: 790864 | AM21: 806755 | AN21: 818533 | AQ21: 0 | AR21: 0 | AS21: 0 | AT21: 0 | AU21: 0 | AV21: 0 | AW21: 0 | AX21: 0 | AY21: 0 | AZ21: 0 | BA21: 0 | BB21: 0 | BC21: 0 | BD21: 0 | BE21: 0 | BF21: 0 | BG21: 0 | BH21: 0 | BI21: 0 | BJ21: 0 | BK21: 0 | BL21: 0 | BM21: 0 | BN21: 0 | BO21: 0 | BP21: 0 | BQ21: 0 | BR21: 0 | BS21: 0 | BT21: 0 | BU21: 0 | BV21: 0 | BW21: 0 | BX21: 0 | BY21: 0
C22: 16 | D22: Y16 | E22: Y16,T,FR | F22: : | G22: : | H22: : | I22: : | J22: : | K22: : | L22: : | M22: : | N22: : | O22: : | P22: 838653 | Q22: 785097 | R22: 761077 | S22: 782916 | T22: 776866 | U22: 797338 | V22: 839838 | W22: 838216 | X22: 826740 | Y22: 779387 | Z22: 794817 | AA22: 809695 | AB22: 828379 | AC22: 823712 | AD22: 834936 | AE22: 832783 | AF22: 828052 | AG22: 818263 | AH22: 808888 | AI22: 776525 | AJ22: 777258 | AK22: 792976 | AL22: 799971 | AM22: 794913 | AN22: 816024 | AQ22: 0 | AR22: 0 | AS22: 0 | AT22: 0 | AU22: 0 | AV22: 0 | AW22: 0 | AX22: 0 | AY22: 0 | AZ22: 0 | BA22: 0 | BB22: 0 | BC22: 0 | BD22: 0 | BE22: 0 | BF22: 0 | BG22: 0 | BH22: 0 | BI22: 0 | BJ22: 0 | BK22: 0 | BL22: 0 | BM22: 0 | BN22: 0 | BO22: 0 | BP22: 0 | BQ22: 0 | BR22: 0 | BS22: 0 | BT22: 0 | BU22: 0 | BV22: 0 | BW22: 0 | BX22: 0 | BY22: 0
C23: 17 | D23: Y17 | E23: Y17,T,FR | F23: : | G23: : | H23: : | I23: : | J23: : | K23: : | L23: : | M23: : | N23: : | O23: : | P23: 896440 | Q23: 839026 | R23: 786053 | S23: 763078 | T23: 784338 | U23: 777303 | V23: 798076 | W23: 840227 | X23: 839230 | Y23: 827279 | Z23: 780977 | AA23: 797532 | AB23: 815359 | AC23: 833447 | AD23: 830051 | AE23: 840947 | AF23: 836095 | AG23: 833663 | AH23: 823027 | AI23: 815554 | AJ23: 779804 | AK23: 772053 | AL23: 792391 | AM23: 799205 | AN23: 799000 | AQ23: 0 | AR23: 0 | AS23: 0 | AT23: 0 | AU23: 0 | AV23: 0 | AW23: 0 | AX23: 0 | AY23: 0 | AZ23: 0 | BA23: 0 | BB23: 0 | BC23: 0 | BD23: 0 | BE23: 0 | BF23: 0 | BG23: 0 | BH23: 0 | BI23: 0 | BJ23: 0 | BK23: 0 | BL23: 0 | BM23: 0 | BN23: 0 | BO23: 0 | BP23: 0 | BQ23: 0 | BR23: 0 | BS23: 0 | BT23: 0 | BU23: 0 | BV23: 0 | BW23: 0 | BX23: 0 | BY23: 0
C24: 18 | D24: Y18 | E24: Y18,T,FR | F24: : | G24: : | H24: : | I24: : | J24: : | K24: : | L24: : | M24: : | N24: : | O24: : | P24: 918420 | Q24: 894133 | R24: 837151 | S24: 784350 | T24: 762144 | U24: 782789 | V24: 775608 | W24: 796741 | X24: 838711 | Y24: 836787 | Z24: 826979 | AA24: 781984 | AB24: 799726 | AC24: 820031 | AD24: 839374 | AE24: 835981 | AF24: 842035 | AG24: 835895 | AH24: 832794 | AI24: 823198 | AJ24: 814752 | AK24: 764966 | AL24: 768596 | AM24: 786079 | AN24: 797344 | AQ24: 0 | AR24: 0 | AS24: 0 | AT24: 0 | AU24: 0 | AV24: 0 | AW24: 0 | AX24: 0 | AY24: 0 | AZ24: 0 | BA24: 0 | BB24: 0 | BC24: 0 | BD24: 0 | BE24: 0 | BF24: 0 | BG24: 0 | BH24: 0 | BI24: 0 | BJ24: 0 | BK24: 0 | BL24: 0 | BM24: 0 | BN24: 0 | BO24: 0 | BP24: 0 | BQ24: 0 | BR24: 0 | BS24: 0 | BT24: 0 | BU24: 0 | BV24: 0 | BW24: 0 | BX24: 0 | BY24: 0
C25: 19 | D25: Y19 | E25: Y19,T,FR | F25: : | G25: : | H25: : | I25: : | J25: : | K25: : | L25: : | M25: : | N25: : | O25: : | P25: 919388 | Q25: 913036 | R25: 889449 | S25: 832794 | T25: 779465 | U25: 757870 | V25: 778554 | W25: 770881 | X25: 792587 | Y25: 835037 | Z25: 832829 | AA25: 825092 | AB25: 781202 | AC25: 801180 | AD25: 823718 | AE25: 843612 | AF25: 833291 | AG25: 837935 | AH25: 832338 | AI25: 829570 | AJ25: 817766 | AK25: 797396 | AL25: 759693 | AM25: 759362 | AN25: 780628 | AQ25: 0 | AR25: 0 | AS25: 0 | AT25: 0 | AU25: 0 | AV25: 0 | AW25: 0 | AX25: 0 | AY25: 0 | AZ25: 0 | BA25: 0 | BB25: 0 | BC25: 0 | BD25: 0 | BE25: 0 | BF25: 0 | BG25: 0 | BH25: 0 | BI25: 0 | BJ25: 0 | BK25: 0 | BL25: 0 | BM25: 0 | BN25: 0 | BO25: 0 | BP25: 0 | BQ25: 0 | BR25: 0 | BS25: 0 | BT25: 0 | BU25: 0 | BV25: 0 | BW25: 0 | BX25: 0 | BY25: 0
C26: 20 | D26: Y20 | E26: Y20,T,FR | F26: =IF(ISERROR(VLOOKUP($E26,popEU,F$1,FALSE)),"",(VLOOKUP($E26,popEU,F$1,FALSE))) -> : | G26: : | H26: : | I26: : | J26: : | K26: : | L26: : | M26: : | N26: : | O26: : | P26: =IF(ISERROR(VLOOKUP($E26,popEU,P$1,FALSE)),"",(VLOOKUP($E26,popEU,P$1,FALSE))) -> 895062 | Q26: 912745 | R26: 907019 | S26: 883127 | T26: 827083 | U26: 773037 | V26: 752578 | W26: 773293 | X26: 765468 | Y26: 786129 | Z26: =IF(ISERROR(VLOOKUP($E26,popEU,Z$1,FALSE)),"",(VLOOKUP($E26,popEU,Z$1,FALSE))) -> 830263 | AA26: 827807 | AB26: 821972 | AC26: 779692 | AD26: 800124 | AE26: 825903 | AF26: 834898 | AG26: 824713 | AH26: 828993 | AI26: 822556 | AJ26: 819841 | AK26: 798896 | AL26: 789843 | AM26: 747742 | AN26: 750544 | AQ26: 0 | AR26: 0 | AS26: 0 | AT26: 0 | AU26: 0 | AV26: 0 | AW26: 0 | AX26: 0 | AY26: 0 | AZ26: 0 | BA26: 0 | BB26: 0 | BC26: 0 | BD26: 0 | BE26: 0 | BF26: 0 | BG26: 0 | BH26: 0 | BI26: 0 | BJ26: 0 | BK26: 0 | BL26: 0 | BM26: 0 | BN26: 0 | BO26: 0 | BP26: 0 | BQ26: 0 | BR26: 0 | BS26: 0 | BT26: 0 | BU26: 0 | BV26: 0 | BW26: 0 | BX26: 0 | BY26: 0
C27: 21 | D27: Y21 | E27: Y21,T,FR | F27: : | G27: : | H27: : | I27: : | J27: : | K27: : | L27: : | M27: : | N27: : | O27: : | P27: 883828 | Q27: 888886 | R27: 907606 | S27: 901529 | T27: 876994 | U27: 821763 | V27: 768278 | W27: 747509 | X27: 768162 | Y27: 760443 | Z27: 780657 | AA27: 826438 | AB27: 823742 | AC27: 819430 | AD27: 778253 | AE27: 800893 | AF27: 813903 | AG27: 821075 | AH27: 812236 | AI27: 815057 | AJ27: 806468 | AK27: 806262 | AL27: 791073 | AM27: 777440 | AN27: 738055 | AQ27: 0 | AR27: 0 | AS27: 0 | AT27: 0 | AU27: 0 | AV27: 0 | AW27: 0 | AX27: 0 | AY27: 0 | AZ27: 0 | BA27: 0 | BB27: 0 | BC27: 0 | BD27: 0 | BE27: 0 | BF27: 0 | BG27: 0 | BH27: 0 | BI27: 0 | BJ27: 0 | BK27: 0 | BL27: 0 | BM27: 0 | BN27: 0 | BO27: 0 | BP27: 0 | BQ27: 0 | BR27: 0 | BS27: 0 | BT27: 0 | BU27: 0 | BV27: 0 | BW27: 0 | BX27: 0 | BY27: 0
C28: 22 | D28: Y22 | E28: Y22,T,FR | F28: : | G28: : | H28: : | I28: : | J28: : | K28: : | L28: : | M28: : | N28: : | O28: : | P28: 867726 | Q28: 877182 | R28: 882029 | S28: 901040 | T28: 894594 | U28: 870393 | V28: 816498 | W28: 763720 | X28: 743009 | Y28: 764255 | Z28: 756729 | AA28: 776710 | AB28: 823953 | AC28: 820811 | AD28: 818086 | AE28: 779335 | AF28: 792221 | AG28: 805235 | AH28: 810992 | AI28: 800411 | AJ28: 803049 | AK28: 797849 | AL28: 797534 | AM28: 781386 | AN28: 770540 | AQ28: 0 | AR28: 0 | AS28: 0 | AT28: 0 | AU28: 0 | AV28: 0 | AW28: 0 | AX28: 0 | AY28: 0 | AZ28: 0 | BA28: 0 | BB28: 0 | BC28: 0 | BD28: 0 | BE28: 0 | BF28: 0 | BG28: 0 | BH28: 0 | BI28: 0 | BJ28: 0 | BK28: 0 | BL28: 0 | BM28: 0 | BN28: 0 | BO28: 0 | BP28: 0 | BQ28: 0 | BR28: 0 | BS28: 0 | BT28: 0 | BU28: 0 | BV28: 0 | BW28: 0 | BX28: 0 | BY28: 0
C29: 23 | D29: Y23 | E29: Y23,T,FR | F29: : | G29: : | H29: : | I29: : | J29: : | K29: : | L29: : | M29: : | N29: : | O29: : | P29: 863944 | Q29: 863214 | R29: 872882 | S29: 876608 | T29: 895424 | U29: 889345 | V29: 865444 | W29: 813066 | X29: 762316 | Y29: 740733 | Z29: 762083 | AA29: 755031 | AB29: 774595 | AC29: 822960 | AD29: 819852 | AE29: 819915 | AF29: 773425 | AG29: 786548 | AH29: 799121 | AI29: 803209 | AJ29: 791591 | AK29: 796036 | AL29: 788577 | AM29: 789235 | AN29: 775707 | AQ29: 0 | AR29: 0 | AS29: 0 | AT29: 0 | AU29: 0 | AV29: 0 | AW29: 0 | AX29: 0 | AY29: 0 | AZ29: 0 | BA29: 0 | BB29: 0 | BC29: 0 | BD29: 0 | BE29: 0 | BF29: 0 | BG29: 0 | BH29: 0 | BI29: 0 | BJ29: 0 | BK29: 0 | BL29: 0 | BM29: 0 | BN29: 0 | BO29: 0 | BP29: 0 | BQ29: 0 | BR29: 0 | BS29: 0 | BT29: 0 | BU29: 0 | BV29: 0 | BW29: 0 | BX29: 0 | BY29: 0
C30: 24 | D30: Y24 | E30: Y24,T,FR | F30: : | G30: : | H30: : | I30: : | J30: : | K30: : | L30: : | M30: : | N30: : | O30: : | P30: 884516 | Q30: 860829 | R30: 860540 | S30: 868651 | T30: 871067 | U30: 890325 | V30: 884816 | W30: 861295 | X30: 811609 | Y30: 760749 | Z30: 739908 | AA30: 761806 | AB30: 754795 | AC30: 773750 | AD30: 823339 | AE30: 821666 | AF30: 817436 | AG30: 768932 | AH30: 782446 | AI30: 792512 | AJ30: 796435 | AK30: 788229 | AL30: 790377 | AM30: 783388 | AN30: 786821 | AQ30: 0 | AR30: 0 | AS30: 0 | AT30: 0 | AU30: 0 | AV30: 0 | AW30: 0 | AX30: 0 | AY30: 0 | AZ30: 0 | BA30: 0 | BB30: 0 | BC30: 0 | BD30: 0 | BE30: 0 | BF30: 0 | BG30: 0 | BH30: 0 | BI30: 0 | BJ30: 0 | BK30: 0 | BL30: 0 | BM30: 0 | BN30: 0 | BO30: 0 | BP30: 0 | BQ30: 0 | BR30: 0 | BS30: 0 | BT30: 0 | BU30: 0 | BV30: 0 | BW30: 0 | BX30: 0 | BY30: 0
C31: 25 | D31: Y25 | E31: Y25,T,FR | F31: : | G31: : | H31: : | I31: : | J31: : | K31: : | L31: : | M31: : | N31: : | O31: : | P31: 888953 | Q31: 883109 | R31: 859640 | S31: 857976 | T31: 864609 | U31: 866754 | V31: 886705 | W31: 882046 | X31: 859479 | Y31: 809806 | Z31: 760532 | AA31: 740556 | AB31: 762625 | AC31: 755460 | AD31: 774114 | AE31: 826154 | AF31: 820228 | AG31: 814981 | AH31: 766860 | AI31: 780106 | AJ31: 789074 | AK31: 795249 | AL31: 784883 | AM31: 787819 | AN31: 783798 | AQ31: 0 | AR31: 0 | AS31: 0 | AT31: 0 | AU31: 0 | AV31: 0 | AW31: 0 | AX31: 0 | AY31: 0 | AZ31: 0 | BA31: 0 | BB31: 0 | BC31: 0 | BD31: 0 | BE31: 0 | BF31: 0 | BG31: 0 | BH31: 0 | BI31: 0 | BJ31: 0 | BK31: 0 | BL31: 0 | BM31: 0 | BN31: 0 | BO31: 0 | BP31: 0 | BQ31: 0 | BR31: 0 | BS31: 0 | BT31: 0 | BU31: 0 | BV31: 0 | BW31: 0 | BX31: 0 | BY31: 0
C32: 26 | D32: Y26 | E32: Y26,T,FR | F32: : | G32: : | H32: : | I32: : | J32: : | K32: : | L32: : | M32: : | N32: : | O32: : | P32: 903414 | Q32: 890125 | R32: 885723 | S32: 860248 | T32: 857027 | U32: 863409 | V32: 865326 | W32: 886225 | X32: 882917 | Y32: 858943 | Z32: 809805 | AA32: 762190 | AB32: 742703 | AC32: 764633 | AD32: 757338 | AE32: 776902 | AF32: 827385 | AG32: 819082 | AH32: 814170 | AI32: 766552 | AJ32: 781380 | AK32: 789615 | AL32: 794300 | AM32: 785198 | AN32: 791253 | AQ32: 0 | AR32: 0 | AS32: 0 | AT32: 0 | AU32: 0 | AV32: 0 | AW32: 0 | AX32: 0 | AY32: 0 | AZ32: 0 | BA32: 0 | BB32: 0 | BC32: 0 | BD32: 0 | BE32: 0 | BF32: 0 | BG32: 0 | BH32: 0 | BI32: 0 | BJ32: 0 | BK32: 0 | BL32: 0 | BM32: 0 | BN32: 0 | BO32: 0 | BP32: 0 | BQ32: 0 | BR32: 0 | BS32: 0 | BT32: 0 | BU32: 0 | BV32: 0 | BW32: 0 | BX32: 0 | BY32: 0
C33: 27 | D33: Y27 | E33: Y27,T,FR | F33: : | G33: : | H33: : | I33: : | J33: : | K33: : | L33: : | M33: : | N33: : | O33: : | P33: 898206 | Q33: 906483 | R33: 892917 | S33: 887502 | T33: 860198 | U33: 856397 | V33: 862585 | W33: 864585 | X33: 886687 | Y33: 883622 | Z33: 860442 | AA33: 811737 | AB33: 765177 | AC33: 746066 | AD33: 767763 | AE33: 761179 | AF33: 780025 | AG33: 828375 | AH33: 820937 | AI33: 815145 | AJ33: 767745 | AK33: 783918 | AL33: 789964 | AM33: 795761 | AN33: 789709 | AQ33: 0 | AR33: 0 | AS33: 0 | AT33: 0 | AU33: 0 | AV33: 0 | AW33: 0 | AX33: 0 | AY33: 0 | AZ33: 0 | BA33: 0 | BB33: 0 | BC33: 0 | BD33: 0 | BE33: 0 | BF33: 0 | BG33: 0 | BH33: 0 | BI33: 0 | BJ33: 0 | BK33: 0 | BL33: 0 | BM33: 0 | BN33: 0 | BO33: 0 | BP33: 0 | BQ33: 0 | BR33: 0 | BS33: 0 | BT33: 0 | BU33: 0 | BV33: 0 | BW33: 0 | BX33: 0 | BY33: 0
C34: 28 | D34: Y28 | E34: Y28,T,FR | F34: : | G34: : | H34: : | I34: : | J34: : | K34: : | L34: : | M34: : | N34: : | O34: : | P34: 873693 | Q34: 899925 | R34: 909034 | S34: 893574 | T34: 887628 | U34: 859776 | V34: 855585 | W34: 862441 | X34: 864861 | Y34: 887596 | Z34: 886355 | AA34: 863956 | AB34: 815346 | AC34: 769598 | AD34: 750558 | AE34: 772349 | AF34: 764629 | AG34: 783481 | AH34: 831437 | AI34: 823106 | AJ34: 818756 | AK34: 771401 | AL34: 786254 | AM34: 793270 | AN34: 802251 | AQ34: 0 | AR34: 0 | AS34: 0 | AT34: 0 | AU34: 0 | AV34: 0 | AW34: 0 | AX34: 0 | AY34: 0 | AZ34: 0 | BA34: 0 | BB34: 0 | BC34: 0 | BD34: 0 | BE34: 0 | BF34: 0 | BG34: 0 | BH34: 0 | BI34: 0 | BJ34: 0 | BK34: 0 | BL34: 0 | BM34: 0 | BN34: 0 | BO34: 0 | BP34: 0 | BQ34: 0 | BR34: 0 | BS34: 0 | BT34: 0 | BU34: 0 | BV34: 0 | BW34: 0 | BX34: 0 | BY34: 0
C35: 29 | D35: Y29 | E35: Y29,T,FR | F35: : | G35: : | H35: : | I35: : | J35: : | K35: : | L35: : | M35: : | N35: : | O35: : | P35: 886707 | Q35: 877968 | R35: 904702 | S35: 912640 | T35: 895217 | U35: 889266 | V35: 860725 | W35: 856496 | X35: 863728 | Y35: 868640 | Z35: 890507 | AA35: 891133 | AB35: 869119 | AC35: 820569 | AD35: 775441 | AE35: 756442 | AF35: 778047 | AG35: 768775 | AH35: 787577 | AI35: 835056 | AJ35: 827387 | AK35: 823628 | AL35: 776401 | AM35: 791068 | AN35: 801418 | AQ35: 0 | AR35: 0 | AS35: 0 | AT35: 0 | AU35: 0 | AV35: 0 | AW35: 0 | AX35: 0 | AY35: 0 | AZ35: 0 | BA35: 0 | BB35: 0 | BC35: 0 | BD35: 0 | BE35: 0 | BF35: 0 | BG35: 0 | BH35: 0 | BI35: 0 | BJ35: 0 | BK35: 0 | BL35: 0 | BM35: 0 | BN35: 0 | BO35: 0 | BP35: 0 | BQ35: 0 | BR35: 0 | BS35: 0 | BT35: 0 | BU35: 0 | BV35: 0 | BW35: 0 | BX35: 0 | BY35: 0
C36: 30 | D36: Y30 | E36: Y30,T,FR | F36: =IF(ISERROR(VLOOKUP($E36,popEU,F$1,FALSE)),"",(VLOOKUP($E36,popEU,F$1,FALSE))) -> : | G36: : | H36: : | I36: : | J36: : | K36: : | L36: : | M36: : | N36: : | O36: : | P36: =IF(ISERROR(VLOOKUP($E36,popEU,P$1,FALSE)),"",(VLOOKUP($E36,popEU,P$1,FALSE))) -> 886362 | Q36: 888978 | R36: 880983 | S36: 906852 | T36: 914547 | U36: 896577 | V36: 891305 | W36: 862964 | X36: 859364 | Y36: 867499 | Z36: =IF(ISERROR(VLOOKUP($E36,popEU,Z$1,FALSE)),"",(VLOOKUP($E36,popEU,Z$1,FALSE))) -> 873535 | AA36: 894690 | AB36: 896657 | AC36: 875282 | AD36: 826059 | AE36: 781048 | AF36: 761857 | AG36: 783056 | AH36: 772513 | AI36: 791824 | AJ36: 840616 | AK36: 832260 | AL36: 827911 | AM36: 781435 | AN36: 799333 | AQ36: 0 | AR36: 0 | AS36: 0 | AT36: 0 | AU36: 0 | AV36: 0 | AW36: 0 | AX36: 0 | AY36: 0 | AZ36: 0 | BA36: 0 | BB36: 0 | BC36: 0 | BD36: 0 | BE36: 0 | BF36: 0 | BG36: 0 | BH36: 0 | BI36: 0 | BJ36: 0 | BK36: 0 | BL36: 0 | BM36: 0 | BN36: 0 | BO36: 0 | BP36: 0 | BQ36: 0 | BR36: 0 | BS36: 0 | BT36: 0 | BU36: 0 | BV36: 0 | BW36: 0 | BX36: 0 | BY36: 0
C37: 31 | D37: Y31 | E37: Y31,T,FR | F37: : | G37: : | H37: : | I37: : | J37: : | K37: : | L37: : | M37: : | N37: : | O37: : | P37: 890041 | Q37: 889016 | R37: 892173 | S37: 883207 | T37: 908429 | U37: 916312 | V37: 897423 | W37: 893108 | X37: 864261 | Y37: 864320 | Z37: 871806 | AA37: 879280 | AB37: 899268 | AC37: 902688 | AD37: 881226 | AE37: 830692 | AF37: 788174 | AG37: 766760 | AH37: 786962 | AI37: 776852 | AJ37: 797084 | AK37: 845903 | AL37: 837747 | AM37: 833322 | AN37: 790122 | AQ37: 0 | AR37: 0 | AS37: 0 | AT37: 0 | AU37: 0 | AV37: 0 | AW37: 0 | AX37: 0 | AY37: 0 | AZ37: 0 | BA37: 0 | BB37: 0 | BC37: 0 | BD37: 0 | BE37: 0 | BF37: 0 | BG37: 0 | BH37: 0 | BI37: 0 | BJ37: 0 | BK37: 0 | BL37: 0 | BM37: 0 | BN37: 0 | BO37: 0 | BP37: 0 | BQ37: 0 | BR37: 0 | BS37: 0 | BT37: 0 | BU37: 0 | BV37: 0 | BW37: 0 | BX37: 0 | BY37: 0
C38: 32 | D38: Y32 | E38: Y32,T,FR | F38: : | G38: : | H38: : | I38: : | J38: : | K38: : | L38: : | M38: : | N38: : | O38: : | P38: 873073 | Q38: 891721 | R38: 890730 | S38: 893065 | T38: 883378 | U38: 908585 | V38: 916998 | W38: 897719 | X38: 894292 | Y38: 868322 | Z38: 869063 | AA38: 876101 | AB38: 884617 | AC38: 903698 | AD38: 907819 | AE38: 885386 | AF38: 837562 | AG38: 793125 | AH38: 769891 | AI38: 790765 | AJ38: 782759 | AK38: 802056 | AL38: 851473 | AM38: 843260 | AN38: 842411 | AQ38: 0 | AR38: 0 | AS38: 0 | AT38: 0 | AU38: 0 | AV38: 0 | AW38: 0 | AX38: 0 | AY38: 0 | AZ38: 0 | BA38: 0 | BB38: 0 | BC38: 0 | BD38: 0 | BE38: 0 | BF38: 0 | BG38: 0 | BH38: 0 | BI38: 0 | BJ38: 0 | BK38: 0 | BL38: 0 | BM38: 0 | BN38: 0 | BO38: 0 | BP38: 0 | BQ38: 0 | BR38: 0 | BS38: 0 | BT38: 0 | BU38: 0 | BV38: 0 | BW38: 0 | BX38: 0 | BY38: 0
C39: 33 | D39: Y33 | E39: Y33,T,FR | F39: : | G39: : | H39: : | I39: : | J39: : | K39: : | L39: : | M39: : | N39: : | O39: : | P39: 877998 | Q39: 874269 | R39: 893617 | S39: 891259 | T39: 893321 | U39: 883100 | V39: 908605 | W39: 917736 | X39: 898099 | Y39: 897972 | Z39: 872336 | AA39: 873517 | AB39: 879726 | AC39: 889316 | AD39: 907267 | AE39: 911370 | AF39: 890066 | AG39: 842650 | AH39: 797178 | AI39: 773105 | AJ39: 794970 | AK39: 788751 | AL39: 807267 | AM39: 856650 | AN39: 851735 | AQ39: 0 | AR39: 0 | AS39: 0 | AT39: 0 | AU39: 0 | AV39: 0 | AW39: 0 | AX39: 0 | AY39: 0 | AZ39: 0 | BA39: 0 | BB39: 0 | BC39: 0 | BD39: 0 | BE39: 0 | BF39: 0 | BG39: 0 | BH39: 0 | BI39: 0 | BJ39: 0 | BK39: 0 | BL39: 0 | BM39: 0 | BN39: 0 | BO39: 0 | BP39: 0 | BQ39: 0 | BR39: 0 | BS39: 0 | BT39: 0 | BU39: 0 | BV39: 0 | BW39: 0 | BX39: 0 | BY39: 0
C40: 34 | D40: Y34 | E40: Y34,T,FR | F40: : | G40: : | H40: : | I40: : | J40: : | K40: : | L40: : | M40: : | N40: : | O40: : | P40: 874984 | Q40: 879292 | R40: 875446 | S40: 894407 | T40: 890732 | U40: 892831 | V40: 882362 | W40: 908392 | X40: 917917 | Y40: 900563 | Z40: 901421 | AA40: 876186 | AB40: 877534 | AC40: 882974 | AD40: 893117 | AE40: 909275 | AF40: 916527 | AG40: 893646 | AH40: 846168 | AI40: 801275 | AJ40: 778108 | AK40: 799604 | AL40: 794081 | AM40: 812284 | AN40: 864814 | AQ40: 0 | AR40: 0 | AS40: 0 | AT40: 0 | AU40: 0 | AV40: 0 | AW40: 0 | AX40: 0 | AY40: 0 | AZ40: 0 | BA40: 0 | BB40: 0 | BC40: 0 | BD40: 0 | BE40: 0 | BF40: 0 | BG40: 0 | BH40: 0 | BI40: 0 | BJ40: 0 | BK40: 0 | BL40: 0 | BM40: 0 | BN40: 0 | BO40: 0 | BP40: 0 | BQ40: 0 | BR40: 0 | BS40: 0 | BT40: 0 | BU40: 0 | BV40: 0 | BW40: 0 | BX40: 0 | BY40: 0
C41: 35 | D41: Y35 | E41: Y35,T,FR | F41: : | G41: : | H41: : | I41: : | J41: : | K41: : | L41: : | M41: : | N41: : | O41: : | P41: 874482 | Q41: 875809 | R41: 880408 | S41: 875591 | T41: 894342 | U41: 889613 | V41: 892302 | W41: 881909 | X41: 907988 | Y41: 919728 | Z41: 903256 | AA41: 904467 | AB41: 879606 | AC41: 881093 | AD41: 885463 | AE41: 895456 | AF41: 915748 | AG41: 919626 | AH41: 896538 | AI41: 850417 | AJ41: 803748 | AK41: 781686 | AL41: 803135 | AM41: 797354 | AN41: 818854 | AQ41: 0 | AR41: 0 | AS41: 0 | AT41: 0 | AU41: 0 | AV41: 0 | AW41: 0 | AX41: 0 | AY41: 0 | AZ41: 0 | BA41: 0 | BB41: 0 | BC41: 0 | BD41: 0 | BE41: 0 | BF41: 0 | BG41: 0 | BH41: 0 | BI41: 0 | BJ41: 0 | BK41: 0 | BL41: 0 | BM41: 0 | BN41: 0 | BO41: 0 | BP41: 0 | BQ41: 0 | BR41: 0 | BS41: 0 | BT41: 0 | BU41: 0 | BV41: 0 | BW41: 0 | BX41: 0 | BY41: 0
C42: 36 | D42: Y36 | E42: Y36,T,FR | F42: : | G42: : | H42: : | I42: : | J42: : | K42: : | L42: : | M42: : | N42: : | O42: : | P42: 876544 | Q42: 875036 | R42: 877084 | S42: 881060 | T42: 875422 | U42: 894183 | V42: 888548 | W42: 892136 | X42: 881363 | Y42: 910192 | Z42: 921436 | AA42: 905779 | AB42: 907354 | AC42: 882837 | AD42: 884047 | AE42: 886580 | AF42: 899276 | AG42: 918846 | AH42: 923923 | AI42: 899297 | AJ42: 853148 | AK42: 806585 | AL42: 785641 | AM42: 806367 | AN42: 803844 | AQ42: 0 | AR42: 0 | AS42: 0 | AT42: 0 | AU42: 0 | AV42: 0 | AW42: 0 | AX42: 0 | AY42: 0 | AZ42: 0 | BA42: 0 | BB42: 0 | BC42: 0 | BD42: 0 | BE42: 0 | BF42: 0 | BG42: 0 | BH42: 0 | BI42: 0 | BJ42: 0 | BK42: 0 | BL42: 0 | BM42: 0 | BN42: 0 | BO42: 0 | BP42: 0 | BQ42: 0 | BR42: 0 | BS42: 0 | BT42: 0 | BU42: 0 | BV42: 0 | BW42: 0 | BX42: 0 | BY42: 0
C43: 37 | D43: Y37 | E43: Y37,T,FR | F43: : | G43: : | H43: : | I43: : | J43: : | K43: : | L43: : | M43: : | N43: : | O43: : | P43: 864764 | Q43: 876744 | R43: 874537 | S43: 876207 | T43: 879929 | U43: 873573 | V43: 892391 | W43: 886035 | X43: 890211 | Y43: 883127 | Z43: 912355 | AA43: 923022 | AB43: 908030 | AC43: 909969 | AD43: 885446 | AE43: 885456 | AF43: 892146 | AG43: 904733 | AH43: 923588 | AI43: 927583 | AJ43: 903653 | AK43: 857609 | AL43: 811408 | AM43: 790311 | AN43: 814070 | AQ43: 0 | AR43: 0 | AS43: 0 | AT43: 0 | AU43: 0 | AV43: 0 | AW43: 0 | AX43: 0 | AY43: 0 | AZ43: 0 | BA43: 0 | BB43: 0 | BC43: 0 | BD43: 0 | BE43: 0 | BF43: 0 | BG43: 0 | BH43: 0 | BI43: 0 | BJ43: 0 | BK43: 0 | BL43: 0 | BM43: 0 | BN43: 0 | BO43: 0 | BP43: 0 | BQ43: 0 | BR43: 0 | BS43: 0 | BT43: 0 | BU43: 0 | BV43: 0 | BW43: 0 | BX43: 0 | BY43: 0
C44: 38 | D44: Y38 | E44: Y38,T,FR | F44: : | G44: : | H44: : | I44: : | J44: : | K44: : | L44: : | M44: : | N44: : | O44: : | P44: 882894 | Q44: 864499 | R44: 876891 | S44: 873732 | T44: 875159 | U44: 878924 | V44: 872128 | W44: 891282 | X44: 884073 | Y44: 891416 | Z44: 884983 | AA44: 914387 | AB44: 924595 | AC44: 910362 | AD44: 912268 | AE44: 887056 | AF44: 888342 | AG44: 893874 | AH44: 907032 | AI44: 925875 | AJ44: 930450 | AK44: 907365 | AL44: 859834 | AM44: 814539 | AN44: 796371 | AQ44: 0 | AR44: 0 | AS44: 0 | AT44: 0 | AU44: 0 | AV44: 0 | AW44: 0 | AX44: 0 | AY44: 0 | AZ44: 0 | BA44: 0 | BB44: 0 | BC44: 0 | BD44: 0 | BE44: 0 | BF44: 0 | BG44: 0 | BH44: 0 | BI44: 0 | BJ44: 0 | BK44: 0 | BL44: 0 | BM44: 0 | BN44: 0 | BO44: 0 | BP44: 0 | BQ44: 0 | BR44: 0 | BS44: 0 | BT44: 0 | BU44: 0 | BV44: 0 | BW44: 0 | BX44: 0 | BY44: 0
C45: 39 | D45: Y39 | E45: Y39,T,FR | F45: : | G45: : | H45: : | I45: : | J45: : | K45: : | L45: : | M45: : | N45: : | O45: : | P45: 869849 | Q45: 883216 | R45: 865164 | S45: 877341 | T45: 873215 | U45: 874420 | V45: 878210 | W45: 870801 | X45: 889886 | Y45: 885875 | Z45: 892724 | AA45: 886710 | AB45: 916435 | AC45: 926028 | AD45: 912388 | AE45: 913528 | AF45: 888585 | AG45: 891185 | AH45: 895412 | AI45: 908987 | AJ45: 927576 | AK45: 932179 | AL45: 909724 | AM45: 861982 | AN45: 819701 | AQ45: 0 | AR45: 0 | AS45: 0 | AT45: 0 | AU45: 0 | AV45: 0 | AW45: 0 | AX45: 0 | AY45: 0 | AZ45: 0 | BA45: 0 | BB45: 0 | BC45: 0 | BD45: 0 | BE45: 0 | BF45: 0 | BG45: 0 | BH45: 0 | BI45: 0 | BJ45: 0 | BK45: 0 | BL45: 0 | BM45: 0 | BN45: 0 | BO45: 0 | BP45: 0 | BQ45: 0 | BR45: 0 | BS45: 0 | BT45: 0 | BU45: 0 | BV45: 0 | BW45: 0 | BX45: 0 | BY45: 0
C46: 40 | D46: Y40 | E46: Y40,T,FR | F46: =IF(ISERROR(VLOOKUP($E46,popEU,F$1,FALSE)),"",(VLOOKUP($E46,popEU,F$1,FALSE))) -> : | G46: : | H46: : | I46: : | J46: : | K46: : | L46: : | M46: : | N46: : | O46: : | P46: =IF(ISERROR(VLOOKUP($E46,popEU,P$1,FALSE)),"",(VLOOKUP($E46,popEU,P$1,FALSE))) -> 907575 | Q46: 868829 | R46: 881771 | S46: 863848 | T46: 876064 | U46: 871023 | V46: 872404 | W46: 876440 | X46: 868510 | Y46: 890382 | Z46: =IF(ISERROR(VLOOKUP($E46,popEU,Z$1,FALSE)),"",(VLOOKUP($E46,popEU,Z$1,FALSE))) -> 887555 | AA46: 893744 | AB46: 888187 | AC46: 918117 | AD46: 927003 | AE46: 913249 | AF46: 914823 | AG46: 890714 | AH46: 892762 | AI46: 896721 | AJ46: 910449 | AK46: 926641 | AL46: 934090 | AM46: 910641 | AN46: 865794 | AQ46: 0 | AR46: 0 | AS46: 0 | AT46: 0 | AU46: 0 | AV46: 0 | AW46: 0 | AX46: 0 | AY46: 0 | AZ46: 0 | BA46: 0 | BB46: 0 | BC46: 0 | BD46: 0 | BE46: 0 | BF46: 0 | BG46: 0 | BH46: 0 | BI46: 0 | BJ46: 0 | BK46: 0 | BL46: 0 | BM46: 0 | BN46: 0 | BO46: 0 | BP46: 0 | BQ46: 0 | BR46: 0 | BS46: 0 | BT46: 0 | BU46: 0 | BV46: 0 | BW46: 0 | BX46: 0 | BY46: 0
C47: 41 | D47: Y41 | E47: Y41,T,FR | F47: : | G47: : | H47: : | I47: : | J47: : | K47: : | L47: : | M47: : | N47: : | O47: : | P47: 898295 | Q47: 905688 | R47: 867545 | S47: 879806 | T47: 862280 | U47: 874628 | V47: 868805 | W47: 870447 | X47: 874423 | Y47: 869153 | Z47: 890630 | AA47: 888856 | AB47: 894467 | AC47: 889370 | AD47: 919319 | AE47: 926714 | AF47: 916516 | AG47: 916208 | AH47: 891048 | AI47: 894063 | AJ47: 898219 | AK47: 912547 | AL47: 928826 | AM47: 936104 | AN47: 915434 | AQ47: 0 | AR47: 0 | AS47: 0 | AT47: 0 | AU47: 0 | AV47: 0 | AW47: 0 | AX47: 0 | AY47: 0 | AZ47: 0 | BA47: 0 | BB47: 0 | BC47: 0 | BD47: 0 | BE47: 0 | BF47: 0 | BG47: 0 | BH47: 0 | BI47: 0 | BJ47: 0 | BK47: 0 | BL47: 0 | BM47: 0 | BN47: 0 | BO47: 0 | BP47: 0 | BQ47: 0 | BR47: 0 | BS47: 0 | BT47: 0 | BU47: 0 | BV47: 0 | BW47: 0 | BX47: 0 | BY47: 0
C48: 42 | D48: Y42 | E48: Y42,T,FR | F48: : | G48: : | H48: : | I48: : | J48: : | K48: : | L48: : | M48: : | N48: : | O48: : | P48: 899315 | Q48: 896279 | R48: 903578 | S48: 865819 | T48: 877515 | U48: 860246 | V48: 872771 | W48: 866436 | X48: 868184 | Y48: 874507 | Z48: 869679 | AA48: 890602 | AB48: 890155 | AC48: 895101 | AD48: 890306 | AE48: 919831 | AF48: 928187 | AG48: 917581 | AH48: 913500 | AI48: 888610 | AJ48: 893322 | AK48: 897596 | AL48: 911378 | AM48: 928097 | AN48: 938013 | AQ48: 0 | AR48: 0 | AS48: 0 | AT48: 0 | AU48: 0 | AV48: 0 | AW48: 0 | AX48: 0 | AY48: 0 | AZ48: 0 | BA48: 0 | BB48: 0 | BC48: 0 | BD48: 0 | BE48: 0 | BF48: 0 | BG48: 0 | BH48: 0 | BI48: 0 | BJ48: 0 | BK48: 0 | BL48: 0 | BM48: 0 | BN48: 0 | BO48: 0 | BP48: 0 | BQ48: 0 | BR48: 0 | BS48: 0 | BT48: 0 | BU48: 0 | BV48: 0 | BW48: 0 | BX48: 0 | BY48: 0
C49: 43 | D49: Y43 | E49: Y43,T,FR | F49: : | G49: : | H49: : | I49: : | J49: : | K49: : | L49: : | M49: : | N49: : | O49: : | P49: 886030 | Q49: 896825 | R49: 893951 | S49: 900780 | T49: 863682 | U49: 874639 | V49: 857812 | W49: 870655 | X49: 863585 | Y49: 868150 | Z49: 874173 | AA49: 869801 | AB49: 890105 | AC49: 890914 | AD49: 895152 | AE49: 890299 | AF49: 920016 | AG49: 928241 | AH49: 918007 | AI49: 913120 | AJ49: 888722 | AK49: 893529 | AL49: 898532 | AM49: 911857 | AN49: 930974 | AQ49: 0 | AR49: 0 | AS49: 0 | AT49: 0 | AU49: 0 | AV49: 0 | AW49: 0 | AX49: 0 | AY49: 0 | AZ49: 0 | BA49: 0 | BB49: 0 | BC49: 0 | BD49: 0 | BE49: 0 | BF49: 0 | BG49: 0 | BH49: 0 | BI49: 0 | BJ49: 0 | BK49: 0 | BL49: 0 | BM49: 0 | BN49: 0 | BO49: 0 | BP49: 0 | BQ49: 0 | BR49: 0 | BS49: 0 | BT49: 0 | BU49: 0 | BV49: 0 | BW49: 0 | BX49: 0 | BY49: 0
C50: 44 | D50: Y44 | E50: Y44,T,FR | F50: : | G50: : | H50: : | I50: : | J50: : | K50: : | L50: : | M50: : | N50: : | O50: : | P50: 845142 | Q50: 884428 | R50: 894668 | S50: 891921 | T50: 898256 | U50: 861610 | V50: 872035 | W50: 855592 | X50: 868519 | Y50: 863323 | Z50: 867947 | AA50: 873638 | AB50: 869783 | AC50: 889506 | AD50: 891363 | AE50: 894687 | AF50: 890392 | AG50: 918514 | AH50: 928864 | AI50: 916396 | AJ50: 911864 | AK50: 888914 | AL50: 894170 | AM50: 898603 | AN50: 914030 | AQ50: 0 | AR50: 0 | AS50: 0 | AT50: 0 | AU50: 0 | AV50: 0 | AW50: 0 | AX50: 0 | AY50: 0 | AZ50: 0 | BA50: 0 | BB50: 0 | BC50: 0 | BD50: 0 | BE50: 0 | BF50: 0 | BG50: 0 | BH50: 0 | BI50: 0 | BJ50: 0 | BK50: 0 | BL50: 0 | BM50: 0 | BN50: 0 | BO50: 0 | BP50: 0 | BQ50: 0 | BR50: 0 | BS50: 0 | BT50: 0 | BU50: 0 | BV50: 0 | BW50: 0 | BX50: 0 | BY50: 0
C51: 45 | D51: Y45 | E51: Y45,T,FR | F51: : | G51: : | H51: : | I51: : | J51: : | K51: : | L51: : | M51: : | N51: : | O51: : | P51: 645968 | Q51: 842006 | R51: 881141 | S51: 891232 | T51: 888601 | U51: 894596 | V51: 858920 | W51: 868957 | X51: 853022 | Y51: 867680 | Z51: 862825 | AA51: 867319 | AB51: 872719 | AC51: 869537 | AD51: 888629 | AE51: 891127 | AF51: 895038 | AG51: 889989 | AH51: 918518 | AI51: 928061 | AJ51: 915635 | AK51: 911382 | AL51: 887521 | AM51: 893497 | AN51: 899787 | AQ51: 0 | AR51: 0 | AS51: 0 | AT51: 0 | AU51: 0 | AV51: 0 | AW51: 0 | AX51: 0 | AY51: 0 | AZ51: 0 | BA51: 0 | BB51: 0 | BC51: 0 | BD51: 0 | BE51: 0 | BF51: 0 | BG51: 0 | BH51: 0 | BI51: 0 | BJ51: 0 | BK51: 0 | BL51: 0 | BM51: 0 | BN51: 0 | BO51: 0 | BP51: 0 | BQ51: 0 | BR51: 0 | BS51: 0 | BT51: 0 | BU51: 0 | BV51: 0 | BW51: 0 | BX51: 0 | BY51: 0
C52: 46 | D52: Y46 | E52: Y46,T,FR | F52: : | G52: : | H52: : | I52: : | J52: : | K52: : | L52: : | M52: : | N52: : | O52: : | P52: 636636 | Q52: 643423 | R52: 839139 | S52: 877940 | T52: 887749 | U52: 885278 | V52: 890817 | W52: 856158 | X52: 865714 | Y52: 852452 | Z52: 866681 | AA52: 861999 | AB52: 866603 | AC52: 871538 | AD52: 869027 | AE52: 887353 | AF52: 891011 | AG52: 892931 | AH52: 889826 | AI52: 916722 | AJ52: 926799 | AK52: 914118 | AL52: 909753 | AM52: 886208 | AN52: 893947 | AQ52: 0 | AR52: 0 | AS52: 0 | AT52: 0 | AU52: 0 | AV52: 0 | AW52: 0 | AX52: 0 | AY52: 0 | AZ52: 0 | BA52: 0 | BB52: 0 | BC52: 0 | BD52: 0 | BE52: 0 | BF52: 0 | BG52: 0 | BH52: 0 | BI52: 0 | BJ52: 0 | BK52: 0 | BL52: 0 | BM52: 0 | BN52: 0 | BO52: 0 | BP52: 0 | BQ52: 0 | BR52: 0 | BS52: 0 | BT52: 0 | BU52: 0 | BV52: 0 | BW52: 0 | BX52: 0 | BY52: 0
C53: 47 | D53: Y47 | E53: Y47,T,FR | F53: : | G53: : | H53: : | I53: : | J53: : | K53: : | L53: : | M53: : | N53: : | O53: : | P53: 624027 | Q53: 635653 | R53: 641639 | S53: 836907 | T53: 875286 | U53: 884682 | V53: 882454 | W53: 887400 | X53: 853497 | Y53: 865696 | Z53: 851611 | AA53: 865292 | AB53: 860882 | AC53: 865608 | AD53: 870141 | AE53: 867948 | AF53: 886295 | AG53: 890291 | AH53: 891424 | AI53: 888280 | AJ53: 915220 | AK53: 925057 | AL53: 912450 | AM53: 908277 | AN53: 886454 | AQ53: 0 | AR53: 0 | AS53: 0 | AT53: 0 | AU53: 0 | AV53: 0 | AW53: 0 | AX53: 0 | AY53: 0 | AZ53: 0 | BA53: 0 | BB53: 0 | BC53: 0 | BD53: 0 | BE53: 0 | BF53: 0 | BG53: 0 | BH53: 0 | BI53: 0 | BJ53: 0 | BK53: 0 | BL53: 0 | BM53: 0 | BN53: 0 | BO53: 0 | BP53: 0 | BQ53: 0 | BR53: 0 | BS53: 0 | BT53: 0 | BU53: 0 | BV53: 0 | BW53: 0 | BX53: 0 | BY53: 0
C54: 48 | D54: Y48 | E54: Y48,T,FR | F54: : | G54: : | H54: : | I54: : | J54: : | K54: : | L54: : | M54: : | N54: : | O54: : | P54: 583988 | Q54: 621532 | R54: 633357 | S54: 638670 | T54: 833499 | U54: 871669 | V54: 881002 | W54: 879151 | X54: 883773 | Y54: 852309 | Z54: 865432 | AA54: 850450 | AB54: 863859 | AC54: 859594 | AD54: 864323 | AE54: 868103 | AF54: 868100 | AG54: 885117 | AH54: 886570 | AI54: 890168 | AJ54: 886555 | AK54: 915214 | AL54: 923858 | AM54: 911674 | AN54: 909122 | AQ54: 0 | AR54: 0 | AS54: 0 | AT54: 0 | AU54: 0 | AV54: 0 | AW54: 0 | AX54: 0 | AY54: 0 | AZ54: 0 | BA54: 0 | BB54: 0 | BC54: 0 | BD54: 0 | BE54: 0 | BF54: 0 | BG54: 0 | BH54: 0 | BI54: 0 | BJ54: 0 | BK54: 0 | BL54: 0 | BM54: 0 | BN54: 0 | BO54: 0 | BP54: 0 | BQ54: 0 | BR54: 0 | BS54: 0 | BT54: 0 | BU54: 0 | BV54: 0 | BW54: 0 | BX54: 0 | BY54: 0
C55: 49 | D55: Y49 | E55: Y49,T,FR | F55: : | G55: : | H55: : | I55: : | J55: : | K55: : | L55: : | M55: : | N55: : | O55: : | P55: 526705 | Q55: 582626 | R55: 620137 | S55: 632033 | T55: 636595 | U55: 830793 | V55: 868690 | W55: 877616 | X55: 876011 | Y55: 883118 | Z55: 850891 | AA55: 864951 | AB55: 849203 | AC55: 862045 | AD55: 858272 | AE55: 862692 | AF55: 867337 | AG55: 865623 | AH55: 882940 | AI55: 884258 | AJ55: 886602 | AK55: 885865 | AL55: 914643 | AM55: 922336 | AN55: 911768 | AQ55: 0 | AR55: 0 | AS55: 0 | AT55: 0 | AU55: 0 | AV55: 0 | AW55: 0 | AX55: 0 | AY55: 0 | AZ55: 0 | BA55: 0 | BB55: 0 | BC55: 0 | BD55: 0 | BE55: 0 | BF55: 0 | BG55: 0 | BH55: 0 | BI55: 0 | BJ55: 0 | BK55: 0 | BL55: 0 | BM55: 0 | BN55: 0 | BO55: 0 | BP55: 0 | BQ55: 0 | BR55: 0 | BS55: 0 | BT55: 0 | BU55: 0 | BV55: 0 | BW55: 0 | BX55: 0 | BY55: 0
C56: 50 | D56: Y50 | E56: Y50,T,FR | F56: =IF(ISERROR(VLOOKUP($E56,popEU,F$1,FALSE)),"",(VLOOKUP($E56,popEU,F$1,FALSE))) -> : | G56: : | H56: : | I56: : | J56: : | K56: : | L56: : | M56: : | N56: : | O56: : | P56: =IF(ISERROR(VLOOKUP($E56,popEU,P$1,FALSE)),"",(VLOOKUP($E56,popEU,P$1,FALSE))) -> 556320 | Q56: 524996 | R56: 580015 | S56: 617546 | T56: 629554 | U56: 633225 | V56: 826848 | W56: 864452 | X56: 873065 | Y56: 874875 | Z56: =IF(ISERROR(VLOOKUP($E56,popEU,Z$1,FALSE)),"",(VLOOKUP($E56,popEU,Z$1,FALSE))) -> 882242 | AA56: 849280 | AB56: 864321 | AC56: 847797 | AD56: 860191 | AE56: 856379 | AF56: 862137 | AG56: 865752 | AH56: 863125 | AI56: 880154 | AJ56: 883437 | AK56: 884704 | AL56: 883297 | AM56: 913010 | AN56: 922337 | AQ56: 0 | AR56: 0 | AS56: 0 | AT56: 0 | AU56: 0 | AV56: 0 | AW56: 0 | AX56: 0 | AY56: 0 | AZ56: 0 | BA56: 0 | BB56: 0 | BC56: 0 | BD56: 0 | BE56: 0 | BF56: 0 | BG56: 0 | BH56: 0 | BI56: 0 | BJ56: 0 | BK56: 0 | BL56: 0 | BM56: 0 | BN56: 0 | BO56: 0 | BP56: 0 | BQ56: 0 | BR56: 0 | BS56: 0 | BT56: 0 | BU56: 0 | BV56: 0 | BW56: 0 | BX56: 0 | BY56: 0
C57: 51 | D57: Y51 | E57: Y51,T,FR | F57: : | G57: : | H57: : | I57: : | J57: : | K57: : | L57: : | M57: : | N57: : | O57: : | P57: 591360 | Q57: 553573 | R57: 523000 | S57: 577358 | T57: 614825 | U57: 627135 | V57: 630115 | W57: 823227 | X57: 860525 | Y57: 872293 | Z57: 873441 | AA57: 881044 | AB57: 847246 | AC57: 863075 | AD57: 845933 | AE57: 857655 | AF57: 853163 | AG57: 859952 | AH57: 861870 | AI57: 861142 | AJ57: 877976 | AK57: 881382 | AL57: 883285 | AM57: 881591 | AN57: 912891 | AQ57: 0 | AR57: 0 | AS57: 0 | AT57: 0 | AU57: 0 | AV57: 0 | AW57: 0 | AX57: 0 | AY57: 0 | AZ57: 0 | BA57: 0 | BB57: 0 | BC57: 0 | BD57: 0 | BE57: 0 | BF57: 0 | BG57: 0 | BH57: 0 | BI57: 0 | BJ57: 0 | BK57: 0 | BL57: 0 | BM57: 0 | BN57: 0 | BO57: 0 | BP57: 0 | BQ57: 0 | BR57: 0 | BS57: 0 | BT57: 0 | BU57: 0 | BV57: 0 | BW57: 0 | BX57: 0 | BY57: 0
C58: 52 | D58: Y52 | E58: Y52,T,FR | F58: : | G58: : | H58: : | I58: : | J58: : | K58: : | L58: : | M58: : | N58: : | O58: : | P58: 587615 | Q58: 588924 | R58: 551266 | S58: 521343 | T58: 574843 | U58: 612284 | V58: 624768 | W58: 626934 | X58: 819315 | Y58: 859825 | Z58: 871351 | AA58: 871850 | AB58: 879703 | AC58: 845086 | AD58: 861950 | AE58: 844008 | AF58: 855834 | AG58: 851911 | AH58: 856441 | AI58: 859702 | AJ58: 858096 | AK58: 875768 | AL58: 879062 | AM58: 881078 | AN58: 880988 | AQ58: 0 | AR58: 0 | AS58: 0 | AT58: 0 | AU58: 0 | AV58: 0 | AW58: 0 | AX58: 0 | AY58: 0 | AZ58: 0 | BA58: 0 | BB58: 0 | BC58: 0 | BD58: 0 | BE58: 0 | BF58: 0 | BG58: 0 | BH58: 0 | BI58: 0 | BJ58: 0 | BK58: 0 | BL58: 0 | BM58: 0 | BN58: 0 | BO58: 0 | BP58: 0 | BQ58: 0 | BR58: 0 | BS58: 0 | BT58: 0 | BU58: 0 | BV58: 0 | BW58: 0 | BX58: 0 | BY58: 0
C59: 53 | D59: Y53 | E59: Y53,T,FR | F59: : | G59: : | H59: : | I59: : | J59: : | K59: : | L59: : | M59: : | N59: : | O59: : | P59: 587261 | Q59: 584696 | R59: 586131 | S59: 548685 | T59: 519595 | U59: 572264 | V59: 609848 | W59: 622634 | X59: 624261 | Y59: 818337 | Z59: 858764 | AA59: 870146 | AB59: 869931 | AC59: 877951 | AD59: 842879 | AE59: 860352 | AF59: 841563 | AG59: 853055 | AH59: 850229 | AI59: 852676 | AJ59: 855871 | AK59: 854975 | AL59: 872815 | AM59: 876183 | AN59: 879290 | AQ59: 0 | AR59: 0 | AS59: 0 | AT59: 0 | AU59: 0 | AV59: 0 | AW59: 0 | AX59: 0 | AY59: 0 | AZ59: 0 | BA59: 0 | BB59: 0 | BC59: 0 | BD59: 0 | BE59: 0 | BF59: 0 | BG59: 0 | BH59: 0 | BI59: 0 | BJ59: 0 | BK59: 0 | BL59: 0 | BM59: 0 | BN59: 0 | BO59: 0 | BP59: 0 | BQ59: 0 | BR59: 0 | BS59: 0 | BT59: 0 | BU59: 0 | BV59: 0 | BW59: 0 | BX59: 0 | BY59: 0
C60: 54 | D60: Y54 | E60: Y54,T,FR | F60: : | G60: : | H60: : | I60: : | J60: : | K60: : | L60: : | M60: : | N60: : | O60: : | P60: 597018 | Q60: 584221 | R60: 581411 | S60: 582821 | T60: 545454 | U60: 517227 | V60: 568761 | W60: 606367 | X60: 619264 | Y60: 623309 | Z60: 817271 | AA60: 857628 | AB60: 868753 | AC60: 867872 | AD60: 876181 | AE60: 840459 | AF60: 856526 | AG60: 838072 | AH60: 850470 | AI60: 845861 | AJ60: 849070 | AK60: 853888 | AL60: 853505 | AM60: 870686 | AN60: 875387 | AQ60: 0 | AR60: 0 | AS60: 0 | AT60: 0 | AU60: 0 | AV60: 0 | AW60: 0 | AX60: 0 | AY60: 0 | AZ60: 0 | BA60: 0 | BB60: 0 | BC60: 0 | BD60: 0 | BE60: 0 | BF60: 0 | BG60: 0 | BH60: 0 | BI60: 0 | BJ60: 0 | BK60: 0 | BL60: 0 | BM60: 0 | BN60: 0 | BO60: 0 | BP60: 0 | BQ60: 0 | BR60: 0 | BS60: 0 | BT60: 0 | BU60: 0 | BV60: 0 | BW60: 0 | BX60: 0 | BY60: 0
C61: 55 | D61: Y55 | E61: Y55,T,FR | F61: : | G61: : | H61: : | I61: : | J61: : | K61: : | L61: : | M61: : | N61: : | O61: : | P61: 593000 | Q61: 592936 | R61: 580363 | S61: 577497 | T61: 578892 | U61: 541764 | V61: 514339 | W61: 564997 | X61: 602617 | Y61: 617401 | Z61: 621790 | AA61: 815564 | AB61: 855787 | AC61: 866798 | AD61: 865452 | AE61: 873841 | AF61: 837112 | AG61: 853296 | AH61: 834686 | AI61: 845688 | AJ61: 842162 | AK61: 846698 | AL61: 851178 | AM61: 850837 | AN61: 869145 | AQ61: 0 | AR61: 0 | AS61: 0 | AT61: 0 | AU61: 0 | AV61: 0 | AW61: 0 | AX61: 0 | AY61: 0 | AZ61: 0 | BA61: 0 | BB61: 0 | BC61: 0 | BD61: 0 | BE61: 0 | BF61: 0 | BG61: 0 | BH61: 0 | BI61: 0 | BJ61: 0 | BK61: 0 | BL61: 0 | BM61: 0 | BN61: 0 | BO61: 0 | BP61: 0 | BQ61: 0 | BR61: 0 | BS61: 0 | BT61: 0 | BU61: 0 | BV61: 0 | BW61: 0 | BX61: 0 | BY61: 0
C62: 56 | D62: Y56 | E62: Y56,T,FR | F62: : | G62: : | H62: : | I62: : | J62: : | K62: : | L62: : | M62: : | N62: : | O62: : | P62: 610713 | Q62: 589089 | R62: 589217 | S62: 576844 | T62: 574091 | U62: 575595 | V62: 538574 | W62: 512274 | X62: 562266 | Y62: 600857 | Z62: 615319 | AA62: 620325 | AB62: 813601 | AC62: 853590 | AD62: 864861 | AE62: 862756 | AF62: 871600 | AG62: 833829 | AH62: 850319 | AI62: 829785 | AJ62: 842960 | AK62: 838896 | AL62: 844226 | AM62: 848564 | AN62: 849484 | AQ62: 0 | AR62: 0 | AS62: 0 | AT62: 0 | AU62: 0 | AV62: 0 | AW62: 0 | AX62: 0 | AY62: 0 | AZ62: 0 | BA62: 0 | BB62: 0 | BC62: 0 | BD62: 0 | BE62: 0 | BF62: 0 | BG62: 0 | BH62: 0 | BI62: 0 | BJ62: 0 | BK62: 0 | BL62: 0 | BM62: 0 | BN62: 0 | BO62: 0 | BP62: 0 | BQ62: 0 | BR62: 0 | BS62: 0 | BT62: 0 | BU62: 0 | BV62: 0 | BW62: 0 | BX62: 0 | BY62: 0
C63: 57 | D63: Y57 | E63: Y57,T,FR | F63: : | G63: : | H63: : | I63: : | J63: : | K63: : | L63: : | M63: : | N63: : | O63: : | P63: 599916 | Q63: 606539 | R63: 584548 | S63: 584692 | T63: 572698 | U63: 569776 | V63: 571394 | W63: 534538 | X63: 509147 | Y63: 560958 | Z63: 598668 | AA63: 612821 | AB63: 618209 | AC63: 810998 | AD63: 851106 | AE63: 862129 | AF63: 859571 | AG63: 869389 | AH63: 830299 | AI63: 845866 | AJ63: 825614 | AK63: 839547 | AL63: 835273 | AM63: 840810 | AN63: 846275 | AQ63: 0 | AR63: 0 | AS63: 0 | AT63: 0 | AU63: 0 | AV63: 0 | AW63: 0 | AX63: 0 | AY63: 0 | AZ63: 0 | BA63: 0 | BB63: 0 | BC63: 0 | BD63: 0 | BE63: 0 | BF63: 0 | BG63: 0 | BH63: 0 | BI63: 0 | BJ63: 0 | BK63: 0 | BL63: 0 | BM63: 0 | BN63: 0 | BO63: 0 | BP63: 0 | BQ63: 0 | BR63: 0 | BS63: 0 | BT63: 0 | BU63: 0 | BV63: 0 | BW63: 0 | BX63: 0 | BY63: 0
C64: 58 | D64: Y58 | E64: Y58,T,FR | F64: : | G64: : | H64: : | I64: : | J64: : | K64: : | L64: : | M64: : | N64: : | O64: : | P64: 623179 | Q64: 595047 | R64: 602243 | S64: 580094 | T64: 580496 | U64: 568808 | V64: 565753 | W64: 567784 | X64: 531097 | Y64: 506971 | Z64: 559555 | AA64: 596460 | AB64: 610274 | AC64: 616100 | AD64: 808514 | AE64: 848168 | AF64: 858498 | AG64: 855916 | AH64: 865223 | AI64: 825719 | AJ64: 841374 | AK64: 821912 | AL64: 836576 | AM64: 831712 | AN64: 838343 | AQ64: 0 | AR64: 0 | AS64: 0 | AT64: 0 | AU64: 0 | AV64: 0 | AW64: 0 | AX64: 0 | AY64: 0 | AZ64: 0 | BA64: 0 | BB64: 0 | BC64: 0 | BD64: 0 | BE64: 0 | BF64: 0 | BG64: 0 | BH64: 0 | BI64: 0 | BJ64: 0 | BK64: 0 | BL64: 0 | BM64: 0 | BN64: 0 | BO64: 0 | BP64: 0 | BQ64: 0 | BR64: 0 | BS64: 0 | BT64: 0 | BU64: 0 | BV64: 0 | BW64: 0 | BX64: 0 | BY64: 0
C65: 59 | D65: Y59 | E65: Y59,T,FR | F65: : | G65: : | H65: : | I65: : | J65: : | K65: : | L65: : | M65: : | N65: : | O65: : | P65: 617106 | Q65: 618352 | R65: 590512 | S65: 598041 | T65: 575558 | U65: 576046 | V65: 564599 | W65: 561423 | X65: 563552 | Y65: 529231 | Z65: 504672 | AA65: 557775 | AB65: 593852 | AC65: 607328 | AD65: 613681 | AE65: 805415 | AF65: 843470 | AG65: 853909 | AH65: 850336 | AI65: 858713 | AJ65: 819998 | AK65: 835930 | AL65: 817477 | AM65: 831517 | AN65: 827914 | AQ65: 0 | AR65: 0 | AS65: 0 | AT65: 0 | AU65: 0 | AV65: 0 | AW65: 0 | AX65: 0 | AY65: 0 | AZ65: 0 | BA65: 0 | BB65: 0 | BC65: 0 | BD65: 0 | BE65: 0 | BF65: 0 | BG65: 0 | BH65: 0 | BI65: 0 | BJ65: 0 | BK65: 0 | BL65: 0 | BM65: 0 | BN65: 0 | BO65: 0 | BP65: 0 | BQ65: 0 | BR65: 0 | BS65: 0 | BT65: 0 | BU65: 0 | BV65: 0 | BW65: 0 | BX65: 0 | BY65: 0
C66: 60 | D66: Y60 | E66: Y60,T,FR | F66: =IF(ISERROR(VLOOKUP($E66,popEU,F$1,FALSE)),"",(VLOOKUP($E66,popEU,F$1,FALSE))) -> : | G66: : | H66: : | I66: : | J66: : | K66: : | L66: : | M66: : | N66: : | O66: : | P66: =IF(ISERROR(VLOOKUP($E66,popEU,P$1,FALSE)),"",(VLOOKUP($E66,popEU,P$1,FALSE))) -> 625808 | Q66: 610951 | R66: 611959 | S66: 584397 | T66: 592614 | U66: 569798 | V66: 570347 | W66: 559626 | X66: 556402 | Y66: 560725 | Z66: =IF(ISERROR(VLOOKUP($E66,popEU,Z$1,FALSE)),"",(VLOOKUP($E66,popEU,Z$1,FALSE))) -> 526856 | AA66: 501788 | AB66: 555524 | AC66: 590815 | AD66: 604003 | AE66: 610729 | AF66: 800067 | AG66: 838066 | AH66: 848647 | AI66: 842619 | AJ66: 852187 | AK66: 814537 | AL66: 831144 | AM66: 811968 | AN66: 827225 | AQ66: 0 | AR66: 0 | AS66: 0 | AT66: 0 | AU66: 0 | AV66: 0 | AW66: 0 | AX66: 0 | AY66: 0 | AZ66: 0 | BA66: 0 | BB66: 0 | BC66: 0 | BD66: 0 | BE66: 0 | BF66: 0 | BG66: 0 | BH66: 0 | BI66: 0 | BJ66: 0 | BK66: 0 | BL66: 0 | BM66: 0 | BN66: 0 | BO66: 0 | BP66: 0 | BQ66: 0 | BR66: 0 | BS66: 0 | BT66: 0 | BU66: 0 | BV66: 0 | BW66: 0 | BX66: 0 | BY66: 0
C67: 61 | D67: Y61 | E67: Y61,T,FR | F67: : | G67: : | H67: : | I67: : | J67: : | K67: : | L67: : | M67: : | N67: : | O67: : | P67: 593978 | Q67: 619772 | R67: 605686 | S67: 606360 | T67: 579195 | U67: 587641 | V67: 564524 | W67: 565431 | X67: 554949 | Y67: 553257 | Z67: 557595 | AA67: 524134 | AB67: 498761 | AC67: 553013 | AD67: 587676 | AE67: 600427 | AF67: 606734 | AG67: 795031 | AH67: 829480 | AI67: 841745 | AJ67: 835766 | AK67: 846757 | AL67: 809322 | AM67: 825495 | AN67: 807389 | AQ67: 0 | AR67: 0 | AS67: 0 | AT67: 0 | AU67: 0 | AV67: 0 | AW67: 0 | AX67: 0 | AY67: 0 | AZ67: 0 | BA67: 0 | BB67: 0 | BC67: 0 | BD67: 0 | BE67: 0 | BF67: 0 | BG67: 0 | BH67: 0 | BI67: 0 | BJ67: 0 | BK67: 0 | BL67: 0 | BM67: 0 | BN67: 0 | BO67: 0 | BP67: 0 | BQ67: 0 | BR67: 0 | BS67: 0 | BT67: 0 | BU67: 0 | BV67: 0 | BW67: 0 | BX67: 0 | BY67: 0
C68: 62 | D68: Y62 | E68: Y62,T,FR | F68: : | G68: : | H68: : | I68: : | J68: : | K68: : | L68: : | M68: : | N68: : | O68: : | P68: 591794 | Q68: 587404 | R68: 612655 | S68: 599195 | T68: 599945 | U68: 573063 | V68: 581833 | W68: 558605 | X68: 559878 | Y68: 551487 | Z68: 549901 | AA68: 554030 | AB68: 521124 | AC68: 495290 | AD68: 550214 | AE68: 584145 | AF68: 594701 | AG68: 602104 | AH68: 786761 | AI68: 821485 | AJ68: 833374 | AK68: 828802 | AL68: 839727 | AM68: 802112 | AN68: 819043 | AQ68: 0 | AR68: 0 | AS68: 0 | AT68: 0 | AU68: 0 | AV68: 0 | AW68: 0 | AX68: 0 | AY68: 0 | AZ68: 0 | BA68: 0 | BB68: 0 | BC68: 0 | BD68: 0 | BE68: 0 | BF68: 0 | BG68: 0 | BH68: 0 | BI68: 0 | BJ68: 0 | BK68: 0 | BL68: 0 | BM68: 0 | BN68: 0 | BO68: 0 | BP68: 0 | BQ68: 0 | BR68: 0 | BS68: 0 | BT68: 0 | BU68: 0 | BV68: 0 | BW68: 0 | BX68: 0 | BY68: 0
C69: 63 | D69: Y63 | E69: Y63,T,FR | F69: : | G69: : | H69: : | I69: : | J69: : | K69: : | L69: : | M69: : | N69: : | O69: : | P69: 575325 | Q69: 584366 | R69: 580459 | S69: 605033 | T69: 592352 | U69: 592688 | V69: 566230 | W69: 575702 | X69: 552355 | Y69: 556194 | Z69: 547326 | AA69: 546096 | AB69: 550218 | AC69: 517576 | AD69: 491681 | AE69: 546900 | AF69: 578605 | AG69: 590129 | AH69: 596232 | AI69: 779956 | AJ69: 813811 | AK69: 826454 | AL69: 822766 | AM69: 832927 | AN69: 796074 | AQ69: 0 | AR69: 0 | AS69: 0 | AT69: 0 | AU69: 0 | AV69: 0 | AW69: 0 | AX69: 0 | AY69: 0 | AZ69: 0 | BA69: 0 | BB69: 0 | BC69: 0 | BD69: 0 | BE69: 0 | BF69: 0 | BG69: 0 | BH69: 0 | BI69: 0 | BJ69: 0 | BK69: 0 | BL69: 0 | BM69: 0 | BN69: 0 | BO69: 0 | BP69: 0 | BQ69: 0 | BR69: 0 | BS69: 0 | BT69: 0 | BU69: 0 | BV69: 0 | BW69: 0 | BX69: 0 | BY69: 0
C70: 64 | D70: Y64 | E70: =CONCATENATE($D70,$A$7,$B$9,$A$7,$B$8) -> Y64,T,FR | F70: : | G70: : | H70: : | I70: : | J70: : | K70: : | L70: : | M70: : | N70: : | O70: : | P70: 574069 | Q70: 568626 | R70: 577298 | S70: 573460 | T70: 597436 | U70: 585351 | V70: 585444 | W70: 559289 | X70: 569145 | Y70: 548206 | Z70: 552035 | AA70: 542880 | AB70: 541768 | AC70: 545858 | AD70: 513832 | AE70: 487632 | AF70: 541766 | AG70: 574083 | AH70: 584930 | AI70: 590421 | AJ70: 773789 | AK70: 806850 | AL70: 818824 | AM70: 815683 | AN70: 826457 | AQ70: 0 | AR70: 0 | AS70: 0 | AT70: 0 | AU70: 0 | AV70: 0 | AW70: 0 | AX70: 0 | AY70: 0 | AZ70: 0 | BA70: 0 | BB70: 0 | BC70: 0 | BD70: 0 | BE70: 0 | BF70: 0 | BG70: 0 | BH70: 0 | BI70: 0 | BJ70: 0 | BK70: 0 | BL70: 0 | BM70: 0 | BN70: 0 | BO70: 0 | BP70: 0 | BQ70: 0 | BR70: 0 | BS70: 0 | BT70: 0 | BU70: 0 | BV70: 0 | BW70: 0 | BX70: 0 | BY70: 0
C71: 65 | D71: Y65 | E71: Y65,T,FR | F71: : | G71: : | H71: : | I71: : | J71: : | K71: : | L71: : | M71: : | N71: : | O71: : | P71: 566183 | Q71: 565842 | R71: 560559 | S71: 569035 | T71: 565615 | U71: 588597 | V71: 577328 | W71: 577346 | X71: 551634 | Y71: 563916 | Z71: 543882 | AA71: 547425 | AB71: 538136 | AC71: 537102 | AD71: 541294 | AE71: 509619 | AF71: 482480 | AG71: 535680 | AH71: 567691 | AI71: 577410 | AJ71: 584786 | AK71: 766610 | AL71: 800602 | AM71: 811693 | AN71: 809173 | AQ71: =IF(OR($C71<=$A$14,$C71>$B$14),0,F71) -> 0 | AR71: 0 | AS71: 0 | AT71: 0 | AU71: 0 | AV71: 0 | AW71: 0 | AX71: 0 | AY71: 0 | AZ71: 0 | BA71: 0 | BB71: 0 | BC71: 0 | BD71: 0 | BE71: 0 | BF71: 0 | BG71: 0 | BH71: 0 | BI71: 0 | BJ71: 0 | BK71: 0 | BL71: 0 | BM71: 0 | BN71: 0 | BO71: 0 | BP71: 0 | BQ71: 0 | BR71: 0 | BS71: 0 | BT71: 0 | BU71: 0 | BV71: 0 | BW71: 0 | BX71: 0 | BY71: 0
C72: 66 | D72: Y66 | E72: Y66,T,FR | F72: : | G72: : | H72: : | I72: : | J72: : | K72: : | L72: : | M72: : | N72: : | O72: : | P72: 545812 | Q72: 557873 | R72: 557311 | S72: 552452 | T72: 560521 | U72: 557186 | V72: 579409 | W72: 569340 | X72: 569205 | Y72: 546584 | Z72: 557949 | AA72: 538897 | AB72: 542457 | AC72: 532843 | AD72: 532303 | AE72: 536175 | AF72: 503049 | AG72: 477238 | AH72: 529785 | AI72: 560542 | AJ72: 570817 | AK72: 579363 | AL72: 759483 | AM72: 792775 | AN72: 804448 | AQ72: : | AR72: : | AS72: : | AT72: : | AU72: : | AV72: : | AW72: : | AX72: : | AY72: : | AZ72: : | BA72: 545812 | BB72: 557873 | BC72: 557311 | BD72: 552452 | BE72: 560521 | BF72: 557186 | BG72: 579409 | BH72: 569340 | BI72: 569205 | BJ72: 546584 | BK72: 557949 | BL72: 538897 | BM72: 542457 | BN72: 532843 | BO72: 532303 | BP72: 536175 | BQ72: 503049 | BR72: 477238 | BS72: 529785 | BT72: 560542 | BU72: 570817 | BV72: 579363 | BW72: 759483 | BX72: 792775 | BY72: 804448
C73: 67 | D73: Y67 | E73: Y67,T,FR | F73: : | G73: : | H73: : | I73: : | J73: : | K73: : | L73: : | M73: : | N73: : | O73: : | P73: 540213 | Q73: 537512 | R73: 549062 | S73: 548662 | T73: 543941 | U73: 551526 | V73: 548606 | W73: 569846 | X73: 560680 | Y73: 563307 | Z73: 540885 | AA73: 551701 | AB73: 533392 | AC73: 536972 | AD73: 527452 | AE73: 526913 | AF73: 529992 | AG73: 497789 | AH73: 471209 | AI73: 522185 | AJ73: 553962 | AK73: 565544 | AL73: 573517 | AM73: 751775 | AN73: 785348 | AQ73: : | AR73: : | AS73: : | AT73: : | AU73: : | AV73: : | AW73: : | AX73: : | AY73: : | AZ73: : | BA73: 540213 | BB73: 537512 | BC73: 549062 | BD73: 548662 | BE73: 543941 | BF73: 551526 | BG73: 548606 | BH73: 569846 | BI73: 560680 | BJ73: 563307 | BK73: 540885 | BL73: 551701 | BM73: 533392 | BN73: 536972 | BO73: 527452 | BP73: 526913 | BQ73: 529992 | BR73: 497789 | BS73: 471209 | BT73: 522185 | BU73: 553962 | BV73: 565544 | BW73: 573517 | BX73: 751775 | BY73: 785348
C74: 68 | D74: Y68 | E74: Y68,T,FR | F74: : | G74: : | H74: : | I74: : | J74: : | K74: : | L74: : | M74: : | N74: : | O74: : | P74: 533370 | Q74: 531090 | R74: 528812 | S74: 539615 | T74: 539776 | U74: 534939 | V74: 542250 | W74: 539925 | X74: 560523 | Y74: 553581 | Z74: 557072 | AA74: 534841 | AB74: 544905 | AC74: 527655 | AD74: 531555 | AE74: 521628 | AF74: 519584 | AG74: 524457 | AH74: 492465 | AI74: 465023 | AJ74: 515406 | AK74: 548812 | AL74: 559005 | AM74: 567229 | AN74: 744071 | AQ74: : | AR74: : | AS74: : | AT74: : | AU74: : | AV74: : | AW74: : | AX74: : | AY74: : | AZ74: : | BA74: 533370 | BB74: 531090 | BC74: 528812 | BD74: 539615 | BE74: 539776 | BF74: 534939 | BG74: 542250 | BH74: 539925 | BI74: 560523 | BJ74: 553581 | BK74: 557072 | BL74: 534841 | BM74: 544905 | BN74: 527655 | BO74: 531555 | BP74: 521628 | BQ74: 519584 | BR74: 524457 | BS74: 492465 | BT74: 465023 | BU74: 515406 | BV74: 548812 | BW74: 559005 | BX74: 567229 | BY74: 744071
C75: 69 | D75: Y69 | E75: Y69,T,FR | F75: : | G75: : | H75: : | I75: : | J75: : | K75: : | L75: : | M75: : | N75: : | O75: : | P75: 540806 | Q75: 523688 | R75: 521441 | S75: 519351 | T75: 529562 | U75: 529748 | V75: 524960 | W75: 531948 | X75: 530120 | Y75: 553131 | Z75: 545824 | AA75: 550131 | AB75: 528102 | AC75: 537375 | AD75: 521597 | AE75: 525150 | AF75: 513324 | AG75: 513310 | AH75: 516641 | AI75: 485958 | AJ75: 459134 | AK75: 507992 | AL75: 541920 | AM75: 551684 | AN75: 560439 | AQ75: : | AR75: : | AS75: : | AT75: : | AU75: : | AV75: : | AW75: : | AX75: : | AY75: : | AZ75: : | BA75: 540806 | BB75: 523688 | BC75: 521441 | BD75: 519351 | BE75: 529562 | BF75: 529748 | BG75: 524960 | BH75: 531948 | BI75: 530120 | BJ75: 553131 | BK75: 545824 | BL75: 550131 | BM75: 528102 | BN75: 537375 | BO75: 521597 | BP75: 525150 | BQ75: 513324 | BR75: 513310 | BS75: 516641 | BT75: 485958 | BU75: 459134 | BV75: 507992 | BW75: 541920 | BX75: 551684 | BY75: 560439
C76: 70 | D76: Y70 | E76: Y70,T,FR | F76: =IF(ISERROR(VLOOKUP($E76,popEU,F$1,FALSE)),"",(VLOOKUP($E76,popEU,F$1,FALSE))) -> : | G76: : | H76: : | I76: : | J76: : | K76: : | L76: : | M76: : | N76: : | O76: : | P76: =IF(ISERROR(VLOOKUP($E76,popEU,P$1,FALSE)),"",(VLOOKUP($E76,popEU,P$1,FALSE))) -> 539757 | Q76: 529793 | R76: 513069 | S76: 510816 | T76: 509313 | U76: 518926 | V76: 519298 | W76: 514970 | X76: 521904 | Y76: 521812 | Z76: =IF(ISERROR(VLOOKUP($E76,popEU,Z$1,FALSE)),"",(VLOOKUP($E76,popEU,Z$1,FALSE))) -> 545015 | AA76: 537785 | AB76: 542648 | AC76: 520820 | AD76: 529970 | AE76: 515028 | AF76: 516594 | AG76: 505650 | AH76: 506865 | AI76: 509263 | AJ76: 479371 | AK76: 453448 | AL76: 502709 | AM76: 535226 | AN76: 545566 | AQ76: : | AR76: : | AS76: : | AT76: : | AU76: : | AV76: : | AW76: : | AX76: : | AY76: : | AZ76: : | BA76: 539757 | BB76: 529793 | BC76: 513069 | BD76: 510816 | BE76: 509313 | BF76: 518926 | BG76: 519298 | BH76: 514970 | BI76: 521904 | BJ76: 521812 | BK76: 545015 | BL76: 537785 | BM76: 542648 | BN76: 520820 | BO76: 529970 | BP76: 515028 | BQ76: 516594 | BR76: 505650 | BS76: 506865 | BT76: 509263 | BU76: 479371 | BV76: 453448 | BW76: 502709 | BX76: 535226 | BY76: 545566
C77: 71 | D77: Y71 | E77: Y71,T,FR | F77: : | G77: : | H77: : | I77: : | J77: : | K77: : | L77: : | M77: : | N77: : | O77: : | P77: 321376 | Q77: 527937 | R77: 518771 | S77: 502433 | T77: 500597 | U77: 499206 | V77: 507869 | W77: 508640 | X77: 504324 | Y77: 512986 | Z77: 513041 | AA77: 536459 | AB77: 529016 | AC77: 534443 | AD77: 513314 | AE77: 521876 | AF77: 506420 | AG77: 508841 | AH77: 497031 | AI77: 499513 | AJ77: 500827 | AK77: 472316 | AL77: 447035 | AM77: 495209 | AN77: 527839 | AQ77: : | AR77: : | AS77: : | AT77: : | AU77: : | AV77: : | AW77: : | AX77: : | AY77: : | AZ77: : | BA77: 321376 | BB77: 527937 | BC77: 518771 | BD77: 502433 | BE77: 500597 | BF77: 499206 | BG77: 507869 | BH77: 508640 | BI77: =IF(OR($C77<=$A$14,$C77>$B$14),0,X77) -> 504324 | BJ77: =IF(OR($C77<=$A$14,$C77>$B$14),0,Y77) -> 512986 | BK77: =IF(OR($C77<=$A$14,$C77>$B$14),0,Z77) -> 513041 | BL77: =IF(OR($C77<=$A$14,$C77>$B$14),0,AA77) -> 536459 | BM77: =IF(OR($C77<=$A$14,$C77>$B$14),0,AB77) -> 529016 | BN77: =IF(OR($C77<=$A$14,$C77>$B$14),0,AC77) -> 534443 | BO77: =IF(OR($C77<=$A$14,$C77>$B$14),0,AD77) -> 513314 | BP77: =IF(OR($C77<=$A$14,$C77>$B$14),0,AE77) -> 521876 | BQ77: =IF(OR($C77<=$A$14,$C77>$B$14),0,AF77) -> 506420 | BR77: =IF(OR($C77<=$A$14,$C77>$B$14),0,AG77) -> 508841 | BS77: =IF(OR($C77<=$A$14,$C77>$B$14),0,AH77) -> 497031 | BT77: =IF(OR($C77<=$A$14,$C77>$B$14),0,AI77) -> 499513 | BU77: =IF(OR($C77<=$A$14,$C77>$B$14),0,AJ77) -> 500827 | BV77: =IF(OR($C77<=$A$14,$C77>$B$14),0,AK77) -> 472316 | BW77: =IF(OR($C77<=$A$14,$C77>$B$14),0,AL77) -> 447035 | BX77: =IF(OR($C77<=$A$14,$C77>$B$14),0,AM77) -> 495209 | BY77: =IF(OR($C77<=$A$14,$C77>$B$14),0,AN77) -> 527839
C78: 72 | D78: Y72 | E78: Y72,T,FR | F78: : | G78: : | H78: : | I78: : | J78: : | K78: : | L78: : | M78: : | N78: : | O78: : | P78: 275384 | Q78: 314177 | R78: 515470 | S78: 507204 | T78: 491022 | U78: 489362 | V78: 488067 | W78: 496087 | X78: 497021 | Y78: 494850 | Z78: 503459 | AA78: 503449 | AB78: 527235 | AC78: 519400 | AD78: 526358 | AE78: 504992 | AF78: 512181 | AG78: 497684 | AH78: 499569 | AI78: 488628 | AJ78: 491412 | AK78: 491445 | AL78: 464760 | AM78: 439498 | AN78: 487458 | AQ78: : | AR78: =IF(OR($C78<=$A$14,$C78>$B$14),0,G78) -> : | AS78: =IF(OR($C78<=$A$14,$C78>$B$14),0,H78) -> : | AT78: =IF(OR($C78<=$A$14,$C78>$B$14),0,I78) -> : | AU78: =IF(OR($C78<=$A$14,$C78>$B$14),0,J78) -> : | AV78: =IF(OR($C78<=$A$14,$C78>$B$14),0,K78) -> : | AW78: =IF(OR($C78<=$A$14,$C78>$B$14),0,L78) -> : | AX78: =IF(OR($C78<=$A$14,$C78>$B$14),0,M78) -> : | AY78: =IF(OR($C78<=$A$14,$C78>$B$14),0,N78) -> : | AZ78: =IF(OR($C78<=$A$14,$C78>$B$14),0,O78) -> : | BA78: =IF(OR($C78<=$A$14,$C78>$B$14),0,P78) -> 275384 | BB78: =IF(OR($C78<=$A$14,$C78>$B$14),0,Q78) -> 314177 | BC78: =IF(OR($C78<=$A$14,$C78>$B$14),0,R78) -> 515470 | BD78: =IF(OR($C78<=$A$14,$C78>$B$14),0,S78) -> 507204 | BE78: =IF(OR($C78<=$A$14,$C78>$B$14),0,T78) -> 491022 | BF78: =IF(OR($C78<=$A$14,$C78>$B$14),0,U78) -> 489362 | BG78: =IF(OR($C78<=$A$14,$C78>$B$14),0,V78) -> 488067 | BH78: =IF(OR($C78<=$A$14,$C78>$B$14),0,W78) -> 496087 | BI78: 497021 | BJ78: 494850 | BK78: 503459 | BL78: 503449 | BM78: 527235 | BN78: 519400 | BO78: 526358 | BP78: 504992 | BQ78: 512181 | BR78: 497684 | BS78: 499569 | BT78: 488628 | BU78: 491412 | BV78: 491445 | BW78: 464760 | BX78: 439498 | BY78: 487458
C79: 73 | D79: Y73 | E79: Y73,T,FR | F79: : | G79: : | H79: : | I79: : | J79: : | K79: : | L79: : | M79: : | N79: : | O79: : | P79: 237461 | Q79: 267884 | R79: 306168 | S79: 501910 | T79: 494989 | U79: 478853 | V79: 477202 | W79: 476625 | X79: 484186 | Y79: 486474 | Z79: 484832 | AA79: 493453 | AB79: 493411 | AC79: 517271 | AD79: 509902 | AE79: 517450 | AF79: 495168 | AG79: 502116 | AH79: 487868 | AI79: 489415 | AJ79: 480248 | AK79: 483079 | AL79: 483224 | AM79: 457004 | AN79: 432692 | AQ79: : | AR79: : | AS79: : | AT79: : | AU79: : | AV79: : | AW79: : | AX79: : | AY79: : | AZ79: : | BA79: 237461 | BB79: 267884 | BC79: 306168 | BD79: 501910 | BE79: 494989 | BF79: 478853 | BG79: 477202 | BH79: 476625 | BI79: 484186 | BJ79: 486474 | BK79: 484832 | BL79: 493453 | BM79: 493411 | BN79: 517271 | BO79: 509902 | BP79: 517450 | BQ79: 495168 | BR79: 502116 | BS79: 487868 | BT79: 489415 | BU79: 480248 | BV79: 483079 | BW79: 483224 | BX79: 457004 | BY79: 432692
C80: 74 | D80: Y74 | E80: Y74,T,FR | F80: : | G80: : | H80: : | I80: : | J80: : | K80: : | L80: : | M80: : | N80: : | O80: : | P80: 217302 | Q80: 231179 | R80: 260571 | S80: 298508 | T80: 488241 | U80: 482006 | V80: 466279 | W80: 464891 | X80: 464665 | Y80: 472724 | Z80: 475385 | AA80: 474090 | AB80: 482761 | AC80: 482471 | AD80: 507069 | AE80: 499773 | AF80: 505775 | AG80: 483043 | AH80: 492203 | AI80: 477910 | AJ80: 479556 | AK80: 471894 | AL80: 474196 | AM80: 474444 | AN80: 449333 | AQ80: : | AR80: : | AS80: : | AT80: : | AU80: : | AV80: : | AW80: : | AX80: : | AY80: : | AZ80: : | BA80: 217302 | BB80: 231179 | BC80: 260571 | BD80: 298508 | BE80: 488241 | BF80: 482006 | BG80: 466279 | BH80: 464891 | BI80: 464665 | BJ80: 472724 | BK80: 475385 | BL80: 474090 | BM80: 482761 | BN80: 482471 | BO80: 507069 | BP80: 499773 | BQ80: 505775 | BR80: 483043 | BS80: 492203 | BT80: 477910 | BU80: 479556 | BV80: 471894 | BW80: 474196 | BX80: 474444 | BY80: 449333
C81: 75 | D81: Y75 | E81: Y75,T,FR | F81: : | G81: : | H81: : | I81: : | J81: : | K81: : | L81: : | M81: : | N81: : | O81: : | P81: 261926 | Q81: 210411 | R81: 223718 | S81: 252023 | T81: 289739 | U81: 472761 | V81: 467355 | W81: 452111 | X81: 450543 | Y81: 452235 | Z81: 460725 | AA81: 463440 | AB81: 462740 | AC81: 471126 | AD81: 471661 | AE81: 496092 | AF81: 487585 | AG81: 493432 | AH81: 472192 | AI81: 481775 | AJ81: 467630 | AK81: 469332 | AL81: 462430 | AM81: 464482 | AN81: 465297 | AQ81: : | AR81: : | AS81: : | AT81: : | AU81: : | AV81: : | AW81: : | AX81: : | AY81: : | AZ81: : | BA81: 261926 | BB81: 210411 | BC81: 223718 | BD81: 252023 | BE81: 289739 | BF81: 472761 | BG81: 467355 | BH81: 452111 | BI81: 450543 | BJ81: 452235 | BK81: 460725 | BL81: 463440 | BM81: 462740 | BN81: 471126 | BO81: 471661 | BP81: 496092 | BQ81: 487585 | BR81: 493432 | BS81: 472192 | BT81: 481775 | BU81: 467630 | BV81: 469332 | BW81: 462430 | BX81: 464482 | BY81: 465297
C82: 76 | D82: Y76 | E82: Y76,T,FR | F82: : | G82: : | H82: : | I82: : | J82: : | K82: : | L82: : | M82: : | N82: : | O82: : | P82: 374437 | Q82: 252121 | R82: 202727 | S82: 215795 | T82: 243261 | U82: 280378 | V82: 456628 | W82: 452602 | X82: 437764 | Y82: 437441 | Z82: 439083 | AA82: 447950 | AB82: 450868 | AC82: 449817 | AD82: 459531 | AE82: 460285 | AF82: 483341 | AG82: 473695 | AH82: 480641 | AI82: 459872 | AJ82: 469924 | AK82: 457003 | AL82: 458828 | AM82: 451997 | AN82: 454650 | AQ82: : | AR82: : | AS82: : | AT82: : | AU82: : | AV82: : | AW82: : | AX82: : | AY82: : | AZ82: : | BA82: 374437 | BB82: 252121 | BC82: 202727 | BD82: 215795 | BE82: 243261 | BF82: 280378 | BG82: 456628 | BH82: 452602 | BI82: 437764 | BJ82: 437441 | BK82: 439083 | BL82: 447950 | BM82: 450868 | BN82: 449817 | BO82: 459531 | BP82: 460285 | BQ82: 483341 | BR82: 473695 | BS82: 480641 | BT82: 459872 | BU82: 469924 | BV82: 457003 | BW82: 458828 | BX82: 451997 | BY82: 454650
C83: 77 | D83: Y77 | E83: Y77,T,FR | F83: : | G83: : | H83: : | I83: : | J83: : | K83: : | L83: : | M83: : | N83: : | O83: : | P83: 361869 | Q83: 359768 | R83: 242064 | S83: 194733 | T83: 207653 | U83: 233980 | V83: 270543 | W83: 439752 | X83: 436763 | Y83: 423195 | Z83: 423488 | AA83: 425118 | AB83: 434162 | AC83: 437021 | AD83: 437082 | AE83: 447007 | AF83: 446183 | AG83: 469169 | AH83: 460121 | AI83: 467339 | AJ83: 447326 | AK83: 456398 | AL83: 444987 | AM83: 446822 | AN83: 440531 | AQ83: : | AR83: : | AS83: : | AT83: : | AU83: : | AV83: : | AW83: : | AX83: : | AY83: : | AZ83: : | BA83: 361869 | BB83: 359768 | BC83: 242064 | BD83: 194733 | BE83: 207653 | BF83: 233980 | BG83: 270543 | BH83: 439752 | BI83: 436763 | BJ83: 423195 | BK83: 423488 | BL83: 425118 | BM83: 434162 | BN83: 437021 | BO83: 437082 | BP83: 447007 | BQ83: 446183 | BR83: 469169 | BS83: 460121 | BT83: 467339 | BU83: 447326 | BV83: 456398 | BW83: 444987 | BX83: 446822 | BY83: 440531
C84: 78 | D84: Y78 | E84: Y78,T,FR | F84: : | G84: : | H84: : | I84: : | J84: : | K84: : | L84: : | M84: : | N84: : | O84: : | P84: 348247 | Q84: 346336 | R84: 344964 | S84: 231790 | T84: 187009 | U84: 199208 | V84: 224470 | W84: 260462 | X84: 422297 | Y84: 420262 | Z84: 408158 | AA84: 408923 | AB84: 409992 | AC84: 419274 | AD84: 423611 | AE84: 423564 | AF84: 432096 | AG84: 431059 | AH84: 455013 | AI84: 446414 | AJ84: 453073 | AK84: 433204 | AL84: 444269 | AM84: 432494 | AN84: 435025 | AQ84: : | AR84: : | AS84: : | AT84: : | AU84: : | AV84: : | AW84: : | AX84: : | AY84: : | AZ84: : | BA84: 348247 | BB84: 346336 | BC84: 344964 | BD84: 231790 | BE84: 187009 | BF84: 199208 | BG84: 224470 | BH84: 260462 | BI84: 422297 | BJ84: 420262 | BK84: 408158 | BL84: 408923 | BM84: 409992 | BN84: 419274 | BO84: 423611 | BP84: 423564 | BQ84: 432096 | BR84: 431059 | BS84: 455013 | BT84: 446414 | BU84: 453073 | BV84: 433204 | BW84: 444269 | BX84: 432494 | BY84: 435025
C85: 79 | D85: Y79 | E85: Y79,T,FR | F85: : | G85: : | H85: : | I85: : | J85: : | K85: : | L85: : | M85: : | N85: : | O85: : | P85: 307949 | Q85: 331156 | R85: 329969 | S85: 328881 | T85: 220801 | U85: 178065 | V85: 189989 | W85: 214031 | X85: 249310 | Y85: 404490 | Z85: 403147 | AA85: 392335 | AB85: 393528 | AC85: 393659 | AD85: 404467 | AE85: 408799 | AF85: 408639 | AG85: 416068 | AH85: 415990 | AI85: 438402 | AJ85: 431273 | AK85: 438553 | AL85: 419290 | AM85: 430593 | AN85: 419873 | AQ85: : | AR85: : | AS85: : | AT85: : | AU85: : | AV85: : | AW85: : | AX85: : | AY85: : | AZ85: : | BA85: 307949 | BB85: 331156 | BC85: 329969 | BD85: 328881 | BE85: 220801 | BF85: 178065 | BG85: 189989 | BH85: 214031 | BI85: 249310 | BJ85: 404490 | BK85: 403147 | BL85: 392335 | BM85: 393528 | BN85: 393659 | BO85: 404467 | BP85: 408799 | BQ85: 408639 | BR85: 416068 | BS85: 415990 | BT85: 438402 | BU85: 431273 | BV85: 438553 | BW85: 419290 | BX85: 430593 | BY85: 419873
C86: 80 | D86: Y80 | E86: Y80,T,FR | F86: =IF(ISERROR(VLOOKUP($E86,popEU,F$1,FALSE)),"",(VLOOKUP($E86,popEU,F$1,FALSE))) -> : | G86: : | H86: : | I86: : | J86: : | K86: : | L86: : | M86: : | N86: : | O86: : | P86: =IF(ISERROR(VLOOKUP($E86,popEU,P$1,FALSE)),"",(VLOOKUP($E86,popEU,P$1,FALSE))) -> 300370 | Q86: 290602 | R86: 313410 | S86: 312156 | T86: 312361 | U86: 209288 | V86: 168902 | W86: 180501 | X86: 203268 | Y86: 236763 | Z86: =IF(ISERROR(VLOOKUP($E86,popEU,Z$1,FALSE)),"",(VLOOKUP($E86,popEU,Z$1,FALSE))) -> 386156 | AA86: 384927 | AB86: 375294 | AC86: 376582 | AD86: 377664 | AE86: 388493 | AF86: 391959 | AG86: 391630 | AH86: 398420 | AI86: 399634 | AJ86: 421808 | AK86: 414501 | AL86: 422360 | AM86: 404079 | AN86: 415986 | AQ86: : | AR86: : | AS86: : | AT86: : | AU86: : | AV86: : | AW86: : | AX86: : | AY86: : | AZ86: : | BA86: 300370 | BB86: 290602 | BC86: 313410 | BD86: 312156 | BE86: 312361 | BF86: 209288 | BG86: 168902 | BH86: 180501 | BI86: 203268 | BJ86: 236763 | BK86: 386156 | BL86: 384927 | BM86: 375294 | BN86: 376582 | BO86: 377664 | BP86: 388493 | BQ86: 391959 | BR86: 391630 | BS86: 398420 | BT86: 399634 | BU86: 421808 | BV86: 414501 | BW86: 422360 | BX86: 404079 | BY86: 415986
C87: 81 | D87: Y81 | E87: Y81,T,FR | F87: : | G87: : | H87: : | I87: : | J87: : | K87: : | L87: : | M87: : | N87: : | O87: : | P87: 274407 | Q87: 282069 | R87: 273525 | S87: 294674 | T87: 294304 | U87: 294967 | V87: 197049 | W87: 159404 | X87: 170425 | Y87: 192435 | Z87: 223883 | AA87: 366806 | AB87: 365693 | AC87: 356788 | AD87: 360152 | AE87: 360404 | AF87: 371462 | AG87: 373452 | AH87: 373691 | AI87: 379761 | AJ87: 381880 | AK87: 402685 | AL87: 398176 | AM87: 404791 | AN87: 387904 | AQ87: 0 | AR87: 0 | AS87: 0 | AT87: 0 | AU87: 0 | AV87: 0 | AW87: 0 | AX87: 0 | AY87: 0 | AZ87: 0 | BA87: 0 | BB87: 0 | BC87: 0 | BD87: 0 | BE87: 0 | BF87: 0 | BG87: 0 | BH87: 0 | BI87: 0 | BJ87: 0 | BK87: 0 | BL87: 0 | BM87: 0 | BN87: 0 | BO87: 0 | BP87: 0 | BQ87: 0 | BR87: 0 | BS87: 0 | BT87: 0 | BU87: 0 | BV87: 0 | BW87: 0 | BX87: 0 | BY87: 0
C88: 82 | D88: Y82 | E88: Y82,T,FR | F88: : | G88: : | H88: : | I88: : | J88: : | K88: : | L88: : | M88: : | N88: : | O88: : | P88: 253424 | Q88: 255492 | R88: 263193 | S88: 255348 | T88: 275884 | U88: 275633 | V88: 276628 | W88: 184583 | X88: 149452 | Y88: 160367 | Z88: 181115 | AA88: 210350 | AB88: 346447 | AC88: 344737 | AD88: 338976 | AE88: 342144 | AF88: 341482 | AG88: 352272 | AH88: 353870 | AI88: 354079 | AJ88: 360415 | AK88: 362654 | AL88: 382812 | AM88: 379050 | AN88: 386407 | AQ88: 0 | AR88: 0 | AS88: 0 | AT88: 0 | AU88: 0 | AV88: 0 | AW88: 0 | AX88: 0 | AY88: 0 | AZ88: 0 | BA88: 0 | BB88: 0 | BC88: 0 | BD88: 0 | BE88: 0 | BF88: 0 | BG88: 0 | BH88: 0 | BI88: 0 | BJ88: 0 | BK88: 0 | BL88: 0 | BM88: 0 | BN88: 0 | BO88: 0 | BP88: 0 | BQ88: 0 | BR88: 0 | BS88: 0 | BT88: 0 | BU88: 0 | BV88: 0 | BW88: 0 | BX88: 0 | BY88: 0
C89: 83 | D89: Y83 | E89: Y83,T,FR | F89: : | G89: : | H89: : | I89: : | J89: : | K89: : | L89: : | M89: : | N89: : | O89: : | P89: 222077 | Q89: 233937 | R89: 236673 | S89: 243543 | T89: 237531 | U89: 256463 | V89: 256230 | W89: 258118 | X89: 171726 | Y89: 139285 | Z89: 149776 | AA89: 169376 | AB89: 196227 | AC89: 324242 | AD89: 324834 | AE89: 319822 | AF89: 320654 | AG89: 322361 | AH89: 332104 | AI89: 333407 | AJ89: 334677 | AK89: 340551 | AL89: 343186 | AM89: 362886 | AN89: 360203 | AQ89: 0 | AR89: 0 | AS89: 0 | AT89: 0 | AU89: 0 | AV89: 0 | AW89: 0 | AX89: 0 | AY89: 0 | AZ89: 0 | BA89: 0 | BB89: 0 | BC89: 0 | BD89: 0 | BE89: 0 | BF89: 0 | BG89: 0 | BH89: 0 | BI89: 0 | BJ89: 0 | BK89: 0 | BL89: 0 | BM89: 0 | BN89: 0 | BO89: 0 | BP89: 0 | BQ89: 0 | BR89: 0 | BS89: 0 | BT89: 0 | BU89: 0 | BV89: 0 | BW89: 0 | BX89: 0 | BY89: 0
C90: 84 | D90: Y84 | E90: Y84,T,FR | F90: : | G90: : | H90: : | I90: : | J90: : | K90: : | L90: : | M90: : | N90: : | O90: : | P90: 200428 | Q90: 202904 | R90: 214357 | S90: 216920 | T90: 224340 | U90: 218792 | V90: 236233 | W90: 236658 | X90: 238569 | Y90: 158276 | Z90: 128950 | AA90: 139010 | AB90: 157034 | AC90: 181342 | AD90: 303407 | AE90: 303560 | AF90: 298667 | AG90: 298990 | AH90: 301736 | AI90: 310274 | AJ90: 312231 | AK90: 313507 | AL90: 319413 | AM90: 322432 | AN90: 341938 | AQ90: 0 | AR90: 0 | AS90: 0 | AT90: 0 | AU90: 0 | AV90: 0 | AW90: 0 | AX90: 0 | AY90: 0 | AZ90: 0 | BA90: 0 | BB90: 0 | BC90: 0 | BD90: 0 | BE90: 0 | BF90: 0 | BG90: 0 | BH90: 0 | BI90: 0 | BJ90: 0 | BK90: 0 | BL90: 0 | BM90: 0 | BN90: 0 | BO90: 0 | BP90: 0 | BQ90: 0 | BR90: 0 | BS90: 0 | BT90: 0 | BU90: 0 | BV90: 0 | BW90: 0 | BX90: 0 | BY90: 0
C91: 85 | D91: Y85 | E91: Y85,T,FR | F91: : | G91: : | H91: : | I91: : | J91: : | K91: : | L91: : | M91: : | N91: : | O91: : | P91: 175502 | Q91: 181282 | R91: 183947 | S91: 194151 | T91: 197573 | U91: 204219 | V91: 199356 | W91: 215718 | X91: 215971 | Y91: 218329 | Z91: 144789 | AA91: 118416 | AB91: 127868 | AC91: 143926 | AD91: 167307 | AE91: 281118 | AF91: 281111 | AG91: 276103 | AH91: 277205 | AI91: 279486 | AJ91: 289191 | AK91: 290694 | AL91: 291505 | AM91: 297825 | AN91: 301625 | AQ91: 0 | AR91: 0 | AS91: 0 | AT91: 0 | AU91: 0 | AV91: 0 | AW91: 0 | AX91: 0 | AY91: 0 | AZ91: 0 | BA91: 0 | BB91: 0 | BC91: 0 | BD91: 0 | BE91: 0 | BF91: 0 | BG91: 0 | BH91: 0 | BI91: 0 | BJ91: 0 | BK91: 0 | BL91: 0 | BM91: 0 | BN91: 0 | BO91: 0 | BP91: 0 | BQ91: 0 | BR91: 0 | BS91: 0 | BT91: 0 | BU91: 0 | BV91: 0 | BW91: 0 | BX91: 0 | BY91: 0
C92: 86 | D92: Y86 | E92: Y86,T,FR | F92: : | G92: : | H92: : | I92: : | J92: : | K92: : | L92: : | M92: : | N92: : | O92: : | P92: 151915 | Q92: 156854 | R92: 162575 | S92: 164426 | T92: 174608 | U92: 177703 | V92: 184024 | W92: 180215 | X92: 194721 | Y92: 195176 | Z92: 197901 | AA92: 131412 | AB92: 107812 | AC92: 116287 | AD92: 132069 | AE92: 152425 | AF92: 257272 | AG92: 256934 | AH92: 253770 | AI92: 254086 | AJ92: 257156 | AK92: 266046 | AL92: 267267 | AM92: 268524 | AN92: 275504 | AQ92: 0 | AR92: 0 | AS92: 0 | AT92: 0 | AU92: 0 | AV92: 0 | AW92: 0 | AX92: 0 | AY92: 0 | AZ92: 0 | BA92: 0 | BB92: 0 | BC92: 0 | BD92: 0 | BE92: 0 | BF92: 0 | BG92: 0 | BH92: 0 | BI92: 0 | BJ92: 0 | BK92: 0 | BL92: 0 | BM92: 0 | BN92: 0 | BO92: 0 | BP92: 0 | BQ92: 0 | BR92: 0 | BS92: 0 | BT92: 0 | BU92: 0 | BV92: 0 | BW92: 0 | BX92: 0 | BY92: 0
C93: 87 | D93: Y87 | E93: Y87,T,FR | F93: : | G93: : | H93: : | I93: : | J93: : | K93: : | L93: : | M93: : | N93: : | O93: : | P93: 129877 | Q93: 134024 | R93: 139087 | S93: 143673 | T93: 146574 | U93: 155209 | V93: 158205 | W93: 164316 | X93: 160960 | Y93: 173563 | Z93: 174854 | AA93: 177594 | AB93: 117749 | AC93: 96571 | AD93: 105496 | AE93: 119479 | AF93: 137756 | AG93: 232705 | AH93: 233199 | AI93: 230329 | AJ93: 232344 | AK93: 234450 | AL93: 242243 | AM93: 243946 | AN93: 246361 | AQ93: 0 | AR93: 0 | AS93: 0 | AT93: 0 | AU93: 0 | AV93: 0 | AW93: 0 | AX93: 0 | AY93: 0 | AZ93: 0 | BA93: 0 | BB93: 0 | BC93: 0 | BD93: 0 | BE93: 0 | BF93: 0 | BG93: 0 | BH93: 0 | BI93: 0 | BJ93: 0 | BK93: 0 | BL93: 0 | BM93: 0 | BN93: 0 | BO93: 0 | BP93: 0 | BQ93: 0 | BR93: 0 | BS93: 0 | BT93: 0 | BU93: 0 | BV93: 0 | BW93: 0 | BX93: 0 | BY93: 0
C94: 88 | D94: Y88 | E94: Y88,T,FR | F94: : | G94: : | H94: : | I94: : | J94: : | K94: : | L94: : | M94: : | N94: : | O94: : | P94: 111679 | Q94: 112948 | R94: 117043 | S94: 121168 | T94: 126125 | U94: 128320 | V94: 135971 | W94: 139034 | X94: 144461 | Y94: 141395 | Z94: 153163 | AA94: 154933 | AB94: 157543 | AC94: 103701 | AD94: 86635 | AE94: 94371 | AF94: 106612 | AG94: 123165 | AH94: 207847 | AI94: 208560 | AJ94: 207522 | AK94: 209407 | AL94: 210786 | AM94: 218630 | AN94: 220724 | AQ94: 0 | AR94: 0 | AS94: 0 | AT94: 0 | AU94: 0 | AV94: 0 | AW94: 0 | AX94: 0 | AY94: 0 | AZ94: 0 | BA94: 0 | BB94: 0 | BC94: 0 | BD94: 0 | BE94: 0 | BF94: 0 | BG94: 0 | BH94: 0 | BI94: 0 | BJ94: 0 | BK94: 0 | BL94: 0 | BM94: 0 | BN94: 0 | BO94: 0 | BP94: 0 | BQ94: 0 | BR94: 0 | BS94: 0 | BT94: 0 | BU94: 0 | BV94: 0 | BW94: 0 | BX94: 0 | BY94: 0
C95: 89 | D95: Y89 | E95: Y89,T,FR | F95: : | G95: : | H95: : | I95: : | J95: : | K95: : | L95: : | M95: : | N95: : | O95: : | P95: 91955 | Q95: 95568 | R95: 96890 | S95: 100354 | T95: 104689 | U95: 108685 | V95: 110719 | W95: 117482 | X95: 120232 | Y95: 125054 | Z95: 122818 | AA95: 133511 | AB95: 135146 | AC95: 136794 | AD95: 91279 | AE95: 76406 | AF95: 83189 | AG95: 94306 | AH95: 108708 | AI95: 183625 | AJ95: 184614 | AK95: 183924 | AL95: 185751 | AM95: 187147 | AN95: 195185 | AQ95: 0 | AR95: 0 | AS95: 0 | AT95: 0 | AU95: 0 | AV95: 0 | AW95: 0 | AX95: 0 | AY95: 0 | AZ95: 0 | BA95: 0 | BB95: 0 | BC95: 0 | BD95: 0 | BE95: 0 | BF95: 0 | BG95: 0 | BH95: 0 | BI95: 0 | BJ95: 0 | BK95: 0 | BL95: 0 | BM95: 0 | BN95: 0 | BO95: 0 | BP95: 0 | BQ95: 0 | BR95: 0 | BS95: 0 | BT95: 0 | BU95: 0 | BV95: 0 | BW95: 0 | BX95: 0 | BY95: 0
C96: 90 | D96: Y90 | E96: Y90,T,FR | F96: =IF(ISERROR(VLOOKUP($E96,popEU,F$1,FALSE)),"",(VLOOKUP($E96,popEU,F$1,FALSE))) -> : | G96: : | H96: : | I96: : | J96: : | K96: : | L96: : | M96: : | N96: : | O96: : | P96: =IF(ISERROR(VLOOKUP($E96,popEU,P$1,FALSE)),"",(VLOOKUP($E96,popEU,P$1,FALSE))) -> 69380 | Q96: 77413 | R96: 81054 | S96: 82009 | T96: 85534 | U96: 89103 | V96: 92330 | W96: 94192 | X96: 100331 | Y96: 102093 | Z96: =IF(ISERROR(VLOOKUP($E96,popEU,Z$1,FALSE)),"",(VLOOKUP($E96,popEU,Z$1,FALSE))) -> 107051 | AA96: 105393 | AB96: 114318 | AC96: 114878 | AD96: 119021 | AE96: 78860 | AF96: 66257 | AG96: 72540 | AH96: 81831 | AI96: 94417 | AJ96: 160479 | AK96: 161345 | AL96: 160969 | AM96: 162626 | AN96: 165349 | AQ96: 0 | AR96: 0 | AS96: 0 | AT96: 0 | AU96: 0 | AV96: 0 | AW96: 0 | AX96: 0 | AY96: 0 | AZ96: 0 | BA96: 0 | BB96: 0 | BC96: 0 | BD96: 0 | BE96: 0 | BF96: 0 | BG96: 0 | BH96: 0 | BI96: 0 | BJ96: 0 | BK96: 0 | BL96: 0 | BM96: 0 | BN96: 0 | BO96: 0 | BP96: 0 | BQ96: 0 | BR96: 0 | BS96: 0 | BT96: 0 | BU96: 0 | BV96: 0 | BW96: 0 | BX96: 0 | BY96: 0
C97: 91 | D97: Y91 | E97: Y91,T,FR | F97: : | G97: : | H97: : | I97: : | J97: : | K97: : | L97: : | M97: : | N97: : | O97: : | P97: 53480 | Q97: 57424 | R97: 64319 | S97: 67161 | T97: 68689 | U97: 71443 | V97: 74135 | W97: 77160 | X97: 78854 | Y97: 83695 | Z97: 85610 | AA97: 89932 | AB97: 88570 | AC97: 95198 | AD97: 98127 | AE97: 101165 | AF97: 67142 | AG97: 56326 | AH97: 61884 | AI97: 69938 | AJ97: 80611 | AK97: 137241 | AL97: 138309 | AM97: 138376 | AN97: 140554 | AQ97: 0 | AR97: 0 | AS97: 0 | AT97: 0 | AU97: 0 | AV97: 0 | AW97: 0 | AX97: 0 | AY97: 0 | AZ97: 0 | BA97: 0 | BB97: 0 | BC97: 0 | BD97: 0 | BE97: 0 | BF97: 0 | BG97: 0 | BH97: 0 | BI97: 0 | BJ97: 0 | BK97: 0 | BL97: 0 | BM97: 0 | BN97: 0 | BO97: 0 | BP97: 0 | BQ97: 0 | BR97: 0 | BS97: 0 | BT97: 0 | BU97: 0 | BV97: 0 | BW97: 0 | BX97: 0 | BY97: 0
C98: 92 | D98: Y92 | E98: Y92,T,FR | F98: : | G98: : | H98: : | I98: : | J98: : | K98: : | L98: : | M98: : | N98: : | O98: : | P98: 39880 | Q98: 43083 | R98: 46815 | S98: 52223 | T98: 55224 | U98: 56372 | V98: 58382 | W98: 60715 | X98: 63189 | Y98: 64329 | Z98: 68542 | AA98: 70403 | AB98: 73955 | AC98: 72275 | AD98: 79897 | AE98: 81974 | AF98: 84546 | AG98: 56418 | AH98: 47346 | AI98: 52366 | AJ98: 59174 | AK98: 68316 | AL98: 114848 | AM98: 116404 | AN98: 118233 | AQ98: 0 | AR98: 0 | AS98: 0 | AT98: 0 | AU98: 0 | AV98: 0 | AW98: 0 | AX98: 0 | AY98: 0 | AZ98: 0 | BA98: 0 | BB98: 0 | BC98: 0 | BD98: 0 | BE98: 0 | BF98: 0 | BG98: 0 | BH98: 0 | BI98: 0 | BJ98: 0 | BK98: 0 | BL98: 0 | BM98: 0 | BN98: 0 | BO98: 0 | BP98: 0 | BQ98: 0 | BR98: 0 | BS98: 0 | BT98: 0 | BU98: 0 | BV98: 0 | BW98: 0 | BX98: 0 | BY98: 0
C99: 93 | D99: Y93 | E99: Y93,T,FR | F99: : | G99: : | H99: : | I99: : | J99: : | K99: : | L99: : | M99: : | N99: : | O99: : | P99: 30115 | Q99: 31496 | R99: 34164 | S99: 37341 | T99: 42058 | U99: 44211 | V99: 45271 | W99: 46933 | X99: 48832 | Y99: 50619 | Z99: 51741 | AA99: 55048 | AB99: 56661 | AC99: 59078 | AD99: 59237 | AE99: 65221 | AF99: 67165 | AG99: 69806 | AH99: 46431 | AI99: 39201 | AJ99: 43357 | AK99: 48839 | AL99: 56286 | AM99: 95062 | AN99: 97309 | AQ99: 0 | AR99: 0 | AS99: 0 | AT99: 0 | AU99: 0 | AV99: 0 | AW99: 0 | AX99: 0 | AY99: 0 | AZ99: 0 | BA99: 0 | BB99: 0 | BC99: 0 | BD99: 0 | BE99: 0 | BF99: 0 | BG99: 0 | BH99: 0 | BI99: 0 | BJ99: 0 | BK99: 0 | BL99: 0 | BM99: 0 | BN99: 0 | BO99: 0 | BP99: 0 | BQ99: 0 | BR99: 0 | BS99: 0 | BT99: 0 | BU99: 0 | BV99: 0 | BW99: 0 | BX99: 0 | BY99: 0
C100: 94 | D100: Y94 | E100: Y94,T,FR | F100: : | G100: : | H100: : | I100: : | J100: : | K100: : | L100: : | M100: : | N100: : | O100: : | P100: 22259 | Q100: 23333 | R100: 24374 | S100: 26333 | T100: 29394 | U100: 33174 | V100: 34643 | W100: 35650 | X100: 36848 | Y100: 38227 | Z100: 39667 | AA100: 40657 | AB100: 43140 | AC100: 43973 | AD100: 47523 | AE100: 47058 | AF100: 52030 | AG100: 53894 | AH100: 56345 | AI100: 37372 | AJ100: 31730 | AK100: 35051 | AL100: 38711 | AM100: 45218 | AN100: 77661 | AQ100: 0 | AR100: 0 | AS100: 0 | AT100: 0 | AU100: 0 | AV100: 0 | AW100: 0 | AX100: 0 | AY100: 0 | AZ100: 0 | BA100: 0 | BB100: 0 | BC100: 0 | BD100: 0 | BE100: 0 | BF100: 0 | BG100: 0 | BH100: 0 | BI100: 0 | BJ100: 0 | BK100: 0 | BL100: 0 | BM100: 0 | BN100: 0 | BO100: 0 | BP100: 0 | BQ100: 0 | BR100: 0 | BS100: 0 | BT100: 0 | BU100: 0 | BV100: 0 | BW100: 0 | BX100: 0 | BY100: 0
C101: 95 | D101: Y95 | E101: Y95,T,FR | F101: : | G101: : | H101: : | I101: : | J101: : | K101: : | L101: : | M101: : | N101: : | O101: : | P101: 14938 | Q101: 16843 | R101: 17600 | S101: 18450 | T101: 20148 | U101: 22590 | V101: 25554 | W101: 26570 | X101: 27499 | Y101: 28160 | Z101: 29253 | AA101: 30772 | AB101: 31298 | AC101: 32692 | AD101: 34350 | AE101: 37168 | AF101: 36845 | AG101: 40807 | AH101: 42174 | AI101: 44569 | AJ101: 29582 | AK101: 25131 | AL101: 27409 | AM101: 30258 | AN101: 36078 | AQ101: 0 | AR101: 0 | AS101: 0 | AT101: 0 | AU101: 0 | AV101: 0 | AW101: 0 | AX101: 0 | AY101: 0 | AZ101: 0 | BA101: 0 | BB101: 0 | BC101: 0 | BD101: 0 | BE101: 0 | BF101: 0 | BG101: 0 | BH101: 0 | BI101: 0 | BJ101: 0 | BK101: 0 | BL101: 0 | BM101: 0 | BN101: 0 | BO101: 0 | BP101: 0 | BQ101: 0 | BR101: 0 | BS101: 0 | BT101: 0 | BU101: 0 | BV101: 0 | BW101: 0 | BX101: 0 | BY101: 0
C102: 96 | D102: Y96 | E102: Y96,T,FR | F102: : | G102: : | H102: : | I102: : | J102: : | K102: : | L102: : | M102: : | N102: : | O102: : | P102: 10568 | Q102: 11076 | R102: 12559 | S102: 12917 | T102: 13753 | U102: 14887 | V102: 16995 | W102: 19328 | X102: 19948 | Y102: 20629 | Z102: 21086 | AA102: 21917 | AB102: 23111 | AC102: 22946 | AD102: 24899 | AE102: 25760 | AF102: 28160 | AG102: 28411 | AH102: 31174 | AI102: 32301 | AJ102: 34509 | AK102: 22824 | AL102: 19109 | AM102: 21096 | AN102: 23567 | AQ102: 0 | AR102: 0 | AS102: 0 | AT102: 0 | AU102: 0 | AV102: 0 | AW102: 0 | AX102: 0 | AY102: 0 | AZ102: 0 | BA102: 0 | BB102: 0 | BC102: 0 | BD102: 0 | BE102: 0 | BF102: 0 | BG102: 0 | BH102: 0 | BI102: 0 | BJ102: 0 | BK102: 0 | BL102: 0 | BM102: 0 | BN102: 0 | BO102: 0 | BP102: 0 | BQ102: 0 | BR102: 0 | BS102: 0 | BT102: 0 | BU102: 0 | BV102: 0 | BW102: 0 | BX102: 0 | BY102: 0
C103: 97 | D103: Y97 | E103: Y97,T,FR | F103: : | G103: : | H103: : | I103: : | J103: : | K103: : | L103: : | M103: : | N103: : | O103: : | P103: 7351 | Q103: 7618 | R103: 8065 | S103: 9134 | T103: 9343 | U103: 9890 | V103: 10683 | W103: 12513 | X103: 14422 | Y103: 14567 | Z103: 15197 | AA103: 15382 | AB103: 15912 | AC103: 16478 | AD103: 16932 | AE103: 18052 | AF103: 19078 | AG103: 21263 | AH103: 21268 | AI103: 23207 | AJ103: 24038 | AK103: 25950 | AL103: 16877 | AM103: 14264 | AN103: 16062 | AQ103: 0 | AR103: 0 | AS103: 0 | AT103: 0 | AU103: 0 | AV103: 0 | AW103: 0 | AX103: 0 | AY103: 0 | AZ103: 0 | BA103: 0 | BB103: 0 | BC103: 0 | BD103: 0 | BE103: 0 | BF103: 0 | BG103: 0 | BH103: 0 | BI103: 0 | BJ103: 0 | BK103: 0 | BL103: 0 | BM103: 0 | BN103: 0 | BO103: 0 | BP103: 0 | BQ103: 0 | BR103: 0 | BS103: 0 | BT103: 0 | BU103: 0 | BV103: 0 | BW103: 0 | BX103: 0 | BY103: 0
C104: 98 | D104: Y98 | E104: Y98,T,FR | F104: : | G104: : | H104: : | I104: : | J104: : | K104: : | L104: : | M104: : | N104: : | O104: : | P104: 4348 | Q104: 5213 | R104: 5485 | S104: 5726 | T104: 6615 | U104: 6418 | V104: 6952 | W104: 7573 | X104: 9063 | Y104: 10313 | Z104: 10430 | AA104: 10845 | AB104: 10933 | AC104: 10946 | AD104: 11951 | AE104: 11748 | AF104: 13173 | AG104: 13720 | AH104: 15397 | AI104: 15524 | AJ104: 17016 | AK104: 17804 | AL104: 18794 | AM104: 12349 | AN104: 10697 | AQ104: 0 | AR104: 0 | AS104: 0 | AT104: 0 | AU104: 0 | AV104: 0 | AW104: 0 | AX104: 0 | AY104: 0 | AZ104: 0 | BA104: 0 | BB104: 0 | BC104: 0 | BD104: 0 | BE104: 0 | BF104: 0 | BG104: 0 | BH104: 0 | BI104: 0 | BJ104: 0 | BK104: 0 | BL104: 0 | BM104: 0 | BN104: 0 | BO104: 0 | BP104: 0 | BQ104: 0 | BR104: 0 | BS104: 0 | BT104: 0 | BU104: 0 | BV104: 0 | BW104: 0 | BX104: 0 | BY104: 0
C105: 99 | D105: Y99 | E105: Y99,T,FR | F105: : | G105: : | H105: : | I105: : | J105: : | K105: : | L105: : | M105: : | N105: : | O105: : | P105: 3057 | Q105: 2899 | R105: 3637 | S105: 3810 | T105: 4117 | U105: 4614 | V105: 4203 | W105: 4769 | X105: 5237 | Y105: 6386 | Z105: 7277 | AA105: 7252 | AB105: 7536 | AC105: 7329 | AD105: 7716 | AE105: : | AF105: : | AG105: 9318 | AH105: 9573 | AI105: : | AJ105: 11235 | AK105: 12218 | AL105: 12442 | AM105: 13508 | AN105: 8997 | AQ105: 0 | AR105: 0 | AS105: 0 | AT105: 0 | AU105: 0 | AV105: 0 | AW105: 0 | AX105: 0 | AY105: 0 | AZ105: 0 | BA105: 0 | BB105: 0 | BC105: 0 | BD105: 0 | BE105: 0 | BF105: 0 | BG105: 0 | BH105: 0 | BI105: 0 | BJ105: 0 | BK105: 0 | BL105: 0 | BM105: 0 | BN105: 0 | BO105: 0 | BP105: 0 | BQ105: 0 | BR105: 0 | BS105: 0 | BT105: 0 | BU105: 0 | BV105: 0 | BW105: 0 | BX105: 0 | BY105: 0
C106: 100 | D106: Y_OPEN | E106: Y_OPEN,T,FR | F106: : | G106: : | H106: : | I106: : | J106: : | K106: : | L106: : | M106: : | N106: : | O106: : | P106: 3886 | Q106: 4380 | R106: 4459 | S106: 5015 | T106: 5649 | U106: 6304 | V106: 7108 | W106: 7260 | X106: 7754 | Y106: 8162 | Z106: 9445 | AA106: 11033 | AB106: 11949 | AC106: 12398 | AD106: 13189 | AE106: 21779 | AF106: 22645 | AG106: 14951 | AH106: 15821 | AI106: 27540 | AJ106: 18233 | AK106: 19906 | AL106: 20897 | AM106: 22215 | AN106: 24458 | AQ106: 0 | AR106: 0 | AS106: 0 | AT106: 0 | AU106: 0 | AV106: 0 | AW106: 0 | AX106: 0 | AY106: 0 | AZ106: 0 | BA106: 0 | BB106: 0 | BC106: 0 | BD106: 0 | BE106: 0 | BF106: 0 | BG106: 0 | BH106: 0 | BI106: 0 | BJ106: 0 | BK106: 0 | BL106: 0 | BM106: 0 | BN106: 0 | BO106: 0 | BP106: 0 | BQ106: 0 | BR106: 0 | BS106: 0 | BT106: 0 | BU106: 0 | BV106: 0 | BW106: 0 | BX106: 0 | BY106: 0
AO107: Go to Summary | AU107: forecasting by exponential extrapolation
AO108: go to Introduction | AQ108: =AQ109^2 -> 1 | AR108: =AR109^2 -> 4 | AS108: 9 | AT108: 16 | AU108: 25 | AV108: 36 | AW108: 49 | AX108: 64 | AY108: 81 | AZ108: 100 | BA108: 121 | BB108: 144 | BC108: 169 | BD108: 196 | BE108: 225 | BF108: 256 | BG108: 289 | BH108: 324 | BI108: 361 | BJ108: 400 | BK108: 441 | BL108: 484 | BM108: 529 | BN108: 576 | BO108: 625 | BP108: 676 | BQ108: 729 | BR108: 784 | BS108: 841 | BT108: 900 | BU108: 961 | BV108: 1024 | BW108: 1089 | BX108: 1156 | BY108: 1225 | BZ108: 1296 | CA108: 1369 | CB108: 1444 | CC108: 1521 | CD108: 1600 | CE108: 1681 | CF108: 1764 | CG108: 1849 | CH108: 1936 | CI108: =CI109^2 -> 2025 | CJ108: =CJ109^2 -> 2116 | CK108: 2209 | CL108: 2304 | CM108: 2401 | CN108: 2500
AO109: go to charts | AQ109: 1 | AR109: 2 | AS109: 3 | AT109: 4 | AU109: 5 | AV109: 6 | AW109: 7 | AX109: 8 | AY109: 9 | AZ109: 10 | BA109: 11 | BB109: 12 | BC109: 13 | BD109: 14 | BE109: 15 | BF109: 16 | BG109: 17 | BH109: 18 | BI109: 19 | BJ109: 20 | BK109: 21 | BL109: 22 | BM109: 23 | BN109: 24 | BO109: 25 | BP109: 26 | BQ109: 27 | BR109: 28 | BS109: 29 | BT109: 30 | BU109: 31 | BV109: 32 | BW109: 33 | BX109: 34 | BY109: 35 | BZ109: 36 | CA109: 37 | CB109: 38 | CC109: 39 | CD109: 40 | CE109: 41 | CF109: 42 | CG109: 43 | CH109: 44 | CI109: 45 | CJ109: 46 | CK109: 47 | CL109: 48 | CM109: 49 | CN109: 50
AO110: go to Data collection | AQ110: 1981 | AR110: 1982 | AS110: 1983 | AT110: 1984 | AU110: 1985 | AV110: 1986 | AW110: 1987 | AX110: 1988 | AY110: 1989 | AZ110: 1990 | BA110: 1991 | BB110: 1992 | BC110: 1993 | BD110: 1994 | BE110: 1995 | BF110: 1996 | BG110: 1997 | BH110: 1998 | BI110: 1999 | BJ110: 2000 | BK110: 2001 | BL110: 2002 | BM110: 2003 | BN110: 2004 | BO110: 2005 | BP110: 2006 | BQ110: 2007 | BR110: 2008 | BS110: 2009 | BT110: 2010 | BU110: 2011 | BV110: 2012 | BW110: 2013 | BX110: 2014 | BY110: 2015 | BZ110: 2016 | CA110: 2017 | CB110: 2018 | CC110: 2019 | CD110: 2020 | CE110: 2021 | CF110: 2022 | CG110: 2023 | CH110: 2024 | CI110: 2025 | CJ110: 2026 | CK110: 2027 | CL110: 2028 | CM110: 2029 | CN110: 2030
AP111: Time series: total selected population | AQ111: =SUM(AQ6:AQ106) -> 0 | AR111: =SUM(AR6:AR106) -> 0 | AS111: 0 | AT111: 0 | AU111: 0 | AV111: 0 | AW111: 0 | AX111: 0 | AY111: 0 | AZ111: 0 | BA111: 5706279 | BB111: 5811527 | BC111: 5927527 | BD111: 6016329 | BE111: 6118786 | BF111: 6215432 | BG111: 6431827 | BH111: 6671731 | BI111: 6892573 | BJ111: 7079835 | BK111: 7244219 | BL111: 7243499 | BM111: 7250511 | BN111: 7256729 | BO111: 7273536 | BP111: 7293225 | BQ111: 7251890 | BR111: 7185181 | BS111: 7176013 | BT111: 7191873 | BU111: 7221767 | BV111: 7242884 | BW111: 7458013 | BX111: 7695311 | BY111: 7968556 | BZ111: =FORECAST(BZ109,$AQ$111:$BY$111,$AQ$109:$BY$109) -> 9794221.704 | CA111: =FORECAST(CA109,$AQ$111:$BY$111,$AQ$109:$BY$109) -> 10064019.65 | CB111: 10333817.6 | CC111: 10603615.55 | CD111: 10873413.49 | CE111: 11143211.44 | CF111: 11413009.39 | CG111: 11682807.33 | CH111: 11952605.28 | CI111: =FORECAST(CI109,$AQ$111:$BY$111,$AQ$109:$BY$109) -> 12222403.23 | CJ111: =FORECAST(CJ109,$AQ$111:$BY$111,$AQ$109:$BY$109) -> 12492201.17 | CK111: 12761999.12 | CL111: 13031797.07 | CM111: 13301595.02 | CN111: 13571392.96 | CO111: linear
AP112: Forecast: total selected population | AQ112: =AQ111 -> 0 | AR112: =AR111 -> 0 | AS112: 0 | AT112: 0 | AU112: 0 | AV112: 0 | AW112: 0 | AX112: 0 | AY112: 0 | AZ112: 0 | BA112: 5706279 | BB112: 5811527 | BC112: 5927527 | BD112: 6016329 | BE112: 6118786 | BF112: 6215432 | BG112: 6431827 | BH112: 6671731 | BI112: 6892573 | BJ112: 7079835 | BK112: 7244219 | BL112: 7243499 | BM112: 7250511 | BN112: 7256729 | BO112: 7273536 | BP112: 7293225 | BQ112: 7251890 | BR112: 7185181 | BS112: 7176013 | BT112: 7191873 | BU112: 7221767 | BV112: 7242884 | BW112: 7458013 | BX112: 7695311 | BY112: 7968556
BZ113: =BZ111 -> 9794221.704 | CA113: =CA111 -> 10064019.65 | CB113: 10333817.6 | CC113: 10603615.55 | CD113: 10873413.49 | CE113: 11143211.44 | CF113: 11413009.39 | CG113: 11682807.33 | CH113: 11952605.28 | CI113: 12222403.23 | CJ113: 12492201.17 | CK113: 12761999.12 | CL113: 13031797.07 | CM113: 13301595.02 | CN113: 13571392.96
AP114: exponential
BZ115: =FORECAST(BZ108,$AQ$111:$BY$111,$AQ$108:$BY$108) -> 10448880.51 | CA115: =FORECAST(CA108,$AQ$111:$BY$111,$AQ$108:$BY$108) -> 10911299.58 | CB115: 11386387.67 | CC115: 11874144.78 | CD115: 12374570.9 | CE115: 12887666.04 | CF115: =FORECAST(CF108,$AQ$111:$BY$111,$AQ$108:$BY$108) -> 13413430.2 | CG115: 13951863.36 | CH115: 14502965.55 | CI115: =FORECAST(CI108,$AQ$111:$BY$111,$AQ$108:$BY$108) -> 15066736.75 | CJ115: 15643176.97 | CK115: 16232286.2 | CL115: 16834064.45 | CM115: 17448511.71 | CN115: =FORECAST(CN108,$AQ$111:$BY$111,$AQ$108:$BY$108) -> 18075627.99 | CO115: exponential
AP121: ='input selections'!A3 -> France
AP122: -
AP123: ='input selections'!G10 -> 65
AP124: ='input selections'!H10 -> 80
AP125: ,
AP126: =CONCATENATE(AP111,AP122,AP121,AP125,AP123,AP122,AP124) -> Time series: total selected population - France, 65 - 80
AP127: =CONCATENATE(AP112,AP122,AP121,AP125,AP123,AP122,AP124) -> Forecast: total selected population - France, 65 - 80
AO130: ='input selections'!A3 -> France | AP130: 2015 | AS130: 2030
AO131: Selected population | AP131: =popselect -> 7968556 | AS131: =CN115 -> 18075627.99
AO132: % change to 2025 | AS132: =AS131/AP131-1 -> 1.268369325
AO135: Costs and benefits - No risk stratification | AP135: Costs | AQ135: Benefits | AS135: Costs | AT135: Benefits
AP136: €m | AQ136: €m | AS136: €m | AT136: €m
AO137: Net total cost of reviews | AP137: ='Review costs and WTE'!M57 -> 622.087615 | AQ137: 0 | AS137: =(1+$AS$132)*AP137 -> 1411.124463 | AT137: 0
AO138: Drugs cost avoided | AP138: 0 | AQ138: ='drugs saved'!L39 -> 1711.197041 | AS138: 0 | AT138: 3881.626876
AO139: Definitely avoidable cost of ADR related bed days | AP139: 0 | AQ139: ='Indirect Impacts'!AA108 -> 9.486622404 | AS139: 0 | AT139: 21.51916326
AO140: Additional potentially avoidable cost of ADR related bed days | AP140: 0 | AQ140: =AQ141-AQ139 -> 56.91973443 | AS140: 0 | AT140: 129.1149795
AO141: Potentially avoidable cost of ADR related bed days | AQ141: ='Indirect Impacts'!AA123 -> 66.40635683 | AT141: =(1+$AS$132)*AQ141 -> 150.6341428
AO143: Costs and benefits - BNF 10+ | AP143: Costs | AQ143: Benefits | AS143: Costs | AT143: Benefits
AP144: €m | AQ144: €m | AS144: €m | AT144: €m
AO145: Net total cost of reviews | AP145: ='Review costs and WTE'!N57 -> 29.26563277 | AQ145: 0 | AS145: =(1+$AS$132)*AP145 -> 66.38526364 | AT145: 0
AO146: Drugs cost avoided | AP146: 0 | AQ146: ='drugs saved'!M39 -> 80.50194699 | AS146: 0 | AT146: 182.6081471
AO147: Definitely avoidable cost of ADR related bed days | AP147: 0 | AQ147: ='Indirect Impacts'!AB108 -> 1.54917387 | AS147: 0 | AT147: 3.514098484
AO148: Additional potentially avoidable cost of ADR related bed days | AP148: 0 | AQ148: =AQ149-AQ147 -> 9.295043217 | AS148: 0 | AT148: 21.0845909
AO149: Potentially avoidable cost of ADR related bed days | AQ149: ='Indirect Impacts'!AB123 -> 10.84421709 | AT149: =(1+$AS$132)*AQ149 -> 24.59868939
AO151: Costs and benefits - BNF10+ & High Risk Med | AP151: Costs | AQ151: Benefits | AS151: Costs | AT151: Benefits
AP152: €m | AQ152: €m | AS152: €m | AT152: €m
AO153: Net total cost of reviews | AP153: ='Review costs and WTE'!O57 -> 28.5806715 | AQ153: 0 | AS153: =(1+$AS$132)*AP153 -> 64.83151851 | AT153: 0
AO154: Drugs cost avoided | AP154: 0 | AQ154: ='drugs saved'!N39 -> 78.61780131 | AS154: 0 | AT154: 178.3342089
AO155: Definitely avoidable cost of ADR related bed days | AP155: 0 | AQ155: ='Indirect Impacts'!AC108 -> 1.342845962 | AS155: 0 | AT155: 3.046070587
AO156: Additional potentially avoidable cost of ADR related bed days | AP156: 0 | AQ156: =AQ157-AQ155 -> 8.05707577 | AS156: 0 | AT156: 18.27642352
AO157: Potentially avoidable cost of ADR related bed days | AQ157: ='Indirect Impacts'!AC123 -> 9.399921731 | AT157: =(1+$AS$132)*AQ157 -> 21.32249411
AO159: Costs and benefits - BNF 5-9 | AP159: Costs | AQ159: Benefits | AS159: Costs | AT159: Benefits
AP160: €m | AQ160: €m | AS160: €m | AT160: €m
AO161: Net total cost of reviews | AP161: ='Review costs and WTE'!P57 -> 33.20888437 | AQ161: 0 | AS161: =(1+$AS$132)*AP161 -> 75.3300146 | AT161: 0
AO162: Drugs cost avoided | AP162: 0 | AQ162: ='drugs saved'!O39 -> 91.34877998 | AS162: 0 | AT162: 207.2127703
AO163: Definitely avoidable cost of ADR related bed days | AP163: 0 | AQ163: ='Indirect Impacts'!AD108 -> 1.620794661 | AS163: 0 | AT163: 3.676560891
AO164: Additional potentially avoidable cost of ADR related bed days | AP164: 0 | AQ164: =AQ165-AQ163 -> 9.724767968 | AS164: 0 | AT164: 22.05936535
AO165: Potentially avoidable cost of ADR related bed days | AQ165: ='Indirect Impacts'!AD123 -> 11.34556263 | AT165: =(1+$AS$132)*AQ165 -> 25.73592624
AO167: Costs and benefits - BNF 5-9 & High Risk Med | AP167: Costs | AQ167: Benefits | AS167: Costs | AT167: Benefits
AP168: €m | AQ168: €m | AS168: €m | AT168: €m
AO169: Net total cost of reviews | AP169: ='Review costs and WTE'!Q57 -> 32.02630203 | AQ169: 0 | AS169: =(1+$AS$132)*AP169 -> 72.64748112 | AT169: 0
AO170: Drugs cost avoided | AP170: 0 | AQ170: ='drugs saved'!P39 -> 88.09581153 | AS170: 0 | AT170: 199.8338365
AO171: Definitely avoidable cost of ADR related bed days | AP171: 0 | AQ171: ='Indirect Impacts'!AE108 -> 1.381255215 | AS171: 0 | AT171: 3.133196959
AO172: Additional potentially avoidable cost of ADR related bed days | AP172: 0 | AQ172: =AR173-AQ171 -> 8.287531291 | AS172: 0 | AT172: 18.79918176
AP173: Potentially avoidable cost of ADR related bed days | AR173: ='Indirect Impacts'!AE123 -> 9.668786506 | AU173: =(1+$AS$132)*AR173 -> 21.93237872

Sheet Data collection
A1: Level 1 | B1: Level 2 | C1: Level 3 | D1: Level 4 | E1: Level 5 | F1: Data point | H1: Recorded data
A2: Choice parameters | B2: Choice parameters | C2: Choice parameters | D2: Popuation selection | E2: Popuation selection | F2: ='input selections'!A2 -> Apply country specific population
A3: Choice parameters | B3: Choice parameters | C3: Choice parameters | D3: Country | E3: Country | F3: ='input selections'!A3 -> France
A4: Choice parameters | B4: Choice parameters | C4: Choice parameters | D4: Country code | E4: Country code | F4: ='input selections'!G3 -> FR
A5: Choice parameters | B5: Choice parameters | C5: Choice parameters | D5: sex | E5: sex | F5: ='input selections'!A6 -> Total
A6: Choice parameters | B6: Choice parameters | C6: Choice parameters | D6: age min | E6: age min | F6: ='input selections'!A10 -> 65
A7: Choice parameters | B7: Choice parameters | C7: Choice parameters | D7: age max | E7: age max | F7: ='input selections'!B10 -> 80
A8: Choice parameters | B8: Choice parameters | C8: Choice parameters | D8: Risk stratification | E8: Risk stratification | F8: ='input selections'!A13 -> FALSE
A9: Choice parameters | B9: Choice parameters | C9: Choice parameters | D9: if yes | E9: if yes | F9: ='input selections'!A15 -> Apply Scottish risk profile
A10: Choice parameters | B10: Choice parameters | C10: Choice parameters | D10: Reviews | E10: Reviews | F10: ='input selections'!A18 -> Apply Scottish review set-up
A11: Choice parameters | B11: Choice parameters | C11: Choice parameters | D11: Staff cost | E11: Staff cost | F11: ='input selections'!A21 -> Apply Scottish profile for staff cost
A12: Choice parameters | B12: Choice parameters | C12: Choice parameters | D12: Review Charges | E12: Review Charges | F12: ='input selections'!A24 -> No charge for reviews
A13: Choice parameters | B13: Choice parameters | C13: Choice parameters | D13: Number of drugs | E13: Number of drugs | F13: ='input selections'!A27 -> Apply Scottish profile for DDDs stopped / started
A14: Choice parameters | B14: Choice parameters | C14: Choice parameters | D14: Drugs cost | E14: Drugs cost | F14: ='input selections'!A35 -> Apply Scottish profile for annual cost per DDD
A15: Choice parameters | B15: Choice parameters | C15: Choice parameters | D15: Cost per bed day | E15: Cost per bed day | F15: ='input selections'!A38 -> Apply Scottish profile for cost per bed day
A16: Choice parameters | B16: Choice parameters | C16: Choice parameters | D16: Bed day type | E16: Bed day type | F16: ='input selections'!A39 -> General Medicine Gross direct cost per bed day
A17: Choice parameters | B17: Choice parameters | C17: Choice parameters | D17: Admission rates | E17: Admission rates | F17: ='input selections'!A42 -> Apply Scottish profile for admission rates
A18: Input parameters | B18: Review cost | C18: GPs (Primary Care Doctors) | D18: GPs (Primary Care Doctors) | E18: Minutes | F18: ='Review costs and WTE'!F23 -> 30
A19: Input parameters | B19: Review cost | C19: GPs (Primary Care Doctors) | D19: GPs (Primary Care Doctors) | E19: Cost | F19: ='Review costs and WTE'!F24 -> 1.025391225
A20: Input parameters | B20: Review cost | C20: GPs (Primary Care Doctors) | D20: GPs (Primary Care Doctors) | E20: Cost per review | F20: ='Review costs and WTE'!F27 -> 30.76173674
A21: Input parameters | B21: Review cost | C21: Other doctors | D21: Other doctors | E21: Minutes | F21: ='Review costs and WTE'!G23 -> 0
A22: Input parameters | B22: Review cost | C22: Other doctors | D22: Other doctors | E22: Cost | F22: ='Review costs and WTE'!G24 -> 1.631
A23: Input parameters | B23: Review cost | C23: Other doctors | D23: Other doctors | E23: Cost per review | F23: ='Review costs and WTE'!G27 -> 0
A24: Input parameters | B24: Review cost | C24: Pharmacists | D24: Pharmacists | E24: Minutes | F24: ='Review costs and WTE'!H23 -> 75
A25: Input parameters | B25: Review cost | C25: Pharmacists | D25: Pharmacists | E25: Cost | F25: ='Review costs and WTE'!H24 -> 0.6307474747
A26: Input parameters | B26: Review cost | C26: Pharmacists | D26: Pharmacists | E26: Cost per review | F26: ='Review costs and WTE'!H27 -> 47.30606061
A27: Input parameters | B27: Review cost | C27: Nurses | D27: Nurses | E27: Minutes | F27: ='Review costs and WTE'!I23 -> 0
A28: Input parameters | B28: Review cost | C28: Nurses | D28: Nurses | E28: Cost | F28: ='Review costs and WTE'!I24 -> 0.4083383838
A29: Input parameters | B29: Review cost | C29: Nurses | D29: Nurses | E29: Cost per review | F29: ='Review costs and WTE'!I27 -> 0
A30: Input parameters | B30: Review cost | C30: Total cost per review | D30: Total cost per review | E30: Total cost per review | F30: ='Review costs and WTE'!J27 -> 78.06779735
A31: Input parameters | B31: Net drug savings | C31: Number of DDDs | D31: Drugs started (DDDs) | E31: Drugs started (DDDs) | F31: ='drugs saved'!F8 -> 0.4
A32: Input parameters | B32: Net drug savings | C32: Number of DDDs | D32: Drugs stopped (DDDs) | E32: Drugs stopped (DDDs) | F32: ='drugs saved'!E8 -> 2.1
A33: Input parameters | B33: Net drug savings | C33: Number of DDDs | D33: Net number of DDDs decreased per review per annum | E33: Net number of DDDs decreased per review per annum | F33: ='drugs saved'!D22 -> 1.7
A34: Input parameters | B34: Net drug savings | C34: Cost of DDDs | D34: Annual cost per DDD | E34: Annual cost per DDD | F34: ='drugs saved'!E22 -> 126.3198119
A35: Input parameters | B35: Net drug savings | C35: Cost of DDDs | D35: Potential savings per review for full year | E35: Potential savings per review for full year | F35: ='drugs saved'!F22 -> 214.7436802
A36: Input parameters | B36: Input parameters | C36: ADRs | D36: Proportion of ADRs avoidable through PPH | E36: Proportion of ADRs avoidable through PPH | F36: ='Indirect Impacts'!E22 -> 0.6
A37: Fixed parameters | B37: Pirmohamed central estimates | C37: ADRs | D37: Adverse drug events accounting for % of hospital admissions | E37: average | F37: 0.065
A38: Fixed parameters | B38: Pirmohamed central estimates | C38: ADRs | D38: % of ADRs definitely avoidable | E38: average | F38: 0.09
A39: Fixed parameters | B39: Pirmohamed central estimates | C39: ADRs | D39: % of ADRs possibly avoidable | E39: average | F39: 0.63
A40: Fixed parameters | B40: Pirmohamed central estimates | C40: bed days | D40: median bed day | E40: median | F40: ='Indirect Impacts'!E20 -> 3.1
A41: Output | B41: No risk stratification | C41: No risk stratification | D41: Population | E41: Population summary | F41: ='risk stratification'!B10 -> 7968556
A42: Output | B42: No risk stratification | C42: No risk stratification | D42: Admissions | E42: Average admission rate | F42: ='admission rate var'!D3 -> 0.292536278
A43: Output | B43: No risk stratification | C43: No risk stratification | D43: Admissions | E43: Admission | F43: ='Indirect Impacts'!F34 -> 2331091.713
A44: Output | B44: No risk stratification | C44: No risk stratification | D44: Review Charge | E44: Review charge | F44: ='Review costs and WTE'!F51 -> 0
A45: Output | B45: No risk stratification | C45: No risk stratification | D45: Net total cost of reviews | E45: Net total cost of reviews | F45: ='Review costs and WTE'!F57 -> 622087615
A46: Output | B46: No risk stratification | C46: No risk stratification | D46: Avoided drugs cost | E46: Avoided drugs cost | F46: ='drugs saved'!D39 -> 1711197041
A47: Output | B47: No risk stratification | C47: No risk stratification | D47: ADRs | E47: ADR admissions | F47: ='Indirect Impacts'!F44 -> 151520.9613
A48: Output | B48: No risk stratification | C48: No risk stratification | D48: ADRs | E48: propn ADR def avoid | F48: ='Indirect Impacts'!F59 -> 8182.131912
A49: Output | B49: No risk stratification | C49: No risk stratification | D49: ADRs | E49: propn ADR poss avoid | F49: ='Indirect Impacts'!F74 -> 57274.92339
A50: Output | B50: No risk stratification | C50: No risk stratification | D50: Avoidable bed days] | E50: ADR Bed days | F50: ='Indirect Impacts'!F93 -> 469714.9802
A51: Output | B51: No risk stratification | C51: No risk stratification | D51: Avoidable bed days] | E51: Bed days definitely avoidable | F51: ='Indirect Impacts'!F108 -> 25364.60893
A52: Output | B52: No risk stratification | C52: No risk stratification | D52: Avoidable bed days] | E52: Bed days potentially avoidable | F52: ='Indirect Impacts'!F123 -> 177552.2625
A53: Output | B53: No risk stratification | C53: No risk stratification | D53: Cost of bed days | E53: cost per bed day | F53: ='Indirect Impacts'!$C$34 -> 374.0101979
A54: Output | B54: No risk stratification | C54: No risk stratification | D54: Cost of bed days | E54: cost of ADR Bed days | F54: ='Indirect Impacts'!Q93 -> 175678192.7
A55: Output | B55: No risk stratification | C55: No risk stratification | D55: Cost of bed days | E55: cost of Bed days definitely avoidable | F55: ='Indirect Impacts'!Q108 -> 9486622.404
A56: Output | B56: No risk stratification | C56: No risk stratification | D56: Cost of bed days | E56: cost of Bed days potentially avoidable | F56: ='Indirect Impacts'!Q123 -> 66406356.83
A57: Output | B57: Risk stratification | C57: BNF10+ | D57: Population | E57: Average proportion at risk | F57: ='risk stratification'!BB111 -> 0.04704422989
A58: Output | B58: Risk stratification | C58: BNF10+ | D58: Population | E58: Population summary | F58: ='risk stratification'!C10 -> 374874.5803
A59: Output | B59: Risk stratification | C59: BNF10+ | D59: Admissions | E59: Average admission rate | F59: ='admission rate var'!AY110 -> 1.059638102
A60: Output | B60: Risk stratification | C60: BNF10+ | D60: Admissions | E60: Admission | F60: ='admission rate var'!BI112 -> 397231.3888
A61: Output | B61: Risk stratification | C61: BNF10+ | D61: Review Charge | E61: Review charge | F61: ='Review costs and WTE'!G51 -> 0
A62: Output | B62: Risk stratification | C62: BNF10+ | D62: Net total cost of reviews | E62: Net total cost of reviews | F62: ='Review costs and WTE'!G57 -> 29265632.77
A63: Output | B63: Risk stratification | C63: BNF10+ | D63: Avoided drugs cost | E63: Avoided drugs cost | F63: ='drugs saved'!E39 -> 80501946.99
A64: Output | B64: Risk stratification | C64: BNF10+ | D64: ADRs | E64: ADR admissions | F64: ='Indirect Impacts'!G44 -> 24743.50765
A65: Output | B65: Risk stratification | C65: BNF10+ | D65: ADRs | E65: propn ADR def avoid | F65: ='Indirect Impacts'!G59 -> 1336.149413
A66: Output | B66: Risk stratification | C66: BNF10+ | D66: ADRs | E66: propn ADR poss avoid | F66: ='Indirect Impacts'!G74 -> 9353.04589
A67: Output | B67: Risk stratification | C67: BNF10+ | D67: Avoidable bed days] | E67: ADR Bed days | F67: ='Indirect Impacts'!G93 -> 76704.8737
A68: Output | B68: Risk stratification | C68: BNF10+ | D68: Avoidable bed days] | E68: Bed days definitely avoidable | F68: ='Indirect Impacts'!G108 -> 4142.06318
A69: Output | B69: Risk stratification | C69: BNF10+ | D69: Avoidable bed days] | E69: Bed days potentially avoidable | F69: ='Indirect Impacts'!G123 -> 28994.44226
A70: Output | B70: Risk stratification | C70: BNF10+ | D70: Cost of bed days | E70: cost of ADR Bed days | F70: ='Indirect Impacts'!R93 -> 28688404.99
A71: Output | B71: Risk stratification | C71: BNF10+ | D71: Cost of bed days | E71: cost of Bed days definitely avoidable | F71: ='Indirect Impacts'!R108 -> 1549173.87
A72: Output | B72: Risk stratification | C72: BNF10+ | D72: Cost of bed days | E72: cost of Bed days potentially avoidable | F72: ='Indirect Impacts'!R123 -> 10844217.09
A73: Output | B73: Risk stratification | C73: BNF10+ & High Risk Med | D73: Population | E73: Average proportion at risk | F73: ='risk stratification'!BC111 -> 0.04594316108
A74: Output | B74: Risk stratification | C74: BNF10+ & High Risk Med | D74: Population | E74: Population summary | F74: ='risk stratification'!D10 -> 366100.6519
A75: Output | B75: Risk stratification | C75: BNF10+ & High Risk Med | D75: Admissions | E75: Average admission rate | F75: ='admission rate var'!AZ110 -> 0.7636905688
A76: Output | B76: Risk stratification | C76: BNF10+ & High Risk Med | D76: Admissions | E76: Admission | F76: ='admission rate var'!BJ112 -> 279587.6151
A77: Output | B77: Risk stratification | C77: BNF10+ & High Risk Med | D77: Review Charge | E77: Review charge | F77: ='Review costs and WTE'!H51 -> 0
A78: Output | B78: Risk stratification | C78: BNF10+ & High Risk Med | D78: Net total cost of reviews | E78: Net total cost of reviews | F78: ='Review costs and WTE'!H57 -> 28580671.5
A79: Output | B79: Risk stratification | C79: BNF10+ & High Risk Med | D79: Avoided drugs cost | E79: Avoided drugs cost | F79: ='drugs saved'!F39 -> 78617801.31
A80: Output | B80: Risk stratification | C80: BNF10+ & High Risk Med | D80: ADRs | E80: ADR admissions | F80: ='Indirect Impacts'!H44 -> 21448.02463
A81: Output | B81: Risk stratification | C81: BNF10+ & High Risk Med | D81: ADRs | E81: propn ADR def avoid | F81: ='Indirect Impacts'!H59 -> 1158.19333
A82: Output | B82: Risk stratification | C82: BNF10+ & High Risk Med | D82: ADRs | E82: propn ADR poss avoid | F82: ='Indirect Impacts'!H74 -> 8107.353312
A83: Output | B83: Risk stratification | C83: BNF10+ & High Risk Med | D83: Avoidable bed days] | E83: ADR Bed days | F83: ='Indirect Impacts'!H93 -> 66488.87637
A84: Output | B84: Risk stratification | C84: BNF10+ & High Risk Med | D84: Avoidable bed days] | E84: Bed days definitely avoidable | F84: ='Indirect Impacts'!H108 -> 3590.399324
A85: Output | B85: Risk stratification | C85: BNF10+ & High Risk Med | D85: Avoidable bed days] | E85: Bed days potentially avoidable | F85: ='Indirect Impacts'!H123 -> 25132.79527
A86: Output | B86: Risk stratification | C86: BNF10+ & High Risk Med | D86: Cost of bed days | E86: cost of ADR Bed days | F86: ='Indirect Impacts'!S93 -> 24867517.81
A87: Output | B87: Risk stratification | C87: BNF10+ & High Risk Med | D87: Cost of bed days | E87: cost of Bed days definitely avoidable | F87: ='Indirect Impacts'!S108 -> 1342845.962
A88: Output | B88: Risk stratification | C88: BNF10+ & High Risk Med | D88: Cost of bed days | E88: cost of Bed days potentially avoidable | F88: ='Indirect Impacts'!S123 -> 9399921.731
A89: Output | B89: Risk stratification | C89: BNF 5-9 | D89: Population | E89: Average proportion at risk | F89: ='risk stratification'!BD111 -> 0.05338296981
A90: Output | B90: Risk stratification | C90: BNF 5-9 | D90: Population | E90: Population summary | F90: ='risk stratification'!E10 -> 425385.1843
A91: Output | B91: Risk stratification | C91: BNF 5-9 | D91: Admissions | E91: Average admission rate | F91: ='admission rate var'!BA110 -> 0.8160678576
A92: Output | B92: Risk stratification | C92: BNF 5-9 | D92: Admissions | E92: Admission | F92: ='admission rate var'!BK112 -> 347143.1761
A93: Output | B93: Risk stratification | C93: BNF 5-9 | D93: Review Charge | E93: Review charge | F93: ='Review costs and WTE'!I51 -> 0
A94: Output | B94: Risk stratification | C94: BNF 5-9 | D94: Net total cost of reviews | E94: Net total cost of reviews | F94: ='Review costs and WTE'!I57 -> 33208884.37
A95: Output | B95: Risk stratification | C95: BNF 5-9 | D95: Avoided drugs cost | E95: Avoided drugs cost | F95: ='drugs saved'!G39 -> 91348779.98
A96: Output | B96: Risk stratification | C96: BNF 5-9 | D96: ADRs | E96: ADR admissions | F96: ='Indirect Impacts'!I44 -> 25887.43968
A97: Output | B97: Risk stratification | C97: BNF 5-9 | D97: ADRs | E97: propn ADR def avoid | F97: ='Indirect Impacts'!I59 -> 1397.921743
A98: Output | B98: Risk stratification | C98: BNF 5-9 | D98: ADRs | E98: propn ADR poss avoid | F98: ='Indirect Impacts'!I74 -> 9785.452198
A99: Output | B99: Risk stratification | C99: BNF 5-9 | D99: Avoidable bed days] | E99: ADR Bed days | F99: ='Indirect Impacts'!I93 -> 80251.063
A100: Output | B100: Risk stratification | C100: BNF 5-9 | D100: Avoidable bed days] | E100: Bed days definitely avoidable | F100: ='Indirect Impacts'!I108 -> 4333.557402
A101: Output | B101: Risk stratification | C101: BNF 5-9 | D101: Avoidable bed days] | E101: Bed days potentially avoidable | F101: ='Indirect Impacts'!I123 -> 30334.90181
A102: Output | B102: Risk stratification | C102: BNF 5-9 | D102: Cost of bed days | E102: cost of ADR Bed days | F102: ='Indirect Impacts'!T93 -> 30014715.95
A103: Output | B103: Risk stratification | C103: BNF 5-9 | D103: Cost of bed days | E103: cost of Bed days definitely avoidable | F103: ='Indirect Impacts'!T108 -> 1620794.661
A104: Output | B104: Risk stratification | C104: BNF 5-9 | D104: Cost of bed days | E104: cost of Bed days potentially avoidable | F104: ='Indirect Impacts'!T123 -> 11345562.63
A105: Output | B105: Risk stratification | C105: BNF 5-9 & High Risk Med | D105: Population | E105: Average proportion at risk | F105: ='risk stratification'!BE111 -> 0.05148197981
A106: Output | B106: Risk stratification | C106: BNF 5-9 & High Risk Med | D106: Population | E106: Population summary | F106: ='risk stratification'!F10 -> 410237.0391
A107: Output | B107: Risk stratification | C107: BNF 5-9 & High Risk Med | D107: Admissions | E107: Average admission rate | F107: ='admission rate var'!BB110 -> 0.5956102896
A108: Output | B108: Risk stratification | C108: BNF 5-9 & High Risk Med | D108: Admissions | E108: Admission | F108: ='admission rate var'!BL112 -> 244341.4017
A109: Output | B109: Risk stratification | C109: BNF 5-9 & High Risk Med | D109: Review Charge | E109: Review charge | F109: ='Review costs and WTE'!J51 -> 0
A110: Output | B110: Risk stratification | C110: BNF 5-9 & High Risk Med | D110: Net total cost of reviews | E110: Net total cost of reviews | F110: ='Review costs and WTE'!J57 -> 32026302.03
A111: Output | B111: Risk stratification | C111: BNF 5-9 & High Risk Med | D111: Avoided drugs cost | E111: Avoided drugs cost | F111: ='drugs saved'!H39 -> 88095811.53
A112: Output | B112: Risk stratification | C112: BNF 5-9 & High Risk Med | D112: ADRs | E112: ADR admissions | F112: ='Indirect Impacts'!J44 -> 22061.49978
A113: Output | B113: Risk stratification | C113: BNF 5-9 & High Risk Med | D113: ADRs | E113: propn ADR def avoid | F113: ='Indirect Impacts'!J59 -> 1191.320988
A114: Output | B114: Risk stratification | C114: BNF 5-9 & High Risk Med | D114: ADRs | E114: propn ADR poss avoid | F114: ='Indirect Impacts'!J74 -> 8339.246915
A115: Output | B115: Risk stratification | C115: BNF 5-9 & High Risk Med | D115: Avoidable bed days] | E115: ADR Bed days | F115: ='Indirect Impacts'!J93 -> 68390.6493
A116: Output | B116: Risk stratification | C116: BNF 5-9 & High Risk Med | D116: Avoidable bed days] | E116: Bed days definitely avoidable | F116: ='Indirect Impacts'!J108 -> 3693.095062
A117: Output | B117: Risk stratification | C117: BNF 5-9 & High Risk Med | D117: Avoidable bed days] | E117: Bed days potentially avoidable | F117: ='Indirect Impacts'!J123 -> 25851.66544
A118: Output | B118: Risk stratification | C118: BNF 5-9 & High Risk Med | D118: Cost of bed days | E118: cost of ADR Bed days | F118: ='Indirect Impacts'!U93 -> 25578800.28
A119: Output | B119: Risk stratification | C119: BNF 5-9 & High Risk Med | D119: Cost of bed days | E119: cost of Bed days definitely avoidable | F119: ='Indirect Impacts'!U108 -> 1381255.215
A120: Output | B120: Risk stratification | C120: BNF 5-9 & High Risk Med | D120: Cost of bed days | E120: cost of Bed days potentially avoidable | F120: ='Indirect Impacts'!U123 -> 9668786.506

Sheet data sources and parameters
A2: return to Introduction
A4: Data type | B4: Source | C4: Country | D4: Accessed | E4: File name | F4: File link
A5: Population data | B5: Eurostat data | C5: All | D5: 2016-07-19 | E5: demopjan | F5: http://ec.europa.eu/eurostat/web/population-demography-migration-projections/population-data/database
A6: Population data | B6: NRS Scotland data | C6: Scotland | D6: 2016-07-19 | E6: table 2 | F6: http://www.nrscotland.gov.uk/statistics-and-data/statistics/statistics-by-theme/population/population-estimates/mid-year-population-estimates/mid-2015-and-corrected-mid-2012-to-mid-2014/list-of-tables
A7: Population data | B7: NRS Scotland time series data | C7: Scotland | D7: 2016-09-02 | E7: table 1 | F7: http://www.nrscotland.gov.uk/statistics-and-data/statistics/statistics-by-theme/population/population-estimates/mid-year-population-estimates/population-estimates-time-series-data
A8: Prescription cost data | B8: ISD prescription cost analysis | C8: Scotland | D8: 2016-07-20 | E8: 2016-07-01 | F8: http://www.isdscotland.org/Health-Topics/Prescribing-and-Medicines/Publications/data-tables.asp?id=1693#1693
A9: Scottish Salary data | B9: AfC salaries | C9: Scotland | F9: HSCA workforce team data
A10: Scottish Salary data | B10: GP salary | C10: Scotland | D10: 2016-07-20 | F10: https://www.bma.org.uk/advice/employment/pay/general-practitioners-pay
A11: Bed day cost | B11: Cost per bed day | C11: Scotland | D11: 2016-07-25 | E11: R040 | F11: http://www.isdscotland.org/Health-Topics/Finance/Costs/File-Listings-2015.asp
A12: Risk of Admission data | B12: Scottish Patients at Risk of Readmission or Admission data | C12: Scotland | D12: 2016-09-12 | F12: data request to ISD SPARRA team
A13: Inpatient emergency admissions into General Medicine | B13: ISD hospital data - inpatient and day case activity | C13: Scotland | D13: 2017-02-15 | F13: http://www.isdscotland.org/Health-Topics/Hospital-Care/Inpatient-and-Day-Case-Activity/
A14: Exchange rates | B14: XE.com | C14: All | D14: 2017-03-03 | F14: http://www.xe.com/
A15: Clinician Salary data | B15: OECD | C15: Various | D15: 2016-09-12 | F15: http://stats.oecd.org/ | G15: not in use
A16: DDDs | B16: OECD | C16: Various | D16: 2016-09-12 | F16: http://stats.oecd.org/ | G16: not in use
A17: Sales value | B17: OECD | C17: Various | D17: 2016-09-12 | F17: http://stats.oecd.org/ | G17: not in use
A20: Parameter overview
A22: Parameter | B22: Variable type | C22: Variable explanation | D22: Assumptions made
A24: Core Variables
A25: Population sample | B25: choice / input var | C25: Select either own population sample or pre-set country level population for EU28 or Scotland | D25: Model takes a 'top-down' approach and subsequent variables are applied to total selected population to give estimates of maximum resulting costs / benefits
A26: Geographic Region | B26: choice var | C26: if Country level population chosen, select country
A27: Age group | B27: choice var | C27: select min / max age group in sample
A28: sex | B28: choice var | C28: select male / female / total
A30: Risk stratification
A31: Risk stratification | B31: choice var | C31: choose whether to apply risk stratification yes / no
A32: Risk of admission / re-admission | B32: choice / input var | C32: if yes, choose either own blanket risk of admission, or Scottish risk profile for selected population. No data currently for EU28 country setup | D32: Admission risk for Scotland based on algorithm of previous admission history and patient characteristics for different risk groups (different levels of drug prescriptions). Assumption that risk stratified population groups will be impacted on most by PPH reviews
A34: Polypharmacy review setup
A35: Review setup | B35: choice / input var | C35: Staff types involved with PPH reviews. Choose either own setup with own data input (hours per staff type per activity per review), or Scottish setup. No data currently for EU28 country setup
A36: Staff cost | B36: choice / input var | C36: Wage cost of staff involved with PPH reviews. Choose either own setup with own data input (annual WTE cost per staff type), or Scottish setup. No data currently for EU28 country setup | D36: In Scotland, reviews are no longer paid by Local Enhanced Service and are part of regular clinician activity. Costs are therefore not additional to overall wage bill and can be seen as opportunity cost. Option to add in travel time and associated staff cost, but not currently including patient time cost.
A37: Charge per review | B37: choice / input var | C37: Choose whether charge per review is applicable (recouping cost per review). Choose yes / no and own input if yes. Not applicable to Scotland and no data currently for EU28 country setup
A38: DDDs stopped / started | B38: choice / input var | C38: determine average DDDs stopped / started per review. Choose either own setup with own data input, or Scottish setup. No data currently for EU28 country setup
A40: Health System Variables
A41: Average annual cost per DDD | B41: choice / input var | C41: Determine average annual cost per DDD to be used. Choose either own input, country specific data, or Scottish data. EU28 country data partially complete (OECD)
A42: Admission rates | B42: choice / input var | C42: Determine admission rates to be applied to selected population group. Choose own blanket rate applied across entire selected population, or Scottish profile based on SPARRA data. No data currently for EU28 country setup
A43: Inpatient cost per bed day | B43: choice / input var | C43: Choose between own data input cost per bed day, or Scottish cost. No data currently for EU28 country setup
A46: Indirect model parameters
A47: Cost type for inpatient cost | B47: currently fixed to General Medicine Gross direct cost per bed day
A49: assumed ADR rate associated with stratified population | B49: fixed var | C49: currently based on results of British study, Pirmohamed et al (2004) | D49: most of the estimated indirect benefits based on assumptions from one key paper in the literature. uncertainty around the applicability of the results from one study onto the entire population of EU28
A50: assumed rate of definitely avoidable ADRs | B50: fixed var
A51: assumed rate of possibly avoidable ADRs | B51: fixed var
A52: hospital admissions associated with ADRs | B52: fixed var
A53: assumed proportion of avoidable ADRs avoided through polypharmacy reviews | B53: choice / input var | C53: Imposes what proportion of avoidable ADRs is assumed to be avoided due to a PPH review | D53: PPH reviews will be one of the contributing factors leading towards avoidable ADRs and hospital admissions, but assumptions have to be made around what proportion this factor will take up in local circumstances.
A54: assumed Length of Stay (LOS), bed days per hospital admission | B54: fixed var | C54: based on recent Scottish data (ISD), to give a more up-to-date estimate than the median used by Pirmohamed et al (2004)

Sheet manual data input (hidden)
A1: 1 | B1: 2 | C1: 3 | D1: 4 | E1: 5 | F1: 6 | G1: 7 | H1: 8 | I1: 9 | J1: 10 | K1: 11 | L1: 12 | M1: 13 | N1: 14 | O1: 15 | P1: 16 | Q1: 17 | R1: 18 | S1: 19 | T1: 20 | U1: 21 | V1: 22 | W1: 23 | X1: 24 | Y1: 25 | Z1: 26 | AA1: 27 | AB1: 28 | AC1: 29 | AD1: 30 | AE1: 31 | AF1: 32 | AG1: 33 | AH1: 34 | AI1: 35 | AJ1: 36 | AK1: 37 | AL1: 38 | AM1: 39 | AN1: 40 | AO1: 41 | AP1: 42
A2: Manual data input | C2: Risk stratification | I2: Hospital admissions | O2: Number of drugs started / stopped | R2: Average drug cost per item | U2: Staff time allocation | Y2: Travel time | AB2: Staff cost | AE2: Charge per review | AH2: Average cost per bed day | AM2: Population | AO2: Avoidable ADRs through PPH
C3: add explanatory paragraph | E3: add risk in terms of % of population in age and risk category | G3: alternative | I3: add explanatory paragraph | K3: add average number of hospital admission per patient in age group | M3: alternative | S3: Enter cost in local currency | W3: Enter time in minutes | Z3: Enter time in hours | AC3: Enter total WTE salary cost incl. on-cost | AF3: Enter amount charged per review | AI3: Enter Average cost per bed day as applicable | AM3: Enter own population sample | AO3: Enter own assumption around % of ADRs avoidable through PPH
C4: too much detail for user? | I4: not currently in use | Y4: not currently in use | AC4: in local currency | AF4: in local currency | AI4: in local currency
C5: age | D5: 10+ BNF items dispensed | E5: 10+ items and high risk meds | G5: Blanket risk category across all age groups | I5: age | J5: 10+ BNF items dispensed | K5: 10+ items and high risk meds | M5: Blanket admission rate across all age groups | AE5: Set own options | AF5: Charge per review
C6: 0 | G6: =G7/100 -> 0 | I6: 0 | M6: =M7/100 -> 0 | O6: set own stopped | P6: 2.1 | R6: Average drug cost per item | S6: 0 | U6: Patient review | V6: GPs (Primary Care Doctors) | W6: 0 | Y6: GPs (Primary Care Doctors) | AB6: GPs (Primary Care Doctors) | AC6: 85000 | AE6: override profiles | AF6: 0 | AH6: General Medicine | AI6: Gross direct cost per bed day | AJ6: 0 | AM6: 0 | AO6: =AO7/100 -> 0.6
C7: 1 | G7: 0 | I7: 1 | M7: 0 | O7: set own optimised | V7: Other doctors | W7: 0 | Y7: Other doctors | AB7: Other doctors | AC7: 140000 | AI7: Net Total cost per bed day | AO7: 60
C8: 2 | I8: 2 | O8: set own started | P8: 0.4 | V8: Pharmacists | W8: 0 | Y8: Pharmacists | AB8: Pharmacists | AC8: 50000 | AH8: Geriatric Assessment | AI8: Gross direct cost per bed day
C9: 3 | I9: 3 | O9: set own repeats | P9: 0 | V9: Nurses | W9: 0 | Y9: Nurses | AB9: Nurses | AC9: 35000 | AI9: Net Total cost per bed day
C10: 4 | I10: 4 | U10: Discussion between professional practitioners | V10: GPs (Primary Care Doctors) | W10: 0 | Y10: Patients
C11: 5 | I11: 5 | V11: Other doctors | W11: 0
C12: 6 | I12: 6 | V12: Pharmacists | W12: 0
C13: 7 | I13: 7 | V13: Nurses | W13: 0
C14: 8 | I14: 8 | U14: Discussion with patient | V14: GPs (Primary Care Doctors) | W14: 0
C15: 9 | I15: 9 | V15: Other doctors | W15: 0
C16: 10 | I16: 10 | V16: Pharmacists | W16: 0
C17: 11 | I17: 11 | V17: Nurses | W17: 0
C18: 12 | I18: 12 | U18: Travel time | V18: GPs (Primary Care Doctors) | W18: 0
C19: 13 | I19: 13 | V19: Other doctors | W19: 0
C20: 14 | I20: 14 | V20: Pharmacists | W20: 0
C21: 15 | I21: 15 | V21: Nurses | W21: 0
C22: 16 | I22: 16
C23: 17 | I23: 17
C24: 18 | I24: 18
C25: 19 | I25: 19
C26: 20 | I26: 20
C27: 21 | I27: 21
C28: 22 | I28: 22
C29: 23 | I29: 23
C30: 24 | I30: 24
C31: 25 | I31: 25
C32: 26 | I32: 26
C33: 27 | I33: 27
C34: 28 | I34: 28
C35: 29 | I35: 29
C36: 30 | I36: 30
C37: 31 | I37: 31
C38: 32 | I38: 32
C39: 33 | I39: 33
C40: 34 | I40: 34
C41: 35 | I41: 35
C42: 36 | I42: 36
C43: 37 | I43: 37
C44: 38 | I44: 38
C45: 39 | I45: 39
C46: 40 | I46: 40
C47: 41 | I47: 41
C48: 42 | I48: 42
C49: 43 | I49: 43
C50: 44 | I50: 44
C51: 45 | I51: 45
C52: 46 | I52: 46
C53: 47 | I53: 47
C54: 48 | I54: 48
C55: 49 | I55: 49
C56: 50 | I56: 50
C57: 51 | I57: 51
C58: 52 | I58: 52
C59: 53 | I59: 53
C60: 54 | I60: 54
C61: 55 | I61: 55
C62: 56 | I62: 56
C63: 57 | I63: 57
C64: 58 | I64: 58
C65: 59 | I65: 59
C66: 60 | I66: 60
C67: 61 | I67: 61
C68: 62 | I68: 62
C69: 63 | I69: 63
C70: 64 | I70: 64
C71: 65 | I71: 65
C72: 66 | I72: 66
C73: 67 | I73: 67
C74: 68 | I74: 68
C75: 69 | I75: 69
C76: 70 | I76: 70
C77: 71 | I77: 71
C78: 72 | I78: 72
C79: 73 | I79: 73
C80: 74 | I80: 74
C81: 75 | I81: 75
C82: 76 | I82: 76
C83: 77 | I83: 77
C84: 78 | I84: 78
C85: 79 | I85: 79
C86: 80 | I86: 80
C87: 81 | I87: 81
C88: 82 | I88: 82
C89: 83 | I89: 83
C90: 84 | I90: 84
C91: 85 | I91: 85
C92: 86 | I92: 86
C93: 87 | I93: 87
C94: 88 | I94: 88
C95: 89 | I95: 89
C96: 90 | I96: 90
C97: 91 | I97: 91
C98: 92 | I98: 92
C99: 93 | I99: 93
C100: 94 | I100: 94
C101: 95 | I101: 95
C102: 96 | I102: 96
C103: 97 | I103: 97
C104: 98 | I104: 98
C105: 99 | I105: 99
C106: 100 | I106: 100
C107: 102 | I107: 102

Sheet input selections (hidden)
A1: Do not change relative cell references in this sheet!
A2: Apply country specific population | E2: Popuation selection | F2: =VLOOKUP(A2,lookups!$AR$5:$AS$6,2,FALSE) -> 1 | G2: =VLOOKUP(F2,lookups!$AQ$5:$AR$6,2,FALSE) -> Apply country specific population
A3: France | E3: Country | F3: =VLOOKUP($A$3,lookups!$C$5:$E$34,3,FALSE) -> 11 | G3: =IF(F2=2,"Own population sample",VLOOKUP(A3,lookups!$C$5:$D$34,2,FALSE)) -> FR | H3: =IF(F2=2,"Own population sample",A3) -> France | I3: =VLOOKUP(A3,lookups!$C$5:$D$34,2,FALSE) -> FR
A6: Total | E6: sex | F6: =VLOOKUP($A$6,lookups!$K$5:$M$7,2,FALSE) -> 0 | G6: =VLOOKUP($A$6,lookups!$K$5:$M$7,3,FALSE) -> T
E9: age | G9: min | H9: max
A10: 65 | B10: 80 | G10: =A10 -> 65 | H10: =B10 -> 80
G11: =VLOOKUP(G10,lookups!$F$5:$G$107,2,FALSE) -> Y65 | H11: =VLOOKUP(H10,lookups!$F$5:$G$107,2,FALSE) -> Y80
A13: FALSE | E13: Risk stratification | G13: =IF(A13=TRUE,"Yes","No") -> No
A15: Apply Scottish risk profile | E15: if yes | F15: =VLOOKUP($A$15,lookups!$P$10:$Q$12,2,FALSE) -> 2 | G15: =A15 -> Apply Scottish risk profile
A18: Apply Scottish review set-up | E18: Reviews | F18: =VLOOKUP($A$18,lookups!$X$5:$Y$6,2,FALSE) -> 2 | G18: =A18 -> Apply Scottish review set-up
A21: Apply Scottish profile for staff cost | E21: Staff cost | F21: =VLOOKUP($A$21,lookups!$AB$5:$AC$6,2,FALSE) -> 2 | G21: =A21 -> Apply Scottish profile for staff cost
A24: No charge for reviews | E24: Review Charges | F24: =VLOOKUP($A$24,lookups!$AJ$5:$AK$6,2,FALSE) -> 1 | G24: =A24 -> No charge for reviews
A27: Apply Scottish profile for DDDs stopped / started | E27: Number of drugs | F27: =VLOOKUP($A$27,lookups!$T$5:$U$6,2,FALSE) -> 2 | G27: =A27 -> Apply Scottish profile for DDDs stopped / started
B30: not currently in use | E30: Professional/ Patient Travel time | F30: 2 | G30: No
B32: not currently in use | E32: if yes | F32: =VLOOKUP($A$32,lookups!$X$21:$Y$24,2,FALSE) ->  | G32: =A32 -> 0
A35: Apply Scottish profile for annual cost per DDD | D35: enter in own country's currency! | E35: Drugs cost | F35: =VLOOKUP($A$35,lookups!$T$17:$U$18,2,FALSE) -> 2 | G35: =A35 -> Apply Scottish profile for annual cost per DDD
A38: Apply Scottish profile for cost per bed day | F38: =VLOOKUP($A$38,lookups!$AF$13:$AG$14,2,FALSE) -> 2 | G38: =A38 -> Apply Scottish profile for cost per bed day
A39: General Medicine Gross direct cost per bed day | E39: Cost per bed day | F39: =VLOOKUP($A$39,lookups!$AF$6:$AG$9,2,FALSE) -> 1 | G39: =A39 -> General Medicine Gross direct cost per bed day
A42: Apply Scottish profile for admission rates | E42: Admission rates | F42: =VLOOKUP($A$42,lookups!$AN$5:$AO$8,2,FALSE) -> 2 | G42: =A42 -> Apply Scottish profile for admission rates | L42: needed?
E44: % of ADRs avoidable through PPH

Sheet lookups (hidden)
A1: Do not change relative cell references in this sheet!
AF3: currently disabled
C4: Country | G4: Age group | J4: Sex | P4: Risk stratification | T4: Number of drugs | X4: Reviews | AB4: Staff cost | AF4: Cost per bed day | AJ4: Review charge | AN4: Admission rates | AR4: Population
B5: 0 | C5: Scotland | D5: SCOT | E5: 0 | F5: 0 | G5: Y_LT1 | I5: 0 | J5: T | K5: Total | L5: 0 | M5: T | O5: 1 | P5: Yes | S5: 2 | T5: Apply Scottish profile for DDDs stopped / started | U5: 2 | W5: 2 | X5: Apply Scottish review set-up | Y5: 2 | AA5: 2 | AB5: Apply Scottish profile for staff cost | AC5: 2 | AF5: Cost type | AI5: 1 | AJ5: No charge for reviews | AK5: 1 | AM5: 2 | AN5: Apply Scottish profile for admission rates | AO5: 2 | AQ5: 1 | AR5: Apply country specific population | AS5: 1
B6: 1 | C6: UK | D6: UK | E6: 1 | F6: 1 | G6: Y1 | I6: 1 | J6: M | K6: Males | L6: 1 | M6: M | O6: 2 | P6: No | S6: 3 | T6: Apply own profile for DDDs stopped / started | U6: 3 | W6: 3 | X6: Apply own estimates of minutes allocated to review elements | Y6: 3 | AA6: 3 | AB6: Apply own profile for staff cost | AC6: 3 | AE6: 1 | AF6: General Medicine Gross direct cost per bed day | AG6: 1 | AI6: 3 | AJ6: Apply own charge per review | AK6: 3 | AM6: 4 | AN6: Apply blanket admission rate across age groups | AO6: 4 | AQ6: 2 | AR6: Apply own population sample | AS6: 2
B7: 2 | C7: Austria | D7: AT | E7: 2 | F7: 2 | G7: Y2 | I7: 2 | J7: F | K7: Females | L7: 2 | M7: F | AE7: 2 | AF7: General Medicine Net Total cost per bed day | AG7: 2
B8: 3 | C8: Belgium | D8: BE | E8: 3 | F8: 3 | G8: Y3 | P8: if yes | AE8: 3 | AF8: Geriatric Assessment Gross direct cost per bed day | AG8: 3
B9: 4 | C9: Bulgaria | D9: BG | E9: 4 | F9: 4 | G9: Y4 | P9: Risk | T9: if 3, include input boxes | X9: if 3, include input boxes | AB9: if 3, include input box | AE9: 4 | AF9: Geriatric Assessment Net Total cost per bed day | AG9: 4 | AJ9: if 3, include input boxes
B10: 5 | C10: Croatia | D10: HR | E10: 5 | F10: 5 | G10: Y5 | O10: 0 | P10: No Risk Stratification | Q10: 0 | AE10: 5 | AF10: other / not applicable | AG10: 5 | AN10: if 4, include input box
B11: 6 | C11: Republic of Cyprus | D11: CY | E11: 6 | F11: 6 | G11: Y6 | O11: 2 | P11: Apply Scottish risk profile | Q11: 2
B12: 7 | C12: Czech Republic | D12: CZ | E12: 7 | F12: 7 | G12: Y7 | O12: 4 | P12: Apply blanket % to population group | Q12: 4 | S12: 1 | T12: x - Apply country profile for DDDs stopped / started | U12: 1 | W12: 1 | X12: x - Apply country review set-up | Y12: 1 | AF12: Cost per bed day
B13: 8 | C13: Denmark | D13: DK | E13: 8 | F13: 8 | G13: Y8 | AE13: 2 | AF13: Apply Scottish profile for cost per bed day | AG13: 2 | AI13: 2 | AJ13: x - Apply country profile for review charge | AK13: 2
B14: 9 | C14: Estonia | D14: EE | E14: 9 | F14: 9 | G14: Y9 | AA14: 1 | AB14: Apply country profile for staff cost | AC14: 1 | AE14: 3 | AF14: Apply own profile for cost per bed day | AG14: 3 | AN14: Apply own profile for admission rates
B15: 10 | C15: Finland | D15: FI | E15: 10 | F15: 10 | G15: Y10
B16: 11 | C16: France | D16: FR | E16: 11 | F16: 11 | G16: Y11 | O16: 3 | P16: Apply own risk profile | Q16: 3 | T16: Drugs cost
B17: 12 | C17: Germany | D17: DE_TOT | E17: 12 | F17: 12 | G17: Y12 | O17: 1 | P17: x - Apply country risk profiles | Q17: 1 | S17: 2 | T17: Apply Scottish profile for annual cost per DDD | U17: 2 | AM17: 1 | AN17: x - Apply country profile for admission rates | AO17: 1
B18: 13 | C18: Greece | D18: EL | E18: 13 | F18: 13 | G18: Y13 | S18: 3 | T18: Apply own blanket average annual cost per DDD | U18: 3
B19: 14 | C19: Hungary | D19: HU | E19: 14 | F19: 14 | G19: Y14 | AE19: 1 | AF19: x - Apply country profile for cost per bed day | AG19: 1
B20: 15 | C20: Ireland | D20: MT | E20: 15 | F20: 15 | G20: Y15
B21: 16 | C21: Italy | D21: IT | E21: 16 | F21: 16 | G21: Y16 | T21: if 3, include input boxes
B22: 17 | C22: Latvia | D22: LV | E22: 17 | F22: 17 | G22: Y17
B23: 18 | C23: Lithuania | D23: LT | E23: 18 | F23: 18 | G23: Y18
B24: 19 | C24: Luxembourg | D24: LU | E24: 19 | F24: 19 | G24: Y19 | S24: 1 | T24: Apply country profile for annual cost per DDD | U24: 1
B25: 20 | C25: Malta | D25: MT | E25: 20 | F25: 20 | G25: Y20
B26: 21 | C26: Netherlands | D26: NL | E26: 21 | F26: 21 | G26: Y21
B27: 22 | C27: Poland | D27: PL | E27: 22 | F27: 22 | G27: Y22
B28: 23 | C28: Portugal | D28: PT | E28: 23 | F28: 23 | G28: Y23
B29: 24 | C29: Romania | D29: RO | E29: 24 | F29: 24 | G29: Y24
B30: 25 | C30: Slovakia | D30: SK | E30: 25 | F30: 25 | G30: Y25
B31: 26 | C31: Slovenia | D31: SI | E31: 26 | F31: 26 | G31: Y26
B32: 27 | C32: Spain | D32: ES | E32: 27 | F32: 27 | G32: Y27
B33: 28 | C33: Sweden | D33: SE | E33: 28 | F33: 28 | G33: Y28
B34: 29 | C34: EU28 | D34: EU28 | E34: 29 | F34: 29 | G34: Y29
B35: 30 | C35: n/a - own population sample | D35: N/A | E35: 30 | F35: 30 | G35: Y30
C36: Bulgaria | F36: 31 | G36: Y31
F37: 32 | G37: Y32
F38: 33 | G38: Y33
F39: 34 | G39: Y34
F40: 35 | G40: Y35
F41: 36 | G41: Y36
F42: 37 | G42: Y37
F43: 38 | G43: Y38
F44: 39 | G44: Y39
F45: 40 | G45: Y40
F46: 41 | G46: Y41
F47: 42 | G47: Y42
F48: 43 | G48: Y43
F49: 44 | G49: Y44
F50: 45 | G50: Y45
F51: 46 | G51: Y46
F52: 47 | G52: Y47
F53: 48 | G53: Y48
F54: 49 | G54: Y49
F55: 50 | G55: Y50
F56: 51 | G56: Y51
F57: 52 | G57: Y52
F58: 53 | G58: Y53
F59: 54 | G59: Y54
F60: 55 | G60: Y55
F61: 56 | G61: Y56
F62: 57 | G62: Y57
F63: 58 | G63: Y58
F64: 59 | G64: Y59
F65: 60 | G65: Y60
F66: 61 | G66: Y61
F67: 62 | G67: Y62
F68: 63 | G68: Y63
F69: 64 | G69: Y64
F70: 65 | G70: Y65
F71: 66 | G71: Y66
F72: 67 | G72: Y67
F73: 68 | G73: Y68
F74: 69 | G74: Y69
F75: 70 | G75: Y70
F76: 71 | G76: Y71
F77: 72 | G77: Y72
F78: 73 | G78: Y73
F79: 74 | G79: Y74
F80: 75 | G80: Y75
F81: 76 | G81: Y76
F82: 77 | G82: Y77
F83: 78 | G83: Y78
F84: 79 | G84: Y79
F85: 80 | G85: Y80
F86: 81 | G86: Y81
F87: 82 | G87: Y82
F88: 83 | G88: Y83
F89: 84 | G89: Y84
F90: 85 | G90: Y85
F91: 86 | G91: Y86
F92: 87 | G92: Y87
F93: 88 | G93: Y88
F94: 89 | G94: Y89
F95: 90 | G95: Y90
F96: 91 | G96: Y91
F97: 92 | G97: Y92
F98: 93 | G98: Y93
F99: 94 | G99: Y94
F100: 95 | G100: Y95
F101: 96 | G101: Y96
F102: 97 | G102: Y97
F103: 98 | G103: Y98
F104: 99 | G104: Y99
F105: 100 | G105: Y_OPEN
F106: 101 | G106: UNK
F107: 102 | G107: TOTAL

Sheet population lookup (hidden)
A1: Population lookup
E2: EU28+Scotland | M2: EU28 permanent
C3: Age | F3: clean | G3: min | H3: max | I3: selection | L3: EU28 | M3: clean | N3: min | O3: max | P3: selection
C4: 0 | D4: Y_LT1 | E4: =CONCATENATE($D4,$A$7,$B$9,$A$7,$B$8) -> Y_LT1,T,FR | F4: =IF(ISERROR(VLOOKUP(E4,popEU,2,FALSE)),"",(VLOOKUP(E4,popEU,2,FALSE))) -> 786136 | G4: =IF(C4<=$A$14,0,F4) -> 0 | H4: =IF(C4>$B$14,0,F4) -> 786136 | I4: =IF(OR(G4=0,H4=0),0,F4) -> 0 | J4: =IF(OR(C4<=$A$14,C4>$B$14),0,F4) -> 0 | L4: =CONCATENATE($D4,$A$7,$B$9,$A$7,$L$3) -> Y_LT1,T,EU28 | M4: =IF(ISERROR(VLOOKUP(L4,popEU,2,FALSE)),"",(VLOOKUP(L4,popEU,2,FALSE))) -> 5084324 | N4: =IF(C4<=$A$14,0,M4) -> 0 | O4: =IF(C4>$B$14,0,M4) -> 5084324 | P4: =IF(OR(N4=0,O4=0),0,M4) -> 0
C5: 1 | D5: Y1 | E5: Y1,T,FR | F5: 788866 | G5: =IF(C5<=$A$14,0,F5) -> 0 | H5: =IF(C5>$B$14,0,F5) -> 788866 | I5: =IF(OR(G5=0,H5=0),0,F5) -> 0 | J5: =IF(OR(C5<=$A$14,C5>$B$14),0,F5) -> 0 | L5: =CONCATENATE($D5,$A$7,$B$9,$A$7,$L$3) -> Y1,T,EU28 | M5: 5097350 | N5: =IF(C5<=$A$14,0,M5) -> 0 | O5: =IF(C5>$B$14,0,M5) -> 5097350 | P5: =IF(OR(N5=0,O5=0),0,M5) -> 0
C6: 2 | D6: Y2 | E6: Y2,T,FR | F6: 798550 | G6: 0 | H6: 798550 | I6: 0 | J6: 0 | L6: Y2,T,EU28 | M6: 5227187 | N6: 0 | O6: 5227187 | P6: 0
A7: , | C7: 3 | D7: Y3 | E7: Y3,T,FR | F7: 809128 | G7: 0 | H7: 809128 | I7: 0 | J7: 0 | L7: Y3,T,EU28 | M7: 5290022 | N7: 0 | O7: 5290022 | P7: 0
A8: ='input selections'!F3 -> 11 | B8: ='input selections'!G3 -> FR | C8: 4 | D8: Y4 | E8: Y4,T,FR | F8: 831956 | G8: 0 | H8: 831956 | I8: 0 | J8: 0 | L8: Y4,T,EU28 | M8: 5424155 | N8: 0 | O8: 5424155 | P8: 0
A9: ='input selections'!F6 -> 0 | B9: ='input selections'!G6 -> T | C9: 5 | D9: Y5 | E9: Y5,T,FR | F9: 829704 | G9: 0 | H9: 829704 | I9: 0 | J9: 0 | L9: Y5,T,EU28 | M9: 5453323 | N9: 0 | O9: 5453323 | P9: 0 | U9: Total population selected
C10: 6 | D10: Y6 | E10: Y6,T,FR | F10: 835497 | G10: 0 | H10: 835497 | I10: 0 | J10: 0 | L10: Y6,T,EU28 | M10: 5509409 | N10: 0 | O10: 5509409 | P10: 0 | R10: 2 | T10: ='input selections'!G3 -> FR | U10: =IF('input selections'!F2=2,'manual data input'!AM6,SUM(I4:I105)) -> 7968556
C11: 7 | D11: Y7 | E11: Y7,T,FR | F11: 832147 | G11: 0 | H11: 832147 | I11: 0 | J11: 0 | L11: Y7,T,EU28 | M11: 5403266 | N11: 0 | O11: 5403266 | P11: 0 | S11: 29 | T11: EU28 | U11: =SUM(P4:P105) -> 66458505
C12: 8 | D12: Y8 | E12: Y8,T,FR | F12: 846392 | G12: 0 | H12: 846392 | I12: 0 | J12: 0 | L12: Y8,T,EU28 | M12: 5356183 | N12: 0 | O12: 5356183 | P12: 0
A13: min | B13: max | C13: 9 | D13: Y9 | E13: Y9,T,FR | F13: 829605 | G13: 0 | H13: 829605 | I13: 0 | J13: 0 | L13: Y9,T,EU28 | M13: 5280486 | N13: 0 | O13: 5280486 | P13: 0
A14: ='input selections'!G10 -> 65 | B14: ='input selections'!H10 -> 80 | C14: 10 | D14: Y10 | E14: Y10,T,FR | F14: 825391 | G14: 0 | H14: 825391 | I14: 0 | J14: 0 | L14: Y10,T,EU28 | M14: 5246080 | N14: 0 | O14: 5246080 | P14: 0
A15: ='input selections'!G11 -> Y65 | B15: ='input selections'!H11 -> Y80 | C15: 11 | D15: Y11 | E15: Y11,T,FR | F15: 821249 | G15: 0 | H15: 821249 | I15: 0 | J15: 0 | L15: Y11,T,EU28 | M15: 5199142 | N15: 0 | O15: 5199142 | P15: 0
C16: 12 | D16: Y12 | E16: Y12,T,FR | F16: 826583 | G16: 0 | H16: 826583 | I16: 0 | J16: 0 | L16: Y12,T,EU28 | M16: 5179113 | N16: 0 | O16: 5179113 | P16: 0
C17: 13 | D17: Y13 | E17: Y13,T,FR | F17: 838757 | G17: 0 | H17: 838757 | I17: 0 | J17: 0 | L17: Y13,T,EU28 | M17: 5230151 | N17: 0 | O17: 5230151 | P17: 0
C18: 14 | D18: Y14 | E18: Y14,T,FR | F18: 856210 | G18: 0 | H18: 856210 | I18: 0 | J18: 0 | L18: Y14,T,EU28 | M18: 5364975 | N18: 0 | O18: 5364975 | P18: 0
C19: 15 | D19: Y15 | E19: Y15,T,FR | F19: 818533 | G19: 0 | H19: 818533 | I19: 0 | J19: 0 | L19: Y15,T,EU28 | M19: 5319592 | N19: 0 | O19: 5319592 | P19: 0
C20: 16 | D20: Y16 | E20: Y16,T,FR | F20: 816024 | G20: 0 | H20: 816024 | I20: 0 | J20: 0 | L20: Y16,T,EU28 | M20: 5356351 | N20: 0 | O20: 5356351 | P20: 0
C21: 17 | D21: Y17 | E21: Y17,T,FR | F21: 799000 | G21: 0 | H21: 799000 | I21: 0 | J21: 0 | L21: Y17,T,EU28 | M21: 5412124 | N21: 0 | O21: 5412124 | P21: 0
C22: 18 | D22: Y18 | E22: Y18,T,FR | F22: 797344 | G22: 0 | H22: 797344 | I22: 0 | J22: 0 | L22: Y18,T,EU28 | M22: 5464838 | N22: 0 | O22: 5464838 | P22: 0
C23: 19 | D23: Y19 | E23: Y19,T,FR | F23: 780628 | G23: 0 | H23: 780628 | I23: 0 | J23: 0 | L23: Y19,T,EU28 | M23: 5490974 | N23: 0 | O23: 5490974 | P23: 0
C24: 20 | D24: Y20 | E24: Y20,T,FR | F24: 750544 | G24: 0 | H24: 750544 | I24: 0 | J24: 0 | L24: Y20,T,EU28 | M24: 5617902 | N24: 0 | O24: 5617902 | P24: 0
C25: 21 | D25: Y21 | E25: Y21,T,FR | F25: 738055 | G25: 0 | H25: 738055 | I25: 0 | J25: 0 | L25: Y21,T,EU28 | M25: 5759023 | N25: 0 | O25: 5759023 | P25: 0
C26: 22 | D26: Y22 | E26: Y22,T,FR | F26: 770540 | G26: 0 | H26: 770540 | I26: 0 | J26: 0 | L26: Y22,T,EU28 | M26: 5951439 | N26: 0 | O26: 5951439 | P26: 0
C27: 23 | D27: Y23 | E27: Y23,T,FR | F27: 775707 | G27: 0 | H27: 775707 | I27: 0 | J27: 0 | L27: Y23,T,EU28 | M27: 6115334 | N27: 0 | O27: 6115334 | P27: 0
C28: 24 | D28: Y24 | E28: Y24,T,FR | F28: 786821 | G28: 0 | H28: 786821 | I28: 0 | J28: 0 | L28: Y24,T,EU28 | M28: 6307635 | N28: 0 | O28: 6307635 | P28: 0
C29: 25 | D29: Y25 | E29: Y25,T,FR | F29: 783798 | G29: 0 | H29: 783798 | I29: 0 | J29: 0 | L29: Y25,T,EU28 | M29: 6324774 | N29: 0 | O29: 6324774 | P29: 0
C30: 26 | D30: Y26 | E30: Y26,T,FR | F30: 791253 | G30: 0 | H30: 791253 | I30: 0 | J30: 0 | L30: Y26,T,EU28 | M30: 6433341 | N30: 0 | O30: 6433341 | P30: 0
C31: 27 | D31: Y27 | E31: Y27,T,FR | F31: 789709 | G31: 0 | H31: 789709 | I31: 0 | J31: 0 | L31: Y27,T,EU28 | M31: 6400344 | N31: 0 | O31: 6400344 | P31: 0
C32: 28 | D32: Y28 | E32: Y28,T,FR | F32: 802251 | G32: 0 | H32: 802251 | I32: 0 | J32: 0 | L32: Y28,T,EU28 | M32: 6453046 | N32: 0 | O32: 6453046 | P32: 0
C33: 29 | D33: Y29 | E33: Y29,T,FR | F33: 801418 | G33: 0 | H33: 801418 | I33: 0 | J33: 0 | L33: Y29,T,EU28 | M33: 6495745 | N33: 0 | O33: 6495745 | P33: 0
C34: 30 | D34: Y30 | E34: Y30,T,FR | F34: 799333 | G34: 0 | H34: 799333 | I34: 0 | J34: 0 | L34: Y30,T,EU28 | M34: 6551136 | N34: 0 | O34: 6551136 | P34: 0
C35: 31 | D35: Y31 | E35: Y31,T,FR | F35: 790122 | G35: 0 | H35: 790122 | I35: 0 | J35: 0 | L35: Y31,T,EU28 | M35: 6585267 | N35: 0 | O35: 6585267 | P35: 0
C36: 32 | D36: Y32 | E36: =CONCATENATE($D36,$A$7,$B$9,$A$7,$B$8) -> Y32,T,FR | F36: =IF(ISERROR(VLOOKUP(E36,popEU,2,FALSE)),"",(VLOOKUP(E36,popEU,2,FALSE))) -> 842411 | G36: 0 | H36: 842411 | I36: 0 | J36: 0 | L36: Y32,T,EU28 | M36: =IF(ISERROR(VLOOKUP(L36,popEU,2,FALSE)),"",(VLOOKUP(L36,popEU,2,FALSE))) -> 6757540 | N36: 0 | O36: 6757540 | P36: 0
C37: 33 | D37: Y33 | E37: Y33,T,FR | F37: 851735 | G37: 0 | H37: 851735 | I37: 0 | J37: 0 | L37: Y33,T,EU28 | M37: 6826293 | N37: 0 | O37: 6826293 | P37: 0
C38: 34 | D38: Y34 | E38: Y34,T,FR | F38: 864814 | G38: 0 | H38: 864814 | I38: 0 | J38: 0 | L38: Y34,T,EU28 | M38: 6967557 | N38: 0 | O38: 6967557 | P38: 0
C39: 35 | D39: Y35 | E39: Y35,T,FR | F39: 818854 | G39: 0 | H39: 818854 | I39: 0 | J39: 0 | L39: Y35,T,EU28 | M39: 6928852 | N39: 0 | O39: 6928852 | P39: 0
C40: 36 | D40: Y36 | E40: Y36,T,FR | F40: 803844 | G40: 0 | H40: 803844 | I40: 0 | J40: 0 | L40: Y36,T,EU28 | M40: 6928482 | N40: 0 | O40: 6928482 | P40: 0
C41: 37 | D41: Y37 | E41: Y37,T,FR | F41: 814070 | G41: 0 | H41: 814070 | I41: 0 | J41: 0 | L41: Y37,T,EU28 | M41: 6960474 | N41: 0 | O41: 6960474 | P41: 0
C42: 38 | D42: Y38 | E42: Y38,T,FR | F42: 796371 | G42: 0 | H42: 796371 | I42: 0 | J42: 0 | L42: Y38,T,EU28 | M42: 7008965 | N42: 0 | O42: 7008965 | P42: 0
C43: 39 | D43: Y39 | E43: Y39,T,FR | F43: 819701 | G43: 0 | H43: 819701 | I43: 0 | J43: 0 | L43: Y39,T,EU28 | M43: 7059426 | N43: 0 | O43: 7059426 | P43: 0
C44: 40 | D44: Y40 | E44: Y40,T,FR | F44: 865794 | G44: 0 | H44: 865794 | I44: 0 | J44: 0 | L44: Y40,T,EU28 | M44: 7166209 | N44: 0 | O44: 7166209 | P44: 0
C45: 41 | D45: Y41 | E45: Y41,T,FR | F45: 915434 | G45: 0 | H45: 915434 | I45: 0 | J45: 0 | L45: Y41,T,EU28 | M45: 7111915 | N45: 0 | O45: 7111915 | P45: 0
C46: 42 | D46: Y42 | E46: Y42,T,FR | F46: 938013 | G46: 0 | H46: 938013 | I46: 0 | J46: 0 | L46: Y42,T,EU28 | M46: 7260240 | N46: 0 | O46: 7260240 | P46: 0
C47: 43 | D47: Y43 | E47: Y43,T,FR | F47: 930974 | G47: 0 | H47: 930974 | I47: 0 | J47: 0 | L47: Y43,T,EU28 | M47: 7380790 | N47: 0 | O47: 7380790 | P47: 0
C48: 44 | D48: Y44 | E48: Y44,T,FR | F48: 914030 | G48: 0 | H48: 914030 | I48: 0 | J48: 0 | L48: Y44,T,EU28 | M48: 7394356 | N48: 0 | O48: 7394356 | P48: 0
C49: 45 | D49: Y45 | E49: Y45,T,FR | F49: 899787 | G49: 0 | H49: 899787 | I49: 0 | J49: 0 | L49: Y45,T,EU28 | M49: 7501133 | N49: 0 | O49: 7501133 | P49: 0
C50: 46 | D50: Y46 | E50: Y46,T,FR | F50: 893947 | G50: 0 | H50: 893947 | I50: 0 | J50: 0 | L50: Y46,T,EU28 | M50: 7578257 | N50: 0 | O50: 7578257 | P50: 0
C51: 47 | D51: Y47 | E51: Y47,T,FR | F51: 886454 | G51: 0 | H51: 886454 | I51: 0 | J51: 0 | L51: Y47,T,EU28 | M51: 7615681 | N51: 0 | O51: 7615681 | P51: 0
C52: 48 | D52: Y48 | E52: Y48,T,FR | F52: 909122 | G52: 0 | H52: 909122 | I52: 0 | J52: 0 | L52: Y48,T,EU28 | M52: 7489280 | N52: 0 | O52: 7489280 | P52: 0
C53: 49 | D53: Y49 | E53: Y49,T,FR | F53: 911768 | G53: 0 | H53: 911768 | I53: 0 | J53: 0 | L53: Y49,T,EU28 | M53: 7506945 | N53: 0 | O53: 7506945 | P53: 0
C54: 50 | D54: Y50 | E54: Y50,T,FR | F54: 922337 | G54: 0 | H54: 922337 | I54: 0 | J54: 0 | L54: Y50,T,EU28 | M54: 7595213 | N54: 0 | O54: 7595213 | P54: 0
C55: 51 | D55: Y51 | E55: Y51,T,FR | F55: 912891 | G55: 0 | H55: 912891 | I55: 0 | J55: 0 | L55: Y51,T,EU28 | M55: 7439837 | N55: 0 | O55: 7439837 | P55: 0
C56: 52 | D56: Y52 | E56: Y52,T,FR | F56: 880988 | G56: 0 | H56: 880988 | I56: 0 | J56: 0 | L56: Y52,T,EU28 | M56: 7254222 | N56: 0 | O56: 7254222 | P56: 0
C57: 53 | D57: Y53 | E57: Y53,T,FR | F57: 879290 | G57: 0 | H57: 879290 | I57: 0 | J57: 0 | L57: Y53,T,EU28 | M57: 7202192 | N57: 0 | O57: 7202192 | P57: 0
C58: 54 | D58: Y54 | E58: Y54,T,FR | F58: 875387 | G58: 0 | H58: 875387 | I58: 0 | J58: 0 | L58: Y54,T,EU28 | M58: 7118434 | N58: 0 | O58: 7118434 | P58: 0
C59: 55 | D59: Y55 | E59: Y55,T,FR | F59: 869145 | G59: 0 | H59: 869145 | I59: 0 | J59: 0 | L59: Y55,T,EU28 | M59: 7023479 | N59: 0 | O59: 7023479 | P59: 0
C60: 56 | D60: Y56 | E60: Y56,T,FR | F60: 849484 | G60: 0 | H60: 849484 | I60: 0 | J60: 0 | L60: Y56,T,EU28 | M60: 6880038 | N60: 0 | O60: 6880038 | P60: 0
C61: 57 | D61: Y57 | E61: Y57,T,FR | F61: 846275 | G61: 0 | H61: 846275 | I61: 0 | J61: 0 | L61: Y57,T,EU28 | M61: 6810578 | N61: 0 | O61: 6810578 | P61: 0
C62: 58 | D62: Y58 | E62: Y58,T,FR | F62: 838343 | G62: 0 | H62: 838343 | I62: 0 | J62: 0 | L62: Y58,T,EU28 | M62: 6696376 | N62: 0 | O62: 6696376 | P62: 0
C63: 59 | D63: Y59 | E63: Y59,T,FR | F63: 827914 | G63: 0 | H63: 827914 | I63: 0 | J63: 0 | L63: Y59,T,EU28 | M63: 6584251 | N63: 0 | O63: 6584251 | P63: 0
C64: 60 | D64: Y60 | E64: Y60,T,FR | F64: 827225 | G64: 0 | H64: 827225 | I64: 0 | J64: 0 | L64: Y60,T,EU28 | M64: 6430304 | N64: 0 | O64: 6430304 | P64: 0
C65: 61 | D65: Y61 | E65: Y61,T,FR | F65: 807389 | G65: 0 | H65: 807389 | I65: 0 | J65: 0 | L65: Y61,T,EU28 | M65: 6261103 | N65: 0 | O65: 6261103 | P65: 0
C66: 62 | D66: Y62 | E66: Y62,T,FR | F66: 819043 | G66: 0 | H66: 819043 | I66: 0 | J66: 0 | L66: Y62,T,EU28 | M66: 6206240 | N66: 0 | O66: 6206240 | P66: 0
C67: 63 | D67: Y63 | E67: Y63,T,FR | F67: 796074 | G67: 0 | H67: 796074 | I67: 0 | J67: 0 | L67: Y63,T,EU28 | M67: 6053229 | N67: 0 | O67: 6053229 | P67: 0
C68: 64 | D68: Y64 | E68: =CONCATENATE($D68,$A$7,$B$9,$A$7,$B$8) -> Y64,T,FR | F68: =IF(ISERROR(VLOOKUP(E68,popEU,2,FALSE)),"",(VLOOKUP(E68,popEU,2,FALSE))) -> 826457 | G68: 0 | H68: 826457 | I68: 0 | J68: 0 | L68: Y64,T,EU28 | M68: =IF(ISERROR(VLOOKUP(L68,popEU,2,FALSE)),"",(VLOOKUP(L68,popEU,2,FALSE))) -> 6086910 | N68: 0 | O68: 6086910 | P68: 0
C69: 65 | D69: Y65 | E69: Y65,T,FR | F69: 809173 | G69: =IF(C69<=$A$14,0,F69) -> 0 | H69: =IF(C69>$B$14,0,F69) -> 809173 | I69: =IF(OR(G69=0,H69=0),0,F69) -> 0 | J69: =IF(OR(C69<=$A$14,C69>$B$14),0,F69) -> 0 | L69: =CONCATENATE($D69,$A$7,$B$9,$A$7,$L$3) -> Y65,T,EU28 | M69: 6019581 | N69: =IF(C69<=$A$14,0,M69) -> 0 | O69: =IF(C69>$B$14,0,M69) -> 6019581 | P69: =IF(OR(N69=0,O69=0),0,M69) -> 0
C70: 66 | D70: Y66 | E70: Y66,T,FR | F70: 804448 | G70: 804448 | H70: 804448 | I70: 804448 | J70: 804448 | L70: Y66,T,EU28 | M70: 5930729 | N70: 5930729 | O70: 5930729 | P70: 5930729
C71: 67 | D71: Y67 | E71: Y67,T,FR | F71: 785348 | G71: 785348 | H71: 785348 | I71: 785348 | J71: 785348 | L71: Y67,T,EU28 | M71: 5755848 | N71: 5755848 | O71: 5755848 | P71: 5755848
C72: 68 | D72: Y68 | E72: Y68,T,FR | F72: 744071 | G72: 744071 | H72: 744071 | I72: 744071 | J72: 744071 | L72: Y68,T,EU28 | M72: 5414407 | N72: 5414407 | O72: 5414407 | P72: 5414407
C73: 69 | D73: Y69 | E73: Y69,T,FR | F73: 560439 | G73: 560439 | H73: 560439 | I73: 560439 | J73: 560439 | L73: Y69,T,EU28 | M73: 4547270 | N73: 4547270 | O73: 4547270 | P73: 4547270
C74: 70 | D74: Y70 | E74: Y70,T,FR | F74: 545566 | G74: 545566 | H74: 545566 | I74: 545566 | J74: 545566 | L74: Y70,T,EU28 | M74: 4711723 | N74: 4711723 | O74: 4711723 | P74: 4711723
C75: 71 | D75: Y71 | E75: Y71,T,FR | F75: 527839 | G75: 527839 | H75: 527839 | I75: 527839 | J75: 527839 | L75: Y71,T,EU28 | M75: 4567456 | N75: 4567456 | O75: 4567456 | P75: 4567456
C76: 72 | D76: Y72 | E76: Y72,T,FR | F76: 487458 | G76: 487458 | H76: 487458 | I76: 487458 | J76: 487458 | L76: Y72,T,EU28 | M76: 4289075 | N76: 4289075 | O76: 4289075 | P76: 4289075
C77: 73 | D77: Y73 | E77: Y73,T,FR | F77: 432692 | G77: 432692 | H77: 432692 | I77: 432692 | J77: 432692 | L77: Y73,T,EU28 | M77: 4285266 | N77: 4285266 | O77: 4285266 | P77: 4285266
C78: 74 | D78: Y74 | E78: Y74,T,FR | F78: 449333 | G78: 449333 | H78: 449333 | I78: 449333 | J78: 449333 | L78: Y74,T,EU28 | M78: 4430564 | N78: 4430564 | O78: 4430564 | P78: 4430564
C79: 75 | D79: Y75 | E79: Y75,T,FR | F79: 465297 | G79: 465297 | H79: 465297 | I79: 465297 | J79: 465297 | L79: Y75,T,EU28 | M79: 4228282 | N79: 4228282 | O79: 4228282 | P79: 4228282
C80: 76 | D80: Y76 | E80: Y76,T,FR | F80: 454650 | G80: 454650 | H80: 454650 | I80: 454650 | J80: 454650 | L80: Y76,T,EU28 | M80: 4047115 | N80: 4047115 | O80: 4047115 | P80: 4047115
C81: 77 | D81: Y77 | E81: Y77,T,FR | F81: 440531 | G81: 440531 | H81: 440531 | I81: 440531 | J81: 440531 | L81: Y77,T,EU28 | M81: 3831560 | N81: 3831560 | O81: 3831560 | P81: 3831560
C82: 78 | D82: Y78 | E82: Y78,T,FR | F82: 435025 | G82: 435025 | H82: 435025 | I82: 435025 | J82: 435025 | L82: Y78,T,EU28 | M82: 3678738 | N82: 3678738 | O82: 3678738 | P82: 3678738
C83: 79 | D83: Y79 | E83: Y79,T,FR | F83: 419873 | G83: 419873 | H83: 419873 | I83: 419873 | J83: 419873 | L83: Y79,T,EU28 | M83: 3482755 | N83: 3482755 | O83: 3482755 | P83: 3482755
C84: 80 | D84: Y80 | E84: Y80,T,FR | F84: 415986 | G84: 415986 | H84: 415986 | I84: 415986 | J84: 415986 | L84: Y80,T,EU28 | M84: 3257717 | N84: 3257717 | O84: 3257717 | P84: 3257717
C85: 81 | D85: Y81 | E85: Y81,T,FR | F85: 387904 | G85: 387904 | H85: 0 | I85: 0 | J85: 0 | L85: Y81,T,EU28 | M85: 2947326 | N85: 2947326 | O85: 0 | P85: 0
C86: 82 | D86: Y82 | E86: Y82,T,FR | F86: 386407 | G86: 386407 | H86: 0 | I86: 0 | J86: 0 | L86: Y82,T,EU28 | M86: 2814357 | N86: 2814357 | O86: 0 | P86: 0
C87: 83 | D87: Y83 | E87: Y83,T,FR | F87: 360203 | G87: 360203 | H87: 0 | I87: 0 | J87: 0 | L87: Y83,T,EU28 | M87: 2605561 | N87: 2605561 | O87: 0 | P87: 0
C88: 84 | D88: Y84 | E88: Y84,T,FR | F88: 341938 | G88: 341938 | H88: 0 | I88: 0 | J88: 0 | L88: Y84,T,EU28 | M88: 2465238 | N88: 2465238 | O88: 0 | P88: 0
C89: 85 | D89: Y85 | E89: Y85,T,FR | F89: 301625 | G89: 301625 | H89: 0 | I89: 0 | J89: 0 | L89: Y85,T,EU28 | M89: 2149001 | N89: 2149001 | O89: 0 | P89: 0
C90: 86 | D90: Y86 | E90: Y86,T,FR | F90: 275504 | G90: 275504 | H90: 0 | I90: 0 | J90: 0 | L90: Y86,T,EU28 | M90: 1923848 | N90: 1923848 | O90: 0 | P90: 0
C91: 87 | D91: Y87 | E91: Y87,T,FR | F91: 246361 | G91: 246361 | H91: 0 | I91: 0 | J91: 0 | L91: Y87,T,EU28 | M91: 1654551 | N91: 1654551 | O91: 0 | P91: 0
C92: 88 | D92: Y88 | E92: Y88,T,FR | F92: 220724 | G92: 220724 | H92: 0 | I92: 0 | J92: 0 | L92: Y88,T,EU28 | M92: 1452739 | N92: 1452739 | O92: 0 | P92: 0
C93: 89 | D93: Y89 | E93: Y89,T,FR | F93: 195185 | G93: 195185 | H93: 0 | I93: 0 | J93: 0 | L93: Y89,T,EU28 | M93: 1243240 | N93: 1243240 | O93: 0 | P93: 0
C94: 90 | D94: Y90 | E94: Y90,T,FR | F94: 165349 | G94: 165349 | H94: 0 | I94: 0 | J94: 0 | L94: Y90,T,EU28 | M94: 1025023 | N94: 1025023 | O94: 0 | P94: 0
C95: 91 | D95: Y91 | E95: Y91,T,FR | F95: 140554 | G95: 140554 | H95: 0 | I95: 0 | J95: 0 | L95: Y91,T,EU28 | M95: 846186 | N95: 846186 | O95: 0 | P95: 0
C96: 92 | D96: Y92 | E96: Y92,T,FR | F96: 118233 | G96: 118233 | H96: 0 | I96: 0 | J96: 0 | L96: Y92,T,EU28 | M96: 686232 | N96: 686232 | O96: 0 | P96: 0
C97: 93 | D97: Y93 | E97: Y93,T,FR | F97: 97309 | G97: 97309 | H97: 0 | I97: 0 | J97: 0 | L97: Y93,T,EU28 | M97: 545850 | N97: 545850 | O97: 0 | P97: 0
C98: 94 | D98: Y94 | E98: Y94,T,FR | F98: 77661 | G98: 77661 | H98: 0 | I98: 0 | J98: 0 | L98: Y94,T,EU28 | M98: 409747 | N98: 409747 | O98: 0 | P98: 0
C99: 95 | D99: Y95 | E99: Y95,T,FR | F99: 36078 | G99: 36078 | H99: 0 | I99: 0 | J99: 0 | L99: Y95,T,EU28 | M99: 237457 | N99: 237457 | O99: 0 | P99: 0
C100: 96 | D100: Y96 | E100: =CONCATENATE($D100,$A$7,$B$9,$A$7,$B$8) -> Y96,T,FR | F100: =IF(ISERROR(VLOOKUP(E100,popEU,2,FALSE)),"",(VLOOKUP(E100,popEU,2,FALSE))) -> 23567 | G100: 23567 | H100: 0 | I100: 0 | J100: 0 | L100: Y96,T,EU28 | M100: =IF(ISERROR(VLOOKUP(L100,popEU,2,FALSE)),"",(VLOOKUP(L100,popEU,2,FALSE))) -> 140881 | N100: 140881 | O100: 0 | P100: 0
C101: 97 | D101: Y97 | E101: Y97,T,FR | F101: 16062 | G101: 16062 | H101: 0 | I101: 0 | J101: 0 | L101: Y97,T,EU28 | M101: 101060 | N101: 101060 | O101: 0 | P101: 0
C102: 98 | D102: Y98 | E102: Y98,T,FR | F102: 10697 | G102: 10697 | H102: 0 | I102: 0 | J102: 0 | L102: Y98,T,EU28 | M102: 74296 | N102: 74296 | O102: 0 | P102: 0
C103: 99 | D103: Y99 | E103: Y99,T,FR | F103: 8997 | G103: 8997 | H103: 0 | I103: 0 | J103: 0 | L103: Y99,T,EU28 | M103: 58515 | N103: 58515 | O103: 0 | P103: 0
C104: 100 | D104: Y_OPEN | E104: Y_OPEN,T,FR | F104: 24458 | G104: 24458 | H104: 0 | I104: 0 | J104: 0 | L104: Y_OPEN,T,EU28 | M104: : | N104: : | O104: 0 | P104: 0

Sheet risk stratification (hidden)
H1: Population | Q1: Apply Scottish risk profile | Z1: Apply own risk profile | AI1: Apply blanket % to population group | AR1: Selected risk profile | BB1: Applied to population
A2: ='input selections'!F2 -> 1 | B2: ='input selections'!G2 -> Apply country specific population | M2: 1 | O2: =CONCATENATE(O3,O4,O5) ->  | P2: 2BNF10+SCOT | Q2: 2BNF10+ & High Risk MedSCOT | R2: 2BNF 5-9SCOT | S2: 2BNF 5-9 & High Risk MedSCOT | T2: 2BNF10+SCOT | U2: 2BNF10+ & High Risk MedSCOT | V2: 2BNF 5-9SCOT | W2: 2BNF 5-9 & High Risk MedSCOT | Y2: 3BNF10+FR | Z2: 3BNF10+ & High Risk MedFR | AA2: 3BNF 5-9FR | AB2: 3BNF 5-9 & High Risk MedFR | AC2: 3BNF10+EU28 | AD2: 3BNF10+ & High Risk MedEU28 | AE2: 3BNF 5-9EU28 | AF2: 3BNF 5-9 & High Risk MedEU28 | AH2: 4BNF10+FR | AI2: 4BNF10+ & High Risk MedFR | AJ2: 4BNF 5-9FR | AK2: 4BNF 5-9 & High Risk MedFR | AL2: 4BNF10+EU28 | AM2: 4BNF10+ & High Risk MedEU28 | AN2: 4BNF 5-9EU28 | AO2: 4BNF 5-9 & High Risk MedEU28 | AR2: =CONCATENATE($A$5,AR4,AR5) -> 2BNF10+SCOT | AS2: =CONCATENATE($A$5,AS4,AS5) -> 2BNF10+ & High Risk MedSCOT | AT2: 2BNF 5-9SCOT | AU2: 2BNF 5-9 & High Risk MedSCOT | AV2: 2BNF10+SCOT | AW2: 2BNF10+ & High Risk MedSCOT | AX2: 2BNF 5-9SCOT | AY2: 2BNF 5-9 & High Risk MedSCOT
A3: ='input selections'!F3 -> 11 | B3: ='input selections'!G3 -> FR | M3: 2 | P3: 2 | Q3: 2 | R3: 2 | S3: 2 | T3: 2 | U3: 2 | V3: 2 | W3: 2 | Y3: 3 | Z3: 3 | AA3: 3 | AB3: 3 | AC3: 3 | AD3: 3 | AE3: 3 | AF3: 3 | AH3: 4 | AI3: 4 | AJ3: 4 | AK3: 4 | AL3: 4 | AM3: 4 | AN3: 4 | AO3: 4
A4: ='input selections'!F13 -> 0 | B4: ='input selections'!G13 -> No | M4: 3 | P4: BNF10+ | Q4: BNF10+ & High Risk Med | R4: BNF 5-9 | S4: BNF 5-9 & High Risk Med | T4: BNF10+ | U4: BNF10+ & High Risk Med | V4: BNF 5-9 | W4: BNF 5-9 & High Risk Med | Y4: BNF10+ | Z4: BNF10+ & High Risk Med | AA4: BNF 5-9 | AB4: BNF 5-9 & High Risk Med | AC4: BNF10+ | AD4: BNF10+ & High Risk Med | AE4: BNF 5-9 | AF4: BNF 5-9 & High Risk Med | AH4: BNF10+ | AI4: BNF10+ & High Risk Med | AJ4: BNF 5-9 | AK4: BNF 5-9 & High Risk Med | AL4: BNF10+ | AM4: BNF10+ & High Risk Med | AN4: BNF 5-9 | AO4: BNF 5-9 & High Risk Med | AR4: BNF10+ | AS4: BNF10+ & High Risk Med | AT4: BNF 5-9 | AU4: BNF 5-9 & High Risk Med | AV4: BNF10+ | AW4: BNF10+ & High Risk Med | AX4: BNF 5-9 | AY4: BNF 5-9 & High Risk Med | BB4: BNF10+ | BC4: BNF10+ & High Risk Med | BD4: BNF 5-9 | BE4: BNF 5-9 & High Risk Med | BF4: BNF10+ | BG4: BNF10+ & High Risk Med | BH4: BNF 5-9 | BI4: BNF 5-9 & High Risk Med
A5: ='input selections'!F15 -> 2 | B5: ='input selections'!G15 -> Apply Scottish risk profile | H5: age | J5: selection | K5: EU28 permanent | M5: 4 | P5: SCOT | Q5: SCOT | R5: SCOT | S5: SCOT | T5: SCOT | U5: SCOT | V5: SCOT | W5: SCOT | Y5: =$B$3 -> FR | Z5: =$B$3 -> FR | AA5: =$B$3 -> FR | AB5: =$B$3 -> FR | AC5: EU28 | AD5: EU28 | AE5: EU28 | AF5: EU28 | AH5: =$B$3 -> FR | AI5: =$B$3 -> FR | AJ5: =$B$3 -> FR | AK5: =$B$3 -> FR | AL5: EU28 | AM5: EU28 | AN5: EU28 | AO5: EU28 | AR5: =IF($A$5=2,"SCOT",$B$3) -> SCOT | AS5: =IF($A$5=2,"SCOT",$B$3) -> SCOT | AT5: =IF($A$5=2,"SCOT",$B$3) -> SCOT | AU5: =IF($A$5=2,"SCOT",$B$3) -> SCOT | AV5: =IF($A$5=2,"SCOT","EU28") -> SCOT | AW5: =IF($A$5=2,"SCOT","EU28") -> SCOT | AX5: SCOT | AY5: SCOT | BB5: =IF($A$5=2,"SCOT",$B$3) -> SCOT | BC5: =IF($A$5=2,"SCOT",$B$3) -> SCOT | BD5: =IF($A$5=2,"SCOT",$B$3) -> SCOT | BE5: =IF($A$5=2,"SCOT",$B$3) -> SCOT | BF5: EU28 | BG5: EU28 | BH5: EU28 | BI5: EU28
H6: 0 | I6: Y_LT1 | J6: ='population lookup'!I4 -> 0 | K6: ='population lookup'!P4 -> 0 | M6: 5 | P6: =HLOOKUP($P$5,altrisk10plus,Risk!$A7,FALSE) -> 0 | Q6: =HLOOKUP($Q$5,altrisk10plushighrisk,Risk!$A7,FALSE) -> 0 | R6: =HLOOKUP($R$5,altrisk59,Risk!$A7,FALSE) -> 0 | S6: =HLOOKUP($S$5,altrisk59plushighrisk,Risk!$A7,FALSE) -> 0 | T6: =HLOOKUP($T$5,altrisk10plus,Risk!$A7,FALSE) -> 0 | U6: =HLOOKUP($U$5,altrisk10plushighrisk,Risk!$A7,FALSE) -> 0 | V6: =HLOOKUP($V$5,altrisk59,Risk!$A7,FALSE) -> 0 | W6: =HLOOKUP($W$5,altrisk59plushighrisk,Risk!$A7,FALSE) -> 0 | Y6: =Risk!E7 -> 0 | Z6: =Risk!F7 -> 0 | AA6: =Risk!G7 -> 0 | AB6: =Risk!H7 -> 0 | AC6: =Y6 -> 0 | AD6: =Z6 -> 0 | AE6: 0 | AF6: 0 | AH6: =Risk!$J7 -> 0 | AI6: =Risk!$J7 -> 0 | AJ6: =Risk!$J7 -> 0 | AK6: =Risk!$J7 -> 0 | AL6: =Risk!$J7 -> 0 | AM6: =Risk!$J7 -> 0 | AN6: =Risk!$J7 -> 0 | AO6: =Risk!$J7 -> 0 | AR6: =HLOOKUP(AR$2,$P$2:$AO$107,$M6,FALSE) -> 0 | AS6: 0 | AT6: 0 | AU6: 0 | AV6: 0 | AW6: 0 | AX6: 0 | AY6: 0 | BB6: =IF(ISERROR($J6*AR6),"",($J6*AR6)) -> 0 | BC6: =IF(ISERROR($J6*AS6),"",($J6*AS6)) -> 0 | BD6: 0 | BE6: 0 | BF6: =IF(ISERROR($K6*AV6),"",($K6*AV6)) -> 0 | BG6: =IF(ISERROR($K6*AW6),"",($K6*AW6)) -> 0 | BH6: 0 | BI6: 0
A7: Population summary | H7: 1 | I7: Y1 | J7: ='population lookup'!I5 -> 0 | K7: ='population lookup'!P5 -> 0 | M7: 6 | P7: =HLOOKUP($P$5,altrisk10plus,Risk!$A8,FALSE) -> 0 | Q7: =HLOOKUP($Q$5,altrisk10plushighrisk,Risk!$A8,FALSE) -> 0 | R7: =HLOOKUP($R$5,altrisk59,Risk!$A8,FALSE) -> 0 | S7: =HLOOKUP($S$5,altrisk59plushighrisk,Risk!$A8,FALSE) -> 0 | T7: =HLOOKUP($T$5,altrisk10plus,Risk!$A8,FALSE) -> 0 | U7: =HLOOKUP($U$5,altrisk10plushighrisk,Risk!$A8,FALSE) -> 0 | V7: =HLOOKUP($V$5,altrisk59,Risk!$A8,FALSE) -> 0 | W7: =HLOOKUP($W$5,altrisk59plushighrisk,Risk!$A8,FALSE) -> 0 | Y7: =Risk!E8 -> 0 | Z7: =Risk!F8 -> 0 | AA7: =Risk!G8 -> 0 | AB7: =Risk!H8 -> 0 | AC7: =Y7 -> 0 | AD7: =Z7 -> 0 | AE7: =AA7 -> 0 | AF7: =AB7 -> 0 | AH7: =Risk!$J8 -> 0 | AI7: =Risk!$J8 -> 0 | AJ7: =Risk!$J8 -> 0 | AK7: =Risk!$J8 -> 0 | AL7: =Risk!$J8 -> 0 | AM7: =Risk!$J8 -> 0 | AN7: =Risk!$J8 -> 0 | AO7: =Risk!$J8 -> 0 | AR7: 0 | AS7: 0 | AT7: 0 | AU7: 0 | AV7: 0 | AW7: 0 | AX7: 0 | AY7: 0 | BB7: =IF(ISERROR($J7*AR7),"",($J7*AR7)) -> 0 | BC7: =IF(ISERROR($J7*AS7),"",($J7*AS7)) -> 0 | BD7: =IF(ISERROR($J7*AT7),"",($J7*AT7)) -> 0 | BE7: =IF(ISERROR($J7*AU7),"",($J7*AU7)) -> 0 | BF7: =IF(ISERROR($K7*AV7),"",($K7*AV7)) -> 0 | BG7: =IF(ISERROR($K7*AW7),"",($K7*AW7)) -> 0 | BH7: =IF(ISERROR($K7*AX7),"",($K7*AX7)) -> 0 | BI7: =IF(ISERROR($K7*AY7),"",($K7*AY7)) -> 0
B8: No risk stratification | C8: Risk stratification | H8: 2 | I8: Y2 | J8: ='population lookup'!I6 -> 0 | K8: ='population lookup'!P6 -> 0 | M8: 7 | P8: =HLOOKUP($P$5,altrisk10plus,Risk!$A9,FALSE) -> 0 | Q8: =HLOOKUP($Q$5,altrisk10plushighrisk,Risk!$A9,FALSE) -> 0 | R8: =HLOOKUP($R$5,altrisk59,Risk!$A9,FALSE) -> 0 | S8: =HLOOKUP($S$5,altrisk59plushighrisk,Risk!$A9,FALSE) -> 0 | T8: =HLOOKUP($T$5,altrisk10plus,Risk!$A9,FALSE) -> 0 | U8: =HLOOKUP($U$5,altrisk10plushighrisk,Risk!$A9,FALSE) -> 0 | V8: =HLOOKUP($V$5,altrisk59,Risk!$A9,FALSE) -> 0 | W8: =HLOOKUP($W$5,altrisk59plushighrisk,Risk!$A9,FALSE) -> 0 | Y8: =Risk!E9 -> 0 | Z8: =Risk!F9 -> 0 | AA8: =Risk!G9 -> 0 | AB8: =Risk!H9 -> 0 | AC8: 0 | AD8: 0 | AE8: 0 | AF8: 0 | AH8: =Risk!$J9 -> 0 | AI8: =Risk!$J9 -> 0 | AJ8: =Risk!$J9 -> 0 | AK8: =Risk!$J9 -> 0 | AL8: =Risk!$J9 -> 0 | AM8: =Risk!$J9 -> 0 | AN8: =Risk!$J9 -> 0 | AO8: =Risk!$J9 -> 0 | AR8: 0 | AS8: 0 | AT8: 0 | AU8: 0 | AV8: 0 | AW8: 0 | AX8: 0 | AY8: 0 | BB8: 0 | BC8: 0 | BD8: 0 | BE8: 0 | BF8: 0 | BG8: 0 | BH8: 0 | BI8: 0
C9: BNF10+ | D9: BNF10+ & High Risk Med | E9: BNF 5-9 | F9: BNF 5-9 & High Risk Med | H9: 3 | I9: Y3 | J9: ='population lookup'!I7 -> 0 | K9: ='population lookup'!P7 -> 0 | M9: 8 | P9: =HLOOKUP($P$5,altrisk10plus,Risk!$A10,FALSE) -> 0 | Q9: =HLOOKUP($Q$5,altrisk10plushighrisk,Risk!$A10,FALSE) -> 0 | R9: =HLOOKUP($R$5,altrisk59,Risk!$A10,FALSE) -> 0 | S9: =HLOOKUP($S$5,altrisk59plushighrisk,Risk!$A10,FALSE) -> 0 | T9: =HLOOKUP($T$5,altrisk10plus,Risk!$A10,FALSE) -> 0 | U9: =HLOOKUP($U$5,altrisk10plushighrisk,Risk!$A10,FALSE) -> 0 | V9: =HLOOKUP($V$5,altrisk59,Risk!$A10,FALSE) -> 0 | W9: =HLOOKUP($W$5,altrisk59plushighrisk,Risk!$A10,FALSE) -> 0 | Y9: =Risk!E10 -> 0 | Z9: =Risk!F10 -> 0 | AA9: =Risk!G10 -> 0 | AB9: =Risk!H10 -> 0 | AC9: 0 | AD9: 0 | AE9: 0 | AF9: 0 | AH9: =Risk!$J10 -> 0 | AI9: =Risk!$J10 -> 0 | AJ9: =Risk!$J10 -> 0 | AK9: =Risk!$J10 -> 0 | AL9: =Risk!$J10 -> 0 | AM9: =Risk!$J10 -> 0 | AN9: =Risk!$J10 -> 0 | AO9: =Risk!$J10 -> 0 | AR9: 0 | AS9: 0 | AT9: 0 | AU9: 0 | AV9: 0 | AW9: 0 | AX9: 0 | AY9: 0 | BB9: 0 | BC9: 0 | BD9: 0 | BE9: 0 | BF9: 0 | BG9: 0 | BH9: 0 | BI9: 0
A10: ='input selections'!G3 -> FR | B10: =IF('risk stratification'!$A$2=2,'manual data input'!$AM$6,J109) -> 7968556 | C10: =IF($A$2=2,IF($A$5=4,$B10*'manual data input'!$G$6,IF($A$5=2,$B10*C14,"n/a")),BB109) -> 374874.5803 | D10: =IF($A$2=2,IF($A$5=4,$B10*'manual data input'!$G$6,IF($A$5=2,$B10*D14,"n/a")),BC109) -> 366100.6519 | E10: =IF($A$2=2,IF($A$5=4,$B10*'manual data input'!$G$6,IF($A$5=2,$B10*E14,"n/a")),BD109) -> 425385.1843 | F10: =IF($A$2=2,IF($A$5=4,$B10*'manual data input'!$G$6,IF($A$5=2,$B10*F14,"n/a")),BE109) -> 410237.0391 | H10: 4 | I10: Y4 | J10: ='population lookup'!I8 -> 0 | K10: ='population lookup'!P8 -> 0 | M10: 9 | P10: =HLOOKUP($P$5,altrisk10plus,Risk!$A11,FALSE) -> 0 | Q10: =HLOOKUP($Q$5,altrisk10plushighrisk,Risk!$A11,FALSE) -> 0 | R10: =HLOOKUP($R$5,altrisk59,Risk!$A11,FALSE) -> 0 | S10: =HLOOKUP($S$5,altrisk59plushighrisk,Risk!$A11,FALSE) -> 0 | T10: =HLOOKUP($T$5,altrisk10plus,Risk!$A11,FALSE) -> 0 | U10: =HLOOKUP($U$5,altrisk10plushighrisk,Risk!$A11,FALSE) -> 0 | V10: =HLOOKUP($V$5,altrisk59,Risk!$A11,FALSE) -> 0 | W10: =HLOOKUP($W$5,altrisk59plushighrisk,Risk!$A11,FALSE) -> 0 | Y10: =Risk!E11 -> 0 | Z10: =Risk!F11 -> 0 | AA10: =Risk!G11 -> 0 | AB10: =Risk!H11 -> 0 | AC10: 0 | AD10: 0 | AE10: 0 | AF10: 0 | AH10: =Risk!$J11 -> 0 | AI10: =Risk!$J11 -> 0 | AJ10: =Risk!$J11 -> 0 | AK10: =Risk!$J11 -> 0 | AL10: =Risk!$J11 -> 0 | AM10: =Risk!$J11 -> 0 | AN10: =Risk!$J11 -> 0 | AO10: =Risk!$J11 -> 0 | AR10: 0 | AS10: 0 | AT10: 0 | AU10: 0 | AV10: 0 | AW10: 0 | AX10: 0 | AY10: 0 | BB10: 0 | BC10: 0 | BD10: 0 | BE10: 0 | BF10: 0 | BG10: 0 | BH10: 0 | BI10: 0
A11: EU28 | B11: =K109 -> 66458505 | C11: =BF109 -> 3186074.325 | D11: =BG109 -> 3111764.129 | E11: =BH109 -> 3613499.881 | F11: 3485371.175 | H11: 5 | I11: Y5 | J11: ='population lookup'!I9 -> 0 | K11: ='population lookup'!P9 -> 0 | M11: 10 | P11: =HLOOKUP($P$5,altrisk10plus,Risk!$A12,FALSE) -> 0 | Q11: =HLOOKUP($Q$5,altrisk10plushighrisk,Risk!$A12,FALSE) -> 0 | R11: =HLOOKUP($R$5,altrisk59,Risk!$A12,FALSE) -> 0 | S11: =HLOOKUP($S$5,altrisk59plushighrisk,Risk!$A12,FALSE) -> 0 | T11: =HLOOKUP($T$5,altrisk10plus,Risk!$A12,FALSE) -> 0 | U11: =HLOOKUP($U$5,altrisk10plushighrisk,Risk!$A12,FALSE) -> 0 | V11: =HLOOKUP($V$5,altrisk59,Risk!$A12,FALSE) -> 0 | W11: =HLOOKUP($W$5,altrisk59plushighrisk,Risk!$A12,FALSE) -> 0 | Y11: =Risk!E12 -> 0 | Z11: =Risk!F12 -> 0 | AA11: =Risk!G12 -> 0 | AB11: =Risk!H12 -> 0 | AC11: 0 | AD11: 0 | AE11: 0 | AF11: 0 | AH11: =Risk!$J12 -> 0 | AI11: =Risk!$J12 -> 0 | AJ11: =Risk!$J12 -> 0 | AK11: =Risk!$J12 -> 0 | AL11: =Risk!$J12 -> 0 | AM11: =Risk!$J12 -> 0 | AN11: =Risk!$J12 -> 0 | AO11: =Risk!$J12 -> 0 | AR11: 0 | AS11: 0 | AT11: 0 | AU11: 0 | AV11: 0 | AW11: 0 | AX11: 0 | AY11: 0 | BB11: 0 | BC11: 0 | BD11: 0 | BE11: 0 | BF11: 0 | BG11: 0 | BH11: 0 | BI11: 0
H12: 6 | I12: Y6 | J12: ='population lookup'!I10 -> 0 | K12: ='population lookup'!P10 -> 0 | M12: 11 | P12: =HLOOKUP($P$5,altrisk10plus,Risk!$A13,FALSE) -> 0 | Q12: =HLOOKUP($Q$5,altrisk10plushighrisk,Risk!$A13,FALSE) -> 0 | R12: =HLOOKUP($R$5,altrisk59,Risk!$A13,FALSE) -> 0 | S12: =HLOOKUP($S$5,altrisk59plushighrisk,Risk!$A13,FALSE) -> 0 | T12: =HLOOKUP($T$5,altrisk10plus,Risk!$A13,FALSE) -> 0 | U12: =HLOOKUP($U$5,altrisk10plushighrisk,Risk!$A13,FALSE) -> 0 | V12: =HLOOKUP($V$5,altrisk59,Risk!$A13,FALSE) -> 0 | W12: =HLOOKUP($W$5,altrisk59plushighrisk,Risk!$A13,FALSE) -> 0 | Y12: =Risk!E13 -> 0 | Z12: =Risk!F13 -> 0 | AA12: =Risk!G13 -> 0 | AB12: =Risk!H13 -> 0 | AC12: 0 | AD12: 0 | AE12: 0 | AF12: 0 | AH12: =Risk!$J13 -> 0 | AI12: =Risk!$J13 -> 0 | AJ12: =Risk!$J13 -> 0 | AK12: =Risk!$J13 -> 0 | AL12: =Risk!$J13 -> 0 | AM12: =Risk!$J13 -> 0 | AN12: =Risk!$J13 -> 0 | AO12: =Risk!$J13 -> 0 | AR12: 0 | AS12: 0 | AT12: 0 | AU12: 0 | AV12: 0 | AW12: 0 | AX12: 0 | AY12: 0 | BB12: 0 | BC12: 0 | BD12: 0 | BE12: 0 | BF12: 0 | BG12: 0 | BH12: 0 | BI12: 0
B13: cross averages | H13: 7 | I13: Y7 | J13: ='population lookup'!I11 -> 0 | K13: ='population lookup'!P11 -> 0 | M13: 12 | P13: =HLOOKUP($P$5,altrisk10plus,Risk!$A14,FALSE) -> 0 | Q13: =HLOOKUP($Q$5,altrisk10plushighrisk,Risk!$A14,FALSE) -> 0 | R13: =HLOOKUP($R$5,altrisk59,Risk!$A14,FALSE) -> 0 | S13: =HLOOKUP($S$5,altrisk59plushighrisk,Risk!$A14,FALSE) -> 0 | T13: =HLOOKUP($T$5,altrisk10plus,Risk!$A14,FALSE) -> 0 | U13: =HLOOKUP($U$5,altrisk10plushighrisk,Risk!$A14,FALSE) -> 0 | V13: =HLOOKUP($V$5,altrisk59,Risk!$A14,FALSE) -> 0 | W13: =HLOOKUP($W$5,altrisk59plushighrisk,Risk!$A14,FALSE) -> 0 | Y13: =Risk!E14 -> 0 | Z13: =Risk!F14 -> 0 | AA13: =Risk!G14 -> 0 | AB13: =Risk!H14 -> 0 | AC13: 0 | AD13: 0 | AE13: 0 | AF13: 0 | AH13: =Risk!$J14 -> 0 | AI13: =Risk!$J14 -> 0 | AJ13: =Risk!$J14 -> 0 | AK13: =Risk!$J14 -> 0 | AL13: =Risk!$J14 -> 0 | AM13: =Risk!$J14 -> 0 | AN13: =Risk!$J14 -> 0 | AO13: =Risk!$J14 -> 0 | AR13: 0 | AS13: 0 | AT13: 0 | AU13: 0 | AV13: 0 | AW13: 0 | AX13: 0 | AY13: 0 | BB13: 0 | BC13: 0 | BD13: 0 | BE13: 0 | BF13: 0 | BG13: 0 | BH13: 0 | BI13: 0
A14: 2 | B14: Apply Scottish risk profile | C14: =Risk!L108 -> 0.01335120045 | D14: =Risk!M108 -> 0.01293541783 | E14: =Risk!N108 -> 0.01622240834 | F14: =Risk!O108 -> 0.01540238228 | H14: 8 | I14: Y8 | J14: ='population lookup'!I12 -> 0 | K14: ='population lookup'!P12 -> 0 | M14: 13 | P14: =HLOOKUP($P$5,altrisk10plus,Risk!$A15,FALSE) -> 0 | Q14: =HLOOKUP($Q$5,altrisk10plushighrisk,Risk!$A15,FALSE) -> 0 | R14: =HLOOKUP($R$5,altrisk59,Risk!$A15,FALSE) -> 0 | S14: =HLOOKUP($S$5,altrisk59plushighrisk,Risk!$A15,FALSE) -> 0 | T14: =HLOOKUP($T$5,altrisk10plus,Risk!$A15,FALSE) -> 0 | U14: =HLOOKUP($U$5,altrisk10plushighrisk,Risk!$A15,FALSE) -> 0 | V14: =HLOOKUP($V$5,altrisk59,Risk!$A15,FALSE) -> 0 | W14: =HLOOKUP($W$5,altrisk59plushighrisk,Risk!$A15,FALSE) -> 0 | Y14: =Risk!E15 -> 0 | Z14: =Risk!F15 -> 0 | AA14: =Risk!G15 -> 0 | AB14: =Risk!H15 -> 0 | AC14: 0 | AD14: 0 | AE14: 0 | AF14: 0 | AH14: =Risk!$J15 -> 0 | AI14: =Risk!$J15 -> 0 | AJ14: =Risk!$J15 -> 0 | AK14: =Risk!$J15 -> 0 | AL14: =Risk!$J15 -> 0 | AM14: =Risk!$J15 -> 0 | AN14: =Risk!$J15 -> 0 | AO14: =Risk!$J15 -> 0 | AR14: 0 | AS14: 0 | AT14: 0 | AU14: 0 | AV14: 0 | AW14: 0 | AX14: 0 | AY14: 0 | BB14: 0 | BC14: 0 | BD14: 0 | BE14: 0 | BF14: 0 | BG14: 0 | BH14: 0 | BI14: 0
A15: 4 | B15: Apply blanket % to population group | H15: 9 | I15: Y9 | J15: ='population lookup'!I13 -> 0 | K15: ='population lookup'!P13 -> 0 | M15: 14 | P15: =HLOOKUP($P$5,altrisk10plus,Risk!$A16,FALSE) -> 0 | Q15: =HLOOKUP($Q$5,altrisk10plushighrisk,Risk!$A16,FALSE) -> 0 | R15: =HLOOKUP($R$5,altrisk59,Risk!$A16,FALSE) -> 0 | S15: =HLOOKUP($S$5,altrisk59plushighrisk,Risk!$A16,FALSE) -> 0 | T15: =HLOOKUP($T$5,altrisk10plus,Risk!$A16,FALSE) -> 0 | U15: =HLOOKUP($U$5,altrisk10plushighrisk,Risk!$A16,FALSE) -> 0 | V15: =HLOOKUP($V$5,altrisk59,Risk!$A16,FALSE) -> 0 | W15: =HLOOKUP($W$5,altrisk59plushighrisk,Risk!$A16,FALSE) -> 0 | Y15: =Risk!E16 -> 0 | Z15: =Risk!F16 -> 0 | AA15: =Risk!G16 -> 0 | AB15: =Risk!H16 -> 0 | AC15: 0 | AD15: 0 | AE15: 0 | AF15: 0 | AH15: =Risk!$J16 -> 0 | AI15: =Risk!$J16 -> 0 | AJ15: =Risk!$J16 -> 0 | AK15: =Risk!$J16 -> 0 | AL15: =Risk!$J16 -> 0 | AM15: =Risk!$J16 -> 0 | AN15: =Risk!$J16 -> 0 | AO15: =Risk!$J16 -> 0 | AR15: 0 | AS15: 0 | AT15: 0 | AU15: 0 | AV15: 0 | AW15: 0 | AX15: 0 | AY15: 0 | BB15: 0 | BC15: 0 | BD15: 0 | BE15: 0 | BF15: 0 | BG15: 0 | BH15: 0 | BI15: 0
H16: 10 | I16: Y10 | J16: ='population lookup'!I14 -> 0 | K16: ='population lookup'!P14 -> 0 | M16: 15 | P16: =HLOOKUP($P$5,altrisk10plus,Risk!$A17,FALSE) -> 0 | Q16: =HLOOKUP($Q$5,altrisk10plushighrisk,Risk!$A17,FALSE) -> 0 | R16: =HLOOKUP($R$5,altrisk59,Risk!$A17,FALSE) -> 0 | S16: =HLOOKUP($S$5,altrisk59plushighrisk,Risk!$A17,FALSE) -> 0 | T16: =HLOOKUP($T$5,altrisk10plus,Risk!$A17,FALSE) -> 0 | U16: =HLOOKUP($U$5,altrisk10plushighrisk,Risk!$A17,FALSE) -> 0 | V16: =HLOOKUP($V$5,altrisk59,Risk!$A17,FALSE) -> 0 | W16: =HLOOKUP($W$5,altrisk59plushighrisk,Risk!$A17,FALSE) -> 0 | Y16: =Risk!E17 -> 0 | Z16: =Risk!F17 -> 0 | AA16: =Risk!G17 -> 0 | AB16: =Risk!H17 -> 0 | AC16: 0 | AD16: 0 | AE16: 0 | AF16: 0 | AH16: =Risk!$J17 -> 0 | AI16: =Risk!$J17 -> 0 | AJ16: =Risk!$J17 -> 0 | AK16: =Risk!$J17 -> 0 | AL16: =Risk!$J17 -> 0 | AM16: =Risk!$J17 -> 0 | AN16: =Risk!$J17 -> 0 | AO16: =Risk!$J17 -> 0 | AR16: =HLOOKUP(AR$2,$P$2:$AO$107,$M16,FALSE) -> 0 | AS16: 0 | AT16: 0 | AU16: 0 | AV16: 0 | AW16: 0 | AX16: 0 | AY16: 0 | BB16: 0 | BC16: 0 | BD16: 0 | BE16: 0 | BF16: 0 | BG16: 0 | BH16: 0 | BI16: 0
H17: 11 | I17: Y11 | J17: ='population lookup'!I15 -> 0 | K17: ='population lookup'!P15 -> 0 | M17: 16 | P17: =HLOOKUP($P$5,altrisk10plus,Risk!$A18,FALSE) -> 0 | Q17: =HLOOKUP($Q$5,altrisk10plushighrisk,Risk!$A18,FALSE) -> 0 | R17: =HLOOKUP($R$5,altrisk59,Risk!$A18,FALSE) -> 0 | S17: =HLOOKUP($S$5,altrisk59plushighrisk,Risk!$A18,FALSE) -> 0 | T17: =HLOOKUP($T$5,altrisk10plus,Risk!$A18,FALSE) -> 0 | U17: =HLOOKUP($U$5,altrisk10plushighrisk,Risk!$A18,FALSE) -> 0 | V17: =HLOOKUP($V$5,altrisk59,Risk!$A18,FALSE) -> 0 | W17: =HLOOKUP($W$5,altrisk59plushighrisk,Risk!$A18,FALSE) -> 0 | Y17: =Risk!E18 -> 0 | Z17: =Risk!F18 -> 0 | AA17: =Risk!G18 -> 0 | AB17: =Risk!H18 -> 0 | AC17: 0 | AD17: 0 | AE17: 0 | AF17: 0 | AH17: =Risk!$J18 -> 0 | AI17: =Risk!$J18 -> 0 | AJ17: =Risk!$J18 -> 0 | AK17: =Risk!$J18 -> 0 | AL17: =Risk!$J18 -> 0 | AM17: =Risk!$J18 -> 0 | AN17: =Risk!$J18 -> 0 | AO17: =Risk!$J18 -> 0 | AR17: 0 | AS17: 0 | AT17: 0 | AU17: 0 | AV17: 0 | AW17: 0 | AX17: 0 | AY17: 0 | BB17: 0 | BC17: 0 | BD17: 0 | BE17: 0 | BF17: 0 | BG17: 0 | BH17: 0 | BI17: 0
H18: 12 | I18: Y12 | J18: ='population lookup'!I16 -> 0 | K18: ='population lookup'!P16 -> 0 | M18: 17 | P18: =HLOOKUP($P$5,altrisk10plus,Risk!$A19,FALSE) -> 0 | Q18: =HLOOKUP($Q$5,altrisk10plushighrisk,Risk!$A19,FALSE) -> 0 | R18: =HLOOKUP($R$5,altrisk59,Risk!$A19,FALSE) -> 0 | S18: =HLOOKUP($S$5,altrisk59plushighrisk,Risk!$A19,FALSE) -> 0 | T18: =HLOOKUP($T$5,altrisk10plus,Risk!$A19,FALSE) -> 0 | U18: =HLOOKUP($U$5,altrisk10plushighrisk,Risk!$A19,FALSE) -> 0 | V18: =HLOOKUP($V$5,altrisk59,Risk!$A19,FALSE) -> 0 | W18: =HLOOKUP($W$5,altrisk59plushighrisk,Risk!$A19,FALSE) -> 0 | Y18: =Risk!E19 -> 0 | Z18: =Risk!F19 -> 0 | AA18: =Risk!G19 -> 0 | AB18: =Risk!H19 -> 0 | AC18: 0 | AD18: 0 | AE18: 0 | AF18: 0 | AH18: =Risk!$J19 -> 0 | AI18: =Risk!$J19 -> 0 | AJ18: =Risk!$J19 -> 0 | AK18: =Risk!$J19 -> 0 | AL18: =Risk!$J19 -> 0 | AM18: =Risk!$J19 -> 0 | AN18: =Risk!$J19 -> 0 | AO18: =Risk!$J19 -> 0 | AR18: 0 | AS18: 0 | AT18: 0 | AU18: 0 | AV18: 0 | AW18: 0 | AX18: 0 | AY18: 0 | BB18: 0 | BC18: 0 | BD18: 0 | BE18: 0 | BF18: 0 | BG18: 0 | BH18: 0 | BI18: 0
H19: 13 | I19: Y13 | J19: ='population lookup'!I17 -> 0 | K19: ='population lookup'!P17 -> 0 | M19: 18 | P19: =HLOOKUP($P$5,altrisk10plus,Risk!$A20,FALSE) -> 0.0008168822328 | Q19: =HLOOKUP($Q$5,altrisk10plushighrisk,Risk!$A20,FALSE) -> 0.0005786249149 | R19: =HLOOKUP($R$5,altrisk59,Risk!$A20,FALSE) -> 0.001633764466 | S19: =HLOOKUP($S$5,altrisk59plushighrisk,Risk!$A20,FALSE) -> 0.0009870660313 | T19: =HLOOKUP($T$5,altrisk10plus,Risk!$A20,FALSE) -> 0.0008168822328 | U19: =HLOOKUP($U$5,altrisk10plushighrisk,Risk!$A20,FALSE) -> 0.0005786249149 | V19: =HLOOKUP($V$5,altrisk59,Risk!$A20,FALSE) -> 0.001633764466 | W19: =HLOOKUP($W$5,altrisk59plushighrisk,Risk!$A20,FALSE) -> 0.0009870660313 | Y19: =Risk!E20 -> 0 | Z19: =Risk!F20 -> 0 | AA19: =Risk!G20 -> 0 | AB19: =Risk!H20 -> 0 | AC19: 0 | AD19: 0 | AE19: 0 | AF19: 0 | AH19: =Risk!$J20 -> 0 | AI19: =Risk!$J20 -> 0 | AJ19: =Risk!$J20 -> 0 | AK19: =Risk!$J20 -> 0 | AL19: =Risk!$J20 -> 0 | AM19: =Risk!$J20 -> 0 | AN19: =Risk!$J20 -> 0 | AO19: =Risk!$J20 -> 0 | AR19: 0.0008168822328 | AS19: 0.0005786249149 | AT19: 0.001633764466 | AU19: 0.0009870660313 | AV19: 0.0008168822328 | AW19: 0.0005786249149 | AX19: 0.001633764466 | AY19: 0.0009870660313 | BB19: 0 | BC19: 0 | BD19: 0 | BE19: 0 | BF19: 0 | BG19: 0 | BH19: 0 | BI19: 0
H20: 14 | I20: Y14 | J20: ='population lookup'!I18 -> 0 | K20: ='population lookup'!P18 -> 0 | M20: 19 | P20: =HLOOKUP($P$5,altrisk10plus,Risk!$A21,FALSE) -> 0.0006658454573 | Q20: =HLOOKUP($Q$5,altrisk10plushighrisk,Risk!$A21,FALSE) -> 0.0004827379565 | R20: =HLOOKUP($R$5,altrisk59,Risk!$A21,FALSE) -> 0.001464860006 | S20: =HLOOKUP($S$5,altrisk59plushighrisk,Risk!$A21,FALSE) -> 0.001048706595 | T20: =HLOOKUP($T$5,altrisk10plus,Risk!$A21,FALSE) -> 0.0006658454573 | U20: =HLOOKUP($U$5,altrisk10plushighrisk,Risk!$A21,FALSE) -> 0.0004827379565 | V20: =HLOOKUP($V$5,altrisk59,Risk!$A21,FALSE) -> 0.001464860006 | W20: =HLOOKUP($W$5,altrisk59plushighrisk,Risk!$A21,FALSE) -> 0.001048706595 | Y20: =Risk!E21 -> 0 | Z20: =Risk!F21 -> 0 | AA20: =Risk!G21 -> 0 | AB20: =Risk!H21 -> 0 | AC20: 0 | AD20: 0 | AE20: 0 | AF20: 0 | AH20: =Risk!$J21 -> 0 | AI20: =Risk!$J21 -> 0 | AJ20: =Risk!$J21 -> 0 | AK20: =Risk!$J21 -> 0 | AL20: =Risk!$J21 -> 0 | AM20: =Risk!$J21 -> 0 | AN20: =Risk!$J21 -> 0 | AO20: =Risk!$J21 -> 0 | AR20: 0.0006658454573 | AS20: 0.0004827379565 | AT20: 0.001464860006 | AU20: 0.001048706595 | AV20: 0.0006658454573 | AW20: 0.0004827379565 | AX20: 0.001464860006 | AY20: 0.001048706595 | BB20: 0 | BC20: 0 | BD20: 0 | BE20: 0 | BF20: 0 | BG20: 0 | BH20: 0 | BI20: 0
H21: 15 | I21: Y15 | J21: ='population lookup'!I19 -> 0 | K21: ='population lookup'!P19 -> 0 | M21: 20 | P21: =HLOOKUP($P$5,altrisk10plus,Risk!$A22,FALSE) -> 0.001022756328 | Q21: =HLOOKUP($Q$5,altrisk10plushighrisk,Risk!$A22,FALSE) -> 0.0006711838405 | R21: =HLOOKUP($R$5,altrisk59,Risk!$A22,FALSE) -> 0.001949629251 | S21: =HLOOKUP($S$5,altrisk59plushighrisk,Risk!$A22,FALSE) -> 0.00127844541 | T21: =HLOOKUP($T$5,altrisk10plus,Risk!$A22,FALSE) -> 0.001022756328 | U21: =HLOOKUP($U$5,altrisk10plushighrisk,Risk!$A22,FALSE) -> 0.0006711838405 | V21: =HLOOKUP($V$5,altrisk59,Risk!$A22,FALSE) -> 0.001949629251 | W21: =HLOOKUP($W$5,altrisk59plushighrisk,Risk!$A22,FALSE) -> 0.00127844541 | Y21: =Risk!E22 -> 0 | Z21: =Risk!F22 -> 0 | AA21: =Risk!G22 -> 0 | AB21: =Risk!H22 -> 0 | AC21: 0 | AD21: 0 | AE21: 0 | AF21: 0 | AH21: =Risk!$J22 -> 0 | AI21: =Risk!$J22 -> 0 | AJ21: =Risk!$J22 -> 0 | AK21: =Risk!$J22 -> 0 | AL21: =Risk!$J22 -> 0 | AM21: =Risk!$J22 -> 0 | AN21: =Risk!$J22 -> 0 | AO21: =Risk!$J22 -> 0 | AR21: 0.001022756328 | AS21: 0.0006711838405 | AT21: 0.001949629251 | AU21: 0.00127844541 | AV21: 0.001022756328 | AW21: 0.0006711838405 | AX21: 0.001949629251 | AY21: 0.00127844541 | BB21: 0 | BC21: 0 | BD21: 0 | BE21: 0 | BF21: 0 | BG21: 0 | BH21: 0 | BI21: 0
H22: 16 | I22: Y16 | J22: ='population lookup'!I20 -> 0 | K22: ='population lookup'!P20 -> 0 | M22: 21 | P22: =HLOOKUP($P$5,altrisk10plus,Risk!$A23,FALSE) -> 0.001045723899 | Q22: =HLOOKUP($Q$5,altrisk10plushighrisk,Risk!$A23,FALSE) -> 0.0008941697104 | R22: =HLOOKUP($R$5,altrisk59,Risk!$A23,FALSE) -> 0.002318779079 | S22: =HLOOKUP($S$5,altrisk59plushighrisk,Risk!$A23,FALSE) -> 0.001909582771 | T22: =HLOOKUP($T$5,altrisk10plus,Risk!$A23,FALSE) -> 0.001045723899 | U22: =HLOOKUP($U$5,altrisk10plushighrisk,Risk!$A23,FALSE) -> 0.0008941697104 | V22: =HLOOKUP($V$5,altrisk59,Risk!$A23,FALSE) -> 0.002318779079 | W22: =HLOOKUP($W$5,altrisk59plushighrisk,Risk!$A23,FALSE) -> 0.001909582771 | Y22: =Risk!E23 -> 0 | Z22: =Risk!F23 -> 0 | AA22: =Risk!G23 -> 0 | AB22: =Risk!H23 -> 0 | AC22: 0 | AD22: 0 | AE22: 0 | AF22: 0 | AH22: =Risk!$J23 -> 0 | AI22: =Risk!$J23 -> 0 | AJ22: =Risk!$J23 -> 0 | AK22: =Risk!$J23 -> 0 | AL22: =Risk!$J23 -> 0 | AM22: =Risk!$J23 -> 0 | AN22: =Risk!$J23 -> 0 | AO22: =Risk!$J23 -> 0 | AR22: 0.001045723899 | AS22: 0.0008941697104 | AT22: 0.002318779079 | AU22: 0.001909582771 | AV22: 0.001045723899 | AW22: 0.0008941697104 | AX22: 0.002318779079 | AY22: 0.001909582771 | BB22: 0 | BC22: 0 | BD22: 0 | BE22: 0 | BF22: 0 | BG22: 0 | BH22: 0 | BI22: 0
H23: 17 | I23: Y17 | J23: ='population lookup'!I21 -> 0 | K23: ='population lookup'!P21 -> 0 | M23: 22 | P23: =HLOOKUP($P$5,altrisk10plus,Risk!$A24,FALSE) -> 0.001154447546 | Q23: =HLOOKUP($Q$5,altrisk10plushighrisk,Risk!$A24,FALSE) -> 0.001022928205 | R23: =HLOOKUP($R$5,altrisk59,Risk!$A24,FALSE) -> 0.002338121612 | S23: =HLOOKUP($S$5,altrisk59plushighrisk,Risk!$A24,FALSE) -> 0.001899723809 | T23: =HLOOKUP($T$5,altrisk10plus,Risk!$A24,FALSE) -> 0.001154447546 | U23: =HLOOKUP($U$5,altrisk10plushighrisk,Risk!$A24,FALSE) -> 0.001022928205 | V23: =HLOOKUP($V$5,altrisk59,Risk!$A24,FALSE) -> 0.002338121612 | W23: =HLOOKUP($W$5,altrisk59plushighrisk,Risk!$A24,FALSE) -> 0.001899723809 | Y23: =Risk!E24 -> 0 | Z23: =Risk!F24 -> 0 | AA23: =Risk!G24 -> 0 | AB23: =Risk!H24 -> 0 | AC23: 0 | AD23: 0 | AE23: 0 | AF23: 0 | AH23: =Risk!$J24 -> 0 | AI23: =Risk!$J24 -> 0 | AJ23: =Risk!$J24 -> 0 | AK23: =Risk!$J24 -> 0 | AL23: =Risk!$J24 -> 0 | AM23: =Risk!$J24 -> 0 | AN23: =Risk!$J24 -> 0 | AO23: =Risk!$J24 -> 0 | AR23: 0.001154447546 | AS23: 0.001022928205 | AT23: 0.002338121612 | AU23: 0.001899723809 | AV23: 0.001154447546 | AW23: 0.001022928205 | AX23: 0.002338121612 | AY23: 0.001899723809 | BB23: 0 | BC23: 0 | BD23: 0 | BE23: 0 | BF23: 0 | BG23: 0 | BH23: 0 | BI23: 0
H24: 18 | I24: Y18 | J24: ='population lookup'!I22 -> 0 | K24: ='population lookup'!P22 -> 0 | M24: 23 | P24: =HLOOKUP($P$5,altrisk10plus,Risk!$A25,FALSE) -> 0.001120966273 | Q24: =HLOOKUP($Q$5,altrisk10plushighrisk,Risk!$A25,FALSE) -> 0.0009808454888 | R24: =HLOOKUP($R$5,altrisk59,Risk!$A25,FALSE) -> 0.002227920467 | S24: =HLOOKUP($S$5,altrisk59plushighrisk,Risk!$A25,FALSE) -> 0.001793546037 | T24: =HLOOKUP($T$5,altrisk10plus,Risk!$A25,FALSE) -> 0.001120966273 | U24: =HLOOKUP($U$5,altrisk10plushighrisk,Risk!$A25,FALSE) -> 0.0009808454888 | V24: =HLOOKUP($V$5,altrisk59,Risk!$A25,FALSE) -> 0.002227920467 | W24: =HLOOKUP($W$5,altrisk59plushighrisk,Risk!$A25,FALSE) -> 0.001793546037 | Y24: =Risk!E25 -> 0 | Z24: =Risk!F25 -> 0 | AA24: =Risk!G25 -> 0 | AB24: =Risk!H25 -> 0 | AC24: 0 | AD24: 0 | AE24: 0 | AF24: 0 | AH24: =Risk!$J25 -> 0 | AI24: =Risk!$J25 -> 0 | AJ24: =Risk!$J25 -> 0 | AK24: =Risk!$J25 -> 0 | AL24: =Risk!$J25 -> 0 | AM24: =Risk!$J25 -> 0 | AN24: =Risk!$J25 -> 0 | AO24: =Risk!$J25 -> 0 | AR24: 0.001120966273 | AS24: 0.0009808454888 | AT24: 0.002227920467 | AU24: 0.001793546037 | AV24: 0.001120966273 | AW24: 0.0009808454888 | AX24: 0.002227920467 | AY24: 0.001793546037 | BB24: 0 | BC24: 0 | BD24: 0 | BE24: 0 | BF24: 0 | BG24: 0 | BH24: 0 | BI24: 0
H25: 19 | I25: Y19 | J25: ='population lookup'!I23 -> 0 | K25: ='population lookup'!P23 -> 0 | M25: 24 | P25: =HLOOKUP($P$5,altrisk10plus,Risk!$A26,FALSE) -> 0.001599649991 | Q25: =HLOOKUP($Q$5,altrisk10plushighrisk,Risk!$A26,FALSE) -> 0.001312533326 | R25: =HLOOKUP($R$5,altrisk59,Risk!$A26,FALSE) -> 0.002843822206 | S25: =HLOOKUP($S$5,altrisk59plushighrisk,Risk!$A26,FALSE) -> 0.002283261098 | T25: =HLOOKUP($T$5,altrisk10plus,Risk!$A26,FALSE) -> 0.001599649991 | U25: =HLOOKUP($U$5,altrisk10plushighrisk,Risk!$A26,FALSE) -> 0.001312533326 | V25: =HLOOKUP($V$5,altrisk59,Risk!$A26,FALSE) -> 0.002843822206 | W25: =HLOOKUP($W$5,altrisk59plushighrisk,Risk!$A26,FALSE) -> 0.002283261098 | Y25: =Risk!E26 -> 0 | Z25: =Risk!F26 -> 0 | AA25: =Risk!G26 -> 0 | AB25: =Risk!H26 -> 0 | AC25: 0 | AD25: 0 | AE25: 0 | AF25: 0 | AH25: =Risk!$J26 -> 0 | AI25: =Risk!$J26 -> 0 | AJ25: =Risk!$J26 -> 0 | AK25: =Risk!$J26 -> 0 | AL25: =Risk!$J26 -> 0 | AM25: =Risk!$J26 -> 0 | AN25: =Risk!$J26 -> 0 | AO25: =Risk!$J26 -> 0 | AR25: 0.001599649991 | AS25: 0.001312533326 | AT25: 0.002843822206 | AU25: 0.002283261098 | AV25: 0.001599649991 | AW25: 0.001312533326 | AX25: 0.002843822206 | AY25: 0.002283261098 | BB25: 0 | BC25: 0 | BD25: 0 | BE25: 0 | BF25: 0 | BG25: 0 | BH25: 0 | BI25: 0
H26: 20 | I26: Y20 | J26: ='population lookup'!I24 -> 0 | K26: ='population lookup'!P24 -> 0 | M26: 25 | P26: =HLOOKUP($P$5,altrisk10plus,Risk!$A27,FALSE) -> 0.001355100987 | Q26: =HLOOKUP($Q$5,altrisk10plushighrisk,Risk!$A27,FALSE) -> 0.001148609408 | R26: =HLOOKUP($R$5,altrisk59,Risk!$A27,FALSE) -> 0.002594050461 | S26: =HLOOKUP($S$5,altrisk59plushighrisk,Risk!$A27,FALSE) -> 0.002129444409 | T26: =HLOOKUP($T$5,altrisk10plus,Risk!$A27,FALSE) -> 0.001355100987 | U26: =HLOOKUP($U$5,altrisk10plushighrisk,Risk!$A27,FALSE) -> 0.001148609408 | V26: =HLOOKUP($V$5,altrisk59,Risk!$A27,FALSE) -> 0.002594050461 | W26: =HLOOKUP($W$5,altrisk59plushighrisk,Risk!$A27,FALSE) -> 0.002129444409 | Y26: =Risk!E27 -> 0 | Z26: =Risk!F27 -> 0 | AA26: =Risk!G27 -> 0 | AB26: =Risk!H27 -> 0 | AC26: 0 | AD26: 0 | AE26: 0 | AF26: 0 | AH26: =Risk!$J27 -> 0 | AI26: =Risk!$J27 -> 0 | AJ26: =Risk!$J27 -> 0 | AK26: =Risk!$J27 -> 0 | AL26: =Risk!$J27 -> 0 | AM26: =Risk!$J27 -> 0 | AN26: =Risk!$J27 -> 0 | AO26: =Risk!$J27 -> 0 | AR26: =HLOOKUP(AR$2,$P$2:$AO$107,$M26,FALSE) -> 0.001355100987 | AS26: 0.001148609408 | AT26: 0.002594050461 | AU26: 0.002129444409 | AV26: 0.001355100987 | AW26: 0.001148609408 | AX26: 0.002594050461 | AY26: 0.002129444409 | BB26: 0 | BC26: 0 | BD26: 0 | BE26: 0 | BF26: 0 | BG26: 0 | BH26: 0 | BI26: 0
H27: 21 | I27: Y21 | J27: ='population lookup'!I25 -> 0 | K27: ='population lookup'!P25 -> 0 | M27: 26 | P27: =HLOOKUP($P$5,altrisk10plus,Risk!$A28,FALSE) -> 0.001294565414 | Q27: =HLOOKUP($Q$5,altrisk10plushighrisk,Risk!$A28,FALSE) -> 0.001229837144 | R27: =HLOOKUP($R$5,altrisk59,Risk!$A28,FALSE) -> 0.002511456904 | S27: =HLOOKUP($S$5,altrisk59plushighrisk,Risk!$A28,FALSE) -> 0.002161924242 | T27: =HLOOKUP($T$5,altrisk10plus,Risk!$A28,FALSE) -> 0.001294565414 | U27: =HLOOKUP($U$5,altrisk10plushighrisk,Risk!$A28,FALSE) -> 0.001229837144 | V27: =HLOOKUP($V$5,altrisk59,Risk!$A28,FALSE) -> 0.002511456904 | W27: =HLOOKUP($W$5,altrisk59plushighrisk,Risk!$A28,FALSE) -> 0.002161924242 | Y27: =Risk!E28 -> 0 | Z27: =Risk!F28 -> 0 | AA27: =Risk!G28 -> 0 | AB27: =Risk!H28 -> 0 | AC27: 0 | AD27: 0 | AE27: 0 | AF27: 0 | AH27: =Risk!$J28 -> 0 | AI27: =Risk!$J28 -> 0 | AJ27: =Risk!$J28 -> 0 | AK27: =Risk!$J28 -> 0 | AL27: =Risk!$J28 -> 0 | AM27: =Risk!$J28 -> 0 | AN27: =Risk!$J28 -> 0 | AO27: =Risk!$J28 -> 0 | AR27: 0.001294565414 | AS27: 0.001229837144 | AT27: 0.002511456904 | AU27: 0.002161924242 | AV27: 0.001294565414 | AW27: 0.001229837144 | AX27: 0.002511456904 | AY27: 0.002161924242 | BB27: 0 | BC27: 0 | BD27: 0 | BE27: 0 | BF27: 0 | BG27: 0 | BH27: 0 | BI27: 0
H28: 22 | I28: Y22 | J28: ='population lookup'!I26 -> 0 | K28: ='population lookup'!P26 -> 0 | M28: 27 | P28: =HLOOKUP($P$5,altrisk10plus,Risk!$A29,FALSE) -> 0.001591433234 | Q28: =HLOOKUP($Q$5,altrisk10plushighrisk,Risk!$A29,FALSE) -> 0.001429592566 | R28: =HLOOKUP($R$5,altrisk59,Risk!$A29,FALSE) -> 0.002872671855 | S28: =HLOOKUP($S$5,altrisk59plushighrisk,Risk!$A29,FALSE) -> 0.002508530352 | T28: =HLOOKUP($T$5,altrisk10plus,Risk!$A29,FALSE) -> 0.001591433234 | U28: =HLOOKUP($U$5,altrisk10plushighrisk,Risk!$A29,FALSE) -> 0.001429592566 | V28: =HLOOKUP($V$5,altrisk59,Risk!$A29,FALSE) -> 0.002872671855 | W28: =HLOOKUP($W$5,altrisk59plushighrisk,Risk!$A29,FALSE) -> 0.002508530352 | Y28: =Risk!E29 -> 0 | Z28: =Risk!F29 -> 0 | AA28: =Risk!G29 -> 0 | AB28: =Risk!H29 -> 0 | AC28: 0 | AD28: 0 | AE28: 0 | AF28: 0 | AH28: =Risk!$J29 -> 0 | AI28: =Risk!$J29 -> 0 | AJ28: =Risk!$J29 -> 0 | AK28: =Risk!$J29 -> 0 | AL28: =Risk!$J29 -> 0 | AM28: =Risk!$J29 -> 0 | AN28: =Risk!$J29 -> 0 | AO28: =Risk!$J29 -> 0 | AR28: 0.001591433234 | AS28: 0.001429592566 | AT28: 0.002872671855 | AU28: 0.002508530352 | AV28: 0.001591433234 | AW28: 0.001429592566 | AX28: 0.002872671855 | AY28: 0.002508530352 | BB28: 0 | BC28: 0 | BD28: 0 | BE28: 0 | BF28: 0 | BG28: 0 | BH28: 0 | BI28: 0
H29: 23 | I29: Y23 | J29: ='population lookup'!I27 -> 0 | K29: ='population lookup'!P27 -> 0 | M29: 28 | P29: =HLOOKUP($P$5,altrisk10plus,Risk!$A30,FALSE) -> 0.001808859331 | Q29: =HLOOKUP($Q$5,altrisk10plushighrisk,Risk!$A30,FALSE) -> 0.001659254424 | R29: =HLOOKUP($R$5,altrisk59,Risk!$A30,FALSE) -> 0.003032899479 | S29: =HLOOKUP($S$5,altrisk59plushighrisk,Risk!$A30,FALSE) -> 0.002679287881 | T29: =HLOOKUP($T$5,altrisk10plus,Risk!$A30,FALSE) -> 0.001808859331 | U29: =HLOOKUP($U$5,altrisk10plushighrisk,Risk!$A30,FALSE) -> 0.001659254424 | V29: =HLOOKUP($V$5,altrisk59,Risk!$A30,FALSE) -> 0.003032899479 | W29: =HLOOKUP($W$5,altrisk59plushighrisk,Risk!$A30,FALSE) -> 0.002679287881 | Y29: =Risk!E30 -> 0 | Z29: =Risk!F30 -> 0 | AA29: =Risk!G30 -> 0 | AB29: =Risk!H30 -> 0 | AC29: 0 | AD29: 0 | AE29: 0 | AF29: 0 | AH29: =Risk!$J30 -> 0 | AI29: =Risk!$J30 -> 0 | AJ29: =Risk!$J30 -> 0 | AK29: =Risk!$J30 -> 0 | AL29: =Risk!$J30 -> 0 | AM29: =Risk!$J30 -> 0 | AN29: =Risk!$J30 -> 0 | AO29: =Risk!$J30 -> 0 | AR29: 0.001808859331 | AS29: 0.001659254424 | AT29: 0.003032899479 | AU29: 0.002679287881 | AV29: 0.001808859331 | AW29: 0.001659254424 | AX29: 0.003032899479 | AY29: 0.002679287881 | BB29: 0 | BC29: 0 | BD29: 0 | BE29: 0 | BF29: 0 | BG29: 0 | BH29: 0 | BI29: 0
H30: 24 | I30: Y24 | J30: ='population lookup'!I28 -> 0 | K30: ='population lookup'!P28 -> 0 | M30: 29 | P30: =HLOOKUP($P$5,altrisk10plus,Risk!$A31,FALSE) -> 0.001787673181 | Q30: =HLOOKUP($Q$5,altrisk10plushighrisk,Risk!$A31,FALSE) -> 0.00159807148 | R30: =HLOOKUP($R$5,altrisk59,Risk!$A31,FALSE) -> 0.003087799131 | S30: =HLOOKUP($S$5,altrisk59plushighrisk,Risk!$A31,FALSE) -> 0.002654423814 | T30: =HLOOKUP($T$5,altrisk10plus,Risk!$A31,FALSE) -> 0.001787673181 | U30: =HLOOKUP($U$5,altrisk10plushighrisk,Risk!$A31,FALSE) -> 0.00159807148 | V30: =HLOOKUP($V$5,altrisk59,Risk!$A31,FALSE) -> 0.003087799131 | W30: =HLOOKUP($W$5,altrisk59plushighrisk,Risk!$A31,FALSE) -> 0.002654423814 | Y30: =Risk!E31 -> 0 | Z30: =Risk!F31 -> 0 | AA30: =Risk!G31 -> 0 | AB30: =Risk!H31 -> 0 | AC30: 0 | AD30: 0 | AE30: 0 | AF30: 0 | AH30: =Risk!$J31 -> 0 | AI30: =Risk!$J31 -> 0 | AJ30: =Risk!$J31 -> 0 | AK30: =Risk!$J31 -> 0 | AL30: =Risk!$J31 -> 0 | AM30: =Risk!$J31 -> 0 | AN30: =Risk!$J31 -> 0 | AO30: =Risk!$J31 -> 0 | AR30: 0.001787673181 | AS30: 0.00159807148 | AT30: 0.003087799131 | AU30: 0.002654423814 | AV30: 0.001787673181 | AW30: 0.00159807148 | AX30: 0.003087799131 | AY30: 0.002654423814 | BB30: 0 | BC30: 0 | BD30: 0 | BE30: 0 | BF30: 0 | BG30: 0 | BH30: 0 | BI30: 0
H31: 25 | I31: Y25 | J31: ='population lookup'!I29 -> 0 | K31: ='population lookup'!P29 -> 0 | M31: 30 | P31: =HLOOKUP($P$5,altrisk10plus,Risk!$A32,FALSE) -> 0.001974568676 | Q31: =HLOOKUP($Q$5,altrisk10plushighrisk,Risk!$A32,FALSE) -> 0.001834528344 | R31: =HLOOKUP($R$5,altrisk59,Risk!$A32,FALSE) -> 0.003487004257 | S31: =HLOOKUP($S$5,altrisk59plushighrisk,Risk!$A32,FALSE) -> 0.00301086713 | T31: =HLOOKUP($T$5,altrisk10plus,Risk!$A32,FALSE) -> 0.001974568676 | U31: =HLOOKUP($U$5,altrisk10plushighrisk,Risk!$A32,FALSE) -> 0.001834528344 | V31: =HLOOKUP($V$5,altrisk59,Risk!$A32,FALSE) -> 0.003487004257 | W31: =HLOOKUP($W$5,altrisk59plushighrisk,Risk!$A32,FALSE) -> 0.00301086713 | Y31: =Risk!E32 -> 0 | Z31: =Risk!F32 -> 0 | AA31: =Risk!G32 -> 0 | AB31: =Risk!H32 -> 0 | AC31: 0 | AD31: 0 | AE31: 0 | AF31: 0 | AH31: =Risk!$J32 -> 0 | AI31: =Risk!$J32 -> 0 | AJ31: =Risk!$J32 -> 0 | AK31: =Risk!$J32 -> 0 | AL31: =Risk!$J32 -> 0 | AM31: =Risk!$J32 -> 0 | AN31: =Risk!$J32 -> 0 | AO31: =Risk!$J32 -> 0 | AR31: 0.001974568676 | AS31: 0.001834528344 | AT31: 0.003487004257 | AU31: 0.00301086713 | AV31: 0.001974568676 | AW31: 0.001834528344 | AX31: 0.003487004257 | AY31: 0.00301086713 | BB31: 0 | BC31: 0 | BD31: 0 | BE31: 0 | BF31: 0 | BG31: 0 | BH31: 0 | BI31: 0
H32: 26 | I32: Y26 | J32: ='population lookup'!I30 -> 0 | K32: ='population lookup'!P30 -> 0 | M32: 31 | P32: =HLOOKUP($P$5,altrisk10plus,Risk!$A33,FALSE) -> 0.00211371803 | Q32: =HLOOKUP($Q$5,altrisk10plushighrisk,Risk!$A33,FALSE) -> 0.001930529134 | R32: =HLOOKUP($R$5,altrisk59,Risk!$A33,FALSE) -> 0.003635595012 | S32: =HLOOKUP($S$5,altrisk59plushighrisk,Risk!$A33,FALSE) -> 0.003297400127 | T32: =HLOOKUP($T$5,altrisk10plus,Risk!$A33,FALSE) -> 0.00211371803 | U32: =HLOOKUP($U$5,altrisk10plushighrisk,Risk!$A33,FALSE) -> 0.001930529134 | V32: =HLOOKUP($V$5,altrisk59,Risk!$A33,FALSE) -> 0.003635595012 | W32: =HLOOKUP($W$5,altrisk59plushighrisk,Risk!$A33,FALSE) -> 0.003297400127 | Y32: =Risk!E33 -> 0 | Z32: =Risk!F33 -> 0 | AA32: =Risk!G33 -> 0 | AB32: =Risk!H33 -> 0 | AC32: 0 | AD32: 0 | AE32: 0 | AF32: 0 | AH32: =Risk!$J33 -> 0 | AI32: =Risk!$J33 -> 0 | AJ32: =Risk!$J33 -> 0 | AK32: =Risk!$J33 -> 0 | AL32: =Risk!$J33 -> 0 | AM32: =Risk!$J33 -> 0 | AN32: =Risk!$J33 -> 0 | AO32: =Risk!$J33 -> 0 | AR32: 0.00211371803 | AS32: 0.001930529134 | AT32: 0.003635595012 | AU32: 0.003297400127 | AV32: 0.00211371803 | AW32: 0.001930529134 | AX32: 0.003635595012 | AY32: 0.003297400127 | BB32: 0 | BC32: 0 | BD32: 0 | BE32: 0 | BF32: 0 | BG32: 0 | BH32: 0 | BI32: 0
H33: 27 | I33: Y27 | J33: ='population lookup'!I31 -> 0 | K33: ='population lookup'!P31 -> 0 | M33: 32 | P33: =HLOOKUP($P$5,altrisk10plus,Risk!$A34,FALSE) -> 0.002183375158 | Q33: =HLOOKUP($Q$5,altrisk10plushighrisk,Risk!$A34,FALSE) -> 0.002055775311 | R33: =HLOOKUP($R$5,altrisk59,Risk!$A34,FALSE) -> 0.003870528689 | S33: =HLOOKUP($S$5,altrisk59plushighrisk,Risk!$A34,FALSE) -> 0.003473551387 | T33: =HLOOKUP($T$5,altrisk10plus,Risk!$A34,FALSE) -> 0.002183375158 | U33: =HLOOKUP($U$5,altrisk10plushighrisk,Risk!$A34,FALSE) -> 0.002055775311 | V33: =HLOOKUP($V$5,altrisk59,Risk!$A34,FALSE) -> 0.003870528689 | W33: =HLOOKUP($W$5,altrisk59plushighrisk,Risk!$A34,FALSE) -> 0.003473551387 | Y33: =Risk!E34 -> 0 | Z33: =Risk!F34 -> 0 | AA33: =Risk!G34 -> 0 | AB33: =Risk!H34 -> 0 | AC33: 0 | AD33: 0 | AE33: 0 | AF33: 0 | AH33: =Risk!$J34 -> 0 | AI33: =Risk!$J34 -> 0 | AJ33: =Risk!$J34 -> 0 | AK33: =Risk!$J34 -> 0 | AL33: =Risk!$J34 -> 0 | AM33: =Risk!$J34 -> 0 | AN33: =Risk!$J34 -> 0 | AO33: =Risk!$J34 -> 0 | AR33: 0.002183375158 | AS33: 0.002055775311 | AT33: 0.003870528689 | AU33: 0.003473551387 | AV33: 0.002183375158 | AW33: 0.002055775311 | AX33: 0.003870528689 | AY33: 0.003473551387 | BB33: 0 | BC33: 0 | BD33: 0 | BE33: 0 | BF33: 0 | BG33: 0 | BH33: 0 | BI33: 0
H34: 28 | I34: Y28 | J34: ='population lookup'!I32 -> 0 | K34: ='population lookup'!P32 -> 0 | M34: 33 | P34: =HLOOKUP($P$5,altrisk10plus,Risk!$A35,FALSE) -> 0.002299490304 | Q34: =HLOOKUP($Q$5,altrisk10plushighrisk,Risk!$A35,FALSE) -> 0.002196965259 | R34: =HLOOKUP($R$5,altrisk59,Risk!$A35,FALSE) -> 0.003866658855 | S34: =HLOOKUP($S$5,altrisk59plushighrisk,Risk!$A35,FALSE) -> 0.003471205109 | T34: =HLOOKUP($T$5,altrisk10plus,Risk!$A35,FALSE) -> 0.002299490304 | U34: =HLOOKUP($U$5,altrisk10plushighrisk,Risk!$A35,FALSE) -> 0.002196965259 | V34: =HLOOKUP($V$5,altrisk59,Risk!$A35,FALSE) -> 0.003866658855 | W34: =HLOOKUP($W$5,altrisk59plushighrisk,Risk!$A35,FALSE) -> 0.003471205109 | Y34: =Risk!E35 -> 0 | Z34: =Risk!F35 -> 0 | AA34: =Risk!G35 -> 0 | AB34: =Risk!H35 -> 0 | AC34: 0 | AD34: 0 | AE34: 0 | AF34: 0 | AH34: =Risk!$J35 -> 0 | AI34: =Risk!$J35 -> 0 | AJ34: =Risk!$J35 -> 0 | AK34: =Risk!$J35 -> 0 | AL34: =Risk!$J35 -> 0 | AM34: =Risk!$J35 -> 0 | AN34: =Risk!$J35 -> 0 | AO34: =Risk!$J35 -> 0 | AR34: 0.002299490304 | AS34: 0.002196965259 | AT34: 0.003866658855 | AU34: 0.003471205109 | AV34: 0.002299490304 | AW34: 0.002196965259 | AX34: 0.003866658855 | AY34: 0.003471205109 | BB34: 0 | BC34: 0 | BD34: 0 | BE34: 0 | BF34: 0 | BG34: 0 | BH34: 0 | BI34: 0
H35: 29 | I35: Y29 | J35: ='population lookup'!I33 -> 0 | K35: ='population lookup'!P33 -> 0 | M35: 34 | P35: =HLOOKUP($P$5,altrisk10plus,Risk!$A36,FALSE) -> 0.002367957492 | Q35: =HLOOKUP($Q$5,altrisk10plushighrisk,Risk!$A36,FALSE) -> 0.00219469231 | R35: =HLOOKUP($R$5,altrisk59,Risk!$A36,FALSE) -> 0.003956221664 | S35: =HLOOKUP($S$5,altrisk59plushighrisk,Risk!$A36,FALSE) -> 0.003551936238 | T35: =HLOOKUP($T$5,altrisk10plus,Risk!$A36,FALSE) -> 0.002367957492 | U35: =HLOOKUP($U$5,altrisk10plushighrisk,Risk!$A36,FALSE) -> 0.00219469231 | V35: =HLOOKUP($V$5,altrisk59,Risk!$A36,FALSE) -> 0.003956221664 | W35: =HLOOKUP($W$5,altrisk59plushighrisk,Risk!$A36,FALSE) -> 0.003551936238 | Y35: =Risk!E36 -> 0 | Z35: =Risk!F36 -> 0 | AA35: =Risk!G36 -> 0 | AB35: =Risk!H36 -> 0 | AC35: 0 | AD35: 0 | AE35: 0 | AF35: 0 | AH35: =Risk!$J36 -> 0 | AI35: =Risk!$J36 -> 0 | AJ35: =Risk!$J36 -> 0 | AK35: =Risk!$J36 -> 0 | AL35: =Risk!$J36 -> 0 | AM35: =Risk!$J36 -> 0 | AN35: =Risk!$J36 -> 0 | AO35: =Risk!$J36 -> 0 | AR35: 0.002367957492 | AS35: 0.00219469231 | AT35: 0.003956221664 | AU35: 0.003551936238 | AV35: 0.002367957492 | AW35: 0.00219469231 | AX35: 0.003956221664 | AY35: 0.003551936238 | BB35: 0 | BC35: 0 | BD35: 0 | BE35: 0 | BF35: 0 | BG35: 0 | BH35: 0 | BI35: 0
H36: 30 | I36: Y30 | J36: ='population lookup'!I34 -> 0 | K36: ='population lookup'!P34 -> 0 | M36: 35 | P36: =HLOOKUP($P$5,altrisk10plus,Risk!$A37,FALSE) -> 0.002167341584 | Q36: =HLOOKUP($Q$5,altrisk10plushighrisk,Risk!$A37,FALSE) -> 0.002024753322 | R36: =HLOOKUP($R$5,altrisk59,Risk!$A37,FALSE) -> 0.003807106599 | S36: =HLOOKUP($S$5,altrisk59plushighrisk,Risk!$A37,FALSE) -> 0.003365082986 | T36: =HLOOKUP($T$5,altrisk10plus,Risk!$A37,FALSE) -> 0.002167341584 | U36: =HLOOKUP($U$5,altrisk10plushighrisk,Risk!$A37,FALSE) -> 0.002024753322 | V36: =HLOOKUP($V$5,altrisk59,Risk!$A37,FALSE) -> 0.003807106599 | W36: =HLOOKUP($W$5,altrisk59plushighrisk,Risk!$A37,FALSE) -> 0.003365082986 | Y36: =Risk!E37 -> 0 | Z36: =Risk!F37 -> 0 | AA36: =Risk!G37 -> 0 | AB36: =Risk!H37 -> 0 | AC36: 0 | AD36: 0 | AE36: 0 | AF36: 0 | AH36: =Risk!$J37 -> 0 | AI36: =Risk!$J37 -> 0 | AJ36: =Risk!$J37 -> 0 | AK36: =Risk!$J37 -> 0 | AL36: =Risk!$J37 -> 0 | AM36: =Risk!$J37 -> 0 | AN36: =Risk!$J37 -> 0 | AO36: =Risk!$J37 -> 0 | AR36: =HLOOKUP(AR$2,$P$2:$AO$107,$M36,FALSE) -> 0.002167341584 | AS36: 0.002024753322 | AT36: 0.003807106599 | AU36: 0.003365082986 | AV36: 0.002167341584 | AW36: 0.002024753322 | AX36: 0.003807106599 | AY36: 0.003365082986 | BB36: 0 | BC36: 0 | BD36: 0 | BE36: 0 | BF36: 0 | BG36: 0 | BH36: 0 | BI36: 0
H37: 31 | I37: Y31 | J37: ='population lookup'!I35 -> 0 | K37: ='population lookup'!P35 -> 0 | M37: 36 | P37: =HLOOKUP($P$5,altrisk10plus,Risk!$A38,FALSE) -> 0.002539418373 | Q37: =HLOOKUP($Q$5,altrisk10plushighrisk,Risk!$A38,FALSE) -> 0.002438989398 | R37: =HLOOKUP($R$5,altrisk59,Risk!$A38,FALSE) -> 0.004189322965 | S37: =HLOOKUP($S$5,altrisk59plushighrisk,Risk!$A38,FALSE) -> 0.003873689043 | T37: =HLOOKUP($T$5,altrisk10plus,Risk!$A38,FALSE) -> 0.002539418373 | U37: =HLOOKUP($U$5,altrisk10plushighrisk,Risk!$A38,FALSE) -> 0.002438989398 | V37: =HLOOKUP($V$5,altrisk59,Risk!$A38,FALSE) -> 0.004189322965 | W37: =HLOOKUP($W$5,altrisk59plushighrisk,Risk!$A38,FALSE) -> 0.003873689043 | Y37: =Risk!E38 -> 0 | Z37: =Risk!F38 -> 0 | AA37: =Risk!G38 -> 0 | AB37: =Risk!H38 -> 0 | AC37: 0 | AD37: 0 | AE37: 0 | AF37: 0 | AH37: =Risk!$J38 -> 0 | AI37: =Risk!$J38 -> 0 | AJ37: =Risk!$J38 -> 0 | AK37: =Risk!$J38 -> 0 | AL37: =Risk!$J38 -> 0 | AM37: =Risk!$J38 -> 0 | AN37: =Risk!$J38 -> 0 | AO37: =Risk!$J38 -> 0 | AR37: 0.002539418373 | AS37: 0.002438989398 | AT37: 0.004189322965 | AU37: 0.003873689043 | AV37: 0.002539418373 | AW37: 0.002438989398 | AX37: 0.004189322965 | AY37: 0.003873689043 | BB37: 0 | BC37: 0 | BD37: 0 | BE37: 0 | BF37: 0 | BG37: 0 | BH37: 0 | BI37: 0
H38: 32 | I38: Y32 | J38: ='population lookup'!I36 -> 0 | K38: ='population lookup'!P36 -> 0 | M38: 37 | P38: =HLOOKUP($P$5,altrisk10plus,Risk!$A39,FALSE) -> 0.003161870188 | Q38: =HLOOKUP($Q$5,altrisk10plushighrisk,Risk!$A39,FALSE) -> 0.002883742717 | R38: =HLOOKUP($R$5,altrisk59,Risk!$A39,FALSE) -> 0.004757443569 | S38: =HLOOKUP($S$5,altrisk59plushighrisk,Risk!$A39,FALSE) -> 0.004318294932 | T38: =HLOOKUP($T$5,altrisk10plus,Risk!$A39,FALSE) -> 0.003161870188 | U38: =HLOOKUP($U$5,altrisk10plushighrisk,Risk!$A39,FALSE) -> 0.002883742717 | V38: =HLOOKUP($V$5,altrisk59,Risk!$A39,FALSE) -> 0.004757443569 | W38: =HLOOKUP($W$5,altrisk59plushighrisk,Risk!$A39,FALSE) -> 0.004318294932 | Y38: =Risk!E39 -> 0 | Z38: =Risk!F39 -> 0 | AA38: =Risk!G39 -> 0 | AB38: =Risk!H39 -> 0 | AC38: 0 | AD38: 0 | AE38: 0 | AF38: 0 | AH38: =Risk!$J39 -> 0 | AI38: =Risk!$J39 -> 0 | AJ38: =Risk!$J39 -> 0 | AK38: =Risk!$J39 -> 0 | AL38: =Risk!$J39 -> 0 | AM38: =Risk!$J39 -> 0 | AN38: =Risk!$J39 -> 0 | AO38: =Risk!$J39 -> 0 | AR38: 0.003161870188 | AS38: 0.002883742717 | AT38: 0.004757443569 | AU38: 0.004318294932 | AV38: 0.003161870188 | AW38: 0.002883742717 | AX38: 0.004757443569 | AY38: 0.004318294932 | BB38: 0 | BC38: 0 | BD38: 0 | BE38: 0 | BF38: 0 | BG38: 0 | BH38: 0 | BI38: 0
H39: 33 | I39: Y33 | J39: ='population lookup'!I37 -> 0 | K39: ='population lookup'!P37 -> 0 | M39: 38 | P39: =HLOOKUP($P$5,altrisk10plus,Risk!$A40,FALSE) -> 0.002981279983 | Q39: =HLOOKUP($Q$5,altrisk10plushighrisk,Risk!$A40,FALSE) -> 0.002860212776 | R39: =HLOOKUP($R$5,altrisk59,Risk!$A40,FALSE) -> 0.004706487689 | S39: =HLOOKUP($S$5,altrisk59plushighrisk,Risk!$A40,FALSE) -> 0.004328152666 | T39: =HLOOKUP($T$5,altrisk10plus,Risk!$A40,FALSE) -> 0.002981279983 | U39: =HLOOKUP($U$5,altrisk10plushighrisk,Risk!$A40,FALSE) -> 0.002860212776 | V39: =HLOOKUP($V$5,altrisk59,Risk!$A40,FALSE) -> 0.004706487689 | W39: =HLOOKUP($W$5,altrisk59plushighrisk,Risk!$A40,FALSE) -> 0.004328152666 | Y39: =Risk!E40 -> 0 | Z39: =Risk!F40 -> 0 | AA39: =Risk!G40 -> 0 | AB39: =Risk!H40 -> 0 | AC39: 0 | AD39: 0 | AE39: 0 | AF39: 0 | AH39: =Risk!$J40 -> 0 | AI39: =Risk!$J40 -> 0 | AJ39: =Risk!$J40 -> 0 | AK39: =Risk!$J40 -> 0 | AL39: =Risk!$J40 -> 0 | AM39: =Risk!$J40 -> 0 | AN39: =Risk!$J40 -> 0 | AO39: =Risk!$J40 -> 0 | AR39: 0.002981279983 | AS39: 0.002860212776 | AT39: 0.004706487689 | AU39: 0.004328152666 | AV39: 0.002981279983 | AW39: 0.002860212776 | AX39: 0.004706487689 | AY39: 0.004328152666 | BB39: 0 | BC39: 0 | BD39: 0 | BE39: 0 | BF39: 0 | BG39: 0 | BH39: 0 | BI39: 0
H40: 34 | I40: Y34 | J40: ='population lookup'!I38 -> 0 | K40: ='population lookup'!P38 -> 0 | M40: 39 | P40: =HLOOKUP($P$5,altrisk10plus,Risk!$A41,FALSE) -> 0.003373368316 | Q40: =HLOOKUP($Q$5,altrisk10plushighrisk,Risk!$A41,FALSE) -> 0.003194107198 | R40: =HLOOKUP($R$5,altrisk59,Risk!$A41,FALSE) -> 0.005214868895 | S40: =HLOOKUP($S$5,altrisk59plushighrisk,Risk!$A41,FALSE) -> 0.004807457263 | T40: =HLOOKUP($T$5,altrisk10plus,Risk!$A41,FALSE) -> 0.003373368316 | U40: =HLOOKUP($U$5,altrisk10plushighrisk,Risk!$A41,FALSE) -> 0.003194107198 | V40: =HLOOKUP($V$5,altrisk59,Risk!$A41,FALSE) -> 0.005214868895 | W40: =HLOOKUP($W$5,altrisk59plushighrisk,Risk!$A41,FALSE) -> 0.004807457263 | Y40: =Risk!E41 -> 0 | Z40: =Risk!F41 -> 0 | AA40: =Risk!G41 -> 0 | AB40: =Risk!H41 -> 0 | AC40: 0 | AD40: 0 | AE40: 0 | AF40: 0 | AH40: =Risk!$J41 -> 0 | AI40: =Risk!$J41 -> 0 | AJ40: =Risk!$J41 -> 0 | AK40: =Risk!$J41 -> 0 | AL40: =Risk!$J41 -> 0 | AM40: =Risk!$J41 -> 0 | AN40: =Risk!$J41 -> 0 | AO40: =Risk!$J41 -> 0 | AR40: 0.003373368316 | AS40: 0.003194107198 | AT40: 0.005214868895 | AU40: 0.004807457263 | AV40: 0.003373368316 | AW40: 0.003194107198 | AX40: 0.005214868895 | AY40: 0.004807457263 | BB40: 0 | BC40: 0 | BD40: 0 | BE40: 0 | BF40: 0 | BG40: 0 | BH40: 0 | BI40: 0
H41: 35 | I41: Y35 | J41: ='population lookup'!I39 -> 0 | K41: ='population lookup'!P39 -> 0 | M41: 40 | P41: =HLOOKUP($P$5,altrisk10plus,Risk!$A42,FALSE) -> 0.003276626729 | Q41: =HLOOKUP($Q$5,altrisk10plushighrisk,Risk!$A42,FALSE) -> 0.003127689151 | R41: =HLOOKUP($R$5,altrisk59,Risk!$A42,FALSE) -> 0.005146620772 | S41: =HLOOKUP($S$5,altrisk59plushighrisk,Risk!$A42,FALSE) -> 0.004716356656 | T41: =HLOOKUP($T$5,altrisk10plus,Risk!$A42,FALSE) -> 0.003276626729 | U41: =HLOOKUP($U$5,altrisk10plushighrisk,Risk!$A42,FALSE) -> 0.003127689151 | V41: =HLOOKUP($V$5,altrisk59,Risk!$A42,FALSE) -> 0.005146620772 | W41: =HLOOKUP($W$5,altrisk59plushighrisk,Risk!$A42,FALSE) -> 0.004716356656 | Y41: =Risk!E42 -> 0 | Z41: =Risk!F42 -> 0 | AA41: =Risk!G42 -> 0 | AB41: =Risk!H42 -> 0 | AC41: 0 | AD41: 0 | AE41: 0 | AF41: 0 | AH41: =Risk!$J42 -> 0 | AI41: =Risk!$J42 -> 0 | AJ41: =Risk!$J42 -> 0 | AK41: =Risk!$J42 -> 0 | AL41: =Risk!$J42 -> 0 | AM41: =Risk!$J42 -> 0 | AN41: =Risk!$J42 -> 0 | AO41: =Risk!$J42 -> 0 | AR41: 0.003276626729 | AS41: 0.003127689151 | AT41: 0.005146620772 | AU41: 0.004716356656 | AV41: 0.003276626729 | AW41: 0.003127689151 | AX41: 0.005146620772 | AY41: 0.004716356656 | BB41: 0 | BC41: 0 | BD41: 0 | BE41: 0 | BF41: 0 | BG41: 0 | BH41: 0 | BI41: 0
H42: 36 | I42: Y36 | J42: ='population lookup'!I40 -> 0 | K42: ='population lookup'!P40 -> 0 | M42: 41 | P42: =HLOOKUP($P$5,altrisk10plus,Risk!$A43,FALSE) -> 0.002736384532 | Q42: =HLOOKUP($Q$5,altrisk10plushighrisk,Risk!$A43,FALSE) -> 0.002548746736 | R42: =HLOOKUP($R$5,altrisk59,Risk!$A43,FALSE) -> 0.004300032837 | S42: =HLOOKUP($S$5,altrisk59plushighrisk,Risk!$A43,FALSE) -> 0.003940393727 | T42: =HLOOKUP($T$5,altrisk10plus,Risk!$A43,FALSE) -> 0.002736384532 | U42: =HLOOKUP($U$5,altrisk10plushighrisk,Risk!$A43,FALSE) -> 0.002548746736 | V42: =HLOOKUP($V$5,altrisk59,Risk!$A43,FALSE) -> 0.004300032837 | W42: =HLOOKUP($W$5,altrisk59plushighrisk,Risk!$A43,FALSE) -> 0.003940393727 | Y42: =Risk!E43 -> 0 | Z42: =Risk!F43 -> 0 | AA42: =Risk!G43 -> 0 | AB42: =Risk!H43 -> 0 | AC42: 0 | AD42: 0 | AE42: 0 | AF42: 0 | AH42: =Risk!$J43 -> 0 | AI42: =Risk!$J43 -> 0 | AJ42: =Risk!$J43 -> 0 | AK42: =Risk!$J43 -> 0 | AL42: =Risk!$J43 -> 0 | AM42: =Risk!$J43 -> 0 | AN42: =Risk!$J43 -> 0 | AO42: =Risk!$J43 -> 0 | AR42: 0.002736384532 | AS42: 0.002548746736 | AT42: 0.004300032837 | AU42: 0.003940393727 | AV42: 0.002736384532 | AW42: 0.002548746736 | AX42: 0.004300032837 | AY42: 0.003940393727 | BB42: 0 | BC42: 0 | BD42: 0 | BE42: 0 | BF42: 0 | BG42: 0 | BH42: 0 | BI42: 0
H43: 37 | I43: Y37 | J43: ='population lookup'!I41 -> 0 | K43: ='population lookup'!P41 -> 0 | M43: 42 | P43: =HLOOKUP($P$5,altrisk10plus,Risk!$A44,FALSE) -> 0.003444049706 | Q43: =HLOOKUP($Q$5,altrisk10plushighrisk,Risk!$A44,FALSE) -> 0.003366481019 | R43: =HLOOKUP($R$5,altrisk59,Risk!$A44,FALSE) -> 0.005414294358 | S43: =HLOOKUP($S$5,altrisk59plushighrisk,Risk!$A44,FALSE) -> 0.005166074559 | T43: =HLOOKUP($T$5,altrisk10plus,Risk!$A44,FALSE) -> 0.003444049706 | U43: =HLOOKUP($U$5,altrisk10plushighrisk,Risk!$A44,FALSE) -> 0.003366481019 | V43: =HLOOKUP($V$5,altrisk59,Risk!$A44,FALSE) -> 0.005414294358 | W43: =HLOOKUP($W$5,altrisk59plushighrisk,Risk!$A44,FALSE) -> 0.005166074559 | Y43: =Risk!E44 -> 0 | Z43: =Risk!F44 -> 0 | AA43: =Risk!G44 -> 0 | AB43: =Risk!H44 -> 0 | AC43: 0 | AD43: 0 | AE43: 0 | AF43: 0 | AH43: =Risk!$J44 -> 0 | AI43: =Risk!$J44 -> 0 | AJ43: =Risk!$J44 -> 0 | AK43: =Risk!$J44 -> 0 | AL43: =Risk!$J44 -> 0 | AM43: =Risk!$J44 -> 0 | AN43: =Risk!$J44 -> 0 | AO43: =Risk!$J44 -> 0 | AR43: 0.003444049706 | AS43: 0.003366481019 | AT43: 0.005414294358 | AU43: 0.005166074559 | AV43: 0.003444049706 | AW43: 0.003366481019 | AX43: 0.005414294358 | AY43: 0.005166074559 | BB43: 0 | BC43: 0 | BD43: 0 | BE43: 0 | BF43: 0 | BG43: 0 | BH43: 0 | BI43: 0
H44: 38 | I44: Y38 | J44: ='population lookup'!I42 -> 0 | K44: ='population lookup'!P42 -> 0 | M44: 43 | P44: =HLOOKUP($P$5,altrisk10plus,Risk!$A45,FALSE) -> 0.004101182916 | Q44: =HLOOKUP($Q$5,altrisk10plushighrisk,Risk!$A45,FALSE) -> 0.00391754786 | R44: =HLOOKUP($R$5,altrisk59,Risk!$A45,FALSE) -> 0.005891624711 | S44: =HLOOKUP($S$5,altrisk59plushighrisk,Risk!$A45,FALSE) -> 0.005432537071 | T44: =HLOOKUP($T$5,altrisk10plus,Risk!$A45,FALSE) -> 0.004101182916 | U44: =HLOOKUP($U$5,altrisk10plushighrisk,Risk!$A45,FALSE) -> 0.00391754786 | V44: =HLOOKUP($V$5,altrisk59,Risk!$A45,FALSE) -> 0.005891624711 | W44: =HLOOKUP($W$5,altrisk59plushighrisk,Risk!$A45,FALSE) -> 0.005432537071 | Y44: =Risk!E45 -> 0 | Z44: =Risk!F45 -> 0 | AA44: =Risk!G45 -> 0 | AB44: =Risk!H45 -> 0 | AC44: 0 | AD44: 0 | AE44: 0 | AF44: 0 | AH44: =Risk!$J45 -> 0 | AI44: =Risk!$J45 -> 0 | AJ44: =Risk!$J45 -> 0 | AK44: =Risk!$J45 -> 0 | AL44: =Risk!$J45 -> 0 | AM44: =Risk!$J45 -> 0 | AN44: =Risk!$J45 -> 0 | AO44: =Risk!$J45 -> 0 | AR44: 0.004101182916 | AS44: 0.00391754786 | AT44: 0.005891624711 | AU44: 0.005432537071 | AV44: 0.004101182916 | AW44: 0.00391754786 | AX44: 0.005891624711 | AY44: 0.005432537071 | BB44: 0 | BC44: 0 | BD44: 0 | BE44: 0 | BF44: 0 | BG44: 0 | BH44: 0 | BI44: 0
H45: 39 | I45: Y39 | J45: ='population lookup'!I43 -> 0 | K45: ='population lookup'!P43 -> 0 | M45: 44 | P45: =HLOOKUP($P$5,altrisk10plus,Risk!$A46,FALSE) -> 0.004148600568 | Q45: =HLOOKUP($Q$5,altrisk10plushighrisk,Risk!$A46,FALSE) -> 0.0040189568 | R45: =HLOOKUP($R$5,altrisk59,Risk!$A46,FALSE) -> 0.006294925167 | S45: =HLOOKUP($S$5,altrisk59plushighrisk,Risk!$A46,FALSE) -> 0.005978018179 | T45: =HLOOKUP($T$5,altrisk10plus,Risk!$A46,FALSE) -> 0.004148600568 | U45: =HLOOKUP($U$5,altrisk10plushighrisk,Risk!$A46,FALSE) -> 0.0040189568 | V45: =HLOOKUP($V$5,altrisk59,Risk!$A46,FALSE) -> 0.006294925167 | W45: =HLOOKUP($W$5,altrisk59plushighrisk,Risk!$A46,FALSE) -> 0.005978018179 | Y45: =Risk!E46 -> 0 | Z45: =Risk!F46 -> 0 | AA45: =Risk!G46 -> 0 | AB45: =Risk!H46 -> 0 | AC45: 0 | AD45: 0 | AE45: 0 | AF45: 0 | AH45: =Risk!$J46 -> 0 | AI45: =Risk!$J46 -> 0 | AJ45: =Risk!$J46 -> 0 | AK45: =Risk!$J46 -> 0 | AL45: =Risk!$J46 -> 0 | AM45: =Risk!$J46 -> 0 | AN45: =Risk!$J46 -> 0 | AO45: =Risk!$J46 -> 0 | AR45: 0.004148600568 | AS45: 0.0040189568 | AT45: 0.006294925167 | AU45: 0.005978018179 | AV45: 0.004148600568 | AW45: 0.0040189568 | AX45: 0.006294925167 | AY45: 0.005978018179 | BB45: 0 | BC45: 0 | BD45: 0 | BE45: 0 | BF45: 0 | BG45: 0 | BH45: 0 | BI45: 0
H46: 40 | I46: Y40 | J46: ='population lookup'!I44 -> 0 | K46: ='population lookup'!P44 -> 0 | M46: 45 | P46: =HLOOKUP($P$5,altrisk10plus,Risk!$A47,FALSE) -> 0.003899110515 | Q46: =HLOOKUP($Q$5,altrisk10plushighrisk,Risk!$A47,FALSE) -> 0.003777263312 | R46: =HLOOKUP($R$5,altrisk59,Risk!$A47,FALSE) -> 0.005889281508 | S46: =HLOOKUP($S$5,altrisk59plushighrisk,Risk!$A47,FALSE) -> 0.00549666274 | T46: =HLOOKUP($T$5,altrisk10plus,Risk!$A47,FALSE) -> 0.003899110515 | U46: =HLOOKUP($U$5,altrisk10plushighrisk,Risk!$A47,FALSE) -> 0.003777263312 | V46: =HLOOKUP($V$5,altrisk59,Risk!$A47,FALSE) -> 0.005889281508 | W46: =HLOOKUP($W$5,altrisk59plushighrisk,Risk!$A47,FALSE) -> 0.00549666274 | Y46: =Risk!E47 -> 0 | Z46: =Risk!F47 -> 0 | AA46: =Risk!G47 -> 0 | AB46: =Risk!H47 -> 0 | AC46: 0 | AD46: 0 | AE46: 0 | AF46: 0 | AH46: =Risk!$J47 -> 0 | AI46: =Risk!$J47 -> 0 | AJ46: =Risk!$J47 -> 0 | AK46: =Risk!$J47 -> 0 | AL46: =Risk!$J47 -> 0 | AM46: =Risk!$J47 -> 0 | AN46: =Risk!$J47 -> 0 | AO46: =Risk!$J47 -> 0 | AR46: =HLOOKUP(AR$2,$P$2:$AO$107,$M46,FALSE) -> 0.003899110515 | AS46: 0.003777263312 | AT46: 0.005889281508 | AU46: 0.00549666274 | AV46: 0.003899110515 | AW46: 0.003777263312 | AX46: 0.005889281508 | AY46: 0.00549666274 | BB46: 0 | BC46: 0 | BD46: 0 | BE46: 0 | BF46: 0 | BG46: 0 | BH46: 0 | BI46: 0
H47: 41 | I47: Y41 | J47: ='population lookup'!I45 -> 0 | K47: ='population lookup'!P45 -> 0 | M47: 46 | P47: =HLOOKUP($P$5,altrisk10plus,Risk!$A48,FALSE) -> 0.004639343194 | Q47: =HLOOKUP($Q$5,altrisk10plushighrisk,Risk!$A48,FALSE) -> 0.004469928976 | R47: =HLOOKUP($R$5,altrisk59,Risk!$A48,FALSE) -> 0.006450772138 | S47: =HLOOKUP($S$5,altrisk59plushighrisk,Risk!$A48,FALSE) -> 0.006098911839 | T47: =HLOOKUP($T$5,altrisk10plus,Risk!$A48,FALSE) -> 0.004639343194 | U47: =HLOOKUP($U$5,altrisk10plushighrisk,Risk!$A48,FALSE) -> 0.004469928976 | V47: =HLOOKUP($V$5,altrisk59,Risk!$A48,FALSE) -> 0.006450772138 | W47: =HLOOKUP($W$5,altrisk59plushighrisk,Risk!$A48,FALSE) -> 0.006098911839 | Y47: =Risk!E48 -> 0 | Z47: =Risk!F48 -> 0 | AA47: =Risk!G48 -> 0 | AB47: =Risk!H48 -> 0 | AC47: 0 | AD47: 0 | AE47: 0 | AF47: 0 | AH47: =Risk!$J48 -> 0 | AI47: =Risk!$J48 -> 0 | AJ47: =Risk!$J48 -> 0 | AK47: =Risk!$J48 -> 0 | AL47: =Risk!$J48 -> 0 | AM47: =Risk!$J48 -> 0 | AN47: =Risk!$J48 -> 0 | AO47: =Risk!$J48 -> 0 | AR47: 0.004639343194 | AS47: 0.004469928976 | AT47: 0.006450772138 | AU47: 0.006098911839 | AV47: 0.004639343194 | AW47: 0.004469928976 | AX47: 0.006450772138 | AY47: 0.006098911839 | BB47: 0 | BC47: 0 | BD47: 0 | BE47: 0 | BF47: 0 | BG47: 0 | BH47: 0 | BI47: 0
H48: 42 | I48: Y42 | J48: ='population lookup'!I46 -> 0 | K48: ='population lookup'!P46 -> 0 | M48: 47 | P48: =HLOOKUP($P$5,altrisk10plus,Risk!$A49,FALSE) -> 0.004687582528 | Q48: =HLOOKUP($Q$5,altrisk10plushighrisk,Risk!$A49,FALSE) -> 0.00455553795 | R48: =HLOOKUP($R$5,altrisk59,Risk!$A49,FALSE) -> 0.006404162045 | S48: =HLOOKUP($S$5,altrisk59plushighrisk,Risk!$A49,FALSE) -> 0.006100459515 | T48: =HLOOKUP($T$5,altrisk10plus,Risk!$A49,FALSE) -> 0.004687582528 | U48: =HLOOKUP($U$5,altrisk10plushighrisk,Risk!$A49,FALSE) -> 0.00455553795 | V48: =HLOOKUP($V$5,altrisk59,Risk!$A49,FALSE) -> 0.006404162045 | W48: =HLOOKUP($W$5,altrisk59plushighrisk,Risk!$A49,FALSE) -> 0.006100459515 | Y48: =Risk!E49 -> 0 | Z48: =Risk!F49 -> 0 | AA48: =Risk!G49 -> 0 | AB48: =Risk!H49 -> 0 | AC48: 0 | AD48: 0 | AE48: 0 | AF48: 0 | AH48: =Risk!$J49 -> 0 | AI48: =Risk!$J49 -> 0 | AJ48: =Risk!$J49 -> 0 | AK48: =Risk!$J49 -> 0 | AL48: =Risk!$J49 -> 0 | AM48: =Risk!$J49 -> 0 | AN48: =Risk!$J49 -> 0 | AO48: =Risk!$J49 -> 0 | AR48: 0.004687582528 | AS48: 0.00455553795 | AT48: 0.006404162045 | AU48: 0.006100459515 | AV48: 0.004687582528 | AW48: 0.00455553795 | AX48: 0.006404162045 | AY48: 0.006100459515 | BB48: 0 | BC48: 0 | BD48: 0 | BE48: 0 | BF48: 0 | BG48: 0 | BH48: 0 | BI48: 0
H49: 43 | I49: Y43 | J49: ='population lookup'!I47 -> 0 | K49: ='population lookup'!P47 -> 0 | M49: 48 | P49: =HLOOKUP($P$5,altrisk10plus,Risk!$A50,FALSE) -> 0.005068597561 | Q49: =HLOOKUP($Q$5,altrisk10plushighrisk,Risk!$A50,FALSE) -> 0.004979674797 | R49: =HLOOKUP($R$5,altrisk59,Risk!$A50,FALSE) -> 0.007113821138 | S49: =HLOOKUP($S$5,altrisk59plushighrisk,Risk!$A50,FALSE) -> 0.006796239837 | T49: =HLOOKUP($T$5,altrisk10plus,Risk!$A50,FALSE) -> 0.005068597561 | U49: =HLOOKUP($U$5,altrisk10plushighrisk,Risk!$A50,FALSE) -> 0.004979674797 | V49: =HLOOKUP($V$5,altrisk59,Risk!$A50,FALSE) -> 0.007113821138 | W49: =HLOOKUP($W$5,altrisk59plushighrisk,Risk!$A50,FALSE) -> 0.006796239837 | Y49: =Risk!E50 -> 0 | Z49: =Risk!F50 -> 0 | AA49: =Risk!G50 -> 0 | AB49: =Risk!H50 -> 0 | AC49: 0 | AD49: 0 | AE49: 0 | AF49: 0 | AH49: =Risk!$J50 -> 0 | AI49: =Risk!$J50 -> 0 | AJ49: =Risk!$J50 -> 0 | AK49: =Risk!$J50 -> 0 | AL49: =Risk!$J50 -> 0 | AM49: =Risk!$J50 -> 0 | AN49: =Risk!$J50 -> 0 | AO49: =Risk!$J50 -> 0 | AR49: 0.005068597561 | AS49: 0.004979674797 | AT49: 0.007113821138 | AU49: 0.006796239837 | AV49: 0.005068597561 | AW49: 0.004979674797 | AX49: 0.007113821138 | AY49: 0.006796239837 | BB49: 0 | BC49: 0 | BD49: 0 | BE49: 0 | BF49: 0 | BG49: 0 | BH49: 0 | BI49: 0
H50: 44 | I50: Y44 | J50: ='population lookup'!I48 -> 0 | K50: ='population lookup'!P48 -> 0 | M50: 49 | P50: =HLOOKUP($P$5,altrisk10plus,Risk!$A51,FALSE) -> 0.005309866879 | Q50: =HLOOKUP($Q$5,altrisk10plushighrisk,Risk!$A51,FALSE) -> 0.005135364212 | R50: =HLOOKUP($R$5,altrisk59,Risk!$A51,FALSE) -> 0.007478685746 | S50: =HLOOKUP($S$5,altrisk59plushighrisk,Risk!$A51,FALSE) -> 0.007079822506 | T50: =HLOOKUP($T$5,altrisk10plus,Risk!$A51,FALSE) -> 0.005309866879 | U50: =HLOOKUP($U$5,altrisk10plushighrisk,Risk!$A51,FALSE) -> 0.005135364212 | V50: =HLOOKUP($V$5,altrisk59,Risk!$A51,FALSE) -> 0.007478685746 | W50: =HLOOKUP($W$5,altrisk59plushighrisk,Risk!$A51,FALSE) -> 0.007079822506 | Y50: =Risk!E51 -> 0 | Z50: =Risk!F51 -> 0 | AA50: =Risk!G51 -> 0 | AB50: =Risk!H51 -> 0 | AC50: 0 | AD50: 0 | AE50: 0 | AF50: 0 | AH50: =Risk!$J51 -> 0 | AI50: =Risk!$J51 -> 0 | AJ50: =Risk!$J51 -> 0 | AK50: =Risk!$J51 -> 0 | AL50: =Risk!$J51 -> 0 | AM50: =Risk!$J51 -> 0 | AN50: =Risk!$J51 -> 0 | AO50: =Risk!$J51 -> 0 | AR50: 0.005309866879 | AS50: 0.005135364212 | AT50: 0.007478685746 | AU50: 0.007079822506 | AV50: 0.005309866879 | AW50: 0.005135364212 | AX50: 0.007478685746 | AY50: 0.007079822506 | BB50: 0 | BC50: 0 | BD50: 0 | BE50: 0 | BF50: 0 | BG50: 0 | BH50: 0 | BI50: 0
H51: 45 | I51: Y45 | J51: ='population lookup'!I49 -> 0 | K51: ='population lookup'!P49 -> 0 | M51: 50 | P51: =HLOOKUP($P$5,altrisk10plus,Risk!$A52,FALSE) -> 0.005333102356 | Q51: =HLOOKUP($Q$5,altrisk10plushighrisk,Risk!$A52,FALSE) -> 0.005184616908 | R51: =HLOOKUP($R$5,altrisk59,Risk!$A52,FALSE) -> 0.007411898634 | S51: =HLOOKUP($S$5,altrisk59plushighrisk,Risk!$A52,FALSE) -> 0.006954068501 | T51: =HLOOKUP($T$5,altrisk10plus,Risk!$A52,FALSE) -> 0.005333102356 | U51: =HLOOKUP($U$5,altrisk10plushighrisk,Risk!$A52,FALSE) -> 0.005184616908 | V51: =HLOOKUP($V$5,altrisk59,Risk!$A52,FALSE) -> 0.007411898634 | W51: =HLOOKUP($W$5,altrisk59plushighrisk,Risk!$A52,FALSE) -> 0.006954068501 | Y51: =Risk!E52 -> 0 | Z51: =Risk!F52 -> 0 | AA51: =Risk!G52 -> 0 | AB51: =Risk!H52 -> 0 | AC51: 0 | AD51: 0 | AE51: 0 | AF51: 0 | AH51: =Risk!$J52 -> 0 | AI51: =Risk!$J52 -> 0 | AJ51: =Risk!$J52 -> 0 | AK51: =Risk!$J52 -> 0 | AL51: =Risk!$J52 -> 0 | AM51: =Risk!$J52 -> 0 | AN51: =Risk!$J52 -> 0 | AO51: =Risk!$J52 -> 0 | AR51: 0.005333102356 | AS51: 0.005184616908 | AT51: 0.007411898634 | AU51: 0.006954068501 | AV51: 0.005333102356 | AW51: 0.005184616908 | AX51: 0.007411898634 | AY51: 0.006954068501 | BB51: 0 | BC51: 0 | BD51: 0 | BE51: 0 | BF51: 0 | BG51: 0 | BH51: 0 | BI51: 0
H52: 46 | I52: Y46 | J52: ='population lookup'!I50 -> 0 | K52: ='population lookup'!P50 -> 0 | M52: 51 | P52: =HLOOKUP($P$5,altrisk10plus,Risk!$A53,FALSE) -> 0.006013296482 | Q52: =HLOOKUP($Q$5,altrisk10plushighrisk,Risk!$A53,FALSE) -> 0.005776748587 | R52: =HLOOKUP($R$5,altrisk59,Risk!$A53,FALSE) -> 0.008428574986 | S52: =HLOOKUP($S$5,altrisk59plushighrisk,Risk!$A53,FALSE) -> 0.007943029307 | T52: =HLOOKUP($T$5,altrisk10plus,Risk!$A53,FALSE) -> 0.006013296482 | U52: =HLOOKUP($U$5,altrisk10plushighrisk,Risk!$A53,FALSE) -> 0.005776748587 | V52: =HLOOKUP($V$5,altrisk59,Risk!$A53,FALSE) -> 0.008428574986 | W52: =HLOOKUP($W$5,altrisk59plushighrisk,Risk!$A53,FALSE) -> 0.007943029307 | Y52: =Risk!E53 -> 0 | Z52: =Risk!F53 -> 0 | AA52: =Risk!G53 -> 0 | AB52: =Risk!H53 -> 0 | AC52: 0 | AD52: 0 | AE52: 0 | AF52: 0 | AH52: =Risk!$J53 -> 0 | AI52: =Risk!$J53 -> 0 | AJ52: =Risk!$J53 -> 0 | AK52: =Risk!$J53 -> 0 | AL52: =Risk!$J53 -> 0 | AM52: =Risk!$J53 -> 0 | AN52: =Risk!$J53 -> 0 | AO52: =Risk!$J53 -> 0 | AR52: 0.006013296482 | AS52: 0.005776748587 | AT52: 0.008428574986 | AU52: 0.007943029307 | AV52: 0.006013296482 | AW52: 0.005776748587 | AX52: 0.008428574986 | AY52: 0.007943029307 | BB52: 0 | BC52: 0 | BD52: 0 | BE52: 0 | BF52: 0 | BG52: 0 | BH52: 0 | BI52: 0
H53: 47 | I53: Y47 | J53: ='population lookup'!I51 -> 0 | K53: ='population lookup'!P51 -> 0 | M53: 52 | P53: =HLOOKUP($P$5,altrisk10plus,Risk!$A54,FALSE) -> 0.006141826923 | Q53: =HLOOKUP($Q$5,altrisk10plushighrisk,Risk!$A54,FALSE) -> 0.005925480769 | R53: =HLOOKUP($R$5,altrisk59,Risk!$A54,FALSE) -> 0.008161057692 | S53: =HLOOKUP($S$5,altrisk59plushighrisk,Risk!$A54,FALSE) -> 0.007572115385 | T53: =HLOOKUP($T$5,altrisk10plus,Risk!$A54,FALSE) -> 0.006141826923 | U53: =HLOOKUP($U$5,altrisk10plushighrisk,Risk!$A54,FALSE) -> 0.005925480769 | V53: =HLOOKUP($V$5,altrisk59,Risk!$A54,FALSE) -> 0.008161057692 | W53: =HLOOKUP($W$5,altrisk59plushighrisk,Risk!$A54,FALSE) -> 0.007572115385 | Y53: =Risk!E54 -> 0 | Z53: =Risk!F54 -> 0 | AA53: =Risk!G54 -> 0 | AB53: =Risk!H54 -> 0 | AC53: 0 | AD53: 0 | AE53: 0 | AF53: 0 | AH53: =Risk!$J54 -> 0 | AI53: =Risk!$J54 -> 0 | AJ53: =Risk!$J54 -> 0 | AK53: =Risk!$J54 -> 0 | AL53: =Risk!$J54 -> 0 | AM53: =Risk!$J54 -> 0 | AN53: =Risk!$J54 -> 0 | AO53: =Risk!$J54 -> 0 | AR53: 0.006141826923 | AS53: 0.005925480769 | AT53: 0.008161057692 | AU53: 0.007572115385 | AV53: 0.006141826923 | AW53: 0.005925480769 | AX53: 0.008161057692 | AY53: 0.007572115385 | BB53: 0 | BC53: 0 | BD53: 0 | BE53: 0 | BF53: 0 | BG53: 0 | BH53: 0 | BI53: 0
